Workbook

Sheet PAGE_PRÉSEN.
B11: NOM | C11: M. Jaimie LeBoeuf
B12: ADRESSE | C12: 555, rue des Vachers, St-Meuhmeuh (Québec) G0X 0X0
B13: TÉLÉPHONE | C13: (450)555-5555
B15: DESCRIPTION DU PROJET :
B36: DESCRIPTION DU CHEPTEL INITIAL :
B37: Vaches : | C37: 20
B38: Génisses : | C38: 0
B39: Taures : | C39: 0
B40: Taureaux : | C40: 1
B42: DURÉE DE LA PLANIFICATION : 5 ANS
B44: PRÉPARÉ PAR
B45: Conseiller :
B46: Organisme :
B47: Téléphone :
B48: Date :
B52: CONCEPTION 2016
B53: Andréane Martin agr. | C53: Franck Djea agr. | D53: Véronique Poulin agr.
B54: Linda Larocque agr. | C54: Sylvain Pomerleau | D54: Stéphanie Landry agr.
B55: Michel Lebel | C55: Bony Don Pierre
B56: **Inspiré de l'outil de planification technicoéconomique et financière d'un démarrage en production ovine 2013**

Sheet Instruction
B6: PLANIFICATION TECHNICO-ÉCONOMIQUE ET FINANCIÈRE
B8: INSTRUCTION D'UTILISATION DE L'OUTIL
B10: 1. Le chiffrier suivant est un outil permettant la réalisation d'un budget dans le cadre d'un démarrage en production bovine. La précision du budget sera en étroite relation avec la précision des informations inscrites dans le chiffrier.
B12: Les concepteurs se dégagent de toute responsabilité concernant l'utilisation et l'interprétation des résultats de ce programme de simulation.
B14: 2. Les cases vertes pâles doivent être complétées. Les données pré-indiquées dans les cases vertes pâles sont à titre indicatif. Elles peuvent être modifiées par l'utilisateur.
B16: 3. Les flèches rouges vous invite à prendre connaissance d'un commentaire.
B18: 4, Les point d'interrogation vous réfère à des informations supplémentaires.
B20: 5. Plusieurs cellules contiennent une formule afin de faciliter la cohésion de l'information. L'information provient en grande partie des cellules à remplir des onglets ''Don_tech'' et ''Don_écon''.Donc, assurez-vous de bien compléter ces onglets.
B22: 6. Tous les onglets doivent être complétés. Ceux-ci ont été placés selon un certain ordre logique pour développer le projet.
B24: 7. Vous retrouverez trois onglets pour les emprunts. Veuillez donc les remplir uniquement en fonction du nombre d'emprunts prévus au projet. Vous devez reporter les annuités dans le budget de trésorerie. Attention aux dates de début des différents emprunts.
B26: 8. N'hésitez pas à nous faire part de vos commentaires ou suggestions pour améliorer l'outil. Bonne planification !

Sheet Don_tech.
B5: =PAGE_PRÉSEN.!B11 -> NOM | C5: =PAGE_PRÉSEN.!C11 -> M. Jaimie LeBoeuf
B6: =PAGE_PRÉSEN.!B12 -> ADRESSE | C6: =PAGE_PRÉSEN.!C12 -> 555, rue des Vachers, St-Meuhmeuh (Québec) G0X 0X0
B7: =PAGE_PRÉSEN.!B13 -> TÉLÉPHONE | C7: =PAGE_PRÉSEN.!C13 -> (450)555-5555
F8: Année | G8: Année | H8: Année | I8: Année | J8: Année | L8: Conversion livre en kg
B9: Données TECHNIQUES | F9: 2019 | G9: =+F9+1 -> 2020 | H9: =+G9+1 -> 2021 | I9: =+H9+1 -> 2022 | J9: =+I9+1 -> 2023 | L9: Livres | M9: 500
B10: VACHES | F10: 25 | G10: 35 | H10: 45 | I10: 55 | J10: 65 | K10: =J10 -> 65 | L10: Kg | M10: =M9/2.204 -> 226.8602541
B11: TAUREAUX | F11: 1 | G11: 1 | H11: 2 | I11: 2 | J11: 2 | K11: =J11 -> 2
B12: Veaux nés par vache | E12: % | F12: 0.9 | G12: 0.95 | H12: 0.95 | I12: 0.95 | J12: 0.95
B13: Date moyenne de vêlage | E13: aa-mm-jj | F13: 2019-02-01 | G13: 2020-02-02 | H13: 2021-02-03 | I13: 2022-02-04 | J13: 2023-02-05
B14: Veaux sevrés par vache | E14: % | F14: =F12*(1-F19) -> 0.81 | G14: =G12*(1-G19) -> 0.855 | H14: =H12*(1-H19) -> 0.855 | I14: 0.88 | J14: 0.88
B15: Date moyenne de sevrage | E15: aa-mm-jj | F15: 2019-09-01 | G15: 2020-09-15 | H15: 2021-10-03 | I15: 2022-10-04 | J15: 2023-10-31
B16: Poids moyen de sevrage | E16: kg | F16: =40+(F15-F13)*F17 -> 252 | G16: =40+(G15-G13)*G17 -> 266 | H16: =40+(H15-H13)*H17 -> 306.2 | I16: =40+(I15-I13)*I17 -> 306.2 | J16: =40+(J15-J13)*J17 -> 334.8
B17: GMQ pré-sevrage | E17: kg/j | F17: 1 | G17: 1 | H17: 1.1 | I17: 1.1 | J17: 1.1
B18: GMQ post-sevrage | E18: kg/j | F18: 1.1 | G18: 1.1 | H18: 1.2 | I18: 1.2 | J18: 1.2
B19: Taux mortalité veaux | E19: % | F19: 0.1 | G19: 0.1 | H19: 0.1 | I19: 0.09 | J19: 0.09
B20: Taux mortalité vaches | E20: % | F20: 0.05 | G20: 0.05 | H20: 0.05 | I20: 0.02 | J20: 0.02
B21: Taux de réforme vaches | E21: % | F21: 0.15 | G21: 0.15 | H21: 0.14 | I21: 0.14 | J21: 0.13
B22: Taux de réforme taureaux | E22: % | F22: 0.2 | G22: 0.2 | H22: 0.2 | I22: 0.2 | J22: 0.2
B23: Date moyenne de vente | E23: aa-mm-jj | F23: 2019-12-15 | G23: 2020-12-01 | H23: 2021-12-03 | I23: 2022-12-04 | J23: 2023-12-31
B24: Freinte | E24: % | F24: 0.05 | G24: 0.05 | H24: 0.05 | I24: 0.05 | J24: 0.05
B25: Poids moyen de vente final | E25: kg | F25: =((F23-F15)*F18+F16)*(1-F24) -> 349.125 | G25: =((G23-G15)*G18+G16)*(1-G24) -> 333.165 | H25: =((H23-H15)*H18+H16)*(1-H24) -> 360.43 | I25: =((I23-I15)*I18+I16)*(1-I24) -> 360.43 | J25: =((J23-J15)*J18+J16)*(1-J24) -> 387.6
B27: Résultats TECHNIQUES
B28: Veaux nés | E28: têtes | F28: =ROUND(F12*F10,0) -> 23 | G28: =ROUND(G12*G10,0) -> 33 | H28: =ROUND(H12*H10,0) -> 43 | I28: =ROUND(I12*I10,0) -> 52 | J28: =ROUND(J12*J10,0) -> 62
B29: Veaux sevrés | E29: têtes | F29: =ROUND(F10*F14,0) -> 20 | G29: =ROUND(G10*G14,0) -> 30 | H29: =ROUND(H10*H14,0) -> 38 | I29: =ROUND(I10*I14,0) -> 48 | J29: =ROUND(J10*J14,0) -> 57
B30: Femelles gardées/nées | E30: % | F30: 0 | G30: 0 | H30: 0 | I30: 0 | J30: 0
B31: Femelles gardées pour reproduction | E31: têtes | F31: =ROUND((F29/2)*F30,0) -> 0 | G31: =ROUND((G29/2)*G30,0) -> 0 | H31: 0 | I31: =ROUND((I29/2)*I30,0) -> 0 | J31: 0
B32: Taures vendues pour la reproduction | E32: têtes | F32: 0 | G32: 0 | H32: 0 | I32: 0 | J32: 0
B33: Vaches ou taures gestantes à acheter à l'automne | E33: têtes | F33: =ROUND(G10-(F10+F31-F32-F35-F36+Don_écon.!D27),0) -> 15 | G33: =ROUND(H10-(G10+G31-G32-G35-G36),0) -> 17 | H33: 18 | I33: 19 | J33: 9
B34: Vente de veaux | E34: têtes | F34: =IF(YEAR(F23)=F9,ROUND(F29-F31,0),0) -> 20 | G34: =IF(YEAR(F23)=G9,ROUND(F29-F31,0),0)+IF(YEAR(G23)=G9,ROUND(G29-G31,0),0) -> 30 | H34: =IF(YEAR(G23)=H9,ROUND(G29-G31,0),0)+IF(YEAR(H23)=H9,ROUND(H29-H31,0),0) -> 38 | I34: =IF(YEAR(H23)=I9,ROUND(H29-H31,0),0)+IF(YEAR(I23)=I9,ROUND(I29-I31,0),0) -> 48 | J34: =IF(YEAR(I23)=J9,ROUND(I29-I31,0),0)+IF(YEAR(J23)=J9,ROUND(J29-J31,0),0) -> 57
B35: Vaches mortes | E35: têtes | F35: =ROUND(F20*F10,0) -> 1 | G35: =ROUND(G20*G10,0) -> 2 | H35: =ROUND(H20*H10,0) -> 2 | I35: =ROUND(I20*I10,0) -> 1 | J35: =ROUND(J20*J10,0) -> 1
B36: Vente de vaches de réforme | E36: têtes | F36: =ROUND(F10*F21,0) -> 4 | G36: 5 | H36: 6 | I36: 8 | J36: 8
B37: Vente de taureaux de réforme | E37: têtes | F37: 0 | G37: 0 | H37: 0 | I37: 0 | J37: 0
B38: Achat de taureaux | E38: têtes | F38: 0 | G38: =ROUND(G11-F11+G37,0) -> 0 | H38: =ROUND(H11-G11+H37,0) -> 1 | I38: =ROUND(I11-H11+I37,0) -> 0 | J38: =ROUND(J11-I11+J37,0) -> 0
B39: Variation du nombre de veaux | E39: têtes | F39: =F29-F31-F34 -> 0 | G39: =G29-G31-G34 -> 0 | H39: 0 | I39: 0 | J39: 0
B41: Superficie totale en fourrages (prairie+pâturage) | E41: hectares | F41: 50 | G41: 50 | H41: 50 | I41: 50 | J41: 50
B42: Nouvelle implantation | E42: hectares | F42: 10 | G42: 10 | H42: 10 | I42: 10 | J42: 10
B43: Superficie à entretenir | E43: hectares | F43: =F41-F42 -> 40 | G43: =G41-G42 -> 40 | H43: 40 | I43: 40 | J43: 40
B45: PÂTURAGE
B46: Date de paissance | D46: Début | E46: Fin | P46: permet de remettre la date selon l'année D6 et faire les calculs de CVMS
B47: Date paissance & densité | D47: 2019-05-15 | E47: 2019-10-15 | F47: 0.8 | G47: 0.8 | H47: 0.8 | I47: 0.8 | J47: 0.8 | O47: =MONTH(D47) -> 5 | P47: =DAY(D47) -> 15 | Q47: =DATE(F9,O47,P47) -> 2019-05-15
B48: Superficie en pâturage nécessaire | E48: ha | F48: =F10*F47 -> 20 | G48: =G10*G47 -> 28 | H48: =H10*H47 -> 36 | I48: =I10*I47 -> 44 | J48: =J10*J47 -> 52 | O48: =MONTH(E47) -> 10 | P48: =DAY(E47) -> 15 | Q48: =DATE(F9,O48,P48) -> 2019-10-15
B50: PRAIRIE
B51: Superficie disponible fourrages (prairie) | E51: hectares | F51: =F41-F48 -> 30 | G51: =G41-G48 -> 22 | H51: 14 | I51: 6 | J51: =J41-J48 -> -2 | M51: jours
B52: Besoin cheptel | D52: Poids vif (kg) | E52: CVMS (%)
B53: Besoin vache-veau | D53: 650 | E53: 0.0225 | F53: =($M53*($D53*$E53)*G10)/1000 -> 52.723125 | G53: =($M53*($D53*$E53)*H10)/1000 -> 67.786875 | H53: =($M53*($D53*$E53)*I10)/1000 -> 82.850625 | I53: =($M53*($D53*$E53)*J10)/1000 -> 97.914375 | J53: =($M53*($D53*$E53)*J10)/1000 -> 97.914375 | M53: =IF(OR(D47="",E48=""),Q53,O53+P53) -> 103 | O53: =IF(AND(F13<Q47,F13>Q48-365),Q47-F13,IF(AND(F15<Q47,F15>Q48-365),F15-(Q48-365),0)) -> 103 | P53: =IF(F15>Q48,F15-Q48,0) -> 0 | Q53: =F15-F13 -> 212
B54: Besoin tarie | D54: 650 | E54: 0.019 | F54: =($M54*($D54*$E54)*G10)/1000 -> 47.11525 | G54: =($M54*($D54*$E54)*H10)/1000 -> 60.57675 | H54: =($M54*($D54*$E54)*I10)/1000 -> 74.03825 | I54: =($M54*($D54*$E54)*J10)/1000 -> 87.49975 | J54: =($M54*($D54*$E54)*J10)/1000 -> 87.49975 | M54: =IF(OR(D47="",E47=""),Q54,(-((Q48-365)-Q47)-M53)) -> 109 | O54: =(-((Q48-365)-Q47)-M53) -> 109 | Q54: =365-Q53 -> 153
B55: Besoin génisse | D55: 450 | E55: 0.022 | F55: =($M55*($D55*$E55)*F31)/1000 -> 0 | G55: =($M55*($D55*$E55)*G31)/1000 -> 0 | H55: =($M55*($D55*$E55)*H31)/1000 -> 0 | I55: =($M55*($D55*$E55)*I31)/1000 -> 0 | J55: =($M55*($D55*$E55)*J31)/1000 -> 0 | M55: =IF(OR(D47="",E47=""),365,-(Q48-(Q47+365))) -> 212
B56: Besoin veaux | D56: 375 | E56: 0.023 | F56: =($M56*($D56*$E56)*(F29-F31)/1000) -> 10.5225 | G56: =($M56*($D56*$E56)*(G29-G31)/1000) -> 15.78375 | H56: =($M56*($D56*$E56)*(H29-H31)/1000) -> 19.99275 | I56: =($M56*($D56*$E56)*(I29-I31)/1000) -> 25.254 | J56: =($M56*($D56*$E56)*(J29-J31)/1000) -> 29.989125 | M56: =IF(OR(D47="",E47=""),F23-F15,IF(F23<Q48,0,-(Q48-F23))) -> 61
B57: Besoin taureaux | D57: 750 | E57: 0.022 | F57: =($M57*$D57*$E57*G11)/1000 -> 3.498 | G57: =($M57*$D57*$E57*H11)/1000 -> 6.996 | H57: =($M57*$D57*$E57*I11)/1000 -> 6.996 | I57: =($M57*$D57*$E57*J11)/1000 -> 6.996 | J57: =($M57*$D57*$E57*J11)/1000 -> 6.996 | M57: =IF(OR(D47="",E47=""),365,Q47-Q48+365) -> 212
B58: Besoin total(tMS) avec perte (%) | E58: 0.06 | F58: =SUM(F53:F57)*(1+$E58) -> 120.6904075 | G58: =SUM(G53:G57)*(1+$E58) -> 160.2119775 | H58: =SUM(H53:H57)*(1+$E58) -> 194.9102825 | I58: =SUM(I53:I57)*(1+$E58) -> 230.7239725 | J58: =SUM(J53:J57)*(1+$E58) -> 235.743205
B59: Rendement des prairies | E59: kg/ha | F59: 4500 | G59: 4500 | H59: 5000 | I59: 5000 | J59: 5000
B60: Production des prairies | E60: tonnes MS | F60: =(F51)*(F59/1000) -> 135 | G60: =(G51)*(G59/1000) -> 99 | H60: 70 | I60: 30 | J60: -10
B61: Achat (-)/vente (+) de fourrage | E61: tonnes MS | F61: =F60-F58 -> 14.3095925 | G61: =G60-G58 -> -61.2119775 | H61: =H60-H58 -> -124.9102825 | I61: =I60-I58 -> -200.7239725 | J61: =J60-J58 -> -245.743205
B63: CÉRÉALES
B64: Superficie totale en céréales | E64: hectares | F64: 0 | G64: 0 | H64: 0 | I64: 0 | J64: 0
B65: Besoin cheptel | D65: Qte (kg/tête/jour) | E65: Durée (jours)
B66: Vaches | D66: 0 | E66: 25 | F66: =((F10*$E66)+(F33*($E66/2)))*$D66 -> 0 | G66: =((G10*$E66)+(G33*($E66/2)))*$D66 -> 0 | H66: =((H10*$E66)+(H33*($E66/2)))*$D66 -> 0 | I66: =((I10*$E66)+(I33*($E66/2)))*$D66 -> 0 | J66: =((J10*$E66)+(J33*($E66/2)))*$D66 -> 0
B67: Veaux d'embouche | D67: 0 | E67: 25 | F67: =(F29*$E67)*$D67 -> 0 | G67: =(G29*$E67)*$D67 -> 0 | H67: =(H29*$E67)*$D67 -> 0 | I67: =(I29*$E67)*$D67 -> 0 | J67: =(J29*$E67)*$D67 -> 0
B68: Semis-Finis | D68: 2 | E68: 25 | F68: =((F29-F31)*$E68*$D68) -> 1000 | G68: =((G29-G31)*$E68*$D68) -> 1500 | H68: =((H29-H31)*$E68*$D68) -> 1900 | I68: =((I29-I31)*$E68*$D68) -> 2400 | J68: =((J29-J31)*$E68*$D68) -> 2850
B69: Génisse de remplacement | D69: 1 | E69: 25 | F69: =(F31*$E69*$D69) -> 0 | G69: =(G31*$E69*$D69) -> 0 | H69: =(H31*$E69*$D69) -> 0 | I69: =(I31*$E69*$D69) -> 0 | J69: =(J31*$E69*$D69) -> 0
B70: Taures | D70: 1.5 | E70: 25 | F70: =(F31*$E70*$D70) -> 0 | G70: =(G31*$E70*$D70) -> 0 | H70: =(H31*$E70*$D70) -> 0 | I70: =(I31*$E70*$D70) -> 0 | J70: =(J31*$E70*$D70) -> 0
B71: Besoin en grains | E71: tonnes | F71: =SUM(F66:F70)/1000 -> 1 | G71: =SUM(G66:G70)/1000 -> 1.5 | H71: =SUM(H66:H70)/1000 -> 1.9 | I71: =SUM(I66:I70)/1000 -> 2.4 | J71: =SUM(J66:J70)/1000 -> 2.85
B72: Rendement moy. céréales | E72: tonnes/ha | F72: 1.765 | G72: 1.765 | H72: 1.765 | I72: 2 | J72: 2
B73: Production moy. céréales | E73: tonnes | F73: =F64*F72 -> 0 | G73: =G64*G72 -> 0 | H73: 0 | I73: 0 | J73: 0
B74: Achat (-)/vente (+) de céréales | E74: tonnes | F74: =F73-F71 -> -1 | G74: =G73-G71 -> -1.5 | H74: -1.9 | I74: -2.4 | J74: -2.85
B76: SUPPLÉMENTS
B77: Besoin cheptel | D77: Qte (kg/tête/jour) | E77: Durée (jours)
B78: Vaches | D78: 0 | E78: 25 | F78: =((F10*$E78)+(F33*($E78/2)))*$D78 -> 0 | G78: =((G10*$E78)+(G33*($E78/2)))*$D78 -> 0 | H78: =((H10*$E78)+(H33*($E78/2)))*$D78 -> 0 | I78: =((I10*$E78)+(I33*($E78/2)))*$D78 -> 0 | J78: =((J10*$E78)+(J33*($E78/2)))*$D78 -> 0
B79: Veaux d'embouche | D79: 0.01 | E79: 25 | F79: =(F29*($E79)*$D79) -> 5 | G79: =(G29*($E79)*$D79) -> 7.5 | H79: =(H29*($E79)*$D79) -> 9.5 | I79: =(I29*($E79)*$D79) -> 12 | J79: =(J29*($E79)*$D79) -> 14.25
B80: Semis-Finis | D80: 0.3 | E80: 25 | F80: =((F29-F31)*($E80)*$D80) -> 150 | G80: =((G29-G31)*($E80)*$D80) -> 225 | H80: =((H29-H31)*($E80)*$D80) -> 285 | I80: =((I29-I31)*($E80)*$D80) -> 360 | J80: =((J29-J31)*($E80)*$D80) -> 427.5
B81: Génisse de remplacement | D81: 0.3 | E81: 25 | F81: =(F31*$E81*$D81) -> 0 | G81: =(G31*$E81*$D81) -> 0 | H81: =(H31*$E81*$D81) -> 0 | I81: =(I31*$E81*$D81) -> 0 | J81: =(J31*$E81*$D81) -> 0
B82: Taures | D82: 0.5 | E82: 25 | F82: =(F31*$E82*$D82) -> 0 | G82: =(G31*$E82*$D82) -> 0 | H82: =(H31*$E82*$D82) -> 0 | I82: =(I31*$E82*$D82) -> 0 | J82: =(J31*$E82*$D82) -> 0
B83: Besoin concentré:achat | E83: tonnes | F83: =SUM(F78:F82)/1000 -> 0.155 | G83: =SUM(G78:G82)/1000 -> 0.2325 | H83: =SUM(H78:H82)/1000 -> 0.2945 | I83: =SUM(I78:I82)/1000 -> 0.372 | J83: =SUM(J78:J82)/1000 -> 0.44175
B84: Minéral vache + tarie | D84: 100 | E84: g/vache/j | F84: =(F10+(F33*182/365))*($D84*365/1000000) -> 1.1855 | G84: =(G10+(G33*182/365))*($D84*365/1000000) -> 1.5869 | H84: =(H10+(H33*182/365))*($D84*365/1000000) -> 1.9701 | I84: =(I10+(I33*182/365))*($D84*365/1000000) -> 2.3533 | J84: =(J10+(J33*182/365))*($D84*365/1000000) -> 2.5363
B85: Moulée | D85: 0 | E85: kg/vache | F85: =$D$85*F10 -> 0 | G85: =$D$85*G10 -> 0 | H85: 0 | I85: 0 | J85: 0
B87: Superficie totale en cultures | E87: hectares | F87: 50 | G87: 50 | H87: 50 | I87: 50 | J87: 50
B89: Variation D'INVENTAIRE
B90: Année 1 | F90: Vaches | G90: Taures | H90: Taureaux | I90: Veaux
B91: Inventaire de debut | E91: tête(s) | F91: =F10 -> 25 | G91: 0 | H91: =F11 -> 1
B92: Achat (+) | F92: =F33 -> 15 | H92: =F38 -> 0
B93: Naissance (+) | I93: =F28 -> 23
B94: Transfert (+) | F94: =G99 -> 0 | G94: =I99 -> 0
B95: Mortalité (-) | F95: =F35 -> 1 | I95: =F28-F29 -> 3
B96: Consommés à la ferme (-)
B97: Ventes (-) | G97: =F32 -> 0 | I97: =F34 -> 20
B98: Reformés (-) | F98: =F36 -> 4 | H98: =F37 -> 0
B99: Transfert taures et taureaux (-) | G99: 0 | I99: =F31 -> 0
B100: Inventaire de fin | F100: =F91+F92+F93+F94-F95-F96-F97-F98-F99 -> 35 | G100: =G91+G92+G93+G94-G95-G96-G97-G98-G99 -> 0 | H100: 1 | I100: 0
B101: Variation d'inventaire | F101: =F100-F91 -> 10 | G101: =G100-G91 -> 0 | H101: 0 | I101: 0
B103: Année 2 | F103: Vaches | G103: Taures | H103: Taureaux | I103: Veaux
B104: Inventaire de debut | E104: tête(s) | F104: =F100 -> 35 | G104: =G100 -> 0 | H104: 1 | I104: 0
B105: Achat (+) | F105: =G33 -> 17 | H105: =G38 -> 0
B106: Naissance (+) | I106: =G28 -> 33
B107: Transfert (+) | F107: =G112 -> 0 | G107: =I112 -> 0
B108: Mortalité (-) | F108: =G35 -> 2 | I108: =G28-G29 -> 3
B109: Consommés à la ferme (-)
B110: Ventes (-) | G110: =F32 -> 0 | I110: =G34 -> 30
B111: Reformés (-) | F111: =G36 -> 5 | H111: =G37 -> 0
B112: Transfert taures et taureaux (-) | G112: =G104 -> 0 | I112: =G31 -> 0
B113: Inventaire de fin | F113: =F104+F105+F106+F107-F108-F109-F110-F111-F112 -> 45 | G113: =G104+G105+G106+G107-G108-G109-G110-G111-G112 -> 0 | H113: 1 | I113: 0
B114: Variation d'inventaire | F114: =F113-F104 -> 10 | G114: =G113-G104 -> 0 | H114: 0 | I114: 0
B116: Année 3 | F116: Vaches | G116: Taures | H116: Taureaux | I116: Veaux
B117: Inventaire de debut | E117: tête(s) | F117: =F113 -> 45 | G117: =G113 -> 0 | H117: 1 | I117: 0
B118: Achat (+) | F118: =H33 -> 18 | H118: =H38 -> 1
B119: Naissance (+) | I119: =H28 -> 43
B120: Transfert (+) | F120: =G125 -> 0 | G120: =I125 -> 0
B121: Mortalité (-) | F121: =H35 -> 2 | I121: =H28-H29 -> 5
B122: Consommés à la ferme (-)
B123: Ventes (-) | G123: =H32 -> 0 | I123: =H34 -> 38
B124: Reformés (-) | F124: =H36 -> 6 | H124: =H37 -> 0
B125: Transfert taures et taureaux (-) | G125: =G117 -> 0 | I125: =H31 -> 0
B126: Inventaire de fin | F126: =F117+F118+F119+F120-F121-F122-F123-F124-F125 -> 55 | G126: =G117+G118+G119+G120-G121-G122-G123-G124-G125 -> 0 | H126: 2 | I126: 0
B127: Variation d'inventaire | F127: =F126-F117 -> 10 | G127: =G126-G117 -> 0 | H127: 1 | I127: 0
B129: Année 4 | F129: Vaches | G129: Taures | H129: Taureaux | I129: Veaux
B130: Inventaire de debut | E130: tête(s) | F130: =F126 -> 55 | G130: =G126 -> 0 | H130: =H126 -> 2 | I130: =I126 -> 0
B131: Achat (+) | F131: =I33 -> 19 | H131: =I38 -> 0
B132: Naissance (+) | I132: =I28 -> 52
B133: Transfert (+) | F133: =G138 -> 0 | G133: =I138 -> 0
B134: Mortalité (-) | F134: =I35 -> 1 | I134: =I28-I29 -> 4
B135: Consommés à la ferme (-)
B136: Ventes (-) | G136: =I32 -> 0 | I136: =I34 -> 48
B137: Reformés (-) | F137: =I36 -> 8 | H137: =I37 -> 0
B138: Transfert taures et taureaux (-) | G138: =G130 -> 0 | I138: =I31 -> 0
B139: Inventaire de fin | F139: =F130+F131+F132+F133-F134-F135-F136-F137-F138 -> 65 | G139: =G130+G131+G132+G133-G134-G135-G136-G137-G138 -> 0 | H139: 2 | I139: 0
B140: Variation d'inventaire | F140: =F139-F130 -> 10 | G140: =G139-G130 -> 0 | H140: 0 | I140: 0
B141: 40786 | F141: 212
B142: Année 5 | F142: Vaches | G142: Taures | H142: Taureaux | I142: Veaux
B143: Inventaire de debut | E143: tête(s) | F143: =F139 -> 65 | G143: =G139 -> 0 | H143: 2 | I143: 0
B144: Achat (+) | F144: =J33 -> 9 | H144: =J38 -> 0
B145: Naissance (+) | I145: =J28 -> 62
B146: Transfert (+) | F146: =G151 -> 0 | G146: =I151 -> 0
B147: Mortalité (-) | F147: =J35 -> 1 | I147: =J28-J29 -> 5
B148: Consommés à la ferme (-)
B149: Ventes (-) | G149: =J32 -> 0 | I149: =J34 -> 57
B150: Reformés (-) | F150: =J36 -> 8 | H150: =J37 -> 0
B151: Transfert taures et taureaux (-) | G151: =G143 -> 0 | I151: =J31 -> 0
B152: Inventaire de fin | F152: =F143+F144+F145+F146-F147-F148-F149-F150-F151 -> 65 | G152: =G143+G144+G145+G146-G147-G148-G149-G150-G151 -> 0 | H152: 2 | I152: 0
B153: Variation d'inventaire | F153: =F152-F143 -> 0 | G153: =G152-G143 -> 0 | H153: 0 | I153: 0

Sheet Don_écon.
B5: =PAGE_PRÉSEN.!B11 -> NOM | C5: =PAGE_PRÉSEN.!C11 -> M. Jaimie LeBoeuf
B6: =PAGE_PRÉSEN.!B12 -> ADRESSE | C6: =PAGE_PRÉSEN.!C12 -> 555, rue des Vachers, St-Meuhmeuh (Québec) G0X 0X0
B7: =PAGE_PRÉSEN.!B13 -> TÉLÉPHONE | C7: =PAGE_PRÉSEN.!C13 -> (450)555-5555
F8: Année | G8: Année | H8: Année | I8: Année | J8: Année | L8: Conversion livre en kg
B9: Données ÉCONOMIQUES | F9: =Don_tech.!F9 -> 2019 | G9: =+F9+1 -> 2020 | H9: =+G9+1 -> 2021 | I9: =+H9+1 -> 2022 | J9: =+I9+1 -> 2023 | L9: Livres | M9: 700
B10: VACHES | F10: =Don_tech.!F10 -> 25 | G10: =Don_tech.!G10 -> 35 | H10: =Don_tech.!H10 -> 45 | I10: =Don_tech.!I10 -> 55 | J10: =Don_tech.!J10 -> 65 | L10: Kg | M10: =M9/2.204 -> 317.6043557
B11: TAUREAUX | F11: =Don_tech.!F11 -> 1 | G11: =Don_tech.!G11 -> 1 | H11: =Don_tech.!H11 -> 2 | I11: =Don_tech.!I11 -> 2 | J11: =Don_tech.!J11 -> 2
B13: MISE EN MARCHÉ
B14: Vaches | E14: coût/tête | F14: 63.33 | G14: 63.33 | H14: 63.33 | I14: 63.33 | J14: 63.33
B15: Taures | E15: coût/tête | F15: 63.33 | G15: 63.33 | H15: 63.33 | I15: 63.33 | J15: 63.33
B16: Veaux | E16: coût/tête | F16: 28.5 | G16: 28.5 | H16: 28.5 | I16: 28.5 | J16: 28.5
B18: TRANSPORT
B19: Vaches | E19: coût/tête | F19: 68.1 | G19: 68.1 | H19: 68.1 | I19: 68.1 | J19: 68.1
B20: Taures | E20: coût/tête | F20: 68.1 | G20: 68.1 | H20: 68.1 | I20: 68.1 | J20: 68.1
B21: Veaux | E21: coût/tête | F21: 26.31 | G21: 26.31 | H21: 26.31 | I21: 26.31 | J21: 26.31
B23: INVESTISSEMENTS ET SOURCES DE FINANCEMENT
B24: Achat ferme (bâtiments, terres, ... ) | E24: $ | F24: 600000 | L24: Ne pas oublier d'ajouter cet emprunt dans les onglets emprunts!
B25: Troupeau de démarrage: | D25: Nombre | E25: Coût unitaire ($)
C26: Vaches | D26: =F10 -> 25 | E26: 1500 | F26: =D26*E26 -> 37500 | L26: Ne pas oublier d'ajouter cet emprunt dans les onglets emprunts!
C27: Génisses et taures | D27: 0 | E27: 1000 | F27: =D27*E27 -> 0 | L27: Ne pas oublier d'ajouter cet emprunt dans les onglets emprunts!
C28: Taureaux | D28: =F11 -> 1 | E28: 2000 | F28: 2000 | L28: Ne pas oublier d'ajouter cet emprunt dans les onglets emprunts!
B29: Valeur moyenne des terres agricoles | E29: $/ha | F29: 2500
B30: Coût de l'aménagement de l'étable et du site | E30: $ | F30: 10000 | J30: 10000 | L30: Ne pas oublier d'ajouter cet emprunt dans les onglets emprunts!
B31: Machinerie, équipements, … | E31: $
B32: Subvention (prime à l'établisement, dons, ...) | E32: $ | F32: 10000 | J32: 10000
B33: Frais de démarrage / transfert | E33: $ | L33: Ne pas oublier d'ajouter cet emprunt dans les onglets emprunts!
B34: Achat de terre | E34: $ | G34: =Don_écon.!F29*(Don_tech.!G41-Don_tech.!F41+Don_tech.!G64-Don_tech.!F64) -> 0 | H34: =Don_écon.!F29*(Don_tech.!H41-Don_tech.!G41+Don_tech.!H64-Don_tech.!G64) -> 0 | I34: =Don_écon.!F29*(Don_tech.!I41-Don_tech.!H41+Don_tech.!I64-Don_tech.!H64) -> 0 | J34: =Don_écon.!F29*(Don_tech.!J41-Don_tech.!I41+Don_tech.!J64-Don_tech.!I64) -> 0
B35: Trésorerie de démarrage | E35: $ | F35: 2000
B36: Autre aide financière 1 | E36: $
B37: Autre aide financière 2 | E37: $
B38: Autres investissements | E38: $
B39: Autres investissements | E39: $

Sheet Cal_stab
B5: CALCUL DE L'ASSURANCE STABILISATION DES REVENUS AGRICOLES
B7: Veuillez ajuster les taux de côtisations et de compensations selon les prévisons de la FADQ
B8: *VENTE minimale de 2092 kg de veau pour être admissible au produit veau d'embouche *
B9: * VENTE minimale de 680 kg de gain pour être admissible au produit bouvillon*
B10: À noter que si l'entreprise est admissible à l'aide à la relève, la cotisation est réduite de 50 % pour les deux premières années.
B11: Pour une évaluation plus précise, veuillez contacter le conseiller de La Financière Agricole du Québec
B12: Simulation de calcul de l'assurance stabilisation en production bovine à partir d'estimation de cotisation et de compensation
B15: Hypothèse de départ | D15: Adhésion à l'ASRA en janvier | I15: Veau d'embouche
B16: Année de départ : | E16: =+Don_tech.!F9 -> 2019 | F16: SOMMAIRE | I16: Programme
B17: Inventaire de départ | D17: =+Don_tech.!F10 -> 25 | E17: femelles assurables | F17: par année calendrier
B18: Inventaire au 31 décembre | D18: =+Don_tech.!G$10 -> 35 | E18: femelles assurables | I18: Bouvillon
B19: Inventaire moyen annuel | D19: =+(D17+D18)/2 -> 30 | E19: femelles assurables | F19: Contribution | I19: Programme
B20: Nb kg de veau produit à vendre | D20: =L20 -> 6982.5 | E20: kg assurables | F20: 50% de cotisation à verser à l'adhésion | J20: =IF(YEAR(Don_tech.!$F$23)=Cal_stab!$E$16,Don_tech.!$F$34*Don_tech.!$F$25,0) -> 6982.5 | K20: =IF(YEAR(Don_tech.!$G$23)=Cal_stab!$E$16,Don_tech.!$G$34*Don_tech.!$G$25,0) -> 0 | L20: =J20+K20 -> 6982.5
B21: Kg produit < à 340,2 kg / tête | D21: =M21 -> 6800 | E21: kg assurables veau d'embouche | H21: =((D19*D24)+(D21*D25)+(D22*D26))*0.5 -> 2233.69 | J21: =J20-J22 -> 6800 | K21: =K20-K22 -> 0 | L21: =J21+K21 -> 6800 | M21: =IF(L21<2092,0,L21) -> 6800
B22: Kg de veau de 340,2 au poids vente | D22: =M22 -> 0 | E22: kg assurables bouvillon | F22: 50% de cotisation à verser à la première | J22: =IF(J20>0,IF(Don_tech.!F25>340.2,(Don_tech.!F34+Don_tech.!F39)*(Don_tech.!F25-340),0),0) -> 182.5 | K22: =IF(K20>0,IF(Don_tech.!G25>340.2,(Don_tech.!G34+Don_tech.!G39)*(Don_tech.!G25-340),0),0) -> 0 | L22: =J22+K22 -> 182.5 | M22: =IF(L22<680,0,L22) -> 0
B23: Prévision ASRA | F23: avance en juin | H23: =((D19*D24)+(D21*D25)+(D22*D26))*0.5 -> 2233.69
B24: Contribution | C24: 25% sur la vache | D24: 41.45 | E24: / vache | F24: Compensation
C25: 75% sur les kg de veau | D25: 0.4741 | E25: / kg de veau vendu | F25: En juin, 30% de la compensation totale
D26: 0.0945 | E26: / kg de gain (bouvillon) | H26: =((D19*D27)+(D21*D28)+(D22*D29))*0.3 -> 5381.43
B27: Compensation | C27: 25% sur la vache | D27: 164.89 | E27: =+E24 -> / vache | F27: En novembre , 45% de la compensation totale
C28: 75% sur les kg de veau | D28: 1.9105 | E28: =+E25 -> / kg de veau vendu | H28: =((D19*D27)+(D21*D28)+(D22*D29))*0.45 -> 8072.145
D29: 0.1418 | E29: =+E26 -> / kg de gain (bouvillon) | F29: Total annuel | H29: =+H28+H26-H23-H21 -> 8986.195
B31: 2e Année : | E31: =E16+1 -> 2020
B32: Inventaire de début d'année | D32: =+D18 -> 35 | E32: femelles assurables | F32: Contribution
B33: Inventaire au 31 décembre | D33: =+Don_tech.!H$10 -> 45 | E33: femelles assurables | F33: En juin | H33: =((D34*D39)+(D36*D40)+(D37*D41)) -> 6396.605795
B34: Inventaire moyen annuel | D34: =+(D32+D33)/2 -> 40 | E34: femelles assurables
B35: Nb kg de veau produit à vendre | D35: =M36 -> 9994.95 | E35: kg assurables | F35: Compensation
B36: Kg produit < à 340 kg / tête | D36: =N37 -> 9994.95 | E36: kg assurables veau d'embouche | F36: En avril final année précédente | J36: =IF(YEAR(Don_tech.!$F$23)=Cal_stab!$E$31,(Don_tech.!$F$34+Don_tech.!F39)*Don_tech.!$F$25,0) -> 0 | K36: =IF(YEAR(Don_tech.!$G$23)=Cal_stab!$E$31,(Don_tech.!$G$34+Don_tech.!G39)*Don_tech.!$G$25,0) -> 9994.95 | L36: =IF(YEAR(Don_tech.!$H$23)=Cal_stab!$E$31,(Don_tech.!$H$34+Don_tech.!H39)*Don_tech.!$H$25,0) -> 0 | M36: =SUM(J36:L36) -> 9994.95
B37: Kg de veau de 340 au poids vente | D37: =N38 -> 0 | E37: kg assurables bouvillon | H37: =((D19*D27)+(D21*D28)+(D22*D29))*0.25 -> 4484.525 | J37: =J36-J38 -> 0 | K37: =K36-K38 -> 9994.95 | L37: 0 | M37: =SUM(J37:L37) -> 9994.95 | N37: =IF(M37<2092,0,M37) -> 9994.95
B38: Prévision ASRA | F38: En juin, 30% de la compensation totale | J38: =IF(J36>0,IF(Don_tech.!F25>340,(Don_tech.!F34+Don_tech.!F39)*(Don_tech.!F25-340),0),0) -> 0 | K38: =IF(K36>0,IF(Don_tech.!G25>340,(Don_tech.!G34+Don_tech.!G39)*(Don_tech.!G25-340),0),0) -> 0 | L38: =IF(L36>0,IF(Don_tech.!H25>340,(Don_tech.!H34+Don_tech.!H39)*(Don_tech.!H25-340),0),0) -> 0 | M38: 0 | N38: =IF(M38<680,0,M38) -> 0
B39: Contribution | C39: 25% sur la vache | D39: 41.45 | E39: / vache | H39: =((D34*D42)+(D36*D43)+(D37*D44))*0.3 -> 7707.285592
C40: 75% sur les kg de veau | D40: 0.4741 | E40: / kg de veau vendu | F40: En novembre , 45% de la compensation totale
D41: 0.0945 | E41: / kg de bouvillon | H41: =((D34*D42)+(D36*D43)+(D37*D44))*0.45 -> 11560.92839
B42: Compensation | C42: 25% sur la vache | D42: 164.89 | E42: =+E39 -> / vache | F42: Total annuel | H42: =+H41+H39+H37-H33 -> 17356.13319
C43: 75% sur les kg de veau | D43: 1.9105 | E43: =+E40 -> / kg de veau vendu
D44: 0.1418 | E44: =+E41 -> / kg de bouvillon
B46: 3e Année : | E46: =+E31+1 -> 2021
B47: Inventaire de départ | D47: =+D33 -> 45 | E47: femelles assurables | F47: Contribution
B48: Inventaire au 31 décembre | D48: =+Don_tech.!I$10 -> 55 | E48: femelles assurables | F48: En juin | H48: =((D49*D54)+(D51*D55)+(D52*D56)) -> 8271.23613
B49: Inventaire moyen annuel | D49: =+(D47+D48)/2 -> 50 | E49: femelles assurables
B50: Nb kg de veau produit à vendre | D50: =M50 -> 13696.34 | E50: kg assurables | F50: Compensation | J50: =IF(YEAR(Don_tech.!$G$23)=Cal_stab!$E$46,(Don_tech.!$G$34+Don_tech.!G39)*Don_tech.!$G$25,0) -> 0 | K50: =IF(YEAR(Don_tech.!$H$23)=Cal_stab!$E$46,(Don_tech.!$H$34+Don_tech.!H39)*Don_tech.!$H$25,0) -> 13696.34 | L50: =IF(YEAR(Don_tech.!$I$23)=Cal_stab!$E$46,(Don_tech.!$I$34+Don_tech.!I39)*Don_tech.!$I$25,0) -> 0 | M50: =SUM(J50:K50) -> 13696.34
B51: Kg produit < à 340 kg / tête | D51: =N51 -> 12920 | E51: kg assurables veau d'embouche | F51: En avril final année précédente | J51: =J50-J52 -> 0 | K51: =K50-K52 -> 12920 | L51: =L50-L52 -> 0 | M51: =SUM(J51:K51) -> 12920 | N51: =IF(M51<2092,0,M51) -> 12920
B52: Kg de veau de 340 au poids vente | D52: =N52 -> 776.34 | E52: kg assurables bouvillon | H52: =((D34*D42)+(D36*D43)+(D37*D44))*0.25 -> 6422.737994 | J52: =IF(J50>0,IF(Don_tech.!G25>340,(Don_tech.!G34+Don_tech.!G39)*(Don_tech.!G25-340),0),0) -> 0 | K52: =IF(K50>0,IF(Don_tech.!H25>340,(Don_tech.!H34+Don_tech.!H39)*(Don_tech.!H25-340),0),0) -> 776.34 | L52: =IF(L50>0,IF(Don_tech.!I25>340,(Don_tech.!I34+Don_tech.!I39)*(Don_tech.!I25-340),0),0) -> 0 | M52: 776.34 | N52: =IF(M52<680,0,M52) -> 776.34
B53: Prévision ASRA | F53: En juin, 30% de la compensation totale
B54: Contribution | C54: 25% sur la vache | D54: 41.45 | E54: / vache | H54: =((D49*D57)+(D51*D58)+(D52*D59))*0.3 -> 9911.473504
C55: 75% sur les kg de veau | D55: 0.4741 | E55: / kg de veau vendu | F55: En novembre , 45% de la compensation totale
D56: 0.0945 | E56: / kg de bouvillon | H56: =((D49*D57)+(D51*D58)+(D52*D59))*0.45 -> 14867.21026
B57: Compensation | C57: 25% sur la vache | D57: 164.89 | E57: =+E54 -> / vache | F57: Total annuel | H57: =+H56+H54+H52-H48 -> 22930.18562
C58: 75% sur les kg de veau | D58: 1.9105 | E58: =+E55 -> / kg de veau vendu
D59: 0.1418 | E59: =+E56 -> / kg de bouvillon
B61: 4e Année : | E61: =+E46+1 -> 2022
B62: Inventaire de départ | D62: =+D48 -> 55 | E62: femelles assurables | F62: Contribution
B63: Inventaire au 31 décembre | D63: =+Don_tech.!J$10 -> 65 | E63: femelles assurables | F63: En juin | H63: =((D64*D69)+(D66*D70)+(D67*D71)) -> 10316.98248
B64: Inventaire moyen annuel | D64: =+(D62+D63)/2 -> 60 | E64: femelles assurables
B65: Nb kg de veau produit à vendre | D65: =M65 -> 17300.64 | E65: kg assurables | F65: Compensation | J65: =IF(YEAR(Don_tech.!$H$23)=Cal_stab!$E$61,(Don_tech.!$H$34+Don_tech.!H39)*Don_tech.!$H$25,0) -> 0 | K65: =IF(YEAR(Don_tech.!$I$23)=Cal_stab!$E$61,(Don_tech.!$I$34+Don_tech.!I39)*Don_tech.!$I$25,0) -> 17300.64 | L65: =IF(YEAR(Don_tech.!$J$23)=Cal_stab!$E$61,(Don_tech.!$J$34+Don_tech.!J39)*Don_tech.!$J$25,0) -> 0 | M65: =SUM(J65:K65) -> 17300.64
B66: Kg produit < à 340 kg / tête | D66: =N66 -> 16320 | E66: kg assurables veau d'embouche | F66: En avril final année précédente | J66: =J65-J67 -> 0 | K66: =K65-K67 -> 16320 | L66: =L65-L67 -> 0 | M66: =SUM(J66:K66) -> 16320 | N66: =IF(M66<2092,0,M66) -> 16320
B67: Kg de veau de 340 au poids vente | D67: =N67 -> 980.64 | E67: kg assurables bouvillon | H67: =((D49*D57)+(D51*D58)+(D52*D59))*0.25 -> 8259.561253 | J67: =IF(J65>0,IF(Don_tech.!H25>340,(Don_tech.!H34+Don_tech.!H39)*(Don_tech.!H25-340),0),0) -> 0 | K67: =IF(K65>0,IF(Don_tech.!I25>340,(Don_tech.!I34+Don_tech.!I39)*(Don_tech.!I25-340),0),0) -> 980.64 | L67: =IF(L65>0,IF(Don_tech.!J25>340,(Don_tech.!J34+Don_tech.!J39)*(Don_tech.!J25-340),0),0) -> 0 | M67: 980.64 | N67: =IF(M67<680,0,M67) -> 980.64
B68: Prévision ASRA | F68: En juin, 30% de la compensation totale
B69: Contribution | C69: 25% sur la vache | D69: 41.45 | E69: / vache | H69: =((D64*D72)+(D66*D73)+(D67*D74))*0.3 -> 12363.54443
C70: 75% sur les kg de veau | D70: 0.4741 | E70: / kg de veau vendu | F70: En novembre , 45% de la compensation totale
D71: 0.0945 | E71: / kg de bouvillon | H71: =((D64*D72)+(D66*D73)+(D67*D74))*0.45 -> 18545.31664
B72: Compensation | C72: 25% sur la vache | D72: 164.89 | E72: =+E69 -> / vache | F72: Total annuel | H72: =+H71+H69+H67-H63 -> 28851.43984
C73: 75% sur les kg de veau | D73: 1.9105 | E73: =+E70 -> / kg de veau vendu
D74: 0.1418 | E74: =+E71 -> / kg de bouvillon
B76: 5e Année : | E76: =+E61+1 -> 2023
B77: Inventaire de départ | D77: =+D63 -> 65 | E77: femelles assurables | F77: Contribution
B78: Inventaire au 31 décembre | D78: =+D77 -> 65 | E78: femelles assurables | F78: En juin | H78: =((D79*D84)+(D81*D85)+(D82*D86)) -> 12138.7054
B79: Inventaire moyen annuel | D79: =+(D77+D78)/2 -> 65 | E79: femelles assurables
B80: Nb kg de veau produit à vendre | D80: =M80 -> 22093.2 | E80: kg assurables | F80: Compensation | J80: =IF(YEAR(Don_tech.!$I$23)=Cal_stab!$E$76,(Don_tech.!$I$34+Don_tech.!I39)*Don_tech.!$I$25,0) -> 0 | K80: =IF(YEAR(Don_tech.!$J$23)=Cal_stab!$E$76,(Don_tech.!$J$34+Don_tech.!J39)*Don_tech.!$J$25,0) -> 22093.2 | L80: =IF(YEAR(Don_tech.!$K$23)=Cal_stab!$E$76,(Don_tech.!$K$34+Don_tech.!K39)*Don_tech.!$K$25,0) -> 0 | M80: =SUM(J80:K80) -> 22093.2
B81: Kg produit < à 340 kg / tête | D81: =N81 -> 19380 | E81: kg assurables veau d'embouche | F81: En avril final année précédente | J81: =J80-J82 -> 0 | K81: =K80-K82 -> 19380 | L81: =L80-L82 -> 0 | M81: =SUM(J81:K81) -> 19380 | N81: =IF(M81<2092,0,M81) -> 19380
B82: Kg de veau de 340 au poids vente | D82: =N82 -> 2713.2 | E82: kg assurables bouvillon | H82: =((D64*D72)+(D66*D73)+(D67*D74))*0.25 -> 10302.95369 | J82: =IF(J80>0,IF(Don_tech.!I25>340,(Don_tech.!I34+Don_tech.!I39)*(Don_tech.!I25-340),0),0) -> 0 | K82: =IF(K80>0,IF(Don_tech.!J25>340,(Don_tech.!J34+Don_tech.!J39)*(Don_tech.!J25-340),0),0) -> 2713.2 | L82: =IF(L80>0,IF(Don_tech.!K25>340,(Don_tech.!K34+Don_tech.!K39)*(Don_tech.!K25-340),0),0) -> 0 | M82: 2713.2 | N82: =IF(M82<680,0,M82) -> 2713.2
B83: Prévision ASRA | F83: En juin, 30% de la compensation totale
B84: Contribution | C84: 25% sur la vache | D84: 41.45 | E84: / vache | H84: =((D79*D87)+(D81*D88)+(D82*D89))*0.3 -> 14438.42153
C85: 75% sur les kg de veau | D85: 0.4741 | E85: / kg de veau vendu | F85: En novembre , 45% de la compensation totale
D86: 0.0945 | E86: / kg de bouvillon | H86: =((D79*D87)+(D81*D88)+(D82*D89))*0.45 -> 21657.63229
B87: Compensation | C87: 25% sur la vache | D87: 164.89 | E87: =+E84 -> / vache | F87: Total annuel | H87: =+H86+H84+H82-H78 -> 34260.30211
C88: 75% sur les kg de veau | D88: 1.9105 | E88: =+E85 -> / kg de veau vendu
D89: 0.1418 | E89: =+E86 -> / kg de bouvillon

Sheet Budget
B5: Nom | C5: =PAGE_PRÉSEN.!C11 -> M. Jaimie LeBoeuf
B6: Adresse | C6: =PAGE_PRÉSEN.!C12 -> 555, rue des Vachers, St-Meuhmeuh (Québec) G0X 0X0
B7: Téléphone | C7: =PAGE_PRÉSEN.!C13 -> (450)555-5555
B9: BUDGET PREVISIONNEL
F11: Année | G11: Année | H11: Année | I11: Année | J11: Année
F12: =Don_tech.!F9 -> 2019 | G12: =Don_tech.!G9 -> 2020 | H12: =Don_tech.!H9 -> 2021 | I12: =Don_tech.!I9 -> 2022 | J12: =Don_tech.!J9 -> 2023 | L12: Conversion livre en kg
B13: Nombre de vaches | D13: Unité | E13: $/unité | F13: =Don_tech.!F10 -> 25 | G13: =Don_tech.!G10 -> 35 | H13: =Don_tech.!H10 -> 45 | I13: =Don_tech.!I10 -> 55 | J13: =Don_tech.!J10 -> 65 | L13: Livres | M13: 2
B15: REVENUS | L15: Kg | M15: =M13/2.204 -> 0.9074410163
B16: Vente de veau d'embouche | D16: kg | E16: 4.4 | F16: =$E$16*Don_tech.!F25*Don_tech.!F34 -> 30723 | G16: =$E$16*Don_tech.!F25*Don_tech.!G34 -> 46084.5 | H16: =$E$16*Don_tech.!G25*Don_tech.!H34 -> 55705.188 | I16: =$E$16*Don_tech.!H25*Don_tech.!I34 -> 76122.816 | J16: =$E$16*Don_tech.!I25*Don_tech.!J34 -> 90395.844 | K16: =T20 -> 0
B17: Vente de vaches réformées | D17: kg | E17: 1.76 | F17: =Don_tech.!$D53*Don_tech.!F36*Budget!$E17 -> 4576 | G17: =Don_tech.!$D53*Don_tech.!G36*Budget!$E17 -> 5720 | H17: =Don_tech.!$D53*Don_tech.!H36*Budget!$E17 -> 6864 | I17: =Don_tech.!$D53*Don_tech.!I36*Budget!$E17 -> 9152 | J17: =Don_tech.!$D53*Don_tech.!J36*Budget!$E17 -> 9152
B18: Vente de taureaux réformés | D18: kg | E18: 1.76 | F18: =Don_tech.!$D57*Don_tech.!F37*Budget!$E18 -> 0 | G18: =Don_tech.!$D57*Don_tech.!G37*Budget!$E18 -> 0 | H18: =Don_tech.!$D57*Don_tech.!H37*Budget!$E18 -> 0 | I18: =Don_tech.!$D57*Don_tech.!I37*Budget!$E18 -> 0 | J18: =Don_tech.!$D57*Don_tech.!J37*Budget!$E18 -> 0
B19: Vente de sujets reproduction | D19: $ | F19: 0 | G19: 0 | H19: 0 | I19: 0 | J19: 0
B20: ASRA bovin nette | F20: =+Cal_stab!H29 -> 8986.195 | G20: =+Cal_stab!H42 -> 17356.13319 | H20: =+Cal_stab!H57 -> 22930.18562 | I20: =+Cal_stab!H72 -> 28851.43984 | J20: =+Cal_stab!H87 -> 34260.30211
B21: Agri-investissement et agri-Québec | D21: 0.01 | F21: =IF(((((F16+F17+F18+F19+F22+F23+F34)-(F41-F42-F43-(F45*0.65)-(F46*0.65)-F44-F55-F56))*D21))>=75,((((F16+F17+F18+F19+F22+F23+F34)-(F41-F42-F43-(F45*0.65)-(F46*0.65)-F44-F55-F56))*D21)),0) -> 0 | G21: =IF(((((G16+G17+G18+G19+G22+G23+G34)-(G41-G42-G43-(G45*0.65)-(G46*0.65)-G44-G55-G56))*D21))>=75,((((G16+G17+G18+G19+G22+G23+G34)-(G41-G42-G43-(G45*0.65)-(G46*0.65)-G44-G55-G56))*D21)),0) -> 234.8023925 | H21: =IF(((((H16+H17+H18+H19+H22+H23+H34)-(H41-H42-H43-(H45*0.65)-(H46*0.65)-H44-H55-H56))*D21))>=75,((((H16+H17+H18+H19+H22+H23+H34)-(H41-H42-H43-(H45*0.65)-(H46*0.65)-H44-H55-H56))*D21)),0) -> 486.3481325 | I21: =IF(((((I16+I17+I18+I19+I22+I23+I34)-(I41-I42-I43-(I45*0.65)-(I46*0.65)-I44-I55-I56))*D21))>=75,((((I16+I17+I18+I19+I22+I23+I34)-(I41-I42-I43-(I45*0.65)-(I46*0.65)-I44-I55-I56))*D21)),0) -> 801.909605 | J21: =IF(((((J16+J17+J18+J19+J22+J23+J34)-(J41-J42-J43-(J45*0.65)-(J46*0.65)-J44-J55-J56))*D21))>=75,((((J16+J17+J18+J19+J22+J23+J34)-(J41-J42-J43-(J45*0.65)-(J46*0.65)-J44-J55-J56))*D21)),0) -> 1286.368381
B22: Vente de foin | D22: t MS | E22: 200 | F22: =IF(Don_tech.!F61*Budget!$E22>0,Don_tech.!F61*Budget!$E22,0) -> 2861.9185 | G22: =IF(Don_tech.!G61*Budget!$E22>0,Don_tech.!G61*Budget!$E22,0) -> 0 | H22: =IF(Don_tech.!H61*Budget!$E22>0,Don_tech.!H61*Budget!$E22,0) -> 0 | I22: =IF(Don_tech.!I61*Budget!$E22>0,Don_tech.!I61*Budget!$E22,0) -> 0 | J22: =IF(Don_tech.!J61*Budget!$E22>0,Don_tech.!J61*Budget!$E22,0) -> 0
B23: Vente de céréales | D23: tm | E23: 300 | F23: =IF(Don_tech.!F74>0,Don_tech.!F74*Budget!$E$44,0) -> 0 | G23: =IF(Don_tech.!G74>0,Don_tech.!G74*Budget!$E$44,0) -> 0 | H23: =IF(Don_tech.!H74>0,Don_tech.!H74*Budget!$E$44,0) -> 0 | I23: =IF(Don_tech.!I74>0,Don_tech.!I74*Budget!$E$44,0) -> 0 | J23: =IF(Don_tech.!J74>0,Don_tech.!J74*Budget!$E$44,0) -> 0
B24: ASRA céréales | D24: t MS | E24: 116.87 | F24: =$E$24*Don_tech.!F73 -> 0 | G24: =$E$24*Don_tech.!G73 -> 0 | H24: =$E$24*Don_tech.!H73 -> 0 | I24: =$E$24*Don_tech.!I73 -> 0 | J24: =$E$24*Don_tech.!J73 -> 0
B25: Divers:
B29: Vente autre produit
B30: Vente autre produit
B31: Vente autre produit
B32: Variation vaches | D32: Vache | E32: 2500 | F32: =Don_tech.!F101*$E$32 -> 25000 | G32: =Don_tech.!F114*$E$32 -> 25000 | H32: =Don_tech.!F127*$E$32 -> 25000 | I32: =Don_tech.!F140*$E$32 -> 25000 | J32: =Don_tech.!F153*$E$32 -> 0
B33: Variation taureaux | D33: Taureau | E33: 4000 | F33: =Don_tech.!H101*$E$33 -> 0 | G33: =Don_tech.!H114*$E$33 -> 0 | H33: =Don_tech.!H127*$E$33 -> 4000 | I33: =Don_tech.!H140*$E$33 -> 0 | J33: =Don_tech.!H153*$E$33 -> 0
B34: Variation veaux | D34: kg | E34: 4.4 | F34: =Don_tech.!F25*Don_tech.!F39*$E$34 -> 0 | G34: =Don_tech.!G25*Don_tech.!G39*$E$34 -> 0 | H34: =Don_tech.!H25*Don_tech.!H39*$E$34 -> 0 | I34: =Don_tech.!I25*Don_tech.!I39*$E$34 -> 0 | J34: =Don_tech.!J25*Don_tech.!J39*$E$34 -> 0
B35: Variation genisses et taures | D35: Tête | E35: 2500 | F35: =Don_tech.!G101*$E$35 -> 0 | G35: =Don_tech.!G114*$E$35 -> 0 | H35: =Don_tech.!G127*$E$35 -> 0 | I35: =Don_tech.!G140*$E$35 -> 0 | J35: =Don_tech.!G153*$E$35 -> 0
B37: TOTAL DES REVENUS | F37: =SUM(F16:F34) -> 72147.1135 | G37: =SUM(G16:G34) -> 94395.43558 | H37: =SUM(H16:H34) -> 114985.7218 | I37: =SUM(I16:I34) -> 139928.1654 | J37: =SUM(J16:J34) -> 135094.5145
B38: Revenus/vache | F38: =+F37/F13 -> 2885.88454 | G38: =+G37/G13 -> 2697.012445 | H38: =+H37/H13 -> 2555.238261 | I38: =+I37/I13 -> 2544.148463 | J38: =+J37/J13 -> 2078.377146
B40: DEPENSES
B41: Achat de femelles | D41: $/vache | E41: =E32 -> 2500 | F41: =$E41*Don_tech.!F33 -> 37500 | G41: =$E41*Don_tech.!G33 -> 42500 | H41: =$E41*Don_tech.!H33 -> 45000 | I41: =$E41*Don_tech.!I33 -> 47500 | J41: =$E41*Don_tech.!J33 -> 22500
B42: Achat de taureaux | D42: $/taureau | E42: =E33 -> 4000 | F42: =$E42*Don_tech.!F38 -> 0 | G42: =$E42*Don_tech.!G38 -> 0 | H42: =$E42*Don_tech.!H38 -> 4000 | I42: =$E42*Don_tech.!I38 -> 0 | J42: =$E42*Don_tech.!J38 -> 0
B43: Achat de foin | D43: $ / t MS | E43: =E22 -> 200 | F43: =IF(Don_tech.!F61*Budget!$E22<0,-Don_tech.!F61*Budget!$E22,0) -> 0 | G43: =IF(Don_tech.!G61*Budget!$E22<0,-Don_tech.!G61*Budget!$E22,0) -> 12242.3955 | H43: =IF(Don_tech.!H61*Budget!$E22<0,-Don_tech.!H61*Budget!$E22,0) -> 24982.0565 | I43: =IF(Don_tech.!I61*Budget!$E22<0,-Don_tech.!I61*Budget!$E22,0) -> 40144.7945 | J43: =IF(Don_tech.!J61*Budget!$E22<0,-Don_tech.!J61*Budget!$E22,0) -> 49148.641
B44: Achat de grains | D44: $ / t TQS | E44: 300 | F44: =IF(Don_tech.!F74<0,ABS(Don_tech.!F74*Budget!$E$44),0) -> 300 | G44: =IF(Don_tech.!G74<0,ABS(Don_tech.!G74*Budget!$E$44),0) -> 450 | H44: =IF(Don_tech.!H74<0,ABS(Don_tech.!H74*Budget!$E$44),0) -> 570 | I44: =IF(Don_tech.!I74<0,ABS(Don_tech.!I74*Budget!$E$44),0) -> 720 | J44: =IF(Don_tech.!J74<0,ABS(Don_tech.!J74*Budget!$E$44),0) -> 855
B45: Suppléments protéiques | D45: $/tonnes | E45: 750 | F45: =Don_tech.!F83*$E$45 -> 116.25 | G45: =Don_tech.!G83*$E$45 -> 174.375 | H45: =Don_tech.!H83*$E$45 -> 220.875 | I45: =Don_tech.!I83*$E$45 -> 279 | J45: =Don_tech.!J83*$E$45 -> 331.3125
B46: Moulée | D46: $/tonnes | E46: 397 | F46: =(Don_tech.!F85*Budget!$E$46)/1000 -> 0 | G46: =(Don_tech.!G85*Budget!$E$46)/1000 -> 0 | H46: =(Don_tech.!H85*Budget!$E$46)/1000 -> 0 | I46: =(Don_tech.!I85*Budget!$E$46)/1000 -> 0 | J46: =(Don_tech.!J85*Budget!$E$46)/1000 -> 0
B47: Vitamines et minéraux | D47: $/tonnes | E47: 1500 | F47: =Don_tech.!F84*$E$47 -> 1778.25 | G47: =Don_tech.!G84*$E$47 -> 2380.35 | H47: =Don_tech.!H84*$E$47 -> 2955.15 | I47: =Don_tech.!I84*$E$47 -> 3529.95 | J47: =Don_tech.!J84*$E$47 -> 3804.45
B48: Vétérinaire et médicaments | D48: $/vache | E48: 35.35 | F48: =$E48*F13 -> 883.75 | G48: =$E48*G13 -> 1237.25 | H48: =$E48*H13 -> 1590.75 | I48: =$E48*I13 -> 1944.25 | J48: =$E48*J13 -> 2297.75
B49: Identifiants | D49: $/tag | E49: 1.87 | F49: =Don_tech.!F29*Budget!E49 -> 37.4 | G49: =Don_tech.!G29*Budget!E49 -> 56.1 | H49: =Don_tech.!H29*Budget!E49 -> 71.06 | I49: =Don_tech.!I29*Budget!E49 -> 89.76 | J49: =Don_tech.!J29*Budget!E49 -> 106.59
B50: Litière | D50: $/vache | E50: 18.19 | F50: =$E50*Don_tech.!F10 -> 454.75 | G50: =$E50*Don_tech.!G10 -> 636.65 | H50: =$E50*Don_tech.!H10 -> 818.55 | I50: =$E50*Don_tech.!I10 -> 1000.45 | J50: =$E50*Don_tech.!J10 -> 1182.35
B51: Transport | D51: $ | F51: =Don_écon.!F19*(Don_tech.!F36+Don_tech.!F37)+(Don_tech.!F34*Don_écon.!F21)+(Don_écon.!F20*Don_tech.!F32) -> 798.6 | G51: =Don_écon.!G19*(Don_tech.!G36+Don_tech.!G37)+(Don_tech.!G34*Don_écon.!G21)+(Don_écon.!G20*Don_tech.!G32) -> 1129.8 | H51: =Don_écon.!H19*(Don_tech.!H36+Don_tech.!H37)+(Don_tech.!H34*Don_écon.!H21)+(Don_écon.!H20*Don_tech.!H32) -> 1408.38 | I51: =Don_écon.!I19*(Don_tech.!I36+Don_tech.!I37)+(Don_tech.!I34*Don_écon.!I21)+(Don_écon.!I20*Don_tech.!I32) -> 1807.68 | J51: =Don_écon.!J19*(Don_tech.!J36+Don_tech.!J37)+(Don_tech.!J34*Don_écon.!J21)+(Don_écon.!J20*Don_tech.!J32) -> 2044.47
B52: Mise en marché | D52: $ | F52: =Don_écon.!F14*(Don_tech.!F36+Don_tech.!F37)+(Don_tech.!F34*Don_écon.!F16)+(Don_écon.!F15*Don_tech.!F32) -> 823.32 | G52: =Don_écon.!G14*(Don_tech.!G36+Don_tech.!G37)+(Don_tech.!G34*Don_écon.!G16)+(Don_écon.!G15*Don_tech.!G32) -> 1171.65 | H52: =Don_écon.!H14*(Don_tech.!H36+Don_tech.!H37)+(Don_tech.!H34*Don_écon.!H16)+(Don_écon.!H15*Don_tech.!H32) -> 1462.98 | I52: =Don_écon.!I14*(Don_tech.!I36+Don_tech.!I37)+(Don_tech.!I34*Don_écon.!I16)+(Don_écon.!I15*Don_tech.!I32) -> 1874.64 | J52: =Don_écon.!J14*(Don_tech.!J36+Don_tech.!J37)+(Don_tech.!J34*Don_écon.!J16)+(Don_écon.!J15*Don_tech.!J32) -> 2131.14
B53: Carburant et lubrifiant étable | D53: $/vache | E53: 10 | F53: =F13*$E$53 -> 250 | G53: =G13*$E$53 -> 350 | H53: =H13*$E$53 -> 450 | I53: =I13*$E$53 -> 550 | J53: =J13*$E$53 -> 650
B54: Ent.&rép. mach.&équip.&im. | D54: $/vache | E54: 100.57 | F54: =+F13*$E$54 -> 2514.25 | G54: =+G13*$E$54 -> 3519.95 | H54: =+H13*$E$54 -> 4525.65 | I54: =+I13*$E$54 -> 5531.35 | J54: =+J13*$E$54 -> 6537.05
B55: Approv. Semences céréales | D55: $/hectare | E55: 114.4 | F55: =$E$55*Don_tech.!F64 -> 0 | G55: =$E$55*Don_tech.!G64 -> 0 | H55: =$E$55*Don_tech.!H64 -> 0 | I55: =$E$55*Don_tech.!I64 -> 0 | J55: =$E$55*Don_tech.!J64 -> 0
B56: Approv. Semences fourrage | D56: $/hectare | E56: 137 | F56: =Don_tech.!F42*$E$56 -> 1370 | G56: =Don_tech.!G42*$E$56 -> 1370 | H56: =Don_tech.!H42*$E$56 -> 1370 | I56: =Don_tech.!I42*$E$56 -> 1370 | J56: =Don_tech.!J42*$E$56 -> 1370
B57: Approv. céréales (pest.,engr.,etc) | D57: $/hectare | E57: 170.43 | F57: =$E$57*Don_tech.!F64 -> 0 | G57: =$E$57*Don_tech.!G64 -> 0 | H57: =$E$57*Don_tech.!H64 -> 0 | I57: =$E$57*Don_tech.!I64 -> 0 | J57: =$E$57*Don_tech.!J64 -> 0
B58: Approv. fourrages (pest,engr.,etc) | D58: $/hectare | E58: 150 | F58: =Don_tech.!F41*Budget!$E58 -> 7500 | G58: =Don_tech.!G41*Budget!$E58 -> 7500 | H58: =Don_tech.!H41*Budget!$E58 -> 7500 | I58: =Don_tech.!I41*Budget!$E58 -> 7500 | J58: =Don_tech.!J41*Budget!$E58 -> 7500
B59: Autres frais pour prairie | D59: $/hectare | E59: 150 | F59: =Don_tech.!F51*$E$59 -> 4500 | G59: =Don_tech.!G51*$E$59 -> 3300 | H59: =Don_tech.!H51*$E$59 -> 2100 | I59: =Don_tech.!I51*$E$59 -> 900 | J59: =Don_tech.!J51*$E$59 -> -300
B60: Autres frais pour céréales | D60: $/hectare | E60: 184.25 | F60: =$E$60*Don_tech.!F64 -> 0 | G60: =$E$60*Don_tech.!G64 -> 0 | H60: =$E$60*Don_tech.!H64 -> 0 | I60: =$E$60*Don_tech.!I64 -> 0 | J60: =$E$60*Don_tech.!J64 -> 0
B61: Asra céréales (contribution) | D61: $/hectare | E61: 81.86 | F61: =$E$61*Don_tech.!F64 -> 0 | G61: =$E$61*Don_tech.!G64 -> 0 | H61: =$E$61*Don_tech.!H64 -> 0 | I61: =$E$61*Don_tech.!I64 -> 0 | J61: =$E$61*Don_tech.!J64 -> 0
B62: Ass récolte céréale | D62: $/tonne | E62: 243 | F62: =$E$62*7%*80%*Don_tech.!F73 -> 0 | G62: =$E$62*7%*80%*Don_tech.!G73 -> 0 | H62: =$E$62*7%*80%*Don_tech.!H73 -> 0 | I62: =$E$62*7%*80%*Don_tech.!I73 -> 0 | J62: =$E$62*7%*80%*Don_tech.!J73 -> 0
B63: Assurance récolte fourrage | D63: $/tonne | E63: 110 | F63: =$E63*88%*1.82%*(Don_tech.!F59/1000)*Don_tech.!F41 -> 396.396 | G63: =$E63*88%*1.82%*(Don_tech.!G59/1000)*Don_tech.!G41 -> 396.396 | H63: =$E63*88%*1.82%*(Don_tech.!H59/1000)*Don_tech.!H41 -> 440.44 | I63: =$E63*88%*1.82%*(Don_tech.!I59/1000)*Don_tech.!I41 -> 440.44 | J63: =$E63*88%*1.82%*(Don_tech.!J59/1000)*Don_tech.!J41 -> 440.44
B64: Ent.& rép. fds de ter. bâtim. | D64: $/vache | E64: 38.95 | F64: =+F13*$E$64 -> 973.75 | G64: =+G13*$E$64 -> 1363.25 | H64: =+H13*$E$64 -> 1752.75 | I64: =+I13*$E$64 -> 2142.25 | J64: =+J13*$E$64 -> 2531.75
B65: Travaux à forfait | D65: $/vache | E65: 38.41 | F65: =+F13*$E$65 -> 960.25 | G65: =+G13*$E$65 -> 1344.35 | H65: =+H13*$E$65 -> 1728.45 | I65: =+I13*$E$65 -> 2112.55 | J65: =+J13*$E$65 -> 2496.65
B66: Taxes municipale.&scolaires | D66: $/vache | E66: 10.42 | F66: =+F13*$E$66 -> 260.5 | G66: =+G13*$E$66 -> 364.7 | H66: =+H13*$E$66 -> 468.9 | I66: =+I13*$E$66 -> 573.1 | J66: =+J13*$E$66 -> 677.3
B67: Ass. gén. incluant maison | D67: $/vache | E67: 37.01 | F67: =+F13*$E$67 -> 925.25 | G67: =+G13*$E$67 -> 1295.35 | H67: =+H13*$E$67 -> 1665.45 | I67: =+I13*$E$67 -> 2035.55 | J67: =+J13*$E$67 -> 2405.65
B68: Electricité | D68: $/vache | E68: 15.1 | F68: =+F13*$E$68 -> 377.5 | G68: =+G13*$E$68 -> 528.5 | H68: =+H13*$E$68 -> 679.5 | I68: =+I13*$E$68 -> 830.5 | J68: =+J13*$E$68 -> 981.5
B69: Salaire | D69: $/vache | E69: 145.87 | F69: =+F13*$E$69 -> 3646.75 | G69: =+G13*$E$69 -> 5105.45 | H69: =+H13*$E$69 -> 6564.15 | I69: =+I13*$E$69 -> 8022.85 | J69: =+J13*$E$69 -> 9481.55
B70: Loc. de bâti.& fds de terre | D70: $/vache | E70: 0 | F70: =+F13*$E$70 -> 0 | G70: =+G13*$E$70 -> 0 | H70: =+H13*$E$70 -> 0 | I70: =+I13*$E$70 -> 0 | J70: =+J13*$E$70 -> 0
B71: Intérêt court terme | D71: $/vache | E71: 25.51 | F71: =+F13*$E$71 -> 637.75 | G71: =+G13*$E$71 -> 892.85 | H71: =+H13*$E$71 -> 1147.95 | I71: =+I13*$E$71 -> 1403.05 | J71: =+J13*$E$71 -> 1658.15
B72: Autres frais | D72: $/vache | E72: 46.61 | F72: =+F13*$E$72 -> 1165.25 | G72: =+G13*$E$72 -> 1631.35 | H72: =+H13*$E$72 -> 2097.45 | I72: =+I13*$E$72 -> 2563.55 | J72: =+J13*$E$72 -> 3029.65
D73: $
D74: $
B75: Dépense autre produit | D75: $
B76: Dépense autre produit | D76: $
B77: Dépense autre produit | D77: $
B79: TOTAL DES DEPENSES | F79: =SUM(F41:F77) -> 68169.966 | G79: =SUM(G41:G77) -> 90940.7165 | H79: 115570.4915 | I79: 134865.7145 | J79: 123861.3935
B80: Dépenses/Vache | F80: =F79/F13 -> 2726.79864 | G80: =G79/G13 -> 2598.306186 | H80: =H79/H13 -> 2568.233144 | I80: =I79/I13 -> 2452.1039 | J80: =J79/J13 -> 1905.5599
B81: % dépenses/revenus | F81: =F79/F37 -> 0.9448744751 | G81: =G79/G37 -> 0.96340163 | H81: =H79/H37 -> 1.005085586 | I81: =I79/I37 -> 0.9638210726 | J81: =J79/J37 -> 0.9168499104
B82: Marge Brute totale | F82: =+F37-F79 -> 3977.1475 | G82: =+G37-G79 -> 3454.719079 | H82: =+H37-H79 -> -584.7697447 | I82: =+I37-I79 -> 5062.450942 | J82: =+J37-J79 -> 11233.12099
B83: Marge brute/Vache | F83: =+F82/F13 -> 159.0859 | G83: =+G82/G13 -> 98.70625939 | H83: =+H82/H13 -> -12.99488322 | I83: =+I82/I13 -> 92.04456258 | J83: =+J82/J13 -> 172.817246

Sheet Coût_vie
B2: =PAGE_PRÉSEN.!B11 -> NOM | C2: =PAGE_PRÉSEN.!C11 -> M. Jaimie LeBoeuf
B3: =PAGE_PRÉSEN.!B12 -> ADRESSE | C3: =PAGE_PRÉSEN.!C12 -> 555, rue des Vachers, St-Meuhmeuh (Québec) G0X 0X0
B4: =PAGE_PRÉSEN.!B13 -> TÉLÉPHONE | C4: =PAGE_PRÉSEN.!C13 -> (450)555-5555
B6: COÛT DE VIE
D8: Année | F8: Année | H8: Année | J8: Année | L8: Année
D9: =Don_tech.!F9 -> 2019 | F9: =Don_tech.!G9 -> 2020 | H9: =Don_tech.!H9 -> 2021 | J9: =Don_tech.!I9 -> 2022 | L9: =Don_tech.!J9 -> 2023
B10: REVENUS | D10: $/mois | E10: Total annuel | F10: $/mois | G10: Total annuel | H10: $/mois | I10: Total annuel | J10: $/mois | K10: Total annuel | L10: $/mois | M10: Total annuel
B11: Revenus extérieurs | E11: =D11*12 -> 0 | G11: =F11*12 -> 0 | I11: =H11*12 -> 0 | K11: =J11*12 -> 0 | M11: =L11*12 -> 0
B12: Allocations familiales | E12: =D12*12 -> 0 | G12: =F12*12 -> 0 | I12: =H12*12 -> 0 | K12: =J12*12 -> 0 | M12: =L12*12 -> 0
B13: Assurance chômage | E13: =+D13*12 -> 0 | G13: 0 | I13: =+H13*12 -> 0 | K13: =+J13*12 -> 0 | M13: =+L13*12 -> 0
B14: Jeunes promoteurs | E14: =+D14*12 -> 0 | G14: =+F14*12 -> 0 | I14: =+H14*12 -> 0 | K14: =+J14*12 -> 0 | M14: =+L14*12 -> 0
B15: Bénefice net ferme | E15: =+D15*12 -> 0 | G15: =+F15*12 -> 0 | I15: =+H15*12 -> 0 | K15: =+J15*12 -> 0 | M15: =+L15*12 -> 0
B16: Autres revenus | E16: =+D16*12 -> 0 | G16: =+F16*12 -> 0 | I16: =+H16*12 -> 0 | K16: =+J16*12 -> 0 | M16: =+L16*12 -> 0
E17: 0 | G17: 0 | I17: 0 | K17: 0 | M17: 0
E18: 0 | G18: 0 | I18: 0 | K18: 0 | M18: 0
E19: =+D19*12 -> 0 | G19: =+F19*12 -> 0 | I19: 0 | K19: 0 | M19: =+L19*12 -> 0
B20: Total | D20: =SUM(D11:D19) -> 0 | E20: 0 | F20: 0 | G20: 0 | H20: 0 | I20: 0 | J20: 0 | K20: 0 | L20: 0 | M20: 0
B22: DÉPENSES
B23: Garderie | E23: =D23*12 -> 0 | G23: =F23*12 -> 0 | I23: =H23*12 -> 0 | K23: =J23*12 -> 0 | M23: =L23*12 -> 0
B24: Épicerie | E24: 0 | G24: =F24*12 -> 0 | I24: =H24*12 -> 0 | K24: =J24*12 -> 0 | M24: =L24*12 -> 0
B25: Electricité | E25: 0 | G25: 0 | I25: 0 | K25: 0 | M25: 0
B26: Téléphone | E26: 0 | G26: 0 | I26: 0 | K26: 0 | M26: 0
B27: Essence | E27: 0 | G27: 0 | I27: 0 | K27: 0 | M27: 0
B28: Entretien réparation auto | E28: 0 | G28: 0 | I28: 0 | K28: 0 | M28: 0
B29: Chauffage maison | E29: 0 | G29: 0 | I29: 0 | K29: 0 | M29: 0
B30: Entretien réparation maison | E30: 0 | G30: 0 | I30: 0 | K30: 0 | M30: 0
B31: Immatriculation | E31: 0 | G31: 0 | I31: 0 | K31: 0 | M31: 0
B32: Loisirs | E32: 0 | G32: 0 | I32: 0 | K32: 0 | M32: 0
B33: Loyer | E33: 0 | G33: 0 | I33: 0 | K33: 0 | M33: 0
B34: Vêtements | E34: 0 | G34: 0 | I34: 0 | K34: 0 | M34: 0
E35: 0 | G35: 0 | I35: 0 | K35: 0 | M35: 0
E36: 0 | G36: 0 | I36: 0 | K36: 0 | M36: 0
B37: Divers | E37: =D37*12 -> 0 | G37: 0 | I37: 0 | K37: 0 | M37: 0
B38: Sous-total | D38: =SUM(D23:D37) -> 0 | E38: =SUM(E23:E37) -> 0 | F38: =SUM(F23:F37) -> 0 | G38: 0 | H38: 0 | I38: 0 | J38: 0 | K38: 0 | L38: 0 | M38: 0
B40: TAXES ET ASSURANCES
B41: Assurances vie | E41: =D41*12 -> 0 | G41: =F41*12 -> 0 | I41: =H41*12 -> 0 | K41: =J41*12 -> 0 | M41: =L41*12 -> 0
B42: Assurance maison | E42: =D42*12 -> 0 | G42: =F42*12 -> 0 | I42: =H42*12 -> 0 | K42: =J42*12 -> 0 | M42: =L42*12 -> 0
B43: Assurance auto | E43: =D43*12 -> 0 | G43: =F43*12 -> 0 | I43: =H43*12 -> 0 | K43: =J43*12 -> 0 | M43: =L43*12 -> 0
B44: Taxes municipales & scolaires | E44: =D44*12 -> 0 | G44: =F44*12 -> 0 | I44: =H44*12 -> 0 | K44: =J44*12 -> 0 | M44: =L44*12 -> 0
B45: Sous-total | D45: =SUM(D41:D44) -> 0 | E45: =SUM(E41:E44) -> 0 | F45: 0 | G45: 0 | H45: =SUM(H41:H44) -> 0 | I45: 0 | J45: =SUM(J41:J44) -> 0 | K45: 0 | L45: =SUM(L41:L44) -> 0 | M45: 0
B47: EMPRUNT ET PLACEMENT
B48: Remb. Prêt étudiant | E48: =D48*12 -> 0 | G48: =F48*12 -> 0 | I48: =H48*12 -> 0 | K48: =J48*12 -> 0 | M48: =L48*12 -> 0
B49: Remb. Hypothèque (C&I) | E49: =D49*12 -> 0 | G49: =F49*12 -> 0 | I49: =H49*12 -> 0 | K49: =J49*12 -> 0 | M49: =L49*12 -> 0
E50: 0 | G50: 0 | I50: 0 | K50: 0 | M50: 0
E51: =D51*12 -> 0 | G51: =F51*12 -> 0 | I51: =H51*12 -> 0 | K51: =J51*12 -> 0 | M51: =L51*12 -> 0
B52: Sous-total | D52: =SUM(D48:D51) -> 0 | E52: =SUM(E48:E51) -> 0 | F52: =SUM(F48:F51) -> 0 | G52: 0 | H52: 0 | I52: 0 | J52: 0 | K52: 0 | L52: 0 | M52: 0
B54: COÛT DE VIE | D54: =+E54/12 -> 0 | E54: =+E52+E45+E38 -> 0 | F54: =+G54/12 -> 0 | G54: =+G52+G45+G38 -> 0 | H54: =+I54/12 -> 0 | I54: =+I52+I45+I38 -> 0 | J54: =+K54/12 -> 0 | K54: =+K52+K45+K38 -> 0 | L54: =+M54/12 -> 0 | M54: =+M52+M45+M38 -> 0
B55: revenu-dépense | D55: =+E55/12 -> 0 | E55: =+E20-E54 -> 0 | F55: =+G55/12 -> 0 | G55: =+G20-G54 -> 0 | H55: =+I55/12 -> 0 | I55: =+I20-I54 -> 0 | J55: =+K55/12 -> 0 | K55: =+K20-K54 -> 0 | L55: =+M55/12 -> 0 | M55: =+M20-M54 -> 0

Sheet Budget Trés (hidden)
B2: =PAGE_PRÉSEN.!B11 -> NOM | C2: =PAGE_PRÉSEN.!C11 -> M. Jaimie LeBoeuf
B3: =PAGE_PRÉSEN.!B12 -> ADRESSE | C3: =PAGE_PRÉSEN.!C12 -> 555, rue des Vachers, St-Meuhmeuh (Québec) G0X 0X0
B4: =PAGE_PRÉSEN.!B13 -> TÉLÉPHONE | C4: =PAGE_PRÉSEN.!C13 -> (450)555-5555
B6: BUDGET DE TRÉSORERIE
D8: Année | F8: Année | H8: Année | J8: Année | L8: Année
D9: =Don_tech.!F9 -> 2019 | F9: =Don_tech.!G9 -> 2020 | H9: =Don_tech.!H9 -> 2021 | J9: =Don_tech.!I9 -> 2022 | L9: =Don_tech.!J9 -> 2023
B10: Nombre de vaches | D10: =Don_tech.!F10 -> 25 | F10: =Don_tech.!G10 -> 35 | H10: =Don_tech.!H10 -> 45 | J10: =Don_tech.!I10 -> 55 | L10: =Don_tech.!J10 -> 65
B12: RECETTES-DÉBOURSÉS | D12: Entrée | E12: Sortie | F12: Entrée | G12: Sortie | H12: Entrée | I12: Sortie | J12: Entrée | K12: Sortie | L12: Entrée | M12: Sortie | N12: COMMENTAIRES
B13: Solde de début d'année | D13: 0 | F13: =D46 -> -466849.2015 | H13: =F46 -> -507373.5295 | J13: =H46 -> -555937.3463 | L13: =J46 -> -594853.9424
B14: Marge brute sans var. d'inventaire | D14: =Budget!F82-(Budget!F32+Budget!F33+Budget!F34+Budget!F35) -> -21022.8525 | F14: =Budget!G82-(Budget!G32+Budget!G33+Budget!G34+Budget!G35) -> -21545.28092 | H14: =Budget!H82-(Budget!H32+Budget!H33+Budget!H34+Budget!H35) -> -29584.76974 | J14: =Budget!I82-(Budget!I32+Budget!I33+Budget!I34+Budget!I35) -> -19937.54906 | L14: =Budget!J82-(Budget!J32+Budget!J33+Budget!J34+Budget!J35) -> 11233.12099
B15: Revenus externes, apports | D15: =Coût_vie!E20 -> 0 | F15: =Coût_vie!G20 -> 0 | H15: =Coût_vie!I20 -> 0 | J15: =Coût_vie!K20 -> 0 | L15: =Coût_vie!M20 -> 0
B17: Sous-total | D17: =SUM(D12:D16) -> -21022.8525 | E17: 0 | F17: -488394.4824 | G17: 0 | H17: -536958.2992 | I17: 0 | J17: -575874.8953 | K17: 0 | L17: -583620.8214 | M17: 0
B19: CAPITAL-ACHAT ET/OU VENTE SUBVENTION
B20: Achat de femelles | E20: =Don_écon.!F26+Don_écon.!F27 -> 37500
B21: Achat de taureaux | E21: =Don_écon.!F28 -> 2000
B22: Achat ferme | E22: =Don_écon.!F24 -> 600000
B23: Aménagement de l'étable | E23: =Don_écon.!F30 -> 10000 | G23: =Don_écon.!G30 -> 0 | I23: =Don_écon.!H30 -> 0 | K23: =Don_écon.!I30 -> 0 | M23: =Don_écon.!J30 -> 10000
B24: Achat de terres pour l'extension | G24: =Don_écon.!F29*(Don_tech.!G41-Don_tech.!F41+Don_tech.!G64-Don_tech.!F64) -> 0 | I24: =Don_écon.!F29*(Don_tech.!H41-Don_tech.!G41+Don_tech.!H64-Don_tech.!G64) -> 0 | K24: =Don_écon.!F29*(Don_tech.!I41-Don_tech.!H41+Don_tech.!I64-Don_tech.!H64) -> 0 | M24: =Don_écon.!F29*(Don_tech.!J41-Don_tech.!I41+Don_tech.!J64-Don_tech.!I64) -> 0
B25: Machinerie et équipements | E25: =Don_écon.!F31 -> 0 | G25: =Don_écon.!G31 -> 0 | I25: =Don_écon.!H31 -> 0 | K25: =Don_écon.!I31 -> 0 | M25: =Don_écon.!J31 -> 0
B29: Subv.(prime à l'établisement, dons, ...) | D29: =Don_écon.!F32 -> 10000 | F29: =Don_écon.!G32 -> 0 | H29: =Don_écon.!H32 -> 0 | J29: =Don_écon.!I32 -> 0 | L29: =Don_écon.!J32 -> 10000
B30: Sous-total | D30: =SUM(D20:D29) -> 10000 | E30: 649500 | F30: 0 | G30: 0 | H30: 0 | I30: 0 | J30: 0 | K30: 0 | L30: 10000 | M30: 10000
B32: Comptes Clients
B33: Comptes fournisseurs
B34: Emprunts consolidés MT
B35: Emprunts consolidés LT
B36: Nouveaux emprunts MLT | D36: =IF('Emprunt 1'!E18='Budget Trés'!D9,'Emprunt 1'!E17,0)+IF('Emprunt 2'!E18='Budget Trés'!D9,'Emprunt 2'!E17)+IF('Emprunt 3'!E18='Budget Trés'!D9,'Emprunt 3'!E17,0)+IF('Emprunt supplémentaire'!E18='Budget Trés'!D9,'Emprunt supplémentaire'!E17,0) -> 200000 | F36: =IF('Emprunt 1'!E18='Budget Trés'!F9,'Emprunt 1'!E17,0)+IF('Emprunt 2'!E18='Budget Trés'!F9,'Emprunt 2'!E17,0)+IF('Emprunt 3'!E18='Budget Trés'!F9,'Emprunt 3'!E17,0)+IF('Emprunt supplémentaire'!E18='Budget Trés'!F9,'Emprunt supplémentaire'!E17,0) -> 0 | H36: =IF('Emprunt 1'!E18='Budget Trés'!H9,'Emprunt 1'!E17,0)+IF('Emprunt 2'!E18='Budget Trés'!H9,'Emprunt 2'!E17,0)+IF('Emprunt 3'!E18='Budget Trés'!H9,'Emprunt 3'!E17,0)+IF('Emprunt supplémentaire'!E18='Budget Trés'!H9,'Emprunt supplémentaire'!E17,0) -> 0 | J36: =IF('Emprunt 1'!E18='Budget Trés'!J9,'Emprunt 1'!E17,0)+IF('Emprunt 2'!E18='Budget Trés'!J9,'Emprunt 2'!E17,0)+IF('Emprunt 3'!E18='Budget Trés'!J9,'Emprunt 3'!E17,0)+IF('Emprunt supplémentaire'!E18='Budget Trés'!J9,'Emprunt supplémentaire'!E17,0) -> 0 | L36: =IF('Emprunt 1'!E18='Budget Trés'!L9,'Emprunt 1'!E17,0)+IF('Emprunt 2'!E18='Budget Trés'!L9,'Emprunt 2'!E17,0)+IF('Emprunt 3'!E18='Budget Trés'!L9,'Emprunt 3'!E17,0)+IF('Emprunt supplémentaire'!E18='Budget Trés'!L9,'Emprunt supplémentaire'!E17,0) -> 0
B37: Annuité (K + i) | E37: =IF('Emprunt 1'!B21='Budget Trés'!D9,'Emprunt 1'!E21,0)+IF('Emprunt 2'!B21='Budget Trés'!D9,'Emprunt 2'!E21,0)+IF('Emprunt 3'!B21='Budget Trés'!D9,'Emprunt 3'!E21,0)+IF('Emprunt supplémentaire'!B21='Budget Trés'!D9,'Emprunt supplémentaire'!E21,0) -> 6326.349014 | G37: =IF('Emprunt 1'!B21='Budget Trés'!F9,'Emprunt 1'!E21,0)+IF('Emprunt 2'!B21='Budget Trés'!F9,'Emprunt 2'!E21,0)+IF('Emprunt 3'!B21='Budget Trés'!F9,'Emprunt 3'!E21,0)+IF('Emprunt supplémentaire'!B21='Budget Trés'!F9,'Emprunt supplémentaire'!E21,0)+IF('Emprunt 1'!B22='Budget Trés'!F9,'Emprunt 1'!E22,0)+IF('Emprunt 2'!B22='Budget Trés'!F9,'Emprunt 2'!E22,0)+IF('Emprunt 3'!B22='Budget Trés'!F9,'Emprunt 3'!E22,0)+IF('Emprunt supplémentaire'!B22='Budget Trés'!F9,'Emprunt supplémentaire'!E22,0) -> 18979.04704 | I37: =IF('Emprunt 1'!B21='Budget Trés'!H9,'Emprunt 1'!E21,0)+IF('Emprunt 2'!B21='Budget Trés'!H9,'Emprunt 2'!E21,0)+IF('Emprunt 3'!B21='Budget Trés'!H9,'Emprunt 3'!E21,0)+IF('Emprunt supplémentaire'!B21='Budget Trés'!H9,'Emprunt supplémentaire'!E21,0)+IF('Emprunt 1'!B22='Budget Trés'!H9,'Emprunt 1'!E22,0)+IF('Emprunt 2'!B22='Budget Trés'!H9,'Emprunt 2'!E22,0)+IF('Emprunt 3'!B22='Budget Trés'!H9,'Emprunt 3'!E22,0)+IF('Emprunt supplémentaire'!B22='Budget Trés'!H9,'Emprunt supplémentaire'!E22,0)+IF('Emprunt 1'!B23='Budget Trés'!H9,'Emprunt 1'!E23,0)+IF('Emprunt 2'!B23='Budget Trés'!H9,'Emprunt 2'!E23,0)+IF('Emprunt 3'!B23='Budget Trés'!H9,'Emprunt 3'!E23,0)+IF('Emprunt supplémentaire'!B23='Budget Trés'!H9,'Emprunt supplémentaire'!E23,0) -> 18979.04704 | K37: =IF('Emprunt 1'!B21='Budget Trés'!J9,'Emprunt 1'!E21,0)+IF('Emprunt 2'!B21='Budget Trés'!J9,'Emprunt 2'!E21,0)+IF('Emprunt 3'!B21='Budget Trés'!J9,'Emprunt 3'!E21,0)+IF('Emprunt supplémentaire'!B21='Budget Trés'!J9,'Emprunt supplémentaire'!E21,0)+IF('Emprunt 1'!B22='Budget Trés'!J9,'Emprunt 1'!E22,0)+IF('Emprunt 2'!B22='Budget Trés'!J9,'Emprunt 2'!E22,0)+IF('Emprunt 3'!B22='Budget Trés'!J9,'Emprunt 3'!E22,0)+IF('Emprunt supplémentaire'!B22='Budget Trés'!J9,'Emprunt supplémentaire'!E22,0)+IF('Emprunt 1'!B23='Budget Trés'!J9,'Emprunt 1'!E23,0)+IF('Emprunt 2'!B23='Budget Trés'!J9,'Emprunt 2'!E23,0)+IF('Emprunt 3'!B23='Budget Trés'!J9,'Emprunt 3'!E23,0)+IF('Emprunt supplémentaire'!B23='Budget Trés'!J9,'Emprunt supplémentaire'!E23,0)+IF('Emprunt 1'!B24='Budget Trés'!J9,'Emprunt 1'!E24,0)+IF('Emprunt 2'!B24='Budget Trés'!J9,'Emprunt 2'!E24,0)+IF('Emprunt 3'!B24='Budget Trés'!J9,'Emprunt 3'!E24,0)+IF('Emprunt supplémentaire'!B24='Budget Trés'!J9,'Emprunt supplémentaire'!E24,0) -> 18979.04704 | M37: =IF('Emprunt 1'!B21='Budget Trés'!L9,'Emprunt 1'!E21,0)+IF('Emprunt 2'!B21='Budget Trés'!L9,'Emprunt 2'!E21,0)+IF('Emprunt 3'!B21='Budget Trés'!L9,'Emprunt 3'!E21,0)+IF('Emprunt supplémentaire'!B21='Budget Trés'!L9,'Emprunt supplémentaire'!E21,0)+IF('Emprunt 1'!B22='Budget Trés'!L9,'Emprunt 1'!E22,0)+IF('Emprunt 2'!B22='Budget Trés'!L9,'Emprunt 2'!E22,0)+IF('Emprunt 3'!B22='Budget Trés'!L9,'Emprunt 3'!E22,0)+IF('Emprunt supplémentaire'!B22='Budget Trés'!L9,'Emprunt supplémentaire'!E22,0)+IF('Emprunt 1'!B23='Budget Trés'!L9,'Emprunt 1'!E23,0)+IF('Emprunt 2'!B23='Budget Trés'!L9,'Emprunt 2'!E23,0)+IF('Emprunt 3'!B23='Budget Trés'!L9,'Emprunt 3'!E23,0)+IF('Emprunt supplémentaire'!B23='Budget Trés'!L9,'Emprunt supplémentaire'!E23,0)+IF('Emprunt 1'!B24='Budget Trés'!L9,'Emprunt 1'!E24,0)+IF('Emprunt 2'!B24='Budget Trés'!L9,'Emprunt 2'!E24,0)+IF('Emprunt 3'!B24='Budget Trés'!L9,'Emprunt 3'!E24,0)+IF('Emprunt supplémentaire'!B24='Budget Trés'!L9,'Emprunt supplémentaire'!E24,0)+IF('Emprunt 1'!B25='Budget Trés'!L9,'Emprunt 1'!E25,0)+IF('Emprunt 2'!B25='Budget Trés'!L9,'Emprunt 2'!E25,0)+IF('Emprunt 3'!B25='Budget Trés'!L9,'Emprunt 3'!E25,0)+IF('Emprunt supplémentaire'!B25='Budget Trés'!L9,'Emprunt supplémentaire'!E25,0) -> 18979.04704
B38: Sous-total | D38: =SUM(D36:D37) -> 200000 | E38: =SUM(E36:E37) -> 6326.349014 | F38: 0 | G38: 18979.04704 | H38: 0 | I38: 18979.04704 | J38: 0 | K38: 18979.04704 | L38: 0 | M38: 18979.04704
B40: Totaux | D40: =D17+D30+D38 -> 188977.1475 | E40: 655826.349 | F40: -488394.4824 | G40: 18979.04704 | H40: -536958.2992 | I40: 18979.04704 | J40: -575874.8953 | K40: 18979.04704 | L40: -573620.8214 | M40: 28979.04704
B42: Soldes Entrées - Sorties | D42: =D40-E40 -> -466849.2015 | F42: =F40-G40 -> -507373.5295 | H42: =H40-I40 -> -555937.3463 | J42: =J40-K40 -> -594853.9424 | L42: =L40-M40 -> -602599.8684
B43: Coût de vie | E43: =Coût_vie!E54 -> 0 | G43: =Coût_vie!G54 -> 0 | I43: =Coût_vie!I54 -> 0 | K43: =Coût_vie!K54 -> 0 | M43: =Coût_vie!M54 -> 0
B44: Plus autres apports
B46: SOLDE FINAL DE TRÉSORERIE | D46: =D42-E43+D44 -> -466849.2015 | F46: =F42-G43+F44 -> -507373.5295 | H46: =H42-I43+H44 -> -555937.3463 | J46: =J42-K43+J44 -> -594853.9424 | L46: =L42-M43+L44 -> -602599.8684

Sheet Trésorerie année 1
C1: BUDGET DE TRÉSORERIE POUR L'ANNÉE: | G1: =Don_tech.!F9 -> 2019
B3: JANVIER | C3: FÉVRIER | D3: MARS | E3: AVRIL | F3: MAI | G3: JUIN | H3: JUILLET | I3: AOÛT | J3: SEPTEMBRE | K3: OCTOBRE | L3: NOVEMBRE | M3: DÉCEMBRE | N3: ANNEE
A4: ENTRÉES
A5: =Budget!B16 -> Vente de veau d'embouche | B5: =IF(TEXT(Don_tech.!$F$23,"mmmm")=B3,100%,"") ->  | C5: =IF(TEXT(Don_tech.!$F$23,"mmmm")=C3,100%,"") ->  | D5: =IF(TEXT(Don_tech.!$F$23,"mmmm")=D3,100%,"") ->  | E5: =IF(TEXT(Don_tech.!$F$23,"mmmm")=E3,100%,"") ->  | F5: =IF(TEXT(Don_tech.!$F$23,"mmmm")=F3,100%,"") ->  | G5: =IF(TEXT(Don_tech.!$F$23,"mmmm")=G3,100%,"") ->  | H5: =IF(TEXT(Don_tech.!$F$23,"mmmm")=H3,100%,"") ->  | I5: =IF(TEXT(Don_tech.!$F$23,"mmmm")=I3,100%,"") ->  | J5: =IF(TEXT(Don_tech.!$F$23,"mmmm")=J3,100%,"") ->  | K5: =IF(TEXT(Don_tech.!$F$23,"mmmm")=K3,100%,"") ->  | L5: =IF(TEXT(Don_tech.!$F$23,"mmmm")=L3,100%,"") ->  | M5: =IF(TEXT(Don_tech.!$F$23,"mmmm")=M3,100%,"") -> 1 | N5: =SUM(B5:M5)*Budget!F16 -> 30723 | O5: Periode de vente
A6: =Budget!B17 -> Vente de vaches réformées | B6: =IF(TEXT(Don_tech.!$F$23,"mmmm")=B3,100%,"") ->  | C6: =IF(TEXT(Don_tech.!$F$23,"mmmm")=C3,100%,"") ->  | D6: =IF(TEXT(Don_tech.!$F$23,"mmmm")=D3,100%,"") ->  | E6: =IF(TEXT(Don_tech.!$F$23,"mmmm")=E3,100%,"") ->  | F6: =IF(TEXT(Don_tech.!$F$23,"mmmm")=F3,100%,"") ->  | G6: =IF(TEXT(Don_tech.!$F$23,"mmmm")=G3,100%,"") ->  | H6: =IF(TEXT(Don_tech.!$F$23,"mmmm")=H3,100%,"") ->  | I6: =IF(TEXT(Don_tech.!$F$23,"mmmm")=I3,100%,"") ->  | J6: =IF(TEXT(Don_tech.!$F$23,"mmmm")=J3,100%,"") ->  | K6: =IF(TEXT(Don_tech.!$F$23,"mmmm")=K3,100%,"") ->  | L6: =IF(TEXT(Don_tech.!$F$23,"mmmm")=L3,100%,"") ->  | M6: =IF(TEXT(Don_tech.!$F$23,"mmmm")=M3,100%,"") -> 1 | N6: =SUM(B6:M6)*Budget!F17 -> 4576 | O6: Periode de vente
A7: =Budget!B18 -> Vente de taureaux réformés | B7: =IF(TEXT(Don_tech.!$F$23,"mmmm")=B3,100%,"") ->  | C7: =IF(TEXT(Don_tech.!$F$23,"mmmm")=C3,100%,"") ->  | D7: =IF(TEXT(Don_tech.!$F$23,"mmmm")=D3,100%,"") ->  | E7: =IF(TEXT(Don_tech.!$F$23,"mmmm")=E3,100%,"") ->  | F7: =IF(TEXT(Don_tech.!$F$23,"mmmm")=F3,100%,"") ->  | G7: =IF(TEXT(Don_tech.!$F$23,"mmmm")=G3,100%,"") ->  | H7: =IF(TEXT(Don_tech.!$F$23,"mmmm")=H3,100%,"") ->  | I7: =IF(TEXT(Don_tech.!$F$23,"mmmm")=I3,100%,"") ->  | J7: =IF(TEXT(Don_tech.!$F$23,"mmmm")=J3,100%,"") ->  | K7: =IF(TEXT(Don_tech.!$F$23,"mmmm")=K3,100%,"") ->  | L7: =IF(TEXT(Don_tech.!$F$23,"mmmm")=L3,100%,"") ->  | M7: =IF(TEXT(Don_tech.!$F$23,"mmmm")=M3,100%,"") -> 1 | N7: =SUM(B7:M7)*Budget!F18 -> 0 | O7: Periode de vente
A8: =Budget!B19 -> Vente de sujets reproduction | B8: =IF(TEXT(Don_tech.!$F$23,"mmmm")=B3,100%,"") ->  | C8: =IF(TEXT(Don_tech.!$F$23,"mmmm")=C3,100%,"") ->  | D8: =IF(TEXT(Don_tech.!$F$23,"mmmm")=D3,100%,"") ->  | E8: =IF(TEXT(Don_tech.!$F$23,"mmmm")=E3,100%,"") ->  | F8: =IF(TEXT(Don_tech.!$F$23,"mmmm")=F3,100%,"") ->  | G8: =IF(TEXT(Don_tech.!$F$23,"mmmm")=G3,100%,"") ->  | H8: =IF(TEXT(Don_tech.!$F$23,"mmmm")=H3,100%,"") ->  | I8: =IF(TEXT(Don_tech.!$F$23,"mmmm")=I3,100%,"") ->  | J8: =IF(TEXT(Don_tech.!$F$23,"mmmm")=J3,100%,"") ->  | K8: =IF(TEXT(Don_tech.!$F$23,"mmmm")=K3,100%,"") ->  | L8: =IF(TEXT(Don_tech.!$F$23,"mmmm")=L3,100%,"") ->  | M8: =IF(TEXT(Don_tech.!$F$23,"mmmm")=M3,100%,"") -> 1 | N8: =SUM(B8:M8)*Budget!F19 -> 0 | O8: Periode de vente
A9: =Budget!B20 -> ASRA bovin nette | H9: 0.5 | M9: 0.5 | N9: =SUM(B9:M9)*Budget!F20 -> 8986.195 | O9: ASRA
A10: =Budget!B21 -> Agri-investissement et agri-Québec | B10: =IF(TEXT(Don_tech.!$F$23,"mmmm")=B3,100%,"") ->  | C10: =IF(TEXT(Don_tech.!$F$23,"mmmm")=C3,100%,"") ->  | D10: =IF(TEXT(Don_tech.!$F$23,"mmmm")=D3,100%,"") ->  | E10: =IF(TEXT(Don_tech.!$F$23,"mmmm")=E3,100%,"") ->  | F10: =IF(TEXT(Don_tech.!$F$23,"mmmm")=F3,100%,"") ->  | G10: =IF(TEXT(Don_tech.!$F$23,"mmmm")=G3,100%,"") ->  | H10: =IF(TEXT(Don_tech.!$F$23,"mmmm")=H3,100%,"") ->  | I10: =IF(TEXT(Don_tech.!$F$23,"mmmm")=I3,100%,"") ->  | J10: =IF(TEXT(Don_tech.!$F$23,"mmmm")=J3,100%,"") ->  | K10: =IF(TEXT(Don_tech.!$F$23,"mmmm")=K3,100%,"") ->  | L10: =IF(TEXT(Don_tech.!$F$23,"mmmm")=L3,100%,"") ->  | M10: =IF(TEXT(Don_tech.!$F$23,"mmmm")=M3,100%,"") -> 1 | N10: =SUM(B10:M10)*Budget!F21 -> 0 | O10: Periode de vente
A11: =Budget!B22 -> Vente de foin | I11: 0.5 | K11: 0.5 | N11: =SUM(B11:M11)*Budget!F22 -> 2861.9185
A12: =Budget!B23 -> Vente de céréales | K12: 1 | N12: =SUM(B12:M12)*Budget!F23 -> 0
A13: =Budget!B24 -> ASRA céréales | M13: 0.4 | N13: =SUM(B13:M13)*Budget!F24 -> 0
A14: =Budget!B25 -> Divers: | M14: 1 | N14: =SUM(B14:M14)*Budget!F25 -> 0
A15: =Budget!B26 -> 0 | N15: =SUM(B15:M15)*Budget!F26 -> 0
A16: =Budget!B27 -> 0 | N16: =SUM(B16:M16)*Budget!F27 -> 0
A17: =Budget!B28 -> 0 | N17: =SUM(B17:M17)*Budget!F28 -> 0
A18: =Budget!B29 -> Vente autre produit | N18: =SUM(B18:M18)*Budget!F29 -> 0
A19: =Budget!B30 -> Vente autre produit | N19: =SUM(B19:M19)*Budget!F30 -> 0
A20: =Budget!B31 -> Vente autre produit | N20: =SUM(B20:M20)*Budget!F31 -> 0
A21: TOTAL DES RECETTES | B21: =IF(B5="",0,B5)*Budget!$F$16+IF(B6="",0,B6)*Budget!$F$17+IF(B7="",0,B7)*Budget!$F$18+IF(B8="",0,B8)*Budget!$F$19+IF(B9="",0,B9)*Budget!$F$20+IF(B10="",0,B10)*Budget!$F$21+IF(B11="",0,B11)*Budget!$F$22+IF(B12="",0,B12)*Budget!$F$23+IF(B13="",0,B13)*Budget!$F$24+IF(B14="",0,B14)*Budget!$F$25+IF(B15="",0,B15)*Budget!$F$26+IF(B16="",0,B16)*Budget!$F$27+IF(B17="",0,B17)*Budget!$F$28+IF(B18="",0,B18)*Budget!$F$29+IF(B19="",0,B19)*Budget!$F$30+IF(B20="",0,B20)*Budget!$F$31 -> 0 | C21: =IF(C5="",0,C5)*Budget!$F$16+IF(C6="",0,C6)*Budget!$F$17+IF(C7="",0,C7)*Budget!$F$18+IF(C8="",0,C8)*Budget!$F$19+IF(C9="",0,C9)*Budget!$F$20+IF(C10="",0,C10)*Budget!$F$21+IF(C11="",0,C11)*Budget!$F$22+IF(C12="",0,C12)*Budget!$F$23+IF(C13="",0,C13)*Budget!$F$24+IF(C14="",0,C14)*Budget!$F$25+IF(C15="",0,C15)*Budget!$F$26+IF(C16="",0,C16)*Budget!$F$27+IF(C17="",0,C17)*Budget!$F$28+IF(C18="",0,C18)*Budget!$F$29+IF(C19="",0,C19)*Budget!$F$30+IF(C20="",0,C20)*Budget!$F$31 -> 0 | D21: =IF(D5="",0,D5)*Budget!$F$16+IF(D6="",0,D6)*Budget!$F$17+IF(D7="",0,D7)*Budget!$F$18+IF(D8="",0,D8)*Budget!$F$19+IF(D9="",0,D9)*Budget!$F$20+IF(D10="",0,D10)*Budget!$F$21+IF(D11="",0,D11)*Budget!$F$22+IF(D12="",0,D12)*Budget!$F$23+IF(D13="",0,D13)*Budget!$F$24+IF(D14="",0,D14)*Budget!$F$25+IF(D15="",0,D15)*Budget!$F$26+IF(D16="",0,D16)*Budget!$F$27+IF(D17="",0,D17)*Budget!$F$28+IF(D18="",0,D18)*Budget!$F$29+IF(D19="",0,D19)*Budget!$F$30+IF(D20="",0,D20)*Budget!$F$31 -> 0 | E21: =IF(E5="",0,E5)*Budget!$F$16+IF(E6="",0,E6)*Budget!$F$17+IF(E7="",0,E7)*Budget!$F$18+IF(E8="",0,E8)*Budget!$F$19+IF(E9="",0,E9)*Budget!$F$20+IF(E10="",0,E10)*Budget!$F$21+IF(E11="",0,E11)*Budget!$F$22+IF(E12="",0,E12)*Budget!$F$23+IF(E13="",0,E13)*Budget!$F$24+IF(E14="",0,E14)*Budget!$F$25+IF(E15="",0,E15)*Budget!$F$26+IF(E16="",0,E16)*Budget!$F$27+IF(E17="",0,E17)*Budget!$F$28+IF(E18="",0,E18)*Budget!$F$29+IF(E19="",0,E19)*Budget!$F$30+IF(E20="",0,E20)*Budget!$F$31 -> 0 | F21: =IF(F5="",0,F5)*Budget!$F$16+IF(F6="",0,F6)*Budget!$F$17+IF(F7="",0,F7)*Budget!$F$18+IF(F8="",0,F8)*Budget!$F$19+IF(F9="",0,F9)*Budget!$F$20+IF(F10="",0,F10)*Budget!$F$21+IF(F11="",0,F11)*Budget!$F$22+IF(F12="",0,F12)*Budget!$F$23+IF(F13="",0,F13)*Budget!$F$24+IF(F14="",0,F14)*Budget!$F$25+IF(F15="",0,F15)*Budget!$F$26+IF(F16="",0,F16)*Budget!$F$27+IF(F17="",0,F17)*Budget!$F$28+IF(F18="",0,F18)*Budget!$F$29+IF(F19="",0,F19)*Budget!$F$30+IF(F20="",0,F20)*Budget!$F$31 -> 0 | G21: =IF(G5="",0,G5)*Budget!$F$16+IF(G6="",0,G6)*Budget!$F$17+IF(G7="",0,G7)*Budget!$F$18+IF(G8="",0,G8)*Budget!$F$19+IF(G9="",0,G9)*Budget!$F$20+IF(G10="",0,G10)*Budget!$F$21+IF(G11="",0,G11)*Budget!$F$22+IF(G12="",0,G12)*Budget!$F$23+IF(G13="",0,G13)*Budget!$F$24+IF(G14="",0,G14)*Budget!$F$25+IF(G15="",0,G15)*Budget!$F$26+IF(G16="",0,G16)*Budget!$F$27+IF(G17="",0,G17)*Budget!$F$28+IF(G18="",0,G18)*Budget!$F$29+IF(G19="",0,G19)*Budget!$F$30+IF(G20="",0,G20)*Budget!$F$31 -> 0 | H21: =IF(H5="",0,H5)*Budget!$F$16+IF(H6="",0,H6)*Budget!$F$17+IF(H7="",0,H7)*Budget!$F$18+IF(H8="",0,H8)*Budget!$F$19+IF(H9="",0,H9)*Budget!$F$20+IF(H10="",0,H10)*Budget!$F$21+IF(H11="",0,H11)*Budget!$F$22+IF(H12="",0,H12)*Budget!$F$23+IF(H13="",0,H13)*Budget!$F$24+IF(H14="",0,H14)*Budget!$F$25+IF(H15="",0,H15)*Budget!$F$26+IF(H16="",0,H16)*Budget!$F$27+IF(H17="",0,H17)*Budget!$F$28+IF(H18="",0,H18)*Budget!$F$29+IF(H19="",0,H19)*Budget!$F$30+IF(H20="",0,H20)*Budget!$F$31 -> 4493.0975 | I21: =IF(I5="",0,I5)*Budget!$F$16+IF(I6="",0,I6)*Budget!$F$17+IF(I7="",0,I7)*Budget!$F$18+IF(I8="",0,I8)*Budget!$F$19+IF(I9="",0,I9)*Budget!$F$20+IF(I10="",0,I10)*Budget!$F$21+IF(I11="",0,I11)*Budget!$F$22+IF(I12="",0,I12)*Budget!$F$23+IF(I13="",0,I13)*Budget!$F$24+IF(I14="",0,I14)*Budget!$F$25+IF(I15="",0,I15)*Budget!$F$26+IF(I16="",0,I16)*Budget!$F$27+IF(I17="",0,I17)*Budget!$F$28+IF(I18="",0,I18)*Budget!$F$29+IF(I19="",0,I19)*Budget!$F$30+IF(I20="",0,I20)*Budget!$F$31 -> 1430.95925 | J21: =IF(J5="",0,J5)*Budget!$F$16+IF(J6="",0,J6)*Budget!$F$17+IF(J7="",0,J7)*Budget!$F$18+IF(J8="",0,J8)*Budget!$F$19+IF(J9="",0,J9)*Budget!$F$20+IF(J10="",0,J10)*Budget!$F$21+IF(J11="",0,J11)*Budget!$F$22+IF(J12="",0,J12)*Budget!$F$23+IF(J13="",0,J13)*Budget!$F$24+IF(J14="",0,J14)*Budget!$F$25+IF(J15="",0,J15)*Budget!$F$26+IF(J16="",0,J16)*Budget!$F$27+IF(J17="",0,J17)*Budget!$F$28+IF(J18="",0,J18)*Budget!$F$29+IF(J19="",0,J19)*Budget!$F$30+IF(J20="",0,J20)*Budget!$F$31 -> 0 | K21: =IF(K5="",0,K5)*Budget!$F$16+IF(K6="",0,K6)*Budget!$F$17+IF(K7="",0,K7)*Budget!$F$18+IF(K8="",0,K8)*Budget!$F$19+IF(K9="",0,K9)*Budget!$F$20+IF(K10="",0,K10)*Budget!$F$21+IF(K11="",0,K11)*Budget!$F$22+IF(K12="",0,K12)*Budget!$F$23+IF(K13="",0,K13)*Budget!$F$24+IF(K14="",0,K14)*Budget!$F$25+IF(K15="",0,K15)*Budget!$F$26+IF(K16="",0,K16)*Budget!$F$27+IF(K17="",0,K17)*Budget!$F$28+IF(K18="",0,K18)*Budget!$F$29+IF(K19="",0,K19)*Budget!$F$30+IF(K20="",0,K20)*Budget!$F$31 -> 1430.95925 | L21: =IF(L5="",0,L5)*Budget!$F$16+IF(L6="",0,L6)*Budget!$F$17+IF(L7="",0,L7)*Budget!$F$18+IF(L8="",0,L8)*Budget!$F$19+IF(L9="",0,L9)*Budget!$F$20+IF(L10="",0,L10)*Budget!$F$21+IF(L11="",0,L11)*Budget!$F$22+IF(L12="",0,L12)*Budget!$F$23+IF(L13="",0,L13)*Budget!$F$24+IF(L14="",0,L14)*Budget!$F$25+IF(L15="",0,L15)*Budget!$F$26+IF(L16="",0,L16)*Budget!$F$27+IF(L17="",0,L17)*Budget!$F$28+IF(L18="",0,L18)*Budget!$F$29+IF(L19="",0,L19)*Budget!$F$30+IF(L20="",0,L20)*Budget!$F$31 -> 0 | M21: =IF(M5="",0,M5)*Budget!$F$16+IF(M6="",0,M6)*Budget!$F$17+IF(M7="",0,M7)*Budget!$F$18+IF(M8="",0,M8)*Budget!$F$19+IF(M9="",0,M9)*Budget!$F$20+IF(M10="",0,M10)*Budget!$F$21+IF(M11="",0,M11)*Budget!$F$22+IF(M12="",0,M12)*Budget!$F$23+IF(M13="",0,M13)*Budget!$F$24+IF(M14="",0,M14)*Budget!$F$25+IF(M15="",0,M15)*Budget!$F$26+IF(M16="",0,M16)*Budget!$F$27+IF(M17="",0,M17)*Budget!$F$28+IF(M18="",0,M18)*Budget!$F$29+IF(M19="",0,M19)*Budget!$F$30+IF(M20="",0,M20)*Budget!$F$31 -> 39792.0975 | N21: =SUM(N5:N14) -> 47147.1135
A22: Déboursé Emprunt 1 | B22: =IF('Emprunt 1'!$E$14="","",IF(TEXT('Emprunt 1'!$E$14,"mmmm")=B3,100%,"")) ->  | C22: =IF('Emprunt 1'!$E$14="","",IF(TEXT('Emprunt 1'!$E$14,"mmmm")=C3,100%,"")) ->  | D22: =IF('Emprunt 1'!$E$14="","",IF(TEXT('Emprunt 1'!$E$14,"mmmm")=D3,100%,"")) ->  | E22: =IF('Emprunt 1'!$E$14="","",IF(TEXT('Emprunt 1'!$E$14,"mmmm")=E3,100%,"")) ->  | F22: =IF('Emprunt 1'!$E$14="","",IF(TEXT('Emprunt 1'!$E$14,"mmmm")=F3,100%,"")) ->  | G22: =IF('Emprunt 1'!$E$14="","",IF(TEXT('Emprunt 1'!$E$14,"mmmm")=G3,100%,"")) ->  | H22: =IF('Emprunt 1'!$E$14="","",IF(TEXT('Emprunt 1'!$E$14,"mmmm")=H3,100%,"")) ->  | I22: =IF('Emprunt 1'!$E$14="","",IF(TEXT('Emprunt 1'!$E$14,"mmmm")=I3,100%,"")) ->  | J22: =IF('Emprunt 1'!$E$14="","",IF(TEXT('Emprunt 1'!$E$14,"mmmm")=J3,100%,"")) -> 1 | K22: =IF('Emprunt 1'!$E$14="","",IF(TEXT('Emprunt 1'!$E$14,"mmmm")=K3,100%,"")) ->  | L22: =IF('Emprunt 1'!$E$14="","",IF(TEXT('Emprunt 1'!$E$14,"mmmm")=L3,100%,"")) ->  | M22: =IF('Emprunt 1'!$E$14="","",IF(TEXT('Emprunt 1'!$E$14,"mmmm")=M3,100%,"")) ->  | N22: =IF(G1='Emprunt 1'!E18,SUM(B22:M22)*'Emprunt 1'!E17,0) -> 200000 | O22: Date du 1e paiement
A23: Déboursé Emprunt 2 | B23: =IF('Emprunt 2'!$E$14="","",IF(TEXT('Emprunt 2'!$E$14,"mmmm")=B3,100%,"")) -> 1 | C23: =IF('Emprunt 2'!$E$14="","",IF(TEXT('Emprunt 2'!$E$14,"mmmm")=C3,100%,"")) ->  | D23: =IF('Emprunt 2'!$E$14="","",IF(TEXT('Emprunt 2'!$E$14,"mmmm")=D3,100%,"")) ->  | E23: =IF('Emprunt 2'!$E$14="","",IF(TEXT('Emprunt 2'!$E$14,"mmmm")=E3,100%,"")) ->  | F23: =IF('Emprunt 2'!$E$14="","",IF(TEXT('Emprunt 2'!$E$14,"mmmm")=F3,100%,"")) ->  | G23: =IF('Emprunt 2'!$E$14="","",IF(TEXT('Emprunt 2'!$E$14,"mmmm")=G3,100%,"")) ->  | H23: =IF('Emprunt 2'!$E$14="","",IF(TEXT('Emprunt 2'!$E$14,"mmmm")=H3,100%,"")) ->  | I23: =IF('Emprunt 2'!$E$14="","",IF(TEXT('Emprunt 2'!$E$14,"mmmm")=I3,100%,"")) ->  | J23: =IF('Emprunt 2'!$E$14="","",IF(TEXT('Emprunt 2'!$E$14,"mmmm")=J3,100%,"")) ->  | K23: =IF('Emprunt 2'!$E$14="","",IF(TEXT('Emprunt 2'!$E$14,"mmmm")=K3,100%,"")) ->  | L23: =IF('Emprunt 2'!$E$14="","",IF(TEXT('Emprunt 2'!$E$14,"mmmm")=L3,100%,"")) ->  | M23: =IF('Emprunt 2'!$E$14="","",IF(TEXT('Emprunt 2'!$E$14,"mmmm")=M3,100%,"")) ->  | N23: =IF(G1='Emprunt 2'!E18,SUM(B23:M23)*'Emprunt 2'!E17,0) -> 0 | O23: Date du 1e paiement
A24: Déboursé Emprunt 3 | B24: =IF('Emprunt 3'!$E$14="","",IF(TEXT('Emprunt 3'!$E$14,"mmmm")=B3,100%,"")) ->  | C24: =IF('Emprunt 3'!$E$14="","",IF(TEXT('Emprunt 3'!$E$14,"mmmm")=C3,100%,"")) ->  | D24: =IF('Emprunt 3'!$E$14="","",IF(TEXT('Emprunt 3'!$E$14,"mmmm")=D3,100%,"")) ->  | E24: =IF('Emprunt 3'!$E$14="","",IF(TEXT('Emprunt 3'!$E$14,"mmmm")=E3,100%,"")) ->  | F24: =IF('Emprunt 3'!$E$14="","",IF(TEXT('Emprunt 3'!$E$14,"mmmm")=F3,100%,"")) ->  | G24: =IF('Emprunt 3'!$E$14="","",IF(TEXT('Emprunt 3'!$E$14,"mmmm")=G3,100%,"")) ->  | H24: =IF('Emprunt 3'!$E$14="","",IF(TEXT('Emprunt 3'!$E$14,"mmmm")=H3,100%,"")) ->  | I24: =IF('Emprunt 3'!$E$14="","",IF(TEXT('Emprunt 3'!$E$14,"mmmm")=I3,100%,"")) ->  | J24: =IF('Emprunt 3'!$E$14="","",IF(TEXT('Emprunt 3'!$E$14,"mmmm")=J3,100%,"")) ->  | K24: =IF('Emprunt 3'!$E$14="","",IF(TEXT('Emprunt 3'!$E$14,"mmmm")=K3,100%,"")) ->  | L24: =IF('Emprunt 3'!$E$14="","",IF(TEXT('Emprunt 3'!$E$14,"mmmm")=L3,100%,"")) ->  | M24: =IF('Emprunt 3'!$E$14="","",IF(TEXT('Emprunt 3'!$E$14,"mmmm")=M3,100%,"")) ->  | N24: =IF(G1='Emprunt 3'!E18,SUM(B24:M24)*'Emprunt 3'!E17,0) -> 0 | O24: Date du 1e paiement
A25: Déboursé Emprunt supplémentaire | B25: =IF('Emprunt supplémentaire'!E14="","",IF(TEXT('Emprunt supplémentaire'!E14,"mmmm")=B3,100%,"")) ->  | C25: =IF('Emprunt supplémentaire'!F14="","",IF(TEXT('Emprunt supplémentaire'!F14,"mmmm")=C3,100%,"")) ->  | D25: =IF('Emprunt supplémentaire'!G14="","",IF(TEXT('Emprunt supplémentaire'!G14,"mmmm")=D3,100%,"")) ->  | E25: =IF('Emprunt supplémentaire'!H14="","",IF(TEXT('Emprunt supplémentaire'!H14,"mmmm")=E3,100%,"")) ->  | F25: =IF('Emprunt supplémentaire'!I14="","",IF(TEXT('Emprunt supplémentaire'!I14,"mmmm")=F3,100%,"")) ->  | G25: =IF('Emprunt supplémentaire'!J14="","",IF(TEXT('Emprunt supplémentaire'!J14,"mmmm")=G3,100%,"")) ->  | H25: =IF('Emprunt supplémentaire'!K14="","",IF(TEXT('Emprunt supplémentaire'!K14,"mmmm")=H3,100%,"")) ->  | I25: =IF('Emprunt supplémentaire'!L14="","",IF(TEXT('Emprunt supplémentaire'!L14,"mmmm")=I3,100%,"")) ->  | J25: =IF('Emprunt supplémentaire'!M14="","",IF(TEXT('Emprunt supplémentaire'!M14,"mmmm")=J3,100%,"")) ->  | K25: =IF('Emprunt supplémentaire'!N14="","",IF(TEXT('Emprunt supplémentaire'!N14,"mmmm")=K3,100%,"")) ->  | L25: =IF('Emprunt supplémentaire'!O14="","",IF(TEXT('Emprunt supplémentaire'!O14,"mmmm")=L3,100%,"")) ->  | M25: =IF('Emprunt supplémentaire'!P14="","",IF(TEXT('Emprunt supplémentaire'!P14,"mmmm")=M3,100%,"")) ->  | N25: =IF(G1='Emprunt supplémentaire'!E18,SUM(B25:M25)*'Emprunt supplémentaire'!E17,0) -> 0 | O25: Date du 1e paiement
A26: Aide au démarrage FADQ | J26: 1 | N26: =SUM(B26:M26)*Don_écon.!F32 -> 10000
A27: Autre aide financière 1 | N27: =SUM(B27:M27)*Don_écon.!F36 -> 0
A28: Autre aide financière 2 | N28: =SUM(B28:M28)*Don_écon.!F37 -> 0
A29: TOTAL DES EMPRUNTS ET AIDES | B29: =SUMPRODUCT(B22:B28,$N$22:$N$28) -> 0 | C29: 0 | D29: 0 | E29: 0 | F29: 0 | G29: 0 | H29: 0 | I29: 0 | J29: 210000 | K29: 0 | L29: 0 | M29: =SUMPRODUCT(M22:M28,$N$22:$N$28) -> 0 | N29: =SUM(N22:N28) -> 210000
A30: TOTAL DES ENTRÉES | B30: =B21+B29 -> 0 | C30: 0 | D30: 0 | E30: 0 | F30: 0 | G30: 0 | H30: 4493.0975 | I30: 1430.95925 | J30: 210000 | K30: 1430.95925 | L30: 0 | M30: 39792.0975 | N30: 257147.1135
A32: SORTIES
A33: =Budget!B41 -> Achat de femelles | K33: 1 | N33: =SUM(B33:M33)*Budget!F41 -> 37500
A34: =Budget!B42 -> Achat de taureaux | D34: 0.7 | K34: 0.3 | N34: =SUM(B34:M34)*Budget!F42 -> 0
A35: =Budget!B43 -> Achat de foin | D35: 0.7 | H35: 0.2 | J35: 0.1 | N35: =SUM(B35:M35)*Budget!F43 -> 0
A36: =Budget!B44 -> Achat de grains | J36: 0.25 | K36: 0.25 | L36: 0.25 | M36: 0.25 | N36: =SUM(B36:M36)*Budget!F44 -> 300
A37: =Budget!B45 -> Suppléments protéiques | J37: 0.25 | K37: 0.25 | L37: 0.25 | M37: 0.25 | N37: =SUM(B37:M37)*Budget!F45 -> 116.25
A38: =Budget!B46 -> Moulée | D38: 0.25 | E38: 0.25 | F38: 0.5 | N38: =SUM(B38:M38)*Budget!F46 -> 0
A39: =Budget!B47 -> Vitamines et minéraux | B39: 0.08333333333 | C39: 0.08333333333 | D39: 0.08333333333 | E39: 0.08333333333 | F39: 0.08333333333 | G39: 0.08333333333 | H39: 0.08333333333 | I39: 0.08333333333 | J39: 0.08333333333 | K39: 0.08333333333 | L39: 0.08333333333 | M39: 0.08333333333 | N39: =SUM(B39:M39)*Budget!F47 -> 1778.25
A40: =Budget!B48 -> Vétérinaire et médicaments | C40: 0.6 | D40: 0.04 | E40: 0.04 | F40: 0.04 | G40: 0.04 | H40: 0.04 | I40: 0.04 | J40: 0.04 | K40: 0.04 | L40: 0.04 | M40: 0.04 | N40: =SUM(B40:M40)*Budget!F48 -> 883.75
A41: =Budget!B49 -> Identifiants | C41: 1 | N41: =SUM(B41:M41)*Budget!F49 -> 37.4
A42: =Budget!B50 -> Litière | B42: 0.2 | C42: 0.2 | D42: 0.2 | E42: 0.2 | M42: 0.2 | N42: =SUM(B42:M42)*Budget!F50 -> 454.75
A43: =Budget!B51 -> Transport | M43: 1 | N43: =SUM(B43:M43)*Budget!F51 -> 798.6
A44: =Budget!B52 -> Mise en marché | M44: 1 | N44: =SUM(B44:M44)*Budget!F52 -> 823.32
A45: =Budget!B53 -> Carburant et lubrifiant étable | B45: 0.05 | C45: 0.05 | D45: 0.05 | E45: 0.05 | F45: 0.15 | G45: 0.15 | H45: 0.15 | I45: 0.1 | J45: 0.1 | K45: 0.05 | L45: 0.05 | M45: 0.05 | N45: =SUM(B45:M45)*Budget!F53 -> 250
A46: =Budget!B54 -> Ent.&rép. mach.&équip.&im. | B46: 0.05 | C46: 0.05 | D46: 0.05 | E46: 0.05 | F46: 0.15 | G46: 0.15 | H46: 0.15 | I46: 0.1 | J46: 0.1 | K46: 0.05 | L46: 0.05 | M46: 0.05 | N46: =SUM(B46:M46)*Budget!F54 -> 2514.25
A47: =Budget!B55 -> Approv. Semences céréales | D47: 1 | N47: =SUM(B47:M47)*Budget!F55 -> 0
A48: =Budget!B56 -> Approv. Semences fourrage | D48: 1 | N48: =SUM(B48:M48)*Budget!F56 -> 1370
A49: =Budget!B57 -> Approv. céréales (pest.,engr.,etc) | D49: 1 | N49: =SUM(B49:M49)*Budget!F57 -> 0
A50: =Budget!B58 -> Approv. fourrages (pest,engr.,etc) | D50: 1 | N50: =SUM(B50:M50)*Budget!F58 -> 7500
A51: =Budget!B59 -> Autres frais pour prairie | D51: 1 | N51: =SUM(B51:M51)*Budget!F59 -> 4500
A52: =Budget!B60 -> Autres frais pour céréales | D52: 1 | N52: =SUM(B52:M52)*Budget!F60 -> 0
A53: =Budget!B61 -> Asra céréales (contribution) | N53: =SUM(B53:M53)*Budget!F61 -> 0
A54: =Budget!B62 -> Ass récolte céréale | N54: =SUM(B54:M54)*Budget!F62 -> 0
A55: =Budget!B63 -> Assurance récolte fourrage | M55: 1 | N55: =SUM(B55:M55)*Budget!F63 -> 396.396
A56: =Budget!B64 -> Ent.& rép. fds de ter. bâtim. | H56: 0.25 | I56: 0.25 | J56: 0.25 | K56: 0.25 | N56: =SUM(B56:M56)*Budget!F64 -> 973.75
A57: =Budget!B65 -> Travaux à forfait | G57: 0.25 | H57: 0.25 | I57: 0.25 | J57: 0.25 | N57: =SUM(B57:M57)*Budget!F65 -> 960.25
A58: =Budget!B66 -> Taxes municipale.&scolaires | D58: 0.5 | G58: 0.25 | J58: 0.25 | N58: =SUM(B58:M58)*Budget!F66 -> 260.5
A59: =Budget!B67 -> Ass. gén. incluant maison | B59: 0.08333333333 | C59: 0.08333333333 | D59: 0.08333333333 | E59: 0.08333333333 | F59: 0.08333333333 | G59: 0.08333333333 | H59: 0.08333333333 | I59: 0.08333333333 | J59: 0.08333333333 | K59: 0.08333333333 | L59: 0.08333333333 | M59: 0.08333333333 | N59: =SUM(B59:M59)*Budget!F67 -> 925.25
A60: =Budget!B68 -> Electricité | B60: 0.08333333333 | C60: 0.08333333333 | D60: 0.08333333333 | E60: 0.08333333333 | F60: 0.08333333333 | G60: 0.08333333333 | H60: 0.08333333333 | I60: 0.08333333333 | J60: 0.08333333333 | K60: 0.08333333333 | L60: 0.08333333333 | M60: 0.08333333333 | N60: =SUM(B60:M60)*Budget!F68 -> 377.5
A61: =Budget!B69 -> Salaire | C61: 0.15 | D61: 0.1 | F61: 0.15 | G61: 0.15 | H61: 0.15 | I61: 0.15 | J61: 0.15 | N61: =SUM(B61:M61)*Budget!F69 -> 3646.75
A62: =Budget!B70 -> Loc. de bâti.& fds de terre | C62: 1 | N62: =SUM(B62:M62)*Budget!F70 -> 0
A63: =Budget!B71 -> Intérêt court terme | B63: 0.08333333333 | C63: 0.08333333333 | D63: 0.08333333333 | E63: 0.08333333333 | F63: 0.08333333333 | G63: 0.08333333333 | H63: 0.08333333333 | I63: 0.08333333333 | J63: 0.08333333333 | K63: 0.08333333333 | L63: 0.08333333333 | M63: 0.08333333333 | N63: =SUM(B63:M63)*Budget!F71 -> 637.75
A64: =Budget!B72 -> Autres frais | B64: 0.08333333333 | C64: 0.08333333333 | D64: 0.08333333333 | E64: 0.08333333333 | F64: 0.08333333333 | G64: 0.08333333333 | H64: 0.08333333333 | I64: 0.08333333333 | J64: 0.08333333333 | K64: 0.08333333333 | L64: 0.08333333333 | M64: 0.08333333333 | N64: =SUM(B64:M64)*Budget!F72 -> 1165.25
A65: =Budget!B73 -> 0 | N65: =SUM(B65:M65)*Budget!F73 -> 0
A66: =Budget!B74 -> 0 | N66: =SUM(B66:M66)*Budget!F74 -> 0
A67: =Budget!B75 -> Dépense autre produit | N67: =SUM(B67:M67)*Budget!F75 -> 0
A68: =Budget!B76 -> Dépense autre produit | N68: =SUM(B68:M68)*Budget!F76 -> 0
A69: =Budget!B77 -> Dépense autre produit | N69: =SUM(B69:M69)*Budget!F77 -> 0
A70: TOTAL DES DÉBOURS | B70: =IF(B33="",0,B33)*Budget!$F$41+IF(B34="",0,B34)*Budget!$F$42+IF(B35="",0,B35)*Budget!$F$43+IF(B36="",0,B36)*Budget!$F$44+IF(B37="",0,B37)*Budget!$F$45+IF(B38="",0,B38)*Budget!$F$46+IF(B39="",0,B39)*Budget!$F$47+IF(B40="",0,B40)*Budget!$F$48+IF(B41="",0,B41)*Budget!$F$49+IF(B42="",0,B42)*Budget!$F$50+IF(B43="",0,B43)*Budget!$F$51+IF(B44="",0,B44)*Budget!$F$52+IF(B45="",0,B45)*Budget!$F$53+IF(B46="",0,B46)*Budget!$F$54+IF(B47="",0,B47)*Budget!$F$55+IF(B48="",0,B48)*Budget!$F$56+IF(B49="",0,B49)*Budget!$F$57+IF(B50="",0,B50)*Budget!$F$58+IF(B51="",0,B51)*Budget!$F$59+IF(B52="",0,B52)*Budget!$F$60+IF(B53="",0,B53)*Budget!$F$61+IF(B54="",0,B54)*Budget!$F$62+IF(B55="",0,B55)*Budget!$F$63+IF(B56="",0,B56)*Budget!$F$64+IF(B57="",0,B57)*Budget!$F$65+IF(B58="",0,B58)*Budget!$F$66+IF(B59="",0,B59)*Budget!$F$67+IF(B60="",0,B60)*Budget!$F$68+IF(B61="",0,B61)*Budget!$F$69+IF(B62="",0,B62)*Budget!$F$70+IF(B63="",0,B63)*Budget!$F$71+IF(B64="",0,B64)*Budget!$F$72+IF(B65="",0,B65)*Budget!$F$73+IF(B66="",0,B66)*Budget!$F$74+IF(B67="",0,B67)*Budget!$F$75+IF(B68="",0,B68)*Budget!$F$76+IF(B69="",0,B69)*Budget!$F$77 -> 636.1625 | C70: =IF(C33="",0,C33)*Budget!$F$41+IF(C34="",0,C34)*Budget!$F$42+IF(C35="",0,C35)*Budget!$F$43+IF(C36="",0,C36)*Budget!$F$44+IF(C37="",0,C37)*Budget!$F$45+IF(C38="",0,C38)*Budget!$F$46+IF(C39="",0,C39)*Budget!$F$47+IF(C40="",0,C40)*Budget!$F$48+IF(C41="",0,C41)*Budget!$F$49+IF(C42="",0,C42)*Budget!$F$50+IF(C43="",0,C43)*Budget!$F$51+IF(C44="",0,C44)*Budget!$F$52+IF(C45="",0,C45)*Budget!$F$53+IF(C46="",0,C46)*Budget!$F$54+IF(C47="",0,C47)*Budget!$F$55+IF(C48="",0,C48)*Budget!$F$56+IF(C49="",0,C49)*Budget!$F$57+IF(C50="",0,C50)*Budget!$F$58+IF(C51="",0,C51)*Budget!$F$59+IF(C52="",0,C52)*Budget!$F$60+IF(C53="",0,C53)*Budget!$F$61+IF(C54="",0,C54)*Budget!$F$62+IF(C55="",0,C55)*Budget!$F$63+IF(C56="",0,C56)*Budget!$F$64+IF(C57="",0,C57)*Budget!$F$65+IF(C58="",0,C58)*Budget!$F$66+IF(C59="",0,C59)*Budget!$F$67+IF(C60="",0,C60)*Budget!$F$68+IF(C61="",0,C61)*Budget!$F$69+IF(C62="",0,C62)*Budget!$F$70+IF(C63="",0,C63)*Budget!$F$71+IF(C64="",0,C64)*Budget!$F$72+IF(C65="",0,C65)*Budget!$F$73+IF(C66="",0,C66)*Budget!$F$74+IF(C67="",0,C67)*Budget!$F$75+IF(C68="",0,C68)*Budget!$F$76+IF(C69="",0,C69)*Budget!$F$77 -> 1750.825 | D70: =IF(D33="",0,D33)*Budget!$F$41+IF(D34="",0,D34)*Budget!$F$42+IF(D35="",0,D35)*Budget!$F$43+IF(D36="",0,D36)*Budget!$F$44+IF(D37="",0,D37)*Budget!$F$45+IF(D38="",0,D38)*Budget!$F$46+IF(D39="",0,D39)*Budget!$F$47+IF(D40="",0,D40)*Budget!$F$48+IF(D41="",0,D41)*Budget!$F$49+IF(D42="",0,D42)*Budget!$F$50+IF(D43="",0,D43)*Budget!$F$51+IF(D44="",0,D44)*Budget!$F$52+IF(D45="",0,D45)*Budget!$F$53+IF(D46="",0,D46)*Budget!$F$54+IF(D47="",0,D47)*Budget!$F$55+IF(D48="",0,D48)*Budget!$F$56+IF(D49="",0,D49)*Budget!$F$57+IF(D50="",0,D50)*Budget!$F$58+IF(D51="",0,D51)*Budget!$F$59+IF(D52="",0,D52)*Budget!$F$60+IF(D53="",0,D53)*Budget!$F$61+IF(D54="",0,D54)*Budget!$F$62+IF(D55="",0,D55)*Budget!$F$63+IF(D56="",0,D56)*Budget!$F$64+IF(D57="",0,D57)*Budget!$F$65+IF(D58="",0,D58)*Budget!$F$66+IF(D59="",0,D59)*Budget!$F$67+IF(D60="",0,D60)*Budget!$F$68+IF(D61="",0,D61)*Budget!$F$69+IF(D62="",0,D62)*Budget!$F$70+IF(D63="",0,D63)*Budget!$F$71+IF(D64="",0,D64)*Budget!$F$72+IF(D65="",0,D65)*Budget!$F$73+IF(D66="",0,D66)*Budget!$F$74+IF(D67="",0,D67)*Budget!$F$75+IF(D68="",0,D68)*Budget!$F$76+IF(D69="",0,D69)*Budget!$F$77 -> 14536.4375 | E70: =IF(E33="",0,E33)*Budget!$F$41+IF(E34="",0,E34)*Budget!$F$42+IF(E35="",0,E35)*Budget!$F$43+IF(E36="",0,E36)*Budget!$F$44+IF(E37="",0,E37)*Budget!$F$45+IF(E38="",0,E38)*Budget!$F$46+IF(E39="",0,E39)*Budget!$F$47+IF(E40="",0,E40)*Budget!$F$48+IF(E41="",0,E41)*Budget!$F$49+IF(E42="",0,E42)*Budget!$F$50+IF(E43="",0,E43)*Budget!$F$51+IF(E44="",0,E44)*Budget!$F$52+IF(E45="",0,E45)*Budget!$F$53+IF(E46="",0,E46)*Budget!$F$54+IF(E47="",0,E47)*Budget!$F$55+IF(E48="",0,E48)*Budget!$F$56+IF(E49="",0,E49)*Budget!$F$57+IF(E50="",0,E50)*Budget!$F$58+IF(E51="",0,E51)*Budget!$F$59+IF(E52="",0,E52)*Budget!$F$60+IF(E53="",0,E53)*Budget!$F$61+IF(E54="",0,E54)*Budget!$F$62+IF(E55="",0,E55)*Budget!$F$63+IF(E56="",0,E56)*Budget!$F$64+IF(E57="",0,E57)*Budget!$F$65+IF(E58="",0,E58)*Budget!$F$66+IF(E59="",0,E59)*Budget!$F$67+IF(E60="",0,E60)*Budget!$F$68+IF(E61="",0,E61)*Budget!$F$69+IF(E62="",0,E62)*Budget!$F$70+IF(E63="",0,E63)*Budget!$F$71+IF(E64="",0,E64)*Budget!$F$72+IF(E65="",0,E65)*Budget!$F$73+IF(E66="",0,E66)*Budget!$F$74+IF(E67="",0,E67)*Budget!$F$75+IF(E68="",0,E68)*Budget!$F$76+IF(E69="",0,E69)*Budget!$F$77 -> 671.5125 | F70: =IF(F33="",0,F33)*Budget!$F$41+IF(F34="",0,F34)*Budget!$F$42+IF(F35="",0,F35)*Budget!$F$43+IF(F36="",0,F36)*Budget!$F$44+IF(F37="",0,F37)*Budget!$F$45+IF(F38="",0,F38)*Budget!$F$46+IF(F39="",0,F39)*Budget!$F$47+IF(F40="",0,F40)*Budget!$F$48+IF(F41="",0,F41)*Budget!$F$49+IF(F42="",0,F42)*Budget!$F$50+IF(F43="",0,F43)*Budget!$F$51+IF(F44="",0,F44)*Budget!$F$52+IF(F45="",0,F45)*Budget!$F$53+IF(F46="",0,F46)*Budget!$F$54+IF(F47="",0,F47)*Budget!$F$55+IF(F48="",0,F48)*Budget!$F$56+IF(F49="",0,F49)*Budget!$F$57+IF(F50="",0,F50)*Budget!$F$58+IF(F51="",0,F51)*Budget!$F$59+IF(F52="",0,F52)*Budget!$F$60+IF(F53="",0,F53)*Budget!$F$61+IF(F54="",0,F54)*Budget!$F$62+IF(F55="",0,F55)*Budget!$F$63+IF(F56="",0,F56)*Budget!$F$64+IF(F57="",0,F57)*Budget!$F$65+IF(F58="",0,F58)*Budget!$F$66+IF(F59="",0,F59)*Budget!$F$67+IF(F60="",0,F60)*Budget!$F$68+IF(F61="",0,F61)*Budget!$F$69+IF(F62="",0,F62)*Budget!$F$70+IF(F63="",0,F63)*Budget!$F$71+IF(F64="",0,F64)*Budget!$F$72+IF(F65="",0,F65)*Budget!$F$73+IF(F66="",0,F66)*Budget!$F$74+IF(F67="",0,F67)*Budget!$F$75+IF(F68="",0,F68)*Budget!$F$76+IF(F69="",0,F69)*Budget!$F$77 -> 1404 | G70: =IF(G33="",0,G33)*Budget!$F$41+IF(G34="",0,G34)*Budget!$F$42+IF(G35="",0,G35)*Budget!$F$43+IF(G36="",0,G36)*Budget!$F$44+IF(G37="",0,G37)*Budget!$F$45+IF(G38="",0,G38)*Budget!$F$46+IF(G39="",0,G39)*Budget!$F$47+IF(G40="",0,G40)*Budget!$F$48+IF(G41="",0,G41)*Budget!$F$49+IF(G42="",0,G42)*Budget!$F$50+IF(G43="",0,G43)*Budget!$F$51+IF(G44="",0,G44)*Budget!$F$52+IF(G45="",0,G45)*Budget!$F$53+IF(G46="",0,G46)*Budget!$F$54+IF(G47="",0,G47)*Budget!$F$55+IF(G48="",0,G48)*Budget!$F$56+IF(G49="",0,G49)*Budget!$F$57+IF(G50="",0,G50)*Budget!$F$58+IF(G51="",0,G51)*Budget!$F$59+IF(G52="",0,G52)*Budget!$F$60+IF(G53="",0,G53)*Budget!$F$61+IF(G54="",0,G54)*Budget!$F$62+IF(G55="",0,G55)*Budget!$F$63+IF(G56="",0,G56)*Budget!$F$64+IF(G57="",0,G57)*Budget!$F$65+IF(G58="",0,G58)*Budget!$F$66+IF(G59="",0,G59)*Budget!$F$67+IF(G60="",0,G60)*Budget!$F$68+IF(G61="",0,G61)*Budget!$F$69+IF(G62="",0,G62)*Budget!$F$70+IF(G63="",0,G63)*Budget!$F$71+IF(G64="",0,G64)*Budget!$F$72+IF(G65="",0,G65)*Budget!$F$73+IF(G66="",0,G66)*Budget!$F$74+IF(G67="",0,G67)*Budget!$F$75+IF(G68="",0,G68)*Budget!$F$76+IF(G69="",0,G69)*Budget!$F$77 -> 1709.1875 | H70: =IF(H33="",0,H33)*Budget!$F$41+IF(H34="",0,H34)*Budget!$F$42+IF(H35="",0,H35)*Budget!$F$43+IF(H36="",0,H36)*Budget!$F$44+IF(H37="",0,H37)*Budget!$F$45+IF(H38="",0,H38)*Budget!$F$46+IF(H39="",0,H39)*Budget!$F$47+IF(H40="",0,H40)*Budget!$F$48+IF(H41="",0,H41)*Budget!$F$49+IF(H42="",0,H42)*Budget!$F$50+IF(H43="",0,H43)*Budget!$F$51+IF(H44="",0,H44)*Budget!$F$52+IF(H45="",0,H45)*Budget!$F$53+IF(H46="",0,H46)*Budget!$F$54+IF(H47="",0,H47)*Budget!$F$55+IF(H48="",0,H48)*Budget!$F$56+IF(H49="",0,H49)*Budget!$F$57+IF(H50="",0,H50)*Budget!$F$58+IF(H51="",0,H51)*Budget!$F$59+IF(H52="",0,H52)*Budget!$F$60+IF(H53="",0,H53)*Budget!$F$61+IF(H54="",0,H54)*Budget!$F$62+IF(H55="",0,H55)*Budget!$F$63+IF(H56="",0,H56)*Budget!$F$64+IF(H57="",0,H57)*Budget!$F$65+IF(H58="",0,H58)*Budget!$F$66+IF(H59="",0,H59)*Budget!$F$67+IF(H60="",0,H60)*Budget!$F$68+IF(H61="",0,H61)*Budget!$F$69+IF(H62="",0,H62)*Budget!$F$70+IF(H63="",0,H63)*Budget!$F$71+IF(H64="",0,H64)*Budget!$F$72+IF(H65="",0,H65)*Budget!$F$73+IF(H66="",0,H66)*Budget!$F$74+IF(H67="",0,H67)*Budget!$F$75+IF(H68="",0,H68)*Budget!$F$76+IF(H69="",0,H69)*Budget!$F$77 -> 1887.5 | I70: =IF(I33="",0,I33)*Budget!$F$41+IF(I34="",0,I34)*Budget!$F$42+IF(I35="",0,I35)*Budget!$F$43+IF(I36="",0,I36)*Budget!$F$44+IF(I37="",0,I37)*Budget!$F$45+IF(I38="",0,I38)*Budget!$F$46+IF(I39="",0,I39)*Budget!$F$47+IF(I40="",0,I40)*Budget!$F$48+IF(I41="",0,I41)*Budget!$F$49+IF(I42="",0,I42)*Budget!$F$50+IF(I43="",0,I43)*Budget!$F$51+IF(I44="",0,I44)*Budget!$F$52+IF(I45="",0,I45)*Budget!$F$53+IF(I46="",0,I46)*Budget!$F$54+IF(I47="",0,I47)*Budget!$F$55+IF(I48="",0,I48)*Budget!$F$56+IF(I49="",0,I49)*Budget!$F$57+IF(I50="",0,I50)*Budget!$F$58+IF(I51="",0,I51)*Budget!$F$59+IF(I52="",0,I52)*Budget!$F$60+IF(I53="",0,I53)*Budget!$F$61+IF(I54="",0,I54)*Budget!$F$62+IF(I55="",0,I55)*Budget!$F$63+IF(I56="",0,I56)*Budget!$F$64+IF(I57="",0,I57)*Budget!$F$65+IF(I58="",0,I58)*Budget!$F$66+IF(I59="",0,I59)*Budget!$F$67+IF(I60="",0,I60)*Budget!$F$68+IF(I61="",0,I61)*Budget!$F$69+IF(I62="",0,I62)*Budget!$F$70+IF(I63="",0,I63)*Budget!$F$71+IF(I64="",0,I64)*Budget!$F$72+IF(I65="",0,I65)*Budget!$F$73+IF(I66="",0,I66)*Budget!$F$74+IF(I67="",0,I67)*Budget!$F$75+IF(I68="",0,I68)*Budget!$F$76+IF(I69="",0,I69)*Budget!$F$77 -> 1749.2875 | J70: =IF(J33="",0,J33)*Budget!$F$41+IF(J34="",0,J34)*Budget!$F$42+IF(J35="",0,J35)*Budget!$F$43+IF(J36="",0,J36)*Budget!$F$44+IF(J37="",0,J37)*Budget!$F$45+IF(J38="",0,J38)*Budget!$F$46+IF(J39="",0,J39)*Budget!$F$47+IF(J40="",0,J40)*Budget!$F$48+IF(J41="",0,J41)*Budget!$F$49+IF(J42="",0,J42)*Budget!$F$50+IF(J43="",0,J43)*Budget!$F$51+IF(J44="",0,J44)*Budget!$F$52+IF(J45="",0,J45)*Budget!$F$53+IF(J46="",0,J46)*Budget!$F$54+IF(J47="",0,J47)*Budget!$F$55+IF(J48="",0,J48)*Budget!$F$56+IF(J49="",0,J49)*Budget!$F$57+IF(J50="",0,J50)*Budget!$F$58+IF(J51="",0,J51)*Budget!$F$59+IF(J52="",0,J52)*Budget!$F$60+IF(J53="",0,J53)*Budget!$F$61+IF(J54="",0,J54)*Budget!$F$62+IF(J55="",0,J55)*Budget!$F$63+IF(J56="",0,J56)*Budget!$F$64+IF(J57="",0,J57)*Budget!$F$65+IF(J58="",0,J58)*Budget!$F$66+IF(J59="",0,J59)*Budget!$F$67+IF(J60="",0,J60)*Budget!$F$68+IF(J61="",0,J61)*Budget!$F$69+IF(J62="",0,J62)*Budget!$F$70+IF(J63="",0,J63)*Budget!$F$71+IF(J64="",0,J64)*Budget!$F$72+IF(J65="",0,J65)*Budget!$F$73+IF(J66="",0,J66)*Budget!$F$74+IF(J67="",0,J67)*Budget!$F$75+IF(J68="",0,J68)*Budget!$F$76+IF(J69="",0,J69)*Budget!$F$77 -> 1918.475 | K70: =IF(K33="",0,K33)*Budget!$F$41+IF(K34="",0,K34)*Budget!$F$42+IF(K35="",0,K35)*Budget!$F$43+IF(K36="",0,K36)*Budget!$F$44+IF(K37="",0,K37)*Budget!$F$45+IF(K38="",0,K38)*Budget!$F$46+IF(K39="",0,K39)*Budget!$F$47+IF(K40="",0,K40)*Budget!$F$48+IF(K41="",0,K41)*Budget!$F$49+IF(K42="",0,K42)*Budget!$F$50+IF(K43="",0,K43)*Budget!$F$51+IF(K44="",0,K44)*Budget!$F$52+IF(K45="",0,K45)*Budget!$F$53+IF(K46="",0,K46)*Budget!$F$54+IF(K47="",0,K47)*Budget!$F$55+IF(K48="",0,K48)*Budget!$F$56+IF(K49="",0,K49)*Budget!$F$57+IF(K50="",0,K50)*Budget!$F$58+IF(K51="",0,K51)*Budget!$F$59+IF(K52="",0,K52)*Budget!$F$60+IF(K53="",0,K53)*Budget!$F$61+IF(K54="",0,K54)*Budget!$F$62+IF(K55="",0,K55)*Budget!$F$63+IF(K56="",0,K56)*Budget!$F$64+IF(K57="",0,K57)*Budget!$F$65+IF(K58="",0,K58)*Budget!$F$66+IF(K59="",0,K59)*Budget!$F$67+IF(K60="",0,K60)*Budget!$F$68+IF(K61="",0,K61)*Budget!$F$69+IF(K62="",0,K62)*Budget!$F$70+IF(K63="",0,K63)*Budget!$F$71+IF(K64="",0,K64)*Budget!$F$72+IF(K65="",0,K65)*Budget!$F$73+IF(K66="",0,K66)*Budget!$F$74+IF(K67="",0,K67)*Budget!$F$75+IF(K68="",0,K68)*Budget!$F$76+IF(K69="",0,K69)*Budget!$F$77 -> 38428.0625 | L70: =IF(L33="",0,L33)*Budget!$F$41+IF(L34="",0,L34)*Budget!$F$42+IF(L35="",0,L35)*Budget!$F$43+IF(L36="",0,L36)*Budget!$F$44+IF(L37="",0,L37)*Budget!$F$45+IF(L38="",0,L38)*Budget!$F$46+IF(L39="",0,L39)*Budget!$F$47+IF(L40="",0,L40)*Budget!$F$48+IF(L41="",0,L41)*Budget!$F$49+IF(L42="",0,L42)*Budget!$F$50+IF(L43="",0,L43)*Budget!$F$51+IF(L44="",0,L44)*Budget!$F$52+IF(L45="",0,L45)*Budget!$F$53+IF(L46="",0,L46)*Budget!$F$54+IF(L47="",0,L47)*Budget!$F$55+IF(L48="",0,L48)*Budget!$F$56+IF(L49="",0,L49)*Budget!$F$57+IF(L50="",0,L50)*Budget!$F$58+IF(L51="",0,L51)*Budget!$F$59+IF(L52="",0,L52)*Budget!$F$60+IF(L53="",0,L53)*Budget!$F$61+IF(L54="",0,L54)*Budget!$F$62+IF(L55="",0,L55)*Budget!$F$63+IF(L56="",0,L56)*Budget!$F$64+IF(L57="",0,L57)*Budget!$F$65+IF(L58="",0,L58)*Budget!$F$66+IF(L59="",0,L59)*Budget!$F$67+IF(L60="",0,L60)*Budget!$F$68+IF(L61="",0,L61)*Budget!$F$69+IF(L62="",0,L62)*Budget!$F$70+IF(L63="",0,L63)*Budget!$F$71+IF(L64="",0,L64)*Budget!$F$72+IF(L65="",0,L65)*Budget!$F$73+IF(L66="",0,L66)*Budget!$F$74+IF(L67="",0,L67)*Budget!$F$75+IF(L68="",0,L68)*Budget!$F$76+IF(L69="",0,L69)*Budget!$F$77 -> 684.625 | M70: =IF(M33="",0,M33)*Budget!$F$41+IF(M34="",0,M34)*Budget!$F$42+IF(M35="",0,M35)*Budget!$F$43+IF(M36="",0,M36)*Budget!$F$44+IF(M37="",0,M37)*Budget!$F$45+IF(M38="",0,M38)*Budget!$F$46+IF(M39="",0,M39)*Budget!$F$47+IF(M40="",0,M40)*Budget!$F$48+IF(M41="",0,M41)*Budget!$F$49+IF(M42="",0,M42)*Budget!$F$50+IF(M43="",0,M43)*Budget!$F$51+IF(M44="",0,M44)*Budget!$F$52+IF(M45="",0,M45)*Budget!$F$53+IF(M46="",0,M46)*Budget!$F$54+IF(M47="",0,M47)*Budget!$F$55+IF(M48="",0,M48)*Budget!$F$56+IF(M49="",0,M49)*Budget!$F$57+IF(M50="",0,M50)*Budget!$F$58+IF(M51="",0,M51)*Budget!$F$59+IF(M52="",0,M52)*Budget!$F$60+IF(M53="",0,M53)*Budget!$F$61+IF(M54="",0,M54)*Budget!$F$62+IF(M55="",0,M55)*Budget!$F$63+IF(M56="",0,M56)*Budget!$F$64+IF(M57="",0,M57)*Budget!$F$65+IF(M58="",0,M58)*Budget!$F$66+IF(M59="",0,M59)*Budget!$F$67+IF(M60="",0,M60)*Budget!$F$68+IF(M61="",0,M61)*Budget!$F$69+IF(M62="",0,M62)*Budget!$F$70+IF(M63="",0,M63)*Budget!$F$71+IF(M64="",0,M64)*Budget!$F$72+IF(M65="",0,M65)*Budget!$F$73+IF(M66="",0,M66)*Budget!$F$74+IF(M67="",0,M67)*Budget!$F$75+IF(M68="",0,M68)*Budget!$F$76+IF(M69="",0,M69)*Budget!$F$77 -> 2793.891 | N70: =SUM(N33:N69) -> 68169.966
A71: Investissements
A72: Achat de vaches, génisses et taures | K72: 1 | N72: =SUM(B72:M72)*(Don_écon.!F26+Don_écon.!F27) -> 37500
A73: Achat de taureaux | K73: 1 | N73: =SUM(B73:M73)*Don_écon.!F28 -> 2000
A74: Achat de la ferme (ou participation) | F74: 1 | N74: =SUM(B74:M74)*Don_écon.!F24 -> 600000
A75: Aménagement de l'étable et du site | I75: 0.25 | J75: 0.5 | K75: 0.25 | N75: =SUM(B75:M75)*Don_écon.!F30 -> 10000
A76: Achat de machinerie et équipement | G76: 1 | N76: =SUM(B76:M76)*Don_écon.!F31 -> 0
A77: Achat de terre | G77: 1 | N77: =SUM(B77:M77)*Don_écon.!F34 -> 0
A78: Frais de démarrage / transfert | F78: 1 | N78: =SUM(B78:M78)*Don_écon.!F33 -> 0
N79: =SUM(B79:M79)*Don_écon.!F38 -> 0
N80: =SUM(B80:M80)*Don_écon.!F39 -> 0
A81: TOTAL DES INVESTISSEMENTS | B81: =SUMPRODUCT(B72:B80,$N$72:$N$80) -> 0 | C81: 0 | D81: 0 | E81: 0 | F81: 600000 | G81: 0 | H81: 0 | I81: 2500 | J81: 5000 | K81: 42000 | L81: 0 | M81: 0 | N81: =SUM(N72:N80) -> 649500
A82: Remboursements (Annuité: K + i)
A83: Emprunt 1 | H83: =100%/6 -> 0.1666666667 | I83: =100%/6 -> 0.1666666667 | J83: 0.1666666667 | K83: 0.1666666667 | L83: 0.1666666667 | M83: 0.1666666667 | N83: =IF(G1='Emprunt 1'!E18,'Emprunt 1'!E21,0) -> 6326.349014
A84: Emprunt 2 | N84: =IF(G1='Emprunt 2'!E18,'Emprunt 2'!E21,0) -> 0
A85: Emprunt 3 | N85: =IF(G1='Emprunt 3'!E18,'Emprunt 3'!E21,0) -> 0
A86: Emprunt supplémentaire | N86: =IF(G1='Emprunt supplémentaire'!E18,'Emprunt supplémentaire'!E21,0) -> 0
N87: =SUM(B87:M87) -> 0
N88: =SUM(B88:M88) -> 0
A89: TOTAL DES REMBOURSEMENTS | B89: =SUMPRODUCT(B83:B88,$N$83:$N$88) -> 0 | C89: 0 | D89: 0 | E89: 0 | F89: 0 | G89: 0 | H89: 1054.391502 | I89: 1054.391502 | J89: 1054.391502 | K89: 1054.391502 | L89: 1054.391502 | M89: 1054.391502 | N89: =SUM(N83:N88) -> 6326.349014
A91: TOTAL DES SORTIES | B91: =B70+B81+B89 -> 636.1625 | C91: 1750.825 | D91: 14536.4375 | E91: 671.5125 | F91: 601404 | G91: 1709.1875 | H91: 2941.891502 | I91: 5303.679002 | J91: 7972.866502 | K91: 81482.454 | L91: 1739.016502 | M91: 3848.282502 | N91: 723996.315
A93: TRÉSORERIE DE DÉBUT DE MOIS | B93: 2000 | C93: =B98 -> 1363.8375 | D93: =C98 -> -386.9875 | E93: -14923.425 | F93: -15594.9375 | G93: -616998.9375 | H93: -618708.125 | I93: -617156.919 | J93: -621029.6388 | K93: -419002.5053 | L93: -499054 | M93: -500793.0165
A94: ENTRÉES - SORTIES D'ARGENT | B94: =B21+B29-B70-B81-B89 -> -636.1625 | C94: -1750.825 | D94: -14536.4375 | E94: -671.5125 | F94: -601404 | G94: -1709.1875 | H94: 1551.205998 | I94: -3872.719752 | J94: 202027.1335 | K94: -80051.49475 | L94: -1739.016502 | M94: 35943.815
A95: COÛTS DE VIE | B95: =-Coût_vie!$D$54 -> 0 | C95: =-Coût_vie!$D$54 -> 0 | D95: =-Coût_vie!$D$54 -> 0 | E95: =-Coût_vie!$D$54 -> 0 | F95: =-Coût_vie!$D$54 -> 0 | G95: =-Coût_vie!$D$54 -> 0 | H95: =-Coût_vie!$D$54 -> 0 | I95: =-Coût_vie!$D$54 -> 0 | J95: =-Coût_vie!$D$54 -> 0 | K95: =-Coût_vie!$D$54 -> 0 | L95: =-Coût_vie!$D$54 -> 0 | M95: =-Coût_vie!$D$54 -> 0 | N95: =SUM(B95:M95) -> 0
A96: REVENUS EXTÉRIEURS | B96: =Coût_vie!$D$20 -> 0 | C96: =Coût_vie!$D$20 -> 0 | D96: =Coût_vie!$D$20 -> 0 | E96: =Coût_vie!$D$20 -> 0 | F96: =Coût_vie!$D$20 -> 0 | G96: =Coût_vie!$D$20 -> 0 | H96: =Coût_vie!$D$20 -> 0 | I96: =Coût_vie!$D$20 -> 0 | J96: =Coût_vie!$D$20 -> 0 | K96: =Coût_vie!$D$20 -> 0 | L96: =Coût_vie!$D$20 -> 0 | M96: =Coût_vie!$D$20 -> 0 | N96: =Coût_vie!E20 -> 0
A98: SOLDE DE TRÉSORERIE FIN DE MOIS | B98: =B93+B94+B95+B96 -> 1363.8375 | C98: =C93+C94+C95+C96 -> -386.9875 | D98: -14923.425 | E98: -15594.9375 | F98: -616998.9375 | G98: -618708.125 | H98: -617156.919 | I98: -621029.6388 | J98: -419002.5053 | K98: -499054 | L98: -500793.0165 | M98: -464849.2015 | N98: =(M98) -> -464849.2015

Sheet Trésorerie année 2 (hidden)
C1: BUDGET DE TRÉSORERIE POUR L'ANNÉE: | G1: ='Trésorerie année 1'!G1+1 -> 2020
B3: JANVIER | C3: FÉVRIER | D3: MARS | E3: AVRIL | F3: MAI | G3: JUIN | H3: JUILLET | I3: AOÛT | J3: SEPTEMBRE | K3: OCTOBRE | L3: NOVEMBRE | M3: DÉCEMBRE | N3: ANNEE
A4: ENTRÉES
A5: =Budget!B16 -> Vente de veau d'embouche | B5: =IF(TEXT(Don_tech.!$G$23,"mmmm")=B3,100%,"") ->  | C5: =IF(TEXT(Don_tech.!$G$23,"mmmm")=C3,100%,"") ->  | D5: =IF(TEXT(Don_tech.!$G$23,"mmmm")=D3,100%,"") ->  | E5: =IF(TEXT(Don_tech.!$G$23,"mmmm")=E3,100%,"") ->  | F5: =IF(TEXT(Don_tech.!$G$23,"mmmm")=F3,100%,"") ->  | G5: =IF(TEXT(Don_tech.!$G$23,"mmmm")=G3,100%,"") ->  | H5: =IF(TEXT(Don_tech.!$G$23,"mmmm")=H3,100%,"") ->  | I5: =IF(TEXT(Don_tech.!$G$23,"mmmm")=I3,100%,"") ->  | J5: =IF(TEXT(Don_tech.!$G$23,"mmmm")=J3,100%,"") ->  | K5: =IF(TEXT(Don_tech.!$G$23,"mmmm")=K3,100%,"") ->  | L5: =IF(TEXT(Don_tech.!$G$23,"mmmm")=L3,100%,"") ->  | M5: =IF(TEXT(Don_tech.!$G$23,"mmmm")=M3,100%,"") -> 1 | N5: =SUM(B5:M5)*Budget!G16 -> 46084.5 | O5: Periode de vente
A6: =Budget!B17 -> Vente de vaches réformées | B6: =IF(TEXT(Don_tech.!$G$23,"mmmm")=B3,100%,"") ->  | C6: =IF(TEXT(Don_tech.!$G$23,"mmmm")=C3,100%,"") ->  | D6: =IF(TEXT(Don_tech.!$G$23,"mmmm")=D3,100%,"") ->  | E6: =IF(TEXT(Don_tech.!$G$23,"mmmm")=E3,100%,"") ->  | F6: =IF(TEXT(Don_tech.!$G$23,"mmmm")=F3,100%,"") ->  | G6: =IF(TEXT(Don_tech.!$G$23,"mmmm")=G3,100%,"") ->  | H6: =IF(TEXT(Don_tech.!$G$23,"mmmm")=H3,100%,"") ->  | I6: =IF(TEXT(Don_tech.!$G$23,"mmmm")=I3,100%,"") ->  | J6: =IF(TEXT(Don_tech.!$G$23,"mmmm")=J3,100%,"") ->  | K6: =IF(TEXT(Don_tech.!$G$23,"mmmm")=K3,100%,"") ->  | L6: =IF(TEXT(Don_tech.!$G$23,"mmmm")=L3,100%,"") ->  | M6: =IF(TEXT(Don_tech.!$G$23,"mmmm")=M3,100%,"") -> 1 | N6: =SUM(B6:M6)*Budget!G17 -> 5720 | O6: Periode de vente
A7: =Budget!B18 -> Vente de taureaux réformés | B7: =IF(TEXT(Don_tech.!$G$23,"mmmm")=B3,100%,"") ->  | C7: =IF(TEXT(Don_tech.!$G$23,"mmmm")=C3,100%,"") ->  | D7: =IF(TEXT(Don_tech.!$G$23,"mmmm")=D3,100%,"") ->  | E7: =IF(TEXT(Don_tech.!$G$23,"mmmm")=E3,100%,"") ->  | F7: =IF(TEXT(Don_tech.!$G$23,"mmmm")=F3,100%,"") ->  | G7: =IF(TEXT(Don_tech.!$G$23,"mmmm")=G3,100%,"") ->  | H7: =IF(TEXT(Don_tech.!$G$23,"mmmm")=H3,100%,"") ->  | I7: =IF(TEXT(Don_tech.!$G$23,"mmmm")=I3,100%,"") ->  | J7: =IF(TEXT(Don_tech.!$G$23,"mmmm")=J3,100%,"") ->  | K7: =IF(TEXT(Don_tech.!$G$23,"mmmm")=K3,100%,"") ->  | L7: =IF(TEXT(Don_tech.!$G$23,"mmmm")=L3,100%,"") ->  | M7: =IF(TEXT(Don_tech.!$G$23,"mmmm")=M3,100%,"") -> 1 | N7: =SUM(B7:M7)*Budget!G18 -> 0 | O7: Periode de vente
A8: =Budget!B19 -> Vente de sujets reproduction | B8: =IF(TEXT(Don_tech.!$G$23,"mmmm")=B3,100%,"") ->  | C8: =IF(TEXT(Don_tech.!$G$23,"mmmm")=C3,100%,"") ->  | D8: =IF(TEXT(Don_tech.!$G$23,"mmmm")=D3,100%,"") ->  | E8: =IF(TEXT(Don_tech.!$G$23,"mmmm")=E3,100%,"") ->  | F8: =IF(TEXT(Don_tech.!$G$23,"mmmm")=F3,100%,"") ->  | G8: =IF(TEXT(Don_tech.!$G$23,"mmmm")=G3,100%,"") ->  | H8: =IF(TEXT(Don_tech.!$G$23,"mmmm")=H3,100%,"") ->  | I8: =IF(TEXT(Don_tech.!$G$23,"mmmm")=I3,100%,"") ->  | J8: =IF(TEXT(Don_tech.!$G$23,"mmmm")=J3,100%,"") ->  | K8: =IF(TEXT(Don_tech.!$G$23,"mmmm")=K3,100%,"") ->  | L8: =IF(TEXT(Don_tech.!$G$23,"mmmm")=L3,100%,"") ->  | M8: =IF(TEXT(Don_tech.!$G$23,"mmmm")=M3,100%,"") -> 1 | N8: =SUM(B8:M8)*Budget!G19 -> 0 | O8: Periode de vente
A9: =Budget!B20 -> ASRA bovin nette | H9: 0.5 | M9: 0.5 | N9: =SUM(B9:M9)*Budget!G20 -> 17356.13319 | O9: ASRA
A10: =Budget!B21 -> Agri-investissement et agri-Québec | B10: =IF(TEXT(Don_tech.!$G$23,"mmmm")=B3,100%,"") ->  | C10: =IF(TEXT(Don_tech.!$G$23,"mmmm")=C3,100%,"") ->  | D10: =IF(TEXT(Don_tech.!$G$23,"mmmm")=D3,100%,"") ->  | E10: =IF(TEXT(Don_tech.!$G$23,"mmmm")=E3,100%,"") ->  | F10: =IF(TEXT(Don_tech.!$G$23,"mmmm")=F3,100%,"") ->  | G10: =IF(TEXT(Don_tech.!$G$23,"mmmm")=G3,100%,"") ->  | H10: =IF(TEXT(Don_tech.!$G$23,"mmmm")=H3,100%,"") ->  | I10: =IF(TEXT(Don_tech.!$G$23,"mmmm")=I3,100%,"") ->  | J10: =IF(TEXT(Don_tech.!$G$23,"mmmm")=J3,100%,"") ->  | K10: =IF(TEXT(Don_tech.!$G$23,"mmmm")=K3,100%,"") ->  | L10: =IF(TEXT(Don_tech.!$G$23,"mmmm")=L3,100%,"") ->  | M10: =IF(TEXT(Don_tech.!$G$23,"mmmm")=M3,100%,"") -> 1 | N10: =SUM(B10:M10)*Budget!G21 -> 234.8023925 | O10: Periode de vente
A11: =Budget!B22 -> Vente de foin | I11: 0.5 | K11: 0.5 | N11: =SUM(B11:M11)*Budget!G22 -> 0
A12: =Budget!B23 -> Vente de céréales | K12: 1 | N12: =SUM(B12:M12)*Budget!G23 -> 0
A13: =Budget!B24 -> ASRA céréales | M13: 0.4 | N13: =SUM(B13:M13)*Budget!G24 -> 0
A14: =Budget!B25 -> Divers: | M14: 1 | N14: =SUM(B14:M14)*Budget!G25 -> 0
A15: =Budget!B26 -> 0 | N15: =SUM(B15:M15)*Budget!G26 -> 0
A16: =Budget!B27 -> 0 | N16: =SUM(B16:M16)*Budget!G27 -> 0
A17: =Budget!B28 -> 0 | N17: =SUM(B17:M17)*Budget!G28 -> 0
A18: =Budget!B29 -> Vente autre produit | N18: =SUM(B18:M18)*Budget!G29 -> 0
A19: =Budget!B30 -> Vente autre produit | N19: =SUM(B19:M19)*Budget!G30 -> 0
A20: =Budget!B31 -> Vente autre produit | N20: =SUM(B20:M20)*Budget!G31 -> 0
A21: TOTAL DES RECETTES | B21: =SUMPRODUCT(B5:B20,$N$5:$N$20) -> 0 | C21: 0 | D21: 0 | E21: 0 | F21: 0 | G21: 0 | H21: 8678.066593 | I21: 0 | J21: 0 | K21: 0 | L21: 0 | M21: =SUMPRODUCT(M5:M20,$N$5:$N$20) -> 60717.36899 | N21: =SUM(N5:N14) -> 69395.43558
A22: Déboursé Emprunt 1 | B22: =IF('Emprunt 1'!$E$14="","",IF(TEXT('Emprunt 1'!$E$14,"mmmm")=B3,100%,"")) ->  | C22: =IF('Emprunt 1'!$E$14="","",IF(TEXT('Emprunt 1'!$E$14,"mmmm")=C3,100%,"")) ->  | D22: =IF('Emprunt 1'!$E$14="","",IF(TEXT('Emprunt 1'!$E$14,"mmmm")=D3,100%,"")) ->  | E22: =IF('Emprunt 1'!$E$14="","",IF(TEXT('Emprunt 1'!$E$14,"mmmm")=E3,100%,"")) ->  | F22: =IF('Emprunt 1'!$E$14="","",IF(TEXT('Emprunt 1'!$E$14,"mmmm")=F3,100%,"")) ->  | G22: =IF('Emprunt 1'!$E$14="","",IF(TEXT('Emprunt 1'!$E$14,"mmmm")=G3,100%,"")) ->  | H22: =IF('Emprunt 1'!$E$14="","",IF(TEXT('Emprunt 1'!$E$14,"mmmm")=H3,100%,"")) ->  | I22: =IF('Emprunt 1'!$E$14="","",IF(TEXT('Emprunt 1'!$E$14,"mmmm")=I3,100%,"")) ->  | J22: =IF('Emprunt 1'!$E$14="","",IF(TEXT('Emprunt 1'!$E$14,"mmmm")=J3,100%,"")) -> 1 | K22: =IF('Emprunt 1'!$E$14="","",IF(TEXT('Emprunt 1'!$E$14,"mmmm")=K3,100%,"")) ->  | L22: =IF('Emprunt 1'!$E$14="","",IF(TEXT('Emprunt 1'!$E$14,"mmmm")=L3,100%,"")) ->  | M22: =IF('Emprunt 1'!$E$14="","",IF(TEXT('Emprunt 1'!$E$14,"mmmm")=M3,100%,"")) ->  | N22: =IF(G1='Emprunt 1'!E18,SUM(B22:M22)*'Emprunt 1'!E17,0) -> 0 | O22: Date du 1e paiement
A23: Déboursé Emprunt 2 | B23: =IF('Emprunt 2'!$E$14="","",IF(TEXT('Emprunt 2'!$E$14,"mmmm")=B3,100%,"")) -> 1 | C23: =IF('Emprunt 2'!$E$14="","",IF(TEXT('Emprunt 2'!$E$14,"mmmm")=C3,100%,"")) ->  | D23: =IF('Emprunt 2'!$E$14="","",IF(TEXT('Emprunt 2'!$E$14,"mmmm")=D3,100%,"")) ->  | E23: =IF('Emprunt 2'!$E$14="","",IF(TEXT('Emprunt 2'!$E$14,"mmmm")=E3,100%,"")) ->  | F23: =IF('Emprunt 2'!$E$14="","",IF(TEXT('Emprunt 2'!$E$14,"mmmm")=F3,100%,"")) ->  | G23: =IF('Emprunt 2'!$E$14="","",IF(TEXT('Emprunt 2'!$E$14,"mmmm")=G3,100%,"")) ->  | H23: =IF('Emprunt 2'!$E$14="","",IF(TEXT('Emprunt 2'!$E$14,"mmmm")=H3,100%,"")) ->  | I23: =IF('Emprunt 2'!$E$14="","",IF(TEXT('Emprunt 2'!$E$14,"mmmm")=I3,100%,"")) ->  | J23: =IF('Emprunt 2'!$E$14="","",IF(TEXT('Emprunt 2'!$E$14,"mmmm")=J3,100%,"")) ->  | K23: =IF('Emprunt 2'!$E$14="","",IF(TEXT('Emprunt 2'!$E$14,"mmmm")=K3,100%,"")) ->  | L23: =IF('Emprunt 2'!$E$14="","",IF(TEXT('Emprunt 2'!$E$14,"mmmm")=L3,100%,"")) ->  | M23: =IF('Emprunt 2'!$E$14="","",IF(TEXT('Emprunt 2'!$E$14,"mmmm")=M3,100%,"")) ->  | N23: =IF(G1='Emprunt 2'!E18,SUM(B23:M23)*'Emprunt 2'!E17,0) -> 0 | O23: Date du 1e paiement
A24: Déboursé Emprunt 3 | B24: =IF('Emprunt 3'!$E$14="","",IF(TEXT('Emprunt 3'!$E$14,"mmmm")=B3,100%,"")) ->  | C24: =IF('Emprunt 3'!$E$14="","",IF(TEXT('Emprunt 3'!$E$14,"mmmm")=C3,100%,"")) ->  | D24: =IF('Emprunt 3'!$E$14="","",IF(TEXT('Emprunt 3'!$E$14,"mmmm")=D3,100%,"")) ->  | E24: =IF('Emprunt 3'!$E$14="","",IF(TEXT('Emprunt 3'!$E$14,"mmmm")=E3,100%,"")) ->  | F24: =IF('Emprunt 3'!$E$14="","",IF(TEXT('Emprunt 3'!$E$14,"mmmm")=F3,100%,"")) ->  | G24: =IF('Emprunt 3'!$E$14="","",IF(TEXT('Emprunt 3'!$E$14,"mmmm")=G3,100%,"")) ->  | H24: =IF('Emprunt 3'!$E$14="","",IF(TEXT('Emprunt 3'!$E$14,"mmmm")=H3,100%,"")) ->  | I24: =IF('Emprunt 3'!$E$14="","",IF(TEXT('Emprunt 3'!$E$14,"mmmm")=I3,100%,"")) ->  | J24: =IF('Emprunt 3'!$E$14="","",IF(TEXT('Emprunt 3'!$E$14,"mmmm")=J3,100%,"")) ->  | K24: =IF('Emprunt 3'!$E$14="","",IF(TEXT('Emprunt 3'!$E$14,"mmmm")=K3,100%,"")) ->  | L24: =IF('Emprunt 3'!$E$14="","",IF(TEXT('Emprunt 3'!$E$14,"mmmm")=L3,100%,"")) ->  | M24: =IF('Emprunt 3'!$E$14="","",IF(TEXT('Emprunt 3'!$E$14,"mmmm")=M3,100%,"")) ->  | N24: =IF(G1='Emprunt 3'!E18,SUM(B24:M24)*'Emprunt 3'!E17,0) -> 0 | O24: Date du 1e paiement
A25: Déboursé Emprunt supplémentaire | B25: =IF('Emprunt supplémentaire'!E14="","",IF(TEXT('Emprunt supplémentaire'!E14,"mmmm")=B3,100%,"")) ->  | C25: =IF('Emprunt supplémentaire'!F14="","",IF(TEXT('Emprunt supplémentaire'!F14,"mmmm")=C3,100%,"")) ->  | D25: =IF('Emprunt supplémentaire'!G14="","",IF(TEXT('Emprunt supplémentaire'!G14,"mmmm")=D3,100%,"")) ->  | E25: =IF('Emprunt supplémentaire'!H14="","",IF(TEXT('Emprunt supplémentaire'!H14,"mmmm")=E3,100%,"")) ->  | F25: =IF('Emprunt supplémentaire'!I14="","",IF(TEXT('Emprunt supplémentaire'!I14,"mmmm")=F3,100%,"")) ->  | G25: =IF('Emprunt supplémentaire'!J14="","",IF(TEXT('Emprunt supplémentaire'!J14,"mmmm")=G3,100%,"")) ->  | H25: =IF('Emprunt supplémentaire'!K14="","",IF(TEXT('Emprunt supplémentaire'!K14,"mmmm")=H3,100%,"")) ->  | I25: =IF('Emprunt supplémentaire'!L14="","",IF(TEXT('Emprunt supplémentaire'!L14,"mmmm")=I3,100%,"")) ->  | J25: =IF('Emprunt supplémentaire'!M14="","",IF(TEXT('Emprunt supplémentaire'!M14,"mmmm")=J3,100%,"")) ->  | K25: =IF('Emprunt supplémentaire'!N14="","",IF(TEXT('Emprunt supplémentaire'!N14,"mmmm")=K3,100%,"")) ->  | L25: =IF('Emprunt supplémentaire'!O14="","",IF(TEXT('Emprunt supplémentaire'!O14,"mmmm")=L3,100%,"")) ->  | M25: =IF('Emprunt supplémentaire'!P14="","",IF(TEXT('Emprunt supplémentaire'!P14,"mmmm")=M3,100%,"")) ->  | N25: =IF(G1='Emprunt supplémentaire'!E18,SUM(B25:M25)*'Emprunt supplémentaire'!E17,0) -> 0 | O25: Date du 1e paiement
A26: Aide au démarrage FADQ | J26: 1 | N26: =SUM(B26:M26)*Don_écon.!G32 -> 0
A27: Autre aide financière 1 | N27: =SUM(B27:M27)*Don_écon.!G36 -> 0
A28: Autre aide financière 2 | N28: =SUM(B28:M28)*Don_écon.!G37 -> 0
A29: TOTAL DES EMPRUNTS ET AIDES | B29: =SUMPRODUCT(B22:B28,$N$22:$N$28) -> 0 | C29: 0 | D29: 0 | E29: 0 | F29: 0 | G29: 0 | H29: 0 | I29: 0 | J29: 0 | K29: 0 | L29: 0 | M29: =SUMPRODUCT(M22:M28,$N$22:$N$28) -> 0 | N29: =SUM(N22:N28) -> 0
A30: TOTAL DES ENTRÉES | B30: =B21+B29 -> 0 | C30: 0 | D30: 0 | E30: 0 | F30: 0 | G30: 0 | H30: 8678.066593 | I30: 0 | J30: 0 | K30: 0 | L30: 0 | M30: 60717.36899 | N30: 69395.43558
A32: SORTIES
A33: =Budget!B41 -> Achat de femelles | K33: 1 | N33: =SUM(B33:M33)*Budget!G41 -> 42500
A34: =Budget!B42 -> Achat de taureaux | D34: 0.7 | K34: 0.3 | N34: =SUM(B34:M34)*Budget!G42 -> 0
A35: =Budget!B43 -> Achat de foin | D35: 0.7 | H35: 0.2 | J35: 0.1 | N35: =SUM(B35:M35)*Budget!G43 -> 12242.3955
A36: =Budget!B44 -> Achat de grains | J36: 0.25 | K36: 0.25 | L36: 0.25 | M36: 0.25 | N36: =SUM(B36:M36)*Budget!G44 -> 450
A37: =Budget!B45 -> Suppléments protéiques | J37: 0.25 | K37: 0.25 | L37: 0.25 | M37: 0.25 | N37: =SUM(B37:M37)*Budget!G45 -> 174.375
A38: =Budget!B46 -> Moulée | D38: 0.25 | E38: 0.25 | F38: 0.5 | N38: =SUM(B38:M38)*Budget!G46 -> 0
A39: =Budget!B47 -> Vitamines et minéraux | B39: 0.08333333333 | C39: 0.08333333333 | D39: 0.08333333333 | E39: 0.08333333333 | F39: 0.08333333333 | G39: 0.08333333333 | H39: 0.08333333333 | I39: 0.08333333333 | J39: 0.08333333333 | K39: 0.08333333333 | L39: 0.08333333333 | M39: 0.08333333333 | N39: =SUM(B39:M39)*Budget!G47 -> 2380.35
A40: =Budget!B48 -> Vétérinaire et médicaments | C40: 0.6 | D40: 0.04 | E40: 0.04 | F40: 0.04 | G40: 0.04 | H40: 0.04 | I40: 0.04 | J40: 0.04 | K40: 0.04 | L40: 0.04 | M40: 0.04 | N40: =SUM(B40:M40)*Budget!G48 -> 1237.25
A41: =Budget!B49 -> Identifiants | C41: 1 | N41: =SUM(B41:M41)*Budget!G49 -> 56.1
A42: =Budget!B50 -> Litière | B42: 0.2 | C42: 0.2 | D42: 0.2 | E42: 0.2 | M42: 0.2 | N42: =SUM(B42:M42)*Budget!G50 -> 636.65
A43: =Budget!B51 -> Transport | M43: 1 | N43: =SUM(B43:M43)*Budget!G51 -> 1129.8
A44: =Budget!B52 -> Mise en marché | M44: 1 | N44: =SUM(B44:M44)*Budget!G52 -> 1171.65
A45: =Budget!B53 -> Carburant et lubrifiant étable | B45: 0.05 | C45: 0.05 | D45: 0.05 | E45: 0.05 | F45: 0.15 | G45: 0.15 | H45: 0.15 | I45: 0.1 | J45: 0.1 | K45: 0.05 | L45: 0.05 | M45: 0.05 | N45: =SUM(B45:M45)*Budget!G53 -> 350
A46: =Budget!B54 -> Ent.&rép. mach.&équip.&im. | B46: 0.05 | C46: 0.05 | D46: 0.05 | E46: 0.05 | F46: 0.15 | G46: 0.15 | H46: 0.15 | I46: 0.1 | J46: 0.1 | K46: 0.05 | L46: 0.05 | M46: 0.05 | N46: =SUM(B46:M46)*Budget!G54 -> 3519.95
A47: =Budget!B55 -> Approv. Semences céréales | D47: 1 | N47: =SUM(B47:M47)*Budget!G55 -> 0
A48: =Budget!B56 -> Approv. Semences fourrage | D48: 1 | N48: =SUM(B48:M48)*Budget!G56 -> 1370
A49: =Budget!B57 -> Approv. céréales (pest.,engr.,etc) | D49: 1 | N49: =SUM(B49:M49)*Budget!G57 -> 0
A50: =Budget!B58 -> Approv. fourrages (pest,engr.,etc) | D50: 1 | N50: =SUM(B50:M50)*Budget!G58 -> 7500
A51: =Budget!B59 -> Autres frais pour prairie | D51: 1 | N51: =SUM(B51:M51)*Budget!G59 -> 3300
A52: =Budget!B60 -> Autres frais pour céréales | D52: 1 | N52: =SUM(B52:M52)*Budget!G60 -> 0
A53: =Budget!B61 -> Asra céréales (contribution) | N53: =SUM(B53:M53)*Budget!G61 -> 0
A54: =Budget!B62 -> Ass récolte céréale | N54: =SUM(B54:M54)*Budget!G62 -> 0
A55: =Budget!B63 -> Assurance récolte fourrage | M55: 1 | N55: =SUM(B55:M55)*Budget!G63 -> 396.396
A56: =Budget!B64 -> Ent.& rép. fds de ter. bâtim. | H56: 0.25 | I56: 0.25 | J56: 0.25 | K56: 0.25 | N56: =SUM(B56:M56)*Budget!G64 -> 1363.25
A57: =Budget!B65 -> Travaux à forfait | G57: 0.25 | H57: 0.25 | I57: 0.25 | J57: 0.25 | N57: =SUM(B57:M57)*Budget!G65 -> 1344.35
A58: =Budget!B66 -> Taxes municipale.&scolaires | D58: 0.5 | G58: 0.25 | J58: 0.25 | N58: =SUM(B58:M58)*Budget!G66 -> 364.7
A59: =Budget!B67 -> Ass. gén. incluant maison | B59: 0.08333333333 | C59: 0.08333333333 | D59: 0.08333333333 | E59: 0.08333333333 | F59: 0.08333333333 | G59: 0.08333333333 | H59: 0.08333333333 | I59: 0.08333333333 | J59: 0.08333333333 | K59: 0.08333333333 | L59: 0.08333333333 | M59: 0.08333333333 | N59: =SUM(B59:M59)*Budget!G67 -> 1295.35
A60: =Budget!B68 -> Electricité | B60: 0.08333333333 | C60: 0.08333333333 | D60: 0.08333333333 | E60: 0.08333333333 | F60: 0.08333333333 | G60: 0.08333333333 | H60: 0.08333333333 | I60: 0.08333333333 | J60: 0.08333333333 | K60: 0.08333333333 | L60: 0.08333333333 | M60: 0.08333333333 | N60: =SUM(B60:M60)*Budget!G68 -> 528.5
A61: =Budget!B69 -> Salaire | C61: 0.15 | D61: 0.1 | F61: 0.15 | G61: 0.15 | H61: 0.15 | I61: 0.15 | J61: 0.15 | N61: =SUM(B61:M61)*Budget!G69 -> 5105.45
A62: =Budget!B70 -> Loc. de bâti.& fds de terre | C62: 1 | N62: =SUM(B62:M62)*Budget!G70 -> 0
A63: =Budget!B71 -> Intérêt court terme | B63: 0.08333333333 | C63: 0.08333333333 | D63: 0.08333333333 | E63: 0.08333333333 | F63: 0.08333333333 | G63: 0.08333333333 | H63: 0.08333333333 | I63: 0.08333333333 | J63: 0.08333333333 | K63: 0.08333333333 | L63: 0.08333333333 | M63: 0.08333333333 | N63: =SUM(B63:M63)*Budget!G71 -> 892.85
A64: =Budget!B72 -> Autres frais | B64: 0.08333333333 | C64: 0.08333333333 | D64: 0.08333333333 | E64: 0.08333333333 | F64: 0.08333333333 | G64: 0.08333333333 | H64: 0.08333333333 | I64: 0.08333333333 | J64: 0.08333333333 | K64: 0.08333333333 | L64: 0.08333333333 | M64: 0.08333333333 | N64: =SUM(B64:M64)*Budget!G72 -> 1631.35
A65: =Budget!B73 -> 0 | N65: =SUM(B65:M65)*Budget!G73 -> 0
A66: =Budget!B74 -> 0 | N66: =SUM(B66:M66)*Budget!G74 -> 0
A67: =Budget!B75 -> Dépense autre produit | N67: =SUM(B67:M67)*Budget!G75 -> 0
A68: =Budget!B76 -> Dépense autre produit | N68: =SUM(B68:M68)*Budget!G76 -> 0
A69: =Budget!B77 -> Dépense autre produit | N69: =SUM(B69:M69)*Budget!G77 -> 0
A70: TOTAL DES DÉBOURS | B70: =SUMPRODUCT(B33:B69,$N$33:$N$69) -> 881.5275 | C70: 2445.795 | D70: 22363.58935 | E70: 931.0175 | F70: 1956.5 | G70: 2383.7625 | H70: 5081.8791 | I70: 2439.9025 | J70: 3911.4108 | K70: 43800.59375 | L70: 959.78125 | M70: =SUMPRODUCT(M33:M69,$N$33:$N$69) -> 3784.95725 | N70: =SUM(N33:N69) -> 90940.7165
A71: Investissements
A72: Achat de vaches, génisses et taures | K72: 1 | N72: =SUM(B72:M72)*(Don_écon.!G26+Don_écon.!G27) -> 0
A73: Achat de taureaux | K73: 1 | N73: =SUM(B73:M73)*Don_écon.!G28 -> 0
A74: Achat de la ferme (ou participation) | F74: 1 | N74: =SUM(B74:M74)*Don_écon.!G24 -> 0
A75: Aménagement de l'étable et du site | I75: 0.25 | J75: 0.5 | K75: 0.25 | N75: =SUM(B75:M75)*Don_écon.!G30 -> 0
A76: Achat de machinerie et équipement | G76: 1 | N76: =SUM(B76:M76)*Don_écon.!G31 -> 0
A77: Achat de terre | G77: 1 | N77: =SUM(B77:M77)*Don_écon.!G34 -> 0
A78: Frais de démarrage / transfert | F78: 1 | N78: =SUM(B78:M78)*Don_écon.!G33 -> 0
N79: =SUM(B79:M79)*Don_écon.!G38 -> 0
N80: =SUM(B80:M80)*Don_écon.!G39 -> 0
A81: TOTAL DES INVESTISSEMENTS | B81: =SUMPRODUCT(B72:B80,$N$72:$N$80) -> 0 | C81: 0 | D81: 0 | E81: 0 | F81: 0 | G81: 0 | H81: 0 | I81: 0 | J81: 0 | K81: 0 | L81: 0 | M81: 0 | N81: =SUM(N72:N80) -> 0
A82: Remboursements (Annuité: K + i)
A83: Emprunt 1 | B83: =100%/12 -> 0.08333333333 | C83: =100%/12 -> 0.08333333333 | D83: 0.08333333333 | E83: 0.08333333333 | F83: 0.08333333333 | G83: 0.08333333333 | H83: 0.08333333333 | I83: 0.08333333333 | J83: 0.08333333333 | K83: 0.08333333333 | L83: 0.08333333333 | M83: 0.08333333333 | N83: =IF(G1='Emprunt 1'!E18,'Emprunt 1'!E21,IF(G1=1+'Emprunt 1'!E18,'Emprunt 1'!E22,0)) -> 18979.04704
A84: Emprunt 2 | B84: =100%/12 -> 0.08333333333 | C84: =100%/12 -> 0.08333333333 | D84: 0.08333333333 | E84: 0.08333333333 | F84: 0.08333333333 | G84: 0.08333333333 | H84: 0.08333333333 | I84: 0.08333333333 | J84: 0.08333333333 | K84: 0.08333333333 | L84: 0.08333333333 | M84: 0.08333333333 | N84: =IF(G1='Emprunt 2'!E18,'Emprunt 2'!E21,IF(G1=1+'Emprunt 2'!E18,'Emprunt 2'!E22,0)) -> 0
A85: Emprunt 3 | N85: =IF(G1='Emprunt 3'!E18,'Emprunt 3'!E21,IF(G1=1+'Emprunt 3'!E18,'Emprunt 3'!E22,0)) -> 0
A86: Emprunt supplémentaire | N86: =IF(G1='Emprunt supplémentaire'!E18,'Emprunt supplémentaire'!E21,IF(G1=1+'Emprunt supplémentaire'!E18,'Emprunt supplémentaire'!E22,0)) -> 0
N87: =SUM(B79:M79)*Don_écon.!G38 -> 0
N88: =SUM(B80:M80)*Don_écon.!G39 -> 0
A89: TOTAL DES REMBOURSEMENTS | B89: =SUMPRODUCT(B83:B88,$N$83:$N$88) -> 1581.587253 | C89: 1581.587253 | D89: 1581.587253 | E89: 1581.587253 | F89: 1581.587253 | G89: 1581.587253 | H89: 1581.587253 | I89: 1581.587253 | J89: 1581.587253 | K89: 1581.587253 | L89: 1581.587253 | M89: 1581.587253 | N89: =SUM(N83:N88) -> 18979.04704
A91: TOTAL DES SORTIES | B91: =B70+B81+B89 -> 2463.114753 | C91: 4027.382253 | D91: 23945.1766 | E91: 2512.604753 | F91: 3538.087253 | G91: 3965.349753 | H91: 6663.466353 | I91: 4021.489753 | J91: 5492.998053 | K91: 45382.181 | L91: 2541.368503 | M91: 5366.544503 | N91: 109919.7635
A93: TRÉSORERIE DE DÉBUT DE MOIS | B93: ='Trésorerie année 1'!N98 -> -464849.2015 | C93: =B98 -> -467312.3163 | D93: =C98 -> -471339.6985 | E93: -495284.8751 | F93: -497797.4799 | G93: -501335.5671 | H93: -505300.9169 | I93: -503286.3166 | J93: -507307.8064 | K93: -512800.8045 | L93: -558182.9855 | M93: -560724.354
A94: ENTRÉES - SORTIES D'ARGENT | B94: =B21+B29-B70-B81-B89 -> -2463.114753 | C94: -4027.382253 | D94: -23945.1766 | E94: -2512.604753 | F94: -3538.087253 | G94: -3965.349753 | H94: 2014.60024 | I94: -4021.489753 | J94: -5492.998053 | K94: -45382.181 | L94: -2541.368503 | M94: 55350.82448
A95: COÛTS DE VIE | B95: =-Coût_vie!$F$54 -> 0 | C95: =-Coût_vie!$F$54 -> 0 | D95: =-Coût_vie!$F$54 -> 0 | E95: =-Coût_vie!$F$54 -> 0 | F95: =-Coût_vie!$F$54 -> 0 | G95: =-Coût_vie!$F$54 -> 0 | H95: =-Coût_vie!$F$54 -> 0 | I95: =-Coût_vie!$F$54 -> 0 | J95: =-Coût_vie!$F$54 -> 0 | K95: =-Coût_vie!$F$54 -> 0 | L95: =-Coût_vie!$F$54 -> 0 | M95: =-Coût_vie!$F$54 -> 0 | N95: =SUM(B95:M95) -> 0
A96: REVENUS EXTÉRIEURS | B96: =Coût_vie!$F$20 -> 0 | C96: =Coût_vie!$F$20 -> 0 | D96: =Coût_vie!$F$20 -> 0 | E96: =Coût_vie!$F$20 -> 0 | F96: =Coût_vie!$F$20 -> 0 | G96: =Coût_vie!$F$20 -> 0 | H96: =Coût_vie!$F$20 -> 0 | I96: =Coût_vie!$F$20 -> 0 | J96: =Coût_vie!$F$20 -> 0 | K96: =Coût_vie!$F$20 -> 0 | L96: =Coût_vie!$F$20 -> 0 | M96: =Coût_vie!$F$20 -> 0 | N96: =SUM(B96:M96) -> 0
A98: SOLDE DE TRÉSORERIE FIN DE MOIS | B98: =B93+B94+B95+B96 -> -467312.3163 | C98: =C93+C94+C95+C96 -> -471339.6985 | D98: -495284.8751 | E98: -497797.4799 | F98: -501335.5671 | G98: -505300.9169 | H98: -503286.3166 | I98: -507307.8064 | J98: -512800.8045 | K98: -558182.9855 | L98: -560724.354 | M98: -505373.5295 | N98: =(M98) -> -505373.5295

Sheet Trésorerie année 3 (hidden)
C1: BUDGET DE TRÉSORERIE POUR L'ANNÉE: | G1: ='Trésorerie année 1'!G1+2 -> 2021
B3: JANVIER | C3: FÉVRIER | D3: MARS | E3: AVRIL | F3: MAI | G3: JUIN | H3: JUILLET | I3: AOÛT | J3: SEPTEMBRE | K3: OCTOBRE | L3: NOVEMBRE | M3: DÉCEMBRE | N3: ANNEE
A4: ENTRÉES
A5: =Budget!B16 -> Vente de veau d'embouche | B5: =IF(TEXT(Don_tech.!$H$23,"mmmm")=B3,100%,"") ->  | C5: =IF(TEXT(Don_tech.!$H$23,"mmmm")=C3,100%,"") ->  | D5: =IF(TEXT(Don_tech.!$H$23,"mmmm")=D3,100%,"") ->  | E5: =IF(TEXT(Don_tech.!$H$23,"mmmm")=E3,100%,"") ->  | F5: =IF(TEXT(Don_tech.!$H$23,"mmmm")=F3,100%,"") ->  | G5: =IF(TEXT(Don_tech.!$H$23,"mmmm")=G3,100%,"") ->  | H5: =IF(TEXT(Don_tech.!$H$23,"mmmm")=H3,100%,"") ->  | I5: =IF(TEXT(Don_tech.!$H$23,"mmmm")=I3,100%,"") ->  | J5: =IF(TEXT(Don_tech.!$H$23,"mmmm")=J3,100%,"") ->  | K5: =IF(TEXT(Don_tech.!$H$23,"mmmm")=K3,100%,"") ->  | L5: =IF(TEXT(Don_tech.!$H$23,"mmmm")=L3,100%,"") ->  | M5: =IF(TEXT(Don_tech.!$H$23,"mmmm")=M3,100%,"") -> 1 | N5: =SUM(B5:M5)*Budget!H16 -> 55705.188 | O5: Periode de vente
A6: =Budget!B17 -> Vente de vaches réformées | B6: =IF(TEXT(Don_tech.!$H$23,"mmmm")=B3,100%,"") ->  | C6: =IF(TEXT(Don_tech.!$H$23,"mmmm")=C3,100%,"") ->  | D6: =IF(TEXT(Don_tech.!$H$23,"mmmm")=D3,100%,"") ->  | E6: =IF(TEXT(Don_tech.!$H$23,"mmmm")=E3,100%,"") ->  | F6: =IF(TEXT(Don_tech.!$H$23,"mmmm")=F3,100%,"") ->  | G6: =IF(TEXT(Don_tech.!$H$23,"mmmm")=G3,100%,"") ->  | H6: =IF(TEXT(Don_tech.!$H$23,"mmmm")=H3,100%,"") ->  | I6: =IF(TEXT(Don_tech.!$H$23,"mmmm")=I3,100%,"") ->  | J6: =IF(TEXT(Don_tech.!$H$23,"mmmm")=J3,100%,"") ->  | K6: =IF(TEXT(Don_tech.!$H$23,"mmmm")=K3,100%,"") ->  | L6: =IF(TEXT(Don_tech.!$H$23,"mmmm")=L3,100%,"") ->  | M6: =IF(TEXT(Don_tech.!$H$23,"mmmm")=M3,100%,"") -> 1 | N6: =SUM(B6:M6)*Budget!H17 -> 6864 | O6: Periode de vente
A7: =Budget!B18 -> Vente de taureaux réformés | B7: =IF(TEXT(Don_tech.!$H$23,"mmmm")=B3,100%,"") ->  | C7: =IF(TEXT(Don_tech.!$H$23,"mmmm")=C3,100%,"") ->  | D7: =IF(TEXT(Don_tech.!$H$23,"mmmm")=D3,100%,"") ->  | E7: =IF(TEXT(Don_tech.!$H$23,"mmmm")=E3,100%,"") ->  | F7: =IF(TEXT(Don_tech.!$H$23,"mmmm")=F3,100%,"") ->  | G7: =IF(TEXT(Don_tech.!$H$23,"mmmm")=G3,100%,"") ->  | H7: =IF(TEXT(Don_tech.!$H$23,"mmmm")=H3,100%,"") ->  | I7: =IF(TEXT(Don_tech.!$H$23,"mmmm")=I3,100%,"") ->  | J7: =IF(TEXT(Don_tech.!$H$23,"mmmm")=J3,100%,"") ->  | K7: =IF(TEXT(Don_tech.!$H$23,"mmmm")=K3,100%,"") ->  | L7: =IF(TEXT(Don_tech.!$H$23,"mmmm")=L3,100%,"") ->  | M7: =IF(TEXT(Don_tech.!$H$23,"mmmm")=M3,100%,"") -> 1 | N7: =SUM(B7:M7)*Budget!H18 -> 0 | O7: Periode de vente
A8: =Budget!B19 -> Vente de sujets reproduction | B8: =IF(TEXT(Don_tech.!$H$23,"mmmm")=B3,100%,"") ->  | C8: =IF(TEXT(Don_tech.!$H$23,"mmmm")=C3,100%,"") ->  | D8: =IF(TEXT(Don_tech.!$H$23,"mmmm")=D3,100%,"") ->  | E8: =IF(TEXT(Don_tech.!$H$23,"mmmm")=E3,100%,"") ->  | F8: =IF(TEXT(Don_tech.!$H$23,"mmmm")=F3,100%,"") ->  | G8: =IF(TEXT(Don_tech.!$H$23,"mmmm")=G3,100%,"") ->  | H8: =IF(TEXT(Don_tech.!$H$23,"mmmm")=H3,100%,"") ->  | I8: =IF(TEXT(Don_tech.!$H$23,"mmmm")=I3,100%,"") ->  | J8: =IF(TEXT(Don_tech.!$H$23,"mmmm")=J3,100%,"") ->  | K8: =IF(TEXT(Don_tech.!$H$23,"mmmm")=K3,100%,"") ->  | L8: =IF(TEXT(Don_tech.!$H$23,"mmmm")=L3,100%,"") ->  | M8: =IF(TEXT(Don_tech.!$H$23,"mmmm")=M3,100%,"") -> 1 | N8: =SUM(B8:M8)*Budget!H19 -> 0 | O8: Periode de vente
A9: =Budget!B20 -> ASRA bovin nette | H9: 0.5 | M9: 0.5 | N9: =SUM(B9:M9)*Budget!H20 -> 22930.18562 | O9: ASRA
A10: =Budget!B21 -> Agri-investissement et agri-Québec | B10: =IF(TEXT(Don_tech.!$H$23,"mmmm")=B3,100%,"") ->  | C10: =IF(TEXT(Don_tech.!$H$23,"mmmm")=C3,100%,"") ->  | D10: =IF(TEXT(Don_tech.!$H$23,"mmmm")=D3,100%,"") ->  | E10: =IF(TEXT(Don_tech.!$H$23,"mmmm")=E3,100%,"") ->  | F10: =IF(TEXT(Don_tech.!$H$23,"mmmm")=F3,100%,"") ->  | G10: =IF(TEXT(Don_tech.!$H$23,"mmmm")=G3,100%,"") ->  | H10: =IF(TEXT(Don_tech.!$H$23,"mmmm")=H3,100%,"") ->  | I10: =IF(TEXT(Don_tech.!$H$23,"mmmm")=I3,100%,"") ->  | J10: =IF(TEXT(Don_tech.!$H$23,"mmmm")=J3,100%,"") ->  | K10: =IF(TEXT(Don_tech.!$H$23,"mmmm")=K3,100%,"") ->  | L10: =IF(TEXT(Don_tech.!$H$23,"mmmm")=L3,100%,"") ->  | M10: =IF(TEXT(Don_tech.!$H$23,"mmmm")=M3,100%,"") -> 1 | N10: =SUM(B10:M10)*Budget!H21 -> 486.3481325 | O10: Periode de vente
A11: =Budget!B22 -> Vente de foin | I11: 0.5 | K11: 0.5 | N11: =SUM(B11:M11)*Budget!H22 -> 0
A12: =Budget!B23 -> Vente de céréales | K12: 1 | N12: =SUM(B12:M12)*Budget!H23 -> 0
A13: =Budget!B24 -> ASRA céréales | M13: 0.4 | N13: =SUM(B13:M13)*Budget!H24 -> 0
A14: =Budget!B25 -> Divers: | M14: 1 | N14: =SUM(B14:M14)*Budget!H25 -> 0
A15: =Budget!B26 -> 0 | N15: =SUM(B15:M15)*Budget!H26 -> 0
A16: =Budget!B27 -> 0 | N16: =SUM(B16:M16)*Budget!H27 -> 0
A17: =Budget!B28 -> 0 | N17: =SUM(B17:M17)*Budget!H28 -> 0
A18: =Budget!B29 -> Vente autre produit | N18: =SUM(B18:M18)*Budget!H29 -> 0
A19: =Budget!B30 -> Vente autre produit | N19: =SUM(B19:M19)*Budget!H30 -> 0
A20: =Budget!B31 -> Vente autre produit | N20: =SUM(B20:M20)*Budget!H31 -> 0
A21: TOTAL DES RECETTES | B21: =SUMPRODUCT(B5:B20,$N$5:$N$20) -> 0 | C21: 0 | D21: 0 | E21: 0 | F21: 0 | G21: 0 | H21: 11465.09281 | I21: 0 | J21: 0 | K21: 0 | L21: 0 | M21: =SUMPRODUCT(M5:M20,$N$5:$N$20) -> 74520.62894 | N21: =SUM(N5:N14) -> 85985.72176
A22: Déboursé Emprunt 1 | B22: =IF('Emprunt 1'!$E$14="","",IF(TEXT('Emprunt 1'!$E$14,"mmmm")=B3,100%,"")) ->  | C22: =IF('Emprunt 1'!$E$14="","",IF(TEXT('Emprunt 1'!$E$14,"mmmm")=C3,100%,"")) ->  | D22: =IF('Emprunt 1'!$E$14="","",IF(TEXT('Emprunt 1'!$E$14,"mmmm")=D3,100%,"")) ->  | E22: =IF('Emprunt 1'!$E$14="","",IF(TEXT('Emprunt 1'!$E$14,"mmmm")=E3,100%,"")) ->  | F22: =IF('Emprunt 1'!$E$14="","",IF(TEXT('Emprunt 1'!$E$14,"mmmm")=F3,100%,"")) ->  | G22: =IF('Emprunt 1'!$E$14="","",IF(TEXT('Emprunt 1'!$E$14,"mmmm")=G3,100%,"")) ->  | H22: =IF('Emprunt 1'!$E$14="","",IF(TEXT('Emprunt 1'!$E$14,"mmmm")=H3,100%,"")) ->  | I22: =IF('Emprunt 1'!$E$14="","",IF(TEXT('Emprunt 1'!$E$14,"mmmm")=I3,100%,"")) ->  | J22: =IF('Emprunt 1'!$E$14="","",IF(TEXT('Emprunt 1'!$E$14,"mmmm")=J3,100%,"")) -> 1 | K22: =IF('Emprunt 1'!$E$14="","",IF(TEXT('Emprunt 1'!$E$14,"mmmm")=K3,100%,"")) ->  | L22: =IF('Emprunt 1'!$E$14="","",IF(TEXT('Emprunt 1'!$E$14,"mmmm")=L3,100%,"")) ->  | M22: =IF('Emprunt 1'!$E$14="","",IF(TEXT('Emprunt 1'!$E$14,"mmmm")=M3,100%,"")) ->  | N22: =IF(G1='Emprunt 1'!E18,SUM(B22:M22)*'Emprunt 1'!E17,0) -> 0 | O22: Date du 1e paiement
A23: Déboursé Emprunt 2 | B23: =IF('Emprunt 2'!$E$14="","",IF(TEXT('Emprunt 2'!$E$14,"mmmm")=B3,100%,"")) -> 1 | C23: =IF('Emprunt 2'!$E$14="","",IF(TEXT('Emprunt 2'!$E$14,"mmmm")=C3,100%,"")) ->  | D23: =IF('Emprunt 2'!$E$14="","",IF(TEXT('Emprunt 2'!$E$14,"mmmm")=D3,100%,"")) ->  | E23: =IF('Emprunt 2'!$E$14="","",IF(TEXT('Emprunt 2'!$E$14,"mmmm")=E3,100%,"")) ->  | F23: =IF('Emprunt 2'!$E$14="","",IF(TEXT('Emprunt 2'!$E$14,"mmmm")=F3,100%,"")) ->  | G23: =IF('Emprunt 2'!$E$14="","",IF(TEXT('Emprunt 2'!$E$14,"mmmm")=G3,100%,"")) ->  | H23: =IF('Emprunt 2'!$E$14="","",IF(TEXT('Emprunt 2'!$E$14,"mmmm")=H3,100%,"")) ->  | I23: =IF('Emprunt 2'!$E$14="","",IF(TEXT('Emprunt 2'!$E$14,"mmmm")=I3,100%,"")) ->  | J23: =IF('Emprunt 2'!$E$14="","",IF(TEXT('Emprunt 2'!$E$14,"mmmm")=J3,100%,"")) ->  | K23: =IF('Emprunt 2'!$E$14="","",IF(TEXT('Emprunt 2'!$E$14,"mmmm")=K3,100%,"")) ->  | L23: =IF('Emprunt 2'!$E$14="","",IF(TEXT('Emprunt 2'!$E$14,"mmmm")=L3,100%,"")) ->  | M23: =IF('Emprunt 2'!$E$14="","",IF(TEXT('Emprunt 2'!$E$14,"mmmm")=M3,100%,"")) ->  | N23: =IF(G1='Emprunt 2'!E18,SUM(B23:M23)*'Emprunt 2'!E17,0) -> 0 | O23: Date du 1e paiement
A24: Déboursé Emprunt 3 | B24: =IF('Emprunt 3'!$E$14="","",IF(TEXT('Emprunt 3'!$E$14,"mmmm")=B3,100%,"")) ->  | C24: =IF('Emprunt 3'!$E$14="","",IF(TEXT('Emprunt 3'!$E$14,"mmmm")=C3,100%,"")) ->  | D24: =IF('Emprunt 3'!$E$14="","",IF(TEXT('Emprunt 3'!$E$14,"mmmm")=D3,100%,"")) ->  | E24: =IF('Emprunt 3'!$E$14="","",IF(TEXT('Emprunt 3'!$E$14,"mmmm")=E3,100%,"")) ->  | F24: =IF('Emprunt 3'!$E$14="","",IF(TEXT('Emprunt 3'!$E$14,"mmmm")=F3,100%,"")) ->  | G24: =IF('Emprunt 3'!$E$14="","",IF(TEXT('Emprunt 3'!$E$14,"mmmm")=G3,100%,"")) ->  | H24: =IF('Emprunt 3'!$E$14="","",IF(TEXT('Emprunt 3'!$E$14,"mmmm")=H3,100%,"")) ->  | I24: =IF('Emprunt 3'!$E$14="","",IF(TEXT('Emprunt 3'!$E$14,"mmmm")=I3,100%,"")) ->  | J24: =IF('Emprunt 3'!$E$14="","",IF(TEXT('Emprunt 3'!$E$14,"mmmm")=J3,100%,"")) ->  | K24: =IF('Emprunt 3'!$E$14="","",IF(TEXT('Emprunt 3'!$E$14,"mmmm")=K3,100%,"")) ->  | L24: =IF('Emprunt 3'!$E$14="","",IF(TEXT('Emprunt 3'!$E$14,"mmmm")=L3,100%,"")) ->  | M24: =IF('Emprunt 3'!$E$14="","",IF(TEXT('Emprunt 3'!$E$14,"mmmm")=M3,100%,"")) ->  | N24: =IF(G1='Emprunt 3'!E18,SUM(B24:M24)*'Emprunt 3'!E17,0) -> 0 | O24: Date du 1e paiement
A25: Déboursé Emprunt supplémentaire | B25: =IF('Emprunt supplémentaire'!E14="","",IF(TEXT('Emprunt supplémentaire'!E14,"mmmm")=B3,100%,"")) ->  | C25: =IF('Emprunt supplémentaire'!F14="","",IF(TEXT('Emprunt supplémentaire'!F14,"mmmm")=C3,100%,"")) ->  | D25: =IF('Emprunt supplémentaire'!G14="","",IF(TEXT('Emprunt supplémentaire'!G14,"mmmm")=D3,100%,"")) ->  | E25: =IF('Emprunt supplémentaire'!H14="","",IF(TEXT('Emprunt supplémentaire'!H14,"mmmm")=E3,100%,"")) ->  | F25: =IF('Emprunt supplémentaire'!I14="","",IF(TEXT('Emprunt supplémentaire'!I14,"mmmm")=F3,100%,"")) ->  | G25: =IF('Emprunt supplémentaire'!J14="","",IF(TEXT('Emprunt supplémentaire'!J14,"mmmm")=G3,100%,"")) ->  | H25: =IF('Emprunt supplémentaire'!K14="","",IF(TEXT('Emprunt supplémentaire'!K14,"mmmm")=H3,100%,"")) ->  | I25: =IF('Emprunt supplémentaire'!L14="","",IF(TEXT('Emprunt supplémentaire'!L14,"mmmm")=I3,100%,"")) ->  | J25: =IF('Emprunt supplémentaire'!M14="","",IF(TEXT('Emprunt supplémentaire'!M14,"mmmm")=J3,100%,"")) ->  | K25: =IF('Emprunt supplémentaire'!N14="","",IF(TEXT('Emprunt supplémentaire'!N14,"mmmm")=K3,100%,"")) ->  | L25: =IF('Emprunt supplémentaire'!O14="","",IF(TEXT('Emprunt supplémentaire'!O14,"mmmm")=L3,100%,"")) ->  | M25: =IF('Emprunt supplémentaire'!P14="","",IF(TEXT('Emprunt supplémentaire'!P14,"mmmm")=M3,100%,"")) ->  | N25: =IF(G1='Emprunt supplémentaire'!E18,SUM(B25:M25)*'Emprunt supplémentaire'!E17,0) -> 0 | O25: Date du 1e paiement
A26: Aide au démarrage FADQ | J26: 1 | N26: =SUM(B26:M26)*Don_écon.!H32 -> 0
A27: Autre aide financière 1 | N27: =SUM(B27:M27)*Don_écon.!H36 -> 0
A28: Autre aide financière 2 | N28: =SUM(B28:M28)*Don_écon.!H37 -> 0
A29: TOTAL DES EMPRUNTS ET AIDES | B29: =SUMPRODUCT(B22:B28,$N$22:$N$28) -> 0 | C29: 0 | D29: 0 | E29: 0 | F29: 0 | G29: 0 | H29: 0 | I29: 0 | J29: 0 | K29: 0 | L29: 0 | M29: =SUMPRODUCT(M22:M28,$N$22:$N$28) -> 0 | N29: =SUM(N22:N28) -> 0
A30: TOTAL DES ENTRÉES | B30: =B21+B29 -> 0 | C30: 0 | D30: 0 | E30: 0 | F30: 0 | G30: 0 | H30: 11465.09281 | I30: 0 | J30: 0 | K30: 0 | L30: 0 | M30: 74520.62894 | N30: 85985.72176
A32: SORTIES
A33: =Budget!B41 -> Achat de femelles | K33: 1 | N33: =SUM(B33:M33)*Budget!H41 -> 45000
A34: =Budget!B42 -> Achat de taureaux | D34: 0.7 | K34: 0.3 | N34: =SUM(B34:M34)*Budget!H42 -> 4000
A35: =Budget!B43 -> Achat de foin | D35: 0.7 | H35: 0.2 | J35: 0.1 | N35: =SUM(B35:M35)*Budget!H43 -> 24982.0565
A36: =Budget!B44 -> Achat de grains | J36: 0.25 | K36: 0.25 | L36: 0.25 | M36: 0.25 | N36: =SUM(B36:M36)*Budget!H44 -> 570
A37: =Budget!B45 -> Suppléments protéiques | J37: 0.25 | K37: 0.25 | L37: 0.25 | M37: 0.25 | N37: =SUM(B37:M37)*Budget!H45 -> 220.875
A38: =Budget!B46 -> Moulée | D38: 0.25 | E38: 0.25 | F38: 0.5 | N38: =SUM(B38:M38)*Budget!H46 -> 0
A39: =Budget!B47 -> Vitamines et minéraux | B39: 0.08333333333 | C39: 0.08333333333 | D39: 0.08333333333 | E39: 0.08333333333 | F39: 0.08333333333 | G39: 0.08333333333 | H39: 0.08333333333 | I39: 0.08333333333 | J39: 0.08333333333 | K39: 0.08333333333 | L39: 0.08333333333 | M39: 0.08333333333 | N39: =SUM(B39:M39)*Budget!H47 -> 2955.15
A40: =Budget!B48 -> Vétérinaire et médicaments | C40: 0.6 | D40: 0.04 | E40: 0.04 | F40: 0.04 | G40: 0.04 | H40: 0.04 | I40: 0.04 | J40: 0.04 | K40: 0.04 | L40: 0.04 | M40: 0.04 | N40: =SUM(B40:M40)*Budget!H48 -> 1590.75
A41: =Budget!B49 -> Identifiants | C41: 1 | N41: =SUM(B41:M41)*Budget!H49 -> 71.06
A42: =Budget!B50 -> Litière | B42: 0.2 | C42: 0.2 | D42: 0.2 | E42: 0.2 | M42: 0.2 | N42: =SUM(B42:M42)*Budget!H50 -> 818.55
A43: =Budget!B51 -> Transport | M43: 1 | N43: =SUM(B43:M43)*Budget!H51 -> 1408.38
A44: =Budget!B52 -> Mise en marché | M44: 1 | N44: =SUM(B44:M44)*Budget!H52 -> 1462.98
A45: =Budget!B53 -> Carburant et lubrifiant étable | B45: 0.05 | C45: 0.05 | D45: 0.05 | E45: 0.05 | F45: 0.15 | G45: 0.15 | H45: 0.15 | I45: 0.1 | J45: 0.1 | K45: 0.05 | L45: 0.05 | M45: 0.05 | N45: =SUM(B45:M45)*Budget!H53 -> 450
A46: =Budget!B54 -> Ent.&rép. mach.&équip.&im. | B46: 0.05 | C46: 0.05 | D46: 0.05 | E46: 0.05 | F46: 0.15 | G46: 0.15 | H46: 0.15 | I46: 0.1 | J46: 0.1 | K46: 0.05 | L46: 0.05 | M46: 0.05 | N46: =SUM(B46:M46)*Budget!H54 -> 4525.65
A47: =Budget!B55 -> Approv. Semences céréales | D47: 1 | N47: =SUM(B47:M47)*Budget!H55 -> 0
A48: =Budget!B56 -> Approv. Semences fourrage | D48: 1 | N48: =SUM(B48:M48)*Budget!H56 -> 1370
A49: =Budget!B57 -> Approv. céréales (pest.,engr.,etc) | D49: 1 | N49: =SUM(B49:M49)*Budget!H57 -> 0
A50: =Budget!B58 -> Approv. fourrages (pest,engr.,etc) | D50: 1 | N50: =SUM(B50:M50)*Budget!H58 -> 7500
A51: =Budget!B59 -> Autres frais pour prairie | D51: 1 | N51: =SUM(B51:M51)*Budget!H59 -> 2100
A52: =Budget!B60 -> Autres frais pour céréales | D52: 1 | N52: =SUM(B52:M52)*Budget!H60 -> 0
A53: =Budget!B61 -> Asra céréales (contribution) | N53: =SUM(B53:M53)*Budget!H61 -> 0
A54: =Budget!B62 -> Ass récolte céréale | N54: =SUM(B54:M54)*Budget!H62 -> 0
A55: =Budget!B63 -> Assurance récolte fourrage | M55: 1 | N55: =SUM(B55:M55)*Budget!H63 -> 440.44
A56: =Budget!B64 -> Ent.& rép. fds de ter. bâtim. | H56: 0.25 | I56: 0.25 | J56: 0.25 | K56: 0.25 | N56: =SUM(B56:M56)*Budget!H64 -> 1752.75
A57: =Budget!B65 -> Travaux à forfait | G57: 0.25 | H57: 0.25 | I57: 0.25 | J57: 0.25 | N57: =SUM(B57:M57)*Budget!H65 -> 1728.45
A58: =Budget!B66 -> Taxes municipale.&scolaires | D58: 0.5 | G58: 0.25 | J58: 0.25 | N58: =SUM(B58:M58)*Budget!H66 -> 468.9
A59: =Budget!B67 -> Ass. gén. incluant maison | B59: 0.08333333333 | C59: 0.08333333333 | D59: 0.08333333333 | E59: 0.08333333333 | F59: 0.08333333333 | G59: 0.08333333333 | H59: 0.08333333333 | I59: 0.08333333333 | J59: 0.08333333333 | K59: 0.08333333333 | L59: 0.08333333333 | M59: 0.08333333333 | N59: =SUM(B59:M59)*Budget!H67 -> 1665.45
A60: =Budget!B68 -> Electricité | B60: 0.08333333333 | C60: 0.08333333333 | D60: 0.08333333333 | E60: 0.08333333333 | F60: 0.08333333333 | G60: 0.08333333333 | H60: 0.08333333333 | I60: 0.08333333333 | J60: 0.08333333333 | K60: 0.08333333333 | L60: 0.08333333333 | M60: 0.08333333333 | N60: =SUM(B60:M60)*Budget!H68 -> 679.5
A61: =Budget!B69 -> Salaire | C61: 0.15 | D61: 0.1 | F61: 0.15 | G61: 0.15 | H61: 0.15 | I61: 0.15 | J61: 0.15 | N61: =SUM(B61:M61)*Budget!H69 -> 6564.15
A62: =Budget!B70 -> Loc. de bâti.& fds de terre | C62: 1 | N62: =SUM(B62:M62)*Budget!H70 -> 0
A63: =Budget!B71 -> Intérêt court terme | B63: 0.08333333333 | C63: 0.08333333333 | D63: 0.08333333333 | E63: 0.08333333333 | F63: 0.08333333333 | G63: 0.08333333333 | H63: 0.08333333333 | I63: 0.08333333333 | J63: 0.08333333333 | K63: 0.08333333333 | L63: 0.08333333333 | M63: 0.08333333333 | N63: =SUM(B63:M63)*Budget!H71 -> 1147.95
A64: =Budget!B72 -> Autres frais | B64: 0.08333333333 | C64: 0.08333333333 | D64: 0.08333333333 | E64: 0.08333333333 | F64: 0.08333333333 | G64: 0.08333333333 | H64: 0.08333333333 | I64: 0.08333333333 | J64: 0.08333333333 | K64: 0.08333333333 | L64: 0.08333333333 | M64: 0.08333333333 | N64: =SUM(B64:M64)*Budget!H72 -> 2097.45
A65: =Budget!B73 -> 0 | N65: =SUM(B65:M65)*Budget!H73 -> 0
A66: =Budget!B74 -> 0 | N66: =SUM(B66:M66)*Budget!H74 -> 0
A67: =Budget!B75 -> Dépense autre produit | N67: =SUM(B67:M67)*Budget!H75 -> 0
A68: =Budget!B76 -> Dépense autre produit | N68: =SUM(B68:M68)*Budget!H76 -> 0
A69: =Budget!B77 -> Dépense autre produit | N69: =SUM(B69:M69)*Budget!H77 -> 0
A70: TOTAL DES DÉBOURS | B70: =SUMPRODUCT(B33:B69,$N$33:$N$69) -> 1124.6175 | C70: 3134.75 | D70: 33336.55205 | E70: 1188.2475 | F70: 2506.725 | G70: 3056.0625 | H70: 8373.4363 | I70: 3128.2425 | J70: 5941.3919 | K70: 47860.44375 | L70: 1222.25625 | M70: =SUMPRODUCT(M33:M69,$N$33:$N$69) -> 4697.76625 | N70: =SUM(N33:N69) -> 115570.4915
A71: Investissements
A72: Achat de vaches, génisses et taures | K72: 1 | N72: =SUM(B72:M72)*(Don_écon.!H26+Don_écon.!H27) -> 0
A73: Achat de taureaux | K73: 1 | N73: =SUM(B73:M73)*Don_écon.!H28 -> 0
A74: Achat de la ferme (ou participation) | F74: 1 | N74: =SUM(B74:M74)*Don_écon.!H24 -> 0
A75: Aménagement de l'étable et du site | I75: 0.25 | J75: 0.5 | K75: 0.25 | N75: =SUM(B75:M75)*Don_écon.!H30 -> 0
A76: Achat de machinerie et équipement | G76: 1 | N76: =SUM(B76:M76)*Don_écon.!H31 -> 0
A77: Achat de terre | G77: 1 | N77: =SUM(B77:M77)*Don_écon.!H34 -> 0
A78: Frais de démarrage / transfert | F78: 1 | N78: =SUM(B78:M78)*Don_écon.!H33 -> 0
N79: =SUM(B79:M79)*Don_écon.!H38 -> 0
N80: =SUM(B80:M80)*Don_écon.!H39 -> 0
A81: TOTAL DES INVESTISSEMENTS | B81: =SUMPRODUCT(B72:B80,$N$72:$N$80) -> 0 | C81: 0 | D81: 0 | E81: 0 | F81: 0 | G81: 0 | H81: 0 | I81: 0 | J81: 0 | K81: 0 | L81: 0 | M81: 0 | N81: =SUM(N72:N80) -> 0
A82: Remboursements (Annuité: K + i)
A83: Emprunt 1 | B83: =100%/12 -> 0.08333333333 | C83: =100%/12 -> 0.08333333333 | D83: 0.08333333333 | E83: 0.08333333333 | F83: 0.08333333333 | G83: 0.08333333333 | H83: 0.08333333333 | I83: 0.08333333333 | J83: 0.08333333333 | K83: 0.08333333333 | L83: 0.08333333333 | M83: 0.08333333333 | N83: =IF(G1='Emprunt 1'!E18,'Emprunt 1'!E21,IF(G1=1+'Emprunt 1'!E18,'Emprunt 1'!E22,IF(G1=2+'Emprunt 1'!E18,'Emprunt 1'!E23,0))) -> 18979.04704
A84: Emprunt 2 | B84: =100%/12 -> 0.08333333333 | C84: 0.08333333333 | D84: 0.08333333333 | E84: 0.08333333333 | F84: 0.08333333333 | G84: 0.08333333333 | H84: 0.08333333333 | I84: 0.08333333333 | J84: 0.08333333333 | K84: 0.08333333333 | L84: 0.08333333333 | M84: 0.08333333333 | N84: =IF(G1='Emprunt 2'!E18,'Emprunt 2'!E21,IF(G1=1+'Emprunt 2'!E18,'Emprunt 2'!E22,IF(G1=2+'Emprunt 2'!E18,'Emprunt 2'!E23,0))) -> 0
A85: Emprunt 3 | N85: =IF(G1='Emprunt 3'!E18,'Emprunt 3'!E21,IF(G1=1+'Emprunt 3'!E18,'Emprunt 3'!E22,IF(G1=2+'Emprunt 3'!E18,'Emprunt 3'!E23,0))) -> 0
A86: Emprunt supplémentaire | N86: =IF(G1='Emprunt supplémentaire'!E18,'Emprunt supplémentaire'!E21,IF(G1=1+'Emprunt supplémentaire'!E18,'Emprunt supplémentaire'!E22,IF(G1=2+'Emprunt supplémentaire'!E18,'Emprunt supplémentaire'!E23,0))) -> 0
N87: =SUM(B79:M79)*Don_écon.!H38 -> 0
N88: =SUM(B80:M80)*Don_écon.!H39 -> 0
A89: TOTAL DES REMBOURSEMENTS | B89: =SUMPRODUCT(B83:B88,$N$83:$N$88) -> 1581.587253 | C89: 1581.587253 | D89: 1581.587253 | E89: 1581.587253 | F89: 1581.587253 | G89: 1581.587253 | H89: 1581.587253 | I89: 1581.587253 | J89: 1581.587253 | K89: 1581.587253 | L89: 1581.587253 | M89: 1581.587253 | N89: =SUM(N83:N88) -> 18979.04704
A91: TOTAL DES SORTIES | B91: =B70+B81+B89 -> 2706.204753 | C91: 4716.337253 | D91: 34918.1393 | E91: 2769.834753 | F91: 4088.312253 | G91: 4637.649753 | H91: 9955.023553 | I91: 4709.829753 | J91: 7522.979153 | K91: 49442.031 | L91: 2803.843503 | M91: 6279.353503 | N91: 134549.5385
A93: TRÉSORERIE DE DÉBUT DE MOIS | B93: ='Trésorerie année 2'!N98 -> -505373.5295 | C93: =B98 -> -508079.7342 | D93: =C98 -> -512796.0715 | E93: -547714.2108 | F93: -550484.0455 | G93: -554572.3578 | H93: -559210.0075 | I93: -557699.9383 | J93: -562409.768 | K93: -569932.7472 | L93: -619374.7782 | M93: -622178.6217
A94: ENTRÉES - SORTIES D'ARGENT | B94: =B21+B29-B70-B81-B89 -> -2706.204753 | C94: -4716.337253 | D94: -34918.1393 | E94: -2769.834753 | F94: -4088.312253 | G94: -4637.649753 | H94: 1510.069258 | I94: -4709.829753 | J94: -7522.979153 | K94: -49442.031 | L94: -2803.843503 | M94: 68241.27544
A95: COÛTS DE VIE | B95: =-Coût_vie!$H$54 -> 0 | C95: =-Coût_vie!$H$54 -> 0 | D95: =-Coût_vie!$H$54 -> 0 | E95: =-Coût_vie!$H$54 -> 0 | F95: =-Coût_vie!$H$54 -> 0 | G95: =-Coût_vie!$H$54 -> 0 | H95: =-Coût_vie!$H$54 -> 0 | I95: =-Coût_vie!$H$54 -> 0 | J95: =-Coût_vie!$H$54 -> 0 | K95: =-Coût_vie!$FH$54 -> 0 | L95: =-Coût_vie!$H$54 -> 0 | M95: =-Coût_vie!$H$54 -> 0 | N95: =SUM(B95:M95) -> 0
A96: REVENUS EXTÉRIEURS | B96: =Coût_vie!$F$20 -> 0 | C96: =Coût_vie!$F$20 -> 0 | D96: =Coût_vie!$F$20 -> 0 | E96: =Coût_vie!$F$20 -> 0 | F96: =Coût_vie!$F$20 -> 0 | G96: =Coût_vie!$F$20 -> 0 | H96: =Coût_vie!$F$20 -> 0 | I96: =Coût_vie!$F$20 -> 0 | J96: =Coût_vie!$F$20 -> 0 | K96: =Coût_vie!$F$20 -> 0 | L96: =Coût_vie!$F$20 -> 0 | M96: =Coût_vie!$F$20 -> 0 | N96: =SUM(B96:M96) -> 0
A98: SOLDE DE TRÉSORERIE FIN DE MOIS | B98: =B93+B94+B95+B96 -> -508079.7342 | C98: =C93+C94+C95+C96 -> -512796.0715 | D98: -547714.2108 | E98: -550484.0455 | F98: -554572.3578 | G98: -559210.0075 | H98: -557699.9383 | I98: -562409.768 | J98: -569932.7472 | K98: -619374.7782 | L98: -622178.6217 | M98: -553937.3463 | N98: =(M98) -> -553937.3463

Sheet Trésorerie année 4 (hidden)
C1: BUDGET DE TRÉSORERIE POUR L'ANNÉE: | G1: ='Trésorerie année 1'!G1+3 -> 2022
B3: JANVIER | C3: FÉVRIER | D3: MARS | E3: AVRIL | F3: MAI | G3: JUIN | H3: JUILLET | I3: AOÛT | J3: SEPTEMBRE | K3: OCTOBRE | L3: NOVEMBRE | M3: DÉCEMBRE | N3: ANNEE
A4: ENTRÉES
A5: =Budget!B16 -> Vente de veau d'embouche | B5: =IF(TEXT(Don_tech.!$I$23,"mmmm")=B3,100%,"") ->  | C5: =IF(TEXT(Don_tech.!$I$23,"mmmm")=C3,100%,"") ->  | D5: =IF(TEXT(Don_tech.!$I$23,"mmmm")=D3,100%,"") ->  | E5: =IF(TEXT(Don_tech.!$I$23,"mmmm")=E3,100%,"") ->  | F5: =IF(TEXT(Don_tech.!$I$23,"mmmm")=F3,100%,"") ->  | G5: =IF(TEXT(Don_tech.!$I$23,"mmmm")=G3,100%,"") ->  | H5: =IF(TEXT(Don_tech.!$I$23,"mmmm")=H3,100%,"") ->  | I5: =IF(TEXT(Don_tech.!$I$23,"mmmm")=I3,100%,"") ->  | J5: =IF(TEXT(Don_tech.!$I$23,"mmmm")=J3,100%,"") ->  | K5: =IF(TEXT(Don_tech.!$I$23,"mmmm")=K3,100%,"") ->  | L5: =IF(TEXT(Don_tech.!$I$23,"mmmm")=L3,100%,"") ->  | M5: =IF(TEXT(Don_tech.!$I$23,"mmmm")=M3,100%,"") -> 1 | N5: =SUM(B5:M5)*Budget!I16 -> 76122.816 | O5: Periode de vente
A6: =Budget!B17 -> Vente de vaches réformées | B6: =IF(TEXT(Don_tech.!$I$23,"mmmm")=B3,100%,"") ->  | C6: =IF(TEXT(Don_tech.!$I$23,"mmmm")=C3,100%,"") ->  | D6: =IF(TEXT(Don_tech.!$I$23,"mmmm")=D3,100%,"") ->  | E6: =IF(TEXT(Don_tech.!$I$23,"mmmm")=E3,100%,"") ->  | F6: =IF(TEXT(Don_tech.!$I$23,"mmmm")=F3,100%,"") ->  | G6: =IF(TEXT(Don_tech.!$I$23,"mmmm")=G3,100%,"") ->  | H6: =IF(TEXT(Don_tech.!$I$23,"mmmm")=H3,100%,"") ->  | I6: =IF(TEXT(Don_tech.!$I$23,"mmmm")=I3,100%,"") ->  | J6: =IF(TEXT(Don_tech.!$I$23,"mmmm")=J3,100%,"") ->  | K6: =IF(TEXT(Don_tech.!$I$23,"mmmm")=K3,100%,"") ->  | L6: =IF(TEXT(Don_tech.!$I$23,"mmmm")=L3,100%,"") ->  | M6: =IF(TEXT(Don_tech.!$I$23,"mmmm")=M3,100%,"") -> 1 | N6: =SUM(B6:M6)*Budget!I17 -> 9152 | O6: Periode de vente
A7: =Budget!B18 -> Vente de taureaux réformés | B7: =IF(TEXT(Don_tech.!$I$23,"mmmm")=B3,100%,"") ->  | C7: =IF(TEXT(Don_tech.!$I$23,"mmmm")=C3,100%,"") ->  | D7: =IF(TEXT(Don_tech.!$I$23,"mmmm")=D3,100%,"") ->  | E7: =IF(TEXT(Don_tech.!$I$23,"mmmm")=E3,100%,"") ->  | F7: =IF(TEXT(Don_tech.!$I$23,"mmmm")=F3,100%,"") ->  | G7: =IF(TEXT(Don_tech.!$I$23,"mmmm")=G3,100%,"") ->  | H7: =IF(TEXT(Don_tech.!$I$23,"mmmm")=H3,100%,"") ->  | I7: =IF(TEXT(Don_tech.!$I$23,"mmmm")=I3,100%,"") ->  | J7: =IF(TEXT(Don_tech.!$I$23,"mmmm")=J3,100%,"") ->  | K7: =IF(TEXT(Don_tech.!$I$23,"mmmm")=K3,100%,"") ->  | L7: =IF(TEXT(Don_tech.!$I$23,"mmmm")=L3,100%,"") ->  | M7: =IF(TEXT(Don_tech.!$I$23,"mmmm")=M3,100%,"") -> 1 | N7: =SUM(B7:M7)*Budget!I18 -> 0 | O7: Periode de vente
A8: =Budget!B19 -> Vente de sujets reproduction | B8: =IF(TEXT(Don_tech.!$I$23,"mmmm")=B3,100%,"") ->  | C8: =IF(TEXT(Don_tech.!$I$23,"mmmm")=C3,100%,"") ->  | D8: =IF(TEXT(Don_tech.!$I$23,"mmmm")=D3,100%,"") ->  | E8: =IF(TEXT(Don_tech.!$I$23,"mmmm")=E3,100%,"") ->  | F8: =IF(TEXT(Don_tech.!$I$23,"mmmm")=F3,100%,"") ->  | G8: =IF(TEXT(Don_tech.!$I$23,"mmmm")=G3,100%,"") ->  | H8: =IF(TEXT(Don_tech.!$I$23,"mmmm")=H3,100%,"") ->  | I8: =IF(TEXT(Don_tech.!$I$23,"mmmm")=I3,100%,"") ->  | J8: =IF(TEXT(Don_tech.!$I$23,"mmmm")=J3,100%,"") ->  | K8: =IF(TEXT(Don_tech.!$I$23,"mmmm")=K3,100%,"") ->  | L8: =IF(TEXT(Don_tech.!$I$23,"mmmm")=L3,100%,"") ->  | M8: =IF(TEXT(Don_tech.!$I$23,"mmmm")=M3,100%,"") -> 1 | N8: =SUM(B8:M8)*Budget!I19 -> 0 | O8: Periode de vente
A9: =Budget!B20 -> ASRA bovin nette | H9: 0.5 | M9: 0.5 | N9: =SUM(B9:M9)*Budget!I20 -> 28851.43984 | O9: ASRA
A10: =Budget!B21 -> Agri-investissement et agri-Québec | B10: =IF(TEXT(Don_tech.!$I$23,"mmmm")=B3,100%,"") ->  | C10: =IF(TEXT(Don_tech.!$I$23,"mmmm")=C3,100%,"") ->  | D10: =IF(TEXT(Don_tech.!$I$23,"mmmm")=D3,100%,"") ->  | E10: =IF(TEXT(Don_tech.!$I$23,"mmmm")=E3,100%,"") ->  | F10: =IF(TEXT(Don_tech.!$I$23,"mmmm")=F3,100%,"") ->  | G10: =IF(TEXT(Don_tech.!$I$23,"mmmm")=G3,100%,"") ->  | H10: =IF(TEXT(Don_tech.!$I$23,"mmmm")=H3,100%,"") ->  | I10: =IF(TEXT(Don_tech.!$I$23,"mmmm")=I3,100%,"") ->  | J10: =IF(TEXT(Don_tech.!$I$23,"mmmm")=J3,100%,"") ->  | K10: =IF(TEXT(Don_tech.!$I$23,"mmmm")=K3,100%,"") ->  | L10: =IF(TEXT(Don_tech.!$I$23,"mmmm")=L3,100%,"") ->  | M10: =IF(TEXT(Don_tech.!$I$23,"mmmm")=M3,100%,"") -> 1 | N10: =SUM(B10:M10)*Budget!I21 -> 801.909605 | O10: Periode de vente
A11: =Budget!B22 -> Vente de foin | I11: 0.5 | K11: 0.5 | N11: =SUM(B11:M11)*Budget!I22 -> 0
A12: =Budget!B23 -> Vente de céréales | K12: 1 | N12: =SUM(B12:M12)*Budget!I23 -> 0
A13: =Budget!B24 -> ASRA céréales | M13: 0.4 | N13: =SUM(B13:M13)*Budget!I24 -> 0
A14: =Budget!B25 -> Divers: | M14: 1 | N14: =SUM(B14:M14)*Budget!I25 -> 0
A15: =Budget!B26 -> 0 | N15: =SUM(B15:M15)*Budget!II26 -> 0
A16: =Budget!B27 -> 0 | N16: =SUM(B16:M16)*Budget!I27 -> 0
A17: =Budget!B28 -> 0 | N17: =SUM(B17:M17)*Budget!II28 -> 0
A18: =Budget!B29 -> Vente autre produit | N18: =SUM(B18:M18)*Budget!I29 -> 0
A19: =Budget!B30 -> Vente autre produit | N19: =SUM(B19:M19)*Budget!I30 -> 0
A20: =Budget!B31 -> Vente autre produit | N20: =SUM(B20:M20)*Budget!I31 -> 0
A21: TOTAL DES RECETTES | B21: =SUMPRODUCT(B5:B20,$N$5:$N$20) -> 0 | C21: 0 | D21: 0 | E21: 0 | F21: 0 | G21: 0 | H21: 14425.71992 | I21: 0 | J21: 0 | K21: 0 | L21: 0 | M21: =SUMPRODUCT(M5:M20,$N$5:$N$20) -> 100502.4455 | N21: =SUM(N5:N14) -> 114928.1654
A22: Déboursé Emprunt 1 | B22: =IF('Emprunt 1'!$E$14="","",IF(TEXT('Emprunt 1'!$E$14,"mmmm")=B3,100%,"")) ->  | C22: =IF('Emprunt 1'!$E$14="","",IF(TEXT('Emprunt 1'!$E$14,"mmmm")=C3,100%,"")) ->  | D22: =IF('Emprunt 1'!$E$14="","",IF(TEXT('Emprunt 1'!$E$14,"mmmm")=D3,100%,"")) ->  | E22: =IF('Emprunt 1'!$E$14="","",IF(TEXT('Emprunt 1'!$E$14,"mmmm")=E3,100%,"")) ->  | F22: =IF('Emprunt 1'!$E$14="","",IF(TEXT('Emprunt 1'!$E$14,"mmmm")=F3,100%,"")) ->  | G22: =IF('Emprunt 1'!$E$14="","",IF(TEXT('Emprunt 1'!$E$14,"mmmm")=G3,100%,"")) ->  | H22: =IF('Emprunt 1'!$E$14="","",IF(TEXT('Emprunt 1'!$E$14,"mmmm")=H3,100%,"")) ->  | I22: =IF('Emprunt 1'!$E$14="","",IF(TEXT('Emprunt 1'!$E$14,"mmmm")=I3,100%,"")) ->  | J22: =IF('Emprunt 1'!$E$14="","",IF(TEXT('Emprunt 1'!$E$14,"mmmm")=J3,100%,"")) -> 1 | K22: =IF('Emprunt 1'!$E$14="","",IF(TEXT('Emprunt 1'!$E$14,"mmmm")=K3,100%,"")) ->  | L22: =IF('Emprunt 1'!$E$14="","",IF(TEXT('Emprunt 1'!$E$14,"mmmm")=L3,100%,"")) ->  | M22: =IF('Emprunt 1'!$E$14="","",IF(TEXT('Emprunt 1'!$E$14,"mmmm")=M3,100%,"")) ->  | N22: =IF(G1='Emprunt 1'!E18,SUM(B22:M22)*'Emprunt 1'!E17,0) -> 0 | O22: Date du 1e paiement
A23: Déboursé Emprunt 2 | B23: =IF('Emprunt 2'!$E$14="","",IF(TEXT('Emprunt 2'!$E$14,"mmmm")=B3,100%,"")) -> 1 | C23: =IF('Emprunt 2'!$E$14="","",IF(TEXT('Emprunt 2'!$E$14,"mmmm")=C3,100%,"")) ->  | D23: =IF('Emprunt 2'!$E$14="","",IF(TEXT('Emprunt 2'!$E$14,"mmmm")=D3,100%,"")) ->  | E23: =IF('Emprunt 2'!$E$14="","",IF(TEXT('Emprunt 2'!$E$14,"mmmm")=E3,100%,"")) ->  | F23: =IF('Emprunt 2'!$E$14="","",IF(TEXT('Emprunt 2'!$E$14,"mmmm")=F3,100%,"")) ->  | G23: =IF('Emprunt 2'!$E$14="","",IF(TEXT('Emprunt 2'!$E$14,"mmmm")=G3,100%,"")) ->  | H23: =IF('Emprunt 2'!$E$14="","",IF(TEXT('Emprunt 2'!$E$14,"mmmm")=H3,100%,"")) ->  | I23: =IF('Emprunt 2'!$E$14="","",IF(TEXT('Emprunt 2'!$E$14,"mmmm")=I3,100%,"")) ->  | J23: =IF('Emprunt 2'!$E$14="","",IF(TEXT('Emprunt 2'!$E$14,"mmmm")=J3,100%,"")) ->  | K23: =IF('Emprunt 2'!$E$14="","",IF(TEXT('Emprunt 2'!$E$14,"mmmm")=K3,100%,"")) ->  | L23: =IF('Emprunt 2'!$E$14="","",IF(TEXT('Emprunt 2'!$E$14,"mmmm")=L3,100%,"")) ->  | M23: =IF('Emprunt 2'!$E$14="","",IF(TEXT('Emprunt 2'!$E$14,"mmmm")=M3,100%,"")) ->  | N23: =IF(G1='Emprunt 2'!E18,SUM(B23:M23)*'Emprunt 2'!E17,0) -> 0 | O23: Date du 1e paiement
A24: Déboursé Emprunt 3 | B24: =IF('Emprunt 3'!$E$14="","",IF(TEXT('Emprunt 3'!$E$14,"mmmm")=B3,100%,"")) ->  | C24: =IF('Emprunt 3'!$E$14="","",IF(TEXT('Emprunt 3'!$E$14,"mmmm")=C3,100%,"")) ->  | D24: =IF('Emprunt 3'!$E$14="","",IF(TEXT('Emprunt 3'!$E$14,"mmmm")=D3,100%,"")) ->  | E24: =IF('Emprunt 3'!$E$14="","",IF(TEXT('Emprunt 3'!$E$14,"mmmm")=E3,100%,"")) ->  | F24: =IF('Emprunt 3'!$E$14="","",IF(TEXT('Emprunt 3'!$E$14,"mmmm")=F3,100%,"")) ->  | G24: =IF('Emprunt 3'!$E$14="","",IF(TEXT('Emprunt 3'!$E$14,"mmmm")=G3,100%,"")) ->  | H24: =IF('Emprunt 3'!$E$14="","",IF(TEXT('Emprunt 3'!$E$14,"mmmm")=H3,100%,"")) ->  | I24: =IF('Emprunt 3'!$E$14="","",IF(TEXT('Emprunt 3'!$E$14,"mmmm")=I3,100%,"")) ->  | J24: =IF('Emprunt 3'!$E$14="","",IF(TEXT('Emprunt 3'!$E$14,"mmmm")=J3,100%,"")) ->  | K24: =IF('Emprunt 3'!$E$14="","",IF(TEXT('Emprunt 3'!$E$14,"mmmm")=K3,100%,"")) ->  | L24: =IF('Emprunt 3'!$E$14="","",IF(TEXT('Emprunt 3'!$E$14,"mmmm")=L3,100%,"")) ->  | M24: =IF('Emprunt 3'!$E$14="","",IF(TEXT('Emprunt 3'!$E$14,"mmmm")=M3,100%,"")) ->  | N24: =IF(G1='Emprunt 3'!E18,SUM(B24:M24)*'Emprunt 3'!E17,0) -> 0 | O24: Date du 1e paiement
A25: Déboursé Emprunt supplémentaire | B25: =IF('Emprunt supplémentaire'!E14="","",IF(TEXT('Emprunt supplémentaire'!E14,"mmmm")=B3,100%,"")) ->  | C25: =IF('Emprunt supplémentaire'!F14="","",IF(TEXT('Emprunt supplémentaire'!F14,"mmmm")=C3,100%,"")) ->  | D25: =IF('Emprunt supplémentaire'!G14="","",IF(TEXT('Emprunt supplémentaire'!G14,"mmmm")=D3,100%,"")) ->  | E25: =IF('Emprunt supplémentaire'!H14="","",IF(TEXT('Emprunt supplémentaire'!H14,"mmmm")=E3,100%,"")) ->  | F25: =IF('Emprunt supplémentaire'!I14="","",IF(TEXT('Emprunt supplémentaire'!I14,"mmmm")=F3,100%,"")) ->  | G25: =IF('Emprunt supplémentaire'!J14="","",IF(TEXT('Emprunt supplémentaire'!J14,"mmmm")=G3,100%,"")) ->  | H25: =IF('Emprunt supplémentaire'!K14="","",IF(TEXT('Emprunt supplémentaire'!K14,"mmmm")=H3,100%,"")) ->  | I25: =IF('Emprunt supplémentaire'!L14="","",IF(TEXT('Emprunt supplémentaire'!L14,"mmmm")=I3,100%,"")) ->  | J25: =IF('Emprunt supplémentaire'!M14="","",IF(TEXT('Emprunt supplémentaire'!M14,"mmmm")=J3,100%,"")) ->  | K25: =IF('Emprunt supplémentaire'!N14="","",IF(TEXT('Emprunt supplémentaire'!N14,"mmmm")=K3,100%,"")) ->  | L25: =IF('Emprunt supplémentaire'!O14="","",IF(TEXT('Emprunt supplémentaire'!O14,"mmmm")=L3,100%,"")) ->  | M25: =IF('Emprunt supplémentaire'!P14="","",IF(TEXT('Emprunt supplémentaire'!P14,"mmmm")=M3,100%,"")) ->  | N25: =IF(G1='Emprunt supplémentaire'!E18,SUM(B25:M25)*'Emprunt supplémentaire'!E17,0) -> 0 | O25: Date du 1e paiement
A26: Aide au démarrage FADQ | J26: 1 | N26: =SUM(B26:M26)*Don_écon.!I32 -> 0
A27: Autre aide financière 1 | N27: =SUM(B27:M27)*Don_écon.!I36 -> 0
A28: Autre aide financière 2 | N28: =SUM(B28:M28)*Don_écon.!I37 -> 0
A29: TOTAL DES EMPRUNTS ET AIDES | B29: =SUMPRODUCT(B22:B28,$N$22:$N$28) -> 0 | C29: 0 | D29: 0 | E29: 0 | F29: 0 | G29: 0 | H29: 0 | I29: 0 | J29: 0 | K29: 0 | L29: 0 | M29: =SUMPRODUCT(M22:M28,$N$22:$N$28) -> 0 | N29: =SUM(N22:N28) -> 0
A30: TOTAL DES ENTRÉES | B30: =B21+B29 -> 0 | C30: 0 | D30: 0 | E30: 0 | F30: 0 | G30: 0 | H30: 14425.71992 | I30: 0 | J30: 0 | K30: 0 | L30: 0 | M30: 100502.4455 | N30: 114928.1654
A32: SORTIES
A33: =Budget!B41 -> Achat de femelles | K33: 1 | N33: =SUM(B33:M33)*Budget!I41 -> 47500
A34: =Budget!B42 -> Achat de taureaux | D34: 0.7 | K34: 0.3 | N34: =SUM(B34:M34)*Budget!I42 -> 0
A35: =Budget!B43 -> Achat de foin | D35: 0.7 | H35: 0.2 | J35: 0.1 | N35: =SUM(B35:M35)*Budget!I43 -> 40144.7945
A36: =Budget!B44 -> Achat de grains | J36: 0.25 | K36: 0.25 | L36: 0.25 | M36: 0.25 | N36: =SUM(B36:M36)*Budget!I44 -> 720
A37: =Budget!B45 -> Suppléments protéiques | J37: 0.25 | K37: 0.25 | L37: 0.25 | M37: 0.25 | N37: =SUM(B37:M37)*Budget!I45 -> 279
A38: =Budget!B46 -> Moulée | D38: 0.25 | E38: 0.25 | F38: 0.5 | N38: =SUM(B38:M38)*Budget!I46 -> 0
A39: =Budget!B47 -> Vitamines et minéraux | B39: 0.08333333333 | C39: 0.08333333333 | D39: 0.08333333333 | E39: 0.08333333333 | F39: 0.08333333333 | G39: 0.08333333333 | H39: 0.08333333333 | I39: 0.08333333333 | J39: 0.08333333333 | K39: 0.08333333333 | L39: 0.08333333333 | M39: 0.08333333333 | N39: =SUM(B39:M39)*Budget!I47 -> 3529.95
A40: =Budget!B48 -> Vétérinaire et médicaments | C40: 0.6 | D40: 0.04 | E40: 0.04 | F40: 0.04 | G40: 0.04 | H40: 0.04 | I40: 0.04 | J40: 0.04 | K40: 0.04 | L40: 0.04 | M40: 0.04 | N40: =SUM(B40:M40)*Budget!I48 -> 1944.25
A41: =Budget!B49 -> Identifiants | C41: 1 | N41: =SUM(B41:M41)*Budget!I49 -> 89.76
A42: =Budget!B50 -> Litière | B42: 0.2 | C42: 0.2 | D42: 0.2 | E42: 0.2 | M42: 0.2 | N42: =SUM(B42:M42)*Budget!I50 -> 1000.45
A43: =Budget!B51 -> Transport | M43: 1 | N43: =SUM(B43:M43)*Budget!I51 -> 1807.68
A44: =Budget!B52 -> Mise en marché | M44: 1 | N44: =SUM(B44:M44)*Budget!I52 -> 1874.64
A45: =Budget!B53 -> Carburant et lubrifiant étable | B45: 0.05 | C45: 0.05 | D45: 0.05 | E45: 0.05 | F45: 0.15 | G45: 0.15 | H45: 0.15 | I45: 0.1 | J45: 0.1 | K45: 0.05 | L45: 0.05 | M45: 0.05 | N45: =SUM(B45:M45)*Budget!I53 -> 550
A46: =Budget!B54 -> Ent.&rép. mach.&équip.&im. | B46: 0.05 | C46: 0.05 | D46: 0.05 | E46: 0.05 | F46: 0.15 | G46: 0.15 | H46: 0.15 | I46: 0.1 | J46: 0.1 | K46: 0.05 | L46: 0.05 | M46: 0.05 | N46: =SUM(B46:M46)*Budget!I54 -> 5531.35
A47: =Budget!B55 -> Approv. Semences céréales | D47: 1 | N47: =SUM(B47:M47)*Budget!I55 -> 0
A48: =Budget!B56 -> Approv. Semences fourrage | D48: 1 | N48: =SUM(B48:M48)*Budget!I56 -> 1370
A49: =Budget!B57 -> Approv. céréales (pest.,engr.,etc) | D49: 1 | N49: =SUM(B49:M49)*Budget!I57 -> 0
A50: =Budget!B58 -> Approv. fourrages (pest,engr.,etc) | D50: 1 | N50: =SUM(B50:M50)*Budget!I58 -> 7500
A51: =Budget!B59 -> Autres frais pour prairie | D51: 1 | N51: =SUM(B51:M51)*Budget!I59 -> 900
A52: =Budget!B60 -> Autres frais pour céréales | D52: 1 | N52: =SUM(B52:M52)*Budget!I60 -> 0
A53: =Budget!B61 -> Asra céréales (contribution) | N53: =SUM(B53:M53)*Budget!I61 -> 0
A54: =Budget!B62 -> Ass récolte céréale | N54: =SUM(B54:M54)*Budget!I62 -> 0
A55: =Budget!B63 -> Assurance récolte fourrage | M55: 1 | N55: =SUM(B55:M55)*Budget!I63 -> 440.44
A56: =Budget!B64 -> Ent.& rép. fds de ter. bâtim. | H56: 0.25 | I56: 0.25 | J56: 0.25 | K56: 0.25 | N56: =SUM(B56:M56)*Budget!I64 -> 2142.25
A57: =Budget!B65 -> Travaux à forfait | G57: 0.25 | H57: 0.25 | I57: 0.25 | J57: 0.25 | N57: =SUM(B57:M57)*Budget!I65 -> 2112.55
A58: =Budget!B66 -> Taxes municipale.&scolaires | D58: 0.5 | G58: 0.25 | J58: 0.25 | N58: =SUM(B58:M58)*Budget!I66 -> 573.1
A59: =Budget!B67 -> Ass. gén. incluant maison | B59: 0.08333333333 | C59: 0.08333333333 | D59: 0.08333333333 | E59: 0.08333333333 | F59: 0.08333333333 | G59: 0.08333333333 | H59: 0.08333333333 | I59: 0.08333333333 | J59: 0.08333333333 | K59: 0.08333333333 | L59: 0.08333333333 | M59: 0.08333333333 | N59: =SUM(B59:M59)*Budget!I67 -> 2035.55
A60: =Budget!B68 -> Electricité | B60: 0.08333333333 | C60: 0.08333333333 | D60: 0.08333333333 | E60: 0.08333333333 | F60: 0.08333333333 | G60: 0.08333333333 | H60: 0.08333333333 | I60: 0.08333333333 | J60: 0.08333333333 | K60: 0.08333333333 | L60: 0.08333333333 | M60: 0.08333333333 | N60: =SUM(B60:M60)*Budget!I68 -> 830.5
A61: =Budget!B69 -> Salaire | C61: 0.15 | D61: 0.1 | F61: 0.15 | G61: 0.15 | H61: 0.15 | I61: 0.15 | J61: 0.15 | N61: =SUM(B61:M61)*Budget!I69 -> 8022.85
A62: =Budget!B70 -> Loc. de bâti.& fds de terre | C62: 1 | N62: =SUM(B62:M62)*Budget!I70 -> 0
A63: =Budget!B71 -> Intérêt court terme | B63: 0.08333333333 | C63: 0.08333333333 | D63: 0.08333333333 | E63: 0.08333333333 | F63: 0.08333333333 | G63: 0.08333333333 | H63: 0.08333333333 | I63: 0.08333333333 | J63: 0.08333333333 | K63: 0.08333333333 | L63: 0.08333333333 | M63: 0.08333333333 | N63: =SUM(B63:M63)*Budget!I71 -> 1403.05
A64: =Budget!B72 -> Autres frais | B64: 0.08333333333 | C64: 0.08333333333 | D64: 0.08333333333 | E64: 0.08333333333 | F64: 0.08333333333 | G64: 0.08333333333 | H64: 0.08333333333 | I64: 0.08333333333 | J64: 0.08333333333 | K64: 0.08333333333 | L64: 0.08333333333 | M64: 0.08333333333 | N64: =SUM(B64:M64)*Budget!I72 -> 2563.55
A65: =Budget!B73 -> 0 | N65: =SUM(B65:M65)*Budget!I73 -> 0
A66: =Budget!B74 -> 0 | N66: =SUM(B66:M66)*Budget!I74 -> 0
A67: =Budget!B75 -> Dépense autre produit | N67: =SUM(B67:M67)*Budget!I75 -> 0
A68: =Budget!B76 -> Dépense autre produit | N68: =SUM(B68:M68)*Budget!I76 -> 0
A69: =Budget!B77 -> Dépense autre produit | N69: =SUM(B69:M69)*Budget!I77 -> 0
A70: TOTAL DES DÉBOURS | B70: =SUMPRODUCT(B33:B69,$N$33:$N$69) -> 1367.7075 | C70: 3827.445 | D70: 40405.66865 | E70: 1445.4775 | F70: 3056.95 | G70: 3728.3625 | H70: 12149.6089 | I70: 3816.5825 | J70: 8224.08695 | K70: 49530.7 | L70: 1495.1375 | M70: =SUMPRODUCT(M33:M69,$N$33:$N$69) -> 5817.9875 | N70: =SUM(N33:N69) -> 134865.7145
A71: Investissements
A72: Achat de vaches, génisses et taures | K72: 1 | N72: =SUM(B72:M72)*(Don_écon.!I26+Don_écon.!I27) -> 0
A73: Achat de taureaux | K73: 1 | N73: =SUM(B73:M73)*Don_écon.!I28 -> 0
A74: Achat de la ferme (ou participation) | F74: 1 | N74: =SUM(B74:M74)*Don_écon.!I24 -> 0
A75: Aménagement de l'étable et du site | I75: 0.25 | J75: 0.5 | K75: 0.25 | N75: =SUM(B75:M75)*Don_écon.!I30 -> 0
A76: Achat de machinerie et équipement | G76: 1 | N76: =SUM(B76:M76)*Don_écon.!I31 -> 0
A77: Achat de terre | G77: 1 | N77: =SUM(B77:M77)*Don_écon.!I34 -> 0
A78: Frais de démarrage / transfert | F78: 1 | N78: =SUM(B78:M78)*Don_écon.!I33 -> 0
N79: =SUM(B79:M79)*Don_écon.!I38 -> 0
N80: =SUM(B80:M80)*Don_écon.!I39 -> 0
A81: TOTAL DES INVESTISSEMENTS | B81: =SUMPRODUCT(B72:B80,$N$72:$N$80) -> 0 | C81: 0 | D81: 0 | E81: 0 | F81: 0 | G81: 0 | H81: 0 | I81: 0 | J81: 0 | K81: 0 | L81: 0 | M81: 0 | N81: =SUM(N72:N80) -> 0
A82: Remboursements (Annuité: K + i)
A83: Emprunt 1 | B83: =100%/12 -> 0.08333333333 | C83: =100%/12 -> 0.08333333333 | D83: 0.08333333333 | E83: 0.08333333333 | F83: 0.08333333333 | G83: 0.08333333333 | H83: 0.08333333333 | I83: 0.08333333333 | J83: 0.08333333333 | K83: 0.08333333333 | L83: 0.08333333333 | M83: 0.08333333333 | N83: =IF(G1='Emprunt 1'!E18,'Emprunt 1'!E21,IF(G1=1+'Emprunt 1'!E18,'Emprunt 1'!E22,IF(G1=2+'Emprunt 1'!E18,'Emprunt 1'!E23,IF(G1=3+'Emprunt 1'!E18,'Emprunt 1'!E24,0)))) -> 18979.04704
A84: Emprunt 2 | B84: =100%/12 -> 0.08333333333 | C84: 0.08333333333 | D84: 0.08333333333 | E84: 0.08333333333 | F84: 0.08333333333 | G84: 0.08333333333 | H84: 0.08333333333 | I84: 0.08333333333 | J84: 0.08333333333 | K84: 0.08333333333 | L84: 0.08333333333 | M84: 0.08333333333 | N84: =IF(G1='Emprunt 2'!E18,'Emprunt 2'!E21,IF(G1=1+'Emprunt 2'!E18,'Emprunt 2'!E22,IF(G1=2+'Emprunt 2'!E18,'Emprunt 2'!E23,IF(G1=3+'Emprunt 2'!E18,'Emprunt 2'!E24,0)))) -> 0
A85: Emprunt 3 | N85: =IF(G1='Emprunt 3'!E18,'Emprunt 3'!E21,IF(G1=1+'Emprunt 3'!E18,'Emprunt 3'!E22,IF(G1=2+'Emprunt 3'!E18,'Emprunt 3'!E23,IF(G1=3+'Emprunt 3'!E18,'Emprunt 3'!E24,0)))) -> 0
A86: Emprunt supplémentaire | N86: =IF(G1='Emprunt supplémentaire'!E18,'Emprunt supplémentaire'!E21,IF(G1=1+'Emprunt supplémentaire'!E18,'Emprunt supplémentaire'!E22,IF(G1=2+'Emprunt supplémentaire'!E18,'Emprunt supplémentaire'!E23,IF(G1=3+'Emprunt supplémentaire'!E18,'Emprunt supplémentaire'!E24,0)))) -> 0
N87: =SUM(B79:M79)*Don_écon.!I38 -> 0
N88: =SUM(B80:M80)*Don_écon.!I39 -> 0
A89: TOTAL DES REMBOURSEMENTS | B89: =SUMPRODUCT(B83:B88,$N$83:$N$88) -> 1581.587253 | C89: 1581.587253 | D89: 1581.587253 | E89: 1581.587253 | F89: 1581.587253 | G89: 1581.587253 | H89: 1581.587253 | I89: 1581.587253 | J89: 1581.587253 | K89: 1581.587253 | L89: 1581.587253 | M89: 1581.587253 | N89: =SUM(N83:N88) -> 18979.04704
A91: TOTAL DES SORTIES | B91: =B70+B81+B89 -> 2949.294753 | C91: 5409.032253 | D91: 41987.2559 | E91: 3027.064753 | F91: 4638.537253 | G91: 5309.949753 | H91: 13731.19615 | I91: 5398.169753 | J91: 9805.674203 | K91: 51112.28725 | L91: 3076.724753 | M91: 7399.574753 | N91: 153844.7615
A93: TRÉSORERIE DE DÉBUT DE MOIS | B93: ='Trésorerie année 3'!N98 -> -553937.3463 | C93: =B98 -> -556886.641 | D93: =C98 -> -562295.6733 | E93: -604282.9292 | F93: -607309.9939 | G93: -611948.5312 | H93: -617258.4809 | I93: -616563.9572 | J93: -621962.1269 | K93: -631767.8011 | L93: -682880.0884 | M93: -685956.8131
A94: ENTRÉES - SORTIES D'ARGENT | B94: =B21+B29-B70-B81-B89 -> -2949.294753 | C94: -5409.032253 | D94: -41987.2559 | E94: -3027.064753 | F94: -4638.537253 | G94: -5309.949753 | H94: 694.523765 | I94: -5398.169753 | J94: -9805.674203 | K94: -51112.28725 | L94: -3076.724753 | M94: 93102.87077
A95: COÛTS DE VIE | B95: =-Coût_vie!$J$54 -> 0 | C95: =-Coût_vie!$J$54 -> 0 | D95: =-Coût_vie!$J$54 -> 0 | E95: =-Coût_vie!$J$54 -> 0 | F95: =-Coût_vie!$J$54 -> 0 | G95: =-Coût_vie!$J$54 -> 0 | H95: =-Coût_vie!$J$54 -> 0 | I95: =-Coût_vie!$J$54 -> 0 | J95: =-Coût_vie!$J$54 -> 0 | K95: =-Coût_vie!$J$54 -> 0 | L95: =-Coût_vie!$J$54 -> 0 | M95: =-Coût_vie!$J$54 -> 0 | N95: =SUM(B95:M95) -> 0
A96: REVENUS EXTÉRIEURS | B96: =Coût_vie!$F$20 -> 0 | C96: =Coût_vie!$F$20 -> 0 | D96: =Coût_vie!$F$20 -> 0 | E96: =Coût_vie!$F$20 -> 0 | F96: =Coût_vie!$F$20 -> 0 | G96: =Coût_vie!$F$20 -> 0 | H96: =Coût_vie!$F$20 -> 0 | I96: =Coût_vie!$F$20 -> 0 | J96: =Coût_vie!$F$20 -> 0 | K96: =Coût_vie!$F$20 -> 0 | L96: =Coût_vie!$F$20 -> 0 | M96: =Coût_vie!$F$20 -> 0 | N96: =SUM(B96:M96) -> 0
A98: SOLDE DE TRÉSORERIE FIN DE MOIS | B98: =B93+B94+B95+B96 -> -556886.641 | C98: =C93+C94+C95+C96 -> -562295.6733 | D98: -604282.9292 | E98: -607309.9939 | F98: -611948.5312 | G98: -617258.4809 | H98: -616563.9572 | I98: -621962.1269 | J98: -631767.8011 | K98: -682880.0884 | L98: -685956.8131 | M98: -592853.9424 | N98: =(M98) -> -592853.9424

Sheet Trésorerie année 5 (hidden)
C1: BUDGET DE TRÉSORERIE POUR L'ANNÉE: | G1: ='Trésorerie année 1'!G1+4 -> 2023
B3: JANVIER | C3: FÉVRIER | D3: MARS | E3: AVRIL | F3: MAI | G3: JUIN | H3: JUILLET | I3: AOÛT | J3: SEPTEMBRE | K3: OCTOBRE | L3: NOVEMBRE | M3: DÉCEMBRE | N3: ANNEE
A4: ENTRÉES
A5: =Budget!B16 -> Vente de veau d'embouche | B5: =IF(TEXT(Don_tech.!$J$23,"mmmm")=B3,100%,"") ->  | C5: =IF(TEXT(Don_tech.!$J$23,"mmmm")=C3,100%,"") ->  | D5: =IF(TEXT(Don_tech.!$J$23,"mmmm")=D3,100%,"") ->  | E5: =IF(TEXT(Don_tech.!$J$23,"mmmm")=E3,100%,"") ->  | F5: =IF(TEXT(Don_tech.!$J$23,"mmmm")=F3,100%,"") ->  | G5: =IF(TEXT(Don_tech.!$J$23,"mmmm")=G3,100%,"") ->  | H5: =IF(TEXT(Don_tech.!$J$23,"mmmm")=H3,100%,"") ->  | I5: =IF(TEXT(Don_tech.!$J$23,"mmmm")=I3,100%,"") ->  | J5: =IF(TEXT(Don_tech.!$J$23,"mmmm")=J3,100%,"") ->  | K5: =IF(TEXT(Don_tech.!$J$23,"mmmm")=K3,100%,"") ->  | L5: =IF(TEXT(Don_tech.!$J$23,"mmmm")=L3,100%,"") ->  | M5: =IF(TEXT(Don_tech.!$J$23,"mmmm")=M3,100%,"") -> 1 | N5: =SUM(B5:M5)*Budget!J16 -> 90395.844 | O5: Periode de vente
A6: =Budget!B17 -> Vente de vaches réformées | B6: =IF(TEXT(Don_tech.!$J$23,"mmmm")=B3,100%,"") ->  | C6: =IF(TEXT(Don_tech.!$J$23,"mmmm")=C3,100%,"") ->  | D6: =IF(TEXT(Don_tech.!$J$23,"mmmm")=D3,100%,"") ->  | E6: =IF(TEXT(Don_tech.!$J$23,"mmmm")=E3,100%,"") ->  | F6: =IF(TEXT(Don_tech.!$J$23,"mmmm")=F3,100%,"") ->  | G6: =IF(TEXT(Don_tech.!$J$23,"mmmm")=G3,100%,"") ->  | H6: =IF(TEXT(Don_tech.!$J$23,"mmmm")=H3,100%,"") ->  | I6: =IF(TEXT(Don_tech.!$J$23,"mmmm")=I3,100%,"") ->  | J6: =IF(TEXT(Don_tech.!$J$23,"mmmm")=J3,100%,"") ->  | K6: =IF(TEXT(Don_tech.!$J$23,"mmmm")=K3,100%,"") ->  | L6: =IF(TEXT(Don_tech.!$J$23,"mmmm")=L3,100%,"") ->  | M6: =IF(TEXT(Don_tech.!$J$23,"mmmm")=M3,100%,"") -> 1 | N6: =SUM(B6:M6)*Budget!JI17 -> 0 | O6: Periode de vente
A7: =Budget!B18 -> Vente de taureaux réformés | B7: =IF(TEXT(Don_tech.!$J$23,"mmmm")=B3,100%,"") ->  | C7: =IF(TEXT(Don_tech.!$J$23,"mmmm")=C3,100%,"") ->  | D7: =IF(TEXT(Don_tech.!$J$23,"mmmm")=D3,100%,"") ->  | E7: =IF(TEXT(Don_tech.!$J$23,"mmmm")=E3,100%,"") ->  | F7: =IF(TEXT(Don_tech.!$J$23,"mmmm")=F3,100%,"") ->  | G7: =IF(TEXT(Don_tech.!$J$23,"mmmm")=G3,100%,"") ->  | H7: =IF(TEXT(Don_tech.!$J$23,"mmmm")=H3,100%,"") ->  | I7: =IF(TEXT(Don_tech.!$J$23,"mmmm")=I3,100%,"") ->  | J7: =IF(TEXT(Don_tech.!$J$23,"mmmm")=J3,100%,"") ->  | K7: =IF(TEXT(Don_tech.!$J$23,"mmmm")=K3,100%,"") ->  | L7: =IF(TEXT(Don_tech.!$J$23,"mmmm")=L3,100%,"") ->  | M7: =IF(TEXT(Don_tech.!$J$23,"mmmm")=M3,100%,"") -> 1 | N7: =SUM(B7:M7)*Budget!J18 -> 0 | O7: Periode de vente
A8: =Budget!B19 -> Vente de sujets reproduction | B8: =IF(TEXT(Don_tech.!$J$23,"mmmm")=B3,100%,"") ->  | C8: =IF(TEXT(Don_tech.!$J$23,"mmmm")=C3,100%,"") ->  | D8: =IF(TEXT(Don_tech.!$J$23,"mmmm")=D3,100%,"") ->  | E8: =IF(TEXT(Don_tech.!$J$23,"mmmm")=E3,100%,"") ->  | F8: =IF(TEXT(Don_tech.!$J$23,"mmmm")=F3,100%,"") ->  | G8: =IF(TEXT(Don_tech.!$J$23,"mmmm")=G3,100%,"") ->  | H8: =IF(TEXT(Don_tech.!$J$23,"mmmm")=H3,100%,"") ->  | I8: =IF(TEXT(Don_tech.!$J$23,"mmmm")=I3,100%,"") ->  | J8: =IF(TEXT(Don_tech.!$J$23,"mmmm")=J3,100%,"") ->  | K8: =IF(TEXT(Don_tech.!$J$23,"mmmm")=K3,100%,"") ->  | L8: =IF(TEXT(Don_tech.!$J$23,"mmmm")=L3,100%,"") ->  | M8: =IF(TEXT(Don_tech.!$J$23,"mmmm")=M3,100%,"") -> 1 | N8: =SUM(B8:M8)*Budget!J19 -> 0 | O8: Periode de vente
A9: =Budget!B20 -> ASRA bovin nette | H9: 0.5 | M9: 0.5 | N9: =SUM(B9:M9)*Budget!J20 -> 34260.30211 | O9: ASRA
A10: =Budget!B21 -> Agri-investissement et agri-Québec | B10: =IF(TEXT(Don_tech.!$J$23,"mmmm")=B3,100%,"") ->  | C10: =IF(TEXT(Don_tech.!$J$23,"mmmm")=C3,100%,"") ->  | D10: =IF(TEXT(Don_tech.!$J$23,"mmmm")=D3,100%,"") ->  | E10: =IF(TEXT(Don_tech.!$J$23,"mmmm")=E3,100%,"") ->  | F10: =IF(TEXT(Don_tech.!$J$23,"mmmm")=F3,100%,"") ->  | G10: =IF(TEXT(Don_tech.!$J$23,"mmmm")=G3,100%,"") ->  | H10: =IF(TEXT(Don_tech.!$J$23,"mmmm")=H3,100%,"") ->  | I10: =IF(TEXT(Don_tech.!$J$23,"mmmm")=I3,100%,"") ->  | J10: =IF(TEXT(Don_tech.!$J$23,"mmmm")=J3,100%,"") ->  | K10: =IF(TEXT(Don_tech.!$J$23,"mmmm")=K3,100%,"") ->  | L10: =IF(TEXT(Don_tech.!$J$23,"mmmm")=L3,100%,"") ->  | M10: =IF(TEXT(Don_tech.!$J$23,"mmmm")=M3,100%,"") -> 1 | N10: =SUM(B10:M10)*Budget!J21 -> 1286.368381 | O10: Periode de vente
A11: =Budget!B22 -> Vente de foin | I11: 0.5 | K11: 0.5 | N11: =SUM(B11:M11)*Budget!J22 -> 0
A12: =Budget!B23 -> Vente de céréales | K12: 1 | N12: =SUM(B12:M12)*Budget!J23 -> 0
A13: =Budget!B24 -> ASRA céréales | M13: 0.4 | N13: =SUM(B13:M13)*Budget!J24 -> 0
A14: =Budget!B25 -> Divers: | M14: 1 | N14: =SUM(B14:M14)*Budget!J25 -> 0
A15: =Budget!B26 -> 0 | N15: =SUM(B15:M15)*Budget!IJ26 -> 0
A16: =Budget!B27 -> 0 | N16: =SUM(B16:M16)*Budget!J27 -> 0
A17: =Budget!B28 -> 0 | N17: =SUM(B17:M17)*Budget!IJ28 -> 0
A18: =Budget!B29 -> Vente autre produit | N18: =SUM(B18:M18)*Budget!J29 -> 0
A19: =Budget!B30 -> Vente autre produit | N19: =SUM(B19:M19)*Budget!J30 -> 0
A20: =Budget!B31 -> Vente autre produit | N20: =SUM(B20:M20)*Budget!J31 -> 0
A21: TOTAL DES RECETTES | B21: =SUMPRODUCT(B5:B20,$N$5:$N$20) -> 0 | C21: 0 | D21: 0 | E21: 0 | F21: 0 | G21: 0 | H21: 17130.15105 | I21: 0 | J21: 0 | K21: 0 | L21: 0 | M21: =SUMPRODUCT(M5:M20,$N$5:$N$20) -> 108812.3634 | N21: =SUM(N5:N14) -> 125942.5145
A22: Déboursé Emprunt 1 | B22: =IF('Emprunt 1'!$E$14="","",IF(TEXT('Emprunt 1'!$E$14,"mmmm")=B3,100%,"")) ->  | C22: =IF('Emprunt 1'!$E$14="","",IF(TEXT('Emprunt 1'!$E$14,"mmmm")=C3,100%,"")) ->  | D22: =IF('Emprunt 1'!$E$14="","",IF(TEXT('Emprunt 1'!$E$14,"mmmm")=D3,100%,"")) ->  | E22: =IF('Emprunt 1'!$E$14="","",IF(TEXT('Emprunt 1'!$E$14,"mmmm")=E3,100%,"")) ->  | F22: =IF('Emprunt 1'!$E$14="","",IF(TEXT('Emprunt 1'!$E$14,"mmmm")=F3,100%,"")) ->  | G22: =IF('Emprunt 1'!$E$14="","",IF(TEXT('Emprunt 1'!$E$14,"mmmm")=G3,100%,"")) ->  | H22: =IF('Emprunt 1'!$E$14="","",IF(TEXT('Emprunt 1'!$E$14,"mmmm")=H3,100%,"")) ->  | I22: =IF('Emprunt 1'!$E$14="","",IF(TEXT('Emprunt 1'!$E$14,"mmmm")=I3,100%,"")) ->  | J22: =IF('Emprunt 1'!$E$14="","",IF(TEXT('Emprunt 1'!$E$14,"mmmm")=J3,100%,"")) -> 1 | K22: =IF('Emprunt 1'!$E$14="","",IF(TEXT('Emprunt 1'!$E$14,"mmmm")=K3,100%,"")) ->  | L22: =IF('Emprunt 1'!$E$14="","",IF(TEXT('Emprunt 1'!$E$14,"mmmm")=L3,100%,"")) ->  | M22: =IF('Emprunt 1'!$E$14="","",IF(TEXT('Emprunt 1'!$E$14,"mmmm")=M3,100%,"")) ->  | N22: =IF(G1='Emprunt 1'!E18,SUM(B22:M22)*'Emprunt 1'!E17,0) -> 0 | O22: Date du 1e paiement
A23: Déboursé Emprunt 2 | B23: =IF('Emprunt 2'!$E$14="","",IF(TEXT('Emprunt 2'!$E$14,"mmmm")=B3,100%,"")) -> 1 | C23: =IF('Emprunt 2'!$E$14="","",IF(TEXT('Emprunt 2'!$E$14,"mmmm")=C3,100%,"")) ->  | D23: =IF('Emprunt 2'!$E$14="","",IF(TEXT('Emprunt 2'!$E$14,"mmmm")=D3,100%,"")) ->  | E23: =IF('Emprunt 2'!$E$14="","",IF(TEXT('Emprunt 2'!$E$14,"mmmm")=E3,100%,"")) ->  | F23: =IF('Emprunt 2'!$E$14="","",IF(TEXT('Emprunt 2'!$E$14,"mmmm")=F3,100%,"")) ->  | G23: =IF('Emprunt 2'!$E$14="","",IF(TEXT('Emprunt 2'!$E$14,"mmmm")=G3,100%,"")) ->  | H23: =IF('Emprunt 2'!$E$14="","",IF(TEXT('Emprunt 2'!$E$14,"mmmm")=H3,100%,"")) ->  | I23: =IF('Emprunt 2'!$E$14="","",IF(TEXT('Emprunt 2'!$E$14,"mmmm")=I3,100%,"")) ->  | J23: =IF('Emprunt 2'!$E$14="","",IF(TEXT('Emprunt 2'!$E$14,"mmmm")=J3,100%,"")) ->  | K23: =IF('Emprunt 2'!$E$14="","",IF(TEXT('Emprunt 2'!$E$14,"mmmm")=K3,100%,"")) ->  | L23: =IF('Emprunt 2'!$E$14="","",IF(TEXT('Emprunt 2'!$E$14,"mmmm")=L3,100%,"")) ->  | M23: =IF('Emprunt 2'!$E$14="","",IF(TEXT('Emprunt 2'!$E$14,"mmmm")=M3,100%,"")) ->  | N23: =IF(G1='Emprunt 2'!E18,SUM(B23:M23)*'Emprunt 2'!E17,0) -> 0 | O23: Date du 1e paiement
A24: Déboursé Emprunt 3 | B24: =IF('Emprunt 3'!$E$14="","",IF(TEXT('Emprunt 3'!$E$14,"mmmm")=B3,100%,"")) ->  | C24: =IF('Emprunt 3'!$E$14="","",IF(TEXT('Emprunt 3'!$E$14,"mmmm")=C3,100%,"")) ->  | D24: =IF('Emprunt 3'!$E$14="","",IF(TEXT('Emprunt 3'!$E$14,"mmmm")=D3,100%,"")) ->  | E24: =IF('Emprunt 3'!$E$14="","",IF(TEXT('Emprunt 3'!$E$14,"mmmm")=E3,100%,"")) ->  | F24: =IF('Emprunt 3'!$E$14="","",IF(TEXT('Emprunt 3'!$E$14,"mmmm")=F3,100%,"")) ->  | G24: =IF('Emprunt 3'!$E$14="","",IF(TEXT('Emprunt 3'!$E$14,"mmmm")=G3,100%,"")) ->  | H24: =IF('Emprunt 3'!$E$14="","",IF(TEXT('Emprunt 3'!$E$14,"mmmm")=H3,100%,"")) ->  | I24: =IF('Emprunt 3'!$E$14="","",IF(TEXT('Emprunt 3'!$E$14,"mmmm")=I3,100%,"")) ->  | J24: =IF('Emprunt 3'!$E$14="","",IF(TEXT('Emprunt 3'!$E$14,"mmmm")=J3,100%,"")) ->  | K24: =IF('Emprunt 3'!$E$14="","",IF(TEXT('Emprunt 3'!$E$14,"mmmm")=K3,100%,"")) ->  | L24: =IF('Emprunt 3'!$E$14="","",IF(TEXT('Emprunt 3'!$E$14,"mmmm")=L3,100%,"")) ->  | M24: =IF('Emprunt 3'!$E$14="","",IF(TEXT('Emprunt 3'!$E$14,"mmmm")=M3,100%,"")) ->  | N24: =IF(G1='Emprunt 3'!E18,SUM(B24:M24)*'Emprunt 3'!E17,0) -> 0 | O24: Date du 1e paiement
A25: Déboursé Emprunt supplémentaire | B25: =IF('Emprunt supplémentaire'!E14="","",IF(TEXT('Emprunt supplémentaire'!E14,"mmmm")=B3,100%,"")) ->  | C25: =IF('Emprunt supplémentaire'!F14="","",IF(TEXT('Emprunt supplémentaire'!F14,"mmmm")=C3,100%,"")) ->  | D25: =IF('Emprunt supplémentaire'!G14="","",IF(TEXT('Emprunt supplémentaire'!G14,"mmmm")=D3,100%,"")) ->  | E25: =IF('Emprunt supplémentaire'!H14="","",IF(TEXT('Emprunt supplémentaire'!H14,"mmmm")=E3,100%,"")) ->  | F25: =IF('Emprunt supplémentaire'!I14="","",IF(TEXT('Emprunt supplémentaire'!I14,"mmmm")=F3,100%,"")) ->  | G25: =IF('Emprunt supplémentaire'!J14="","",IF(TEXT('Emprunt supplémentaire'!J14,"mmmm")=G3,100%,"")) ->  | H25: =IF('Emprunt supplémentaire'!K14="","",IF(TEXT('Emprunt supplémentaire'!K14,"mmmm")=H3,100%,"")) ->  | I25: =IF('Emprunt supplémentaire'!L14="","",IF(TEXT('Emprunt supplémentaire'!L14,"mmmm")=I3,100%,"")) ->  | J25: =IF('Emprunt supplémentaire'!M14="","",IF(TEXT('Emprunt supplémentaire'!M14,"mmmm")=J3,100%,"")) ->  | K25: =IF('Emprunt supplémentaire'!N14="","",IF(TEXT('Emprunt supplémentaire'!N14,"mmmm")=K3,100%,"")) ->  | L25: =IF('Emprunt supplémentaire'!O14="","",IF(TEXT('Emprunt supplémentaire'!O14,"mmmm")=L3,100%,"")) ->  | M25: =IF('Emprunt supplémentaire'!P14="","",IF(TEXT('Emprunt supplémentaire'!P14,"mmmm")=M3,100%,"")) ->  | N25: =IF(G1='Emprunt supplémentaire'!E18,SUM(B25:M25)*'Emprunt supplémentaire'!E17,0) -> 0 | O25: Date du 1e paiement
A26: Aide au démarrage FADQ | J26: 1 | N26: =SUM(B26:M26)*Don_écon.!J32 -> 10000
A27: Autre aide financière 1 | N27: =SUM(B27:M27)*Don_écon.!J36 -> 0
A28: Autre aide financière 2 | N28: =SUM(B28:M28)*Don_écon.!J37 -> 0
A29: TOTAL DES EMPRUNTS ET AIDES | B29: =SUMPRODUCT(B22:B28,$N$22:$N$28) -> 0 | C29: 0 | D29: 0 | E29: 0 | F29: 0 | G29: 0 | H29: 0 | I29: 0 | J29: 10000 | K29: 0 | L29: 0 | M29: =SUMPRODUCT(M22:M28,$N$22:$N$28) -> 0 | N29: =SUM(N22:N28) -> 10000
A30: TOTAL DES ENTRÉES | B30: =B21+B29 -> 0 | C30: 0 | D30: 0 | E30: 0 | F30: 0 | G30: 0 | H30: 17130.15105 | I30: 0 | J30: 10000 | K30: 0 | L30: 0 | M30: 108812.3634 | N30: 135942.5145
A32: SORTIES
A33: =Budget!B41 -> Achat de femelles | K33: 1 | N33: =SUM(B33:M33)*Budget!J41 -> 22500
A34: =Budget!B42 -> Achat de taureaux | D34: 0.7 | K34: 0.3 | N34: =SUM(B34:M34)*Budget!J42 -> 0
A35: =Budget!B43 -> Achat de foin | D35: 0.7 | H35: 0.2 | J35: 0.1 | N35: =SUM(B35:M35)*Budget!J43 -> 49148.641
A36: =Budget!B44 -> Achat de grains | J36: 0.25 | K36: 0.25 | L36: 0.25 | M36: 0.25 | N36: =SUM(B36:M36)*Budget!J44 -> 855
A37: =Budget!B45 -> Suppléments protéiques | J37: 0.25 | K37: 0.25 | L37: 0.25 | M37: 0.25 | N37: =SUM(B37:M37)*Budget!J45 -> 331.3125
A38: =Budget!B46 -> Moulée | D38: 0.25 | E38: 0.25 | F38: 0.5 | N38: =SUM(B38:M38)*Budget!J46 -> 0
A39: =Budget!B47 -> Vitamines et minéraux | B39: 0.08333333333 | C39: 0.08333333333 | D39: 0.08333333333 | E39: 0.08333333333 | F39: 0.08333333333 | G39: 0.08333333333 | H39: 0.08333333333 | I39: 0.08333333333 | J39: 0.08333333333 | K39: 0.08333333333 | L39: 0.08333333333 | M39: 0.08333333333 | N39: =SUM(B39:M39)*Budget!J47 -> 3804.45
A40: =Budget!B48 -> Vétérinaire et médicaments | C40: 0.6 | D40: 0.04 | E40: 0.04 | F40: 0.04 | G40: 0.04 | H40: 0.04 | I40: 0.04 | J40: 0.04 | K40: 0.04 | L40: 0.04 | M40: 0.04 | N40: =SUM(B40:M40)*Budget!J48 -> 2297.75
A41: =Budget!B49 -> Identifiants | C41: 1 | N41: =SUM(B41:M41)*Budget!J49 -> 106.59
A42: =Budget!B50 -> Litière | B42: 0.2 | C42: 0.2 | D42: 0.2 | E42: 0.2 | M42: 0.2 | N42: =SUM(B42:M42)*Budget!J50 -> 1182.35
A43: =Budget!B51 -> Transport | M43: 1 | N43: =SUM(B43:M43)*Budget!J51 -> 2044.47
A44: =Budget!B52 -> Mise en marché | M44: 1 | N44: =SUM(B44:M44)*Budget!J52 -> 2131.14
A45: =Budget!B53 -> Carburant et lubrifiant étable | B45: 0.05 | C45: 0.05 | D45: 0.05 | E45: 0.05 | F45: 0.15 | G45: 0.15 | H45: 0.15 | I45: 0.1 | J45: 0.1 | K45: 0.05 | L45: 0.05 | M45: 0.05 | N45: =SUM(B45:M45)*Budget!J53 -> 650
A46: =Budget!B54 -> Ent.&rép. mach.&équip.&im. | B46: 0.05 | C46: 0.05 | D46: 0.05 | E46: 0.05 | F46: 0.15 | G46: 0.15 | H46: 0.15 | I46: 0.1 | J46: 0.1 | K46: 0.05 | L46: 0.05 | M46: 0.05 | N46: =SUM(B46:M46)*Budget!J54 -> 6537.05
A47: =Budget!B55 -> Approv. Semences céréales | D47: 1 | N47: =SUM(B47:M47)*Budget!J55 -> 0
A48: =Budget!B56 -> Approv. Semences fourrage | D48: 1 | N48: =SUM(B48:M48)*Budget!J56 -> 1370
A49: =Budget!B57 -> Approv. céréales (pest.,engr.,etc) | D49: 1 | N49: =SUM(B49:M49)*Budget!J57 -> 0
A50: =Budget!B58 -> Approv. fourrages (pest,engr.,etc) | D50: 1 | N50: =SUM(B50:M50)*Budget!J58 -> 7500
A51: =Budget!B59 -> Autres frais pour prairie | D51: 1 | N51: =SUM(B51:M51)*Budget!J59 -> -300
A52: =Budget!B60 -> Autres frais pour céréales | D52: 1 | N52: =SUM(B52:M52)*Budget!J60 -> 0
A53: =Budget!B61 -> Asra céréales (contribution) | N53: =SUM(B53:M53)*Budget!J61 -> 0
A54: =Budget!B62 -> Ass récolte céréale | N54: =SUM(B54:M54)*Budget!J62 -> 0
A55: =Budget!B63 -> Assurance récolte fourrage | M55: 1 | N55: =SUM(B55:M55)*Budget!J63 -> 440.44
A56: =Budget!B64 -> Ent.& rép. fds de ter. bâtim. | H56: 0.25 | I56: 0.25 | J56: 0.25 | K56: 0.25 | N56: =SUM(B56:M56)*Budget!J64 -> 2531.75
A57: =Budget!B65 -> Travaux à forfait | G57: 0.25 | H57: 0.25 | I57: 0.25 | J57: 0.25 | N57: =SUM(B57:M57)*Budget!J65 -> 2496.65
A58: =Budget!B66 -> Taxes municipale.&scolaires | D58: 0.5 | G58: 0.25 | J58: 0.25 | N58: =SUM(B58:M58)*Budget!J66 -> 677.3
A59: =Budget!B67 -> Ass. gén. incluant maison | B59: 0.08333333333 | C59: 0.08333333333 | D59: 0.08333333333 | E59: 0.08333333333 | F59: 0.08333333333 | G59: 0.08333333333 | H59: 0.08333333333 | I59: 0.08333333333 | J59: 0.08333333333 | K59: 0.08333333333 | L59: 0.08333333333 | M59: 0.08333333333 | N59: =SUM(B59:M59)*Budget!J67 -> 2405.65
A60: =Budget!B68 -> Electricité | B60: 0.08333333333 | C60: 0.08333333333 | D60: 0.08333333333 | E60: 0.08333333333 | F60: 0.08333333333 | G60: 0.08333333333 | H60: 0.08333333333 | I60: 0.08333333333 | J60: 0.08333333333 | K60: 0.08333333333 | L60: 0.08333333333 | M60: 0.08333333333 | N60: =SUM(B60:M60)*Budget!J68 -> 981.5
A61: =Budget!B69 -> Salaire | C61: 0.15 | D61: 0.1 | F61: 0.15 | G61: 0.15 | H61: 0.15 | I61: 0.15 | J61: 0.15 | N61: =SUM(B61:M61)*Budget!J69 -> 9481.55
A62: =Budget!B70 -> Loc. de bâti.& fds de terre | C62: 1 | N62: =SUM(B62:M62)*Budget!J70 -> 0
A63: =Budget!B71 -> Intérêt court terme | B63: 0.08333333333 | C63: 0.08333333333 | D63: 0.08333333333 | E63: 0.08333333333 | F63: 0.08333333333 | G63: 0.08333333333 | H63: 0.08333333333 | I63: 0.08333333333 | J63: 0.08333333333 | K63: 0.08333333333 | L63: 0.08333333333 | M63: 0.08333333333 | N63: =SUM(B63:M63)*Budget!J71 -> 1658.15
A64: =Budget!B72 -> Autres frais | B64: 0.08333333333 | C64: 0.08333333333 | D64: 0.08333333333 | E64: 0.08333333333 | F64: 0.08333333333 | G64: 0.08333333333 | H64: 0.08333333333 | I64: 0.08333333333 | J64: 0.08333333333 | K64: 0.08333333333 | L64: 0.08333333333 | M64: 0.08333333333 | N64: =SUM(B64:M64)*Budget!J72 -> 3029.65
A65: =Budget!B73 -> 0 | N65: =SUM(B65:M65)*Budget!J73 -> 0
A66: =Budget!B74 -> 0 | N66: =SUM(B66:M66)*Budget!J74 -> 0
A67: =Budget!B75 -> Dépense autre produit | N67: =SUM(B67:M67)*Budget!J75 -> 0
A68: =Budget!B76 -> Dépense autre produit | N68: =SUM(B68:M68)*Budget!J76 -> 0
A69: =Budget!B77 -> Dépense autre produit | N69: =SUM(B69:M69)*Budget!J77 -> 0
A70: TOTAL DES DÉBOURS | B70: =SUMPRODUCT(B33:B69,$N$33:$N$69) -> 1585.7725 | C70: 4493.245 | D70: 45938.5362 | E70: 1677.6825 | F70: 3582.15 | G70: 4375.6375 | H70: 14668.9782 | I70: 4479.8975 | J70: 9860.664725 | K70: 24870.72812 | L70: 1737.790625 | M70: =SUMPRODUCT(M33:M69,$N$33:$N$69) -> 6590.310625 | N70: =SUM(N33:N69) -> 123861.3935
A71: Investissements
A72: Achat de vaches, génisses et taures | K72: 1 | N72: =SUM(B72:M72)*(Don_écon.!J26+Don_écon.!J27) -> 0
A73: Achat de taureaux | K73: 1 | N73: =SUM(B73:M73)*Don_écon.!J28 -> 0
A74: Achat de la ferme (ou participation) | F74: 1 | N74: =SUM(B74:M74)*Don_écon.!J24 -> 0
A75: Aménagement de l'étable et du site | I75: 0.25 | J75: 0.5 | K75: 0.25 | N75: =SUM(B75:M75)*Don_écon.!J30 -> 10000
A76: Achat de machinerie et équipement | G76: 1 | N76: =SUM(B76:M76)*Don_écon.!J31 -> 0
A77: Achat de terre | G77: 1 | N77: =SUM(B77:M77)*Don_écon.!J34 -> 0
A78: Frais de démarrage / transfert | F78: 1 | N78: =SUM(B78:M78)*Don_écon.!J33 -> 0
N79: =SUM(B79:M79)*Don_écon.!J38 -> 0
N80: =SUM(B80:M80)*Don_écon.!J39 -> 0
A81: TOTAL DES INVESTISSEMENTS | B81: =SUMPRODUCT(B72:B80,$N$72:$N$80) -> 0 | C81: 0 | D81: 0 | E81: 0 | F81: 0 | G81: 0 | H81: 0 | I81: 2500 | J81: 5000 | K81: 2500 | L81: 0 | M81: 0 | N81: =SUM(N72:N80) -> 10000
A82: Remboursements (Annuité: K + i)
A83: Emprunt 1 | B83: =100%/12 -> 0.08333333333 | C83: =100%/12 -> 0.08333333333 | D83: 0.08333333333 | E83: 0.08333333333 | F83: 0.08333333333 | G83: 0.08333333333 | H83: 0.08333333333 | I83: 0.08333333333 | J83: 0.08333333333 | K83: 0.08333333333 | L83: 0.08333333333 | M83: 0.08333333333 | N83: =IF(G1='Emprunt 1'!E18,'Emprunt 1'!E21,IF(G1=1+'Emprunt 1'!E18,'Emprunt 1'!E22,IF(G1=2+'Emprunt 1'!E18,'Emprunt 1'!E23,IF(G1=3+'Emprunt 1'!E18,'Emprunt 1'!E24,IF(G1=4+'Emprunt 1'!E18,'Emprunt 1'!E25,0))))) -> 18979.04704
A84: Emprunt 2 | B84: =100%/12 -> 0.08333333333 | C84: 0.08333333333 | D84: 0.08333333333 | E84: 0.08333333333 | F84: 0.08333333333 | G84: 0.08333333333 | H84: 0.08333333333 | I84: 0.08333333333 | J84: 0.08333333333 | K84: 0.08333333333 | L84: 0.08333333333 | M84: 0.08333333333 | N84: =IF(G1='Emprunt 2'!E18,'Emprunt 2'!E21,IF(G1=1+'Emprunt 2'!E18,'Emprunt 2'!E22,IF(G1=2+'Emprunt 2'!E18,'Emprunt 2'!E23,IF(G1=3+'Emprunt 2'!E18,'Emprunt 2'!E24,IF(G1=4+'Emprunt 2'!E18,'Emprunt 2'!E25,0))))) -> 0
A85: Emprunt 3 | N85: =IF(G1='Emprunt 3'!E18,'Emprunt 3'!E21,IF(G1=1+'Emprunt 3'!E18,'Emprunt 3'!E22,IF(G1=2+'Emprunt 3'!E18,'Emprunt 3'!E23,IF(G1=3+'Emprunt 3'!E18,'Emprunt 3'!E24,IF(G1=4+'Emprunt 3'!E18,'Emprunt 3'!E25,0))))) -> 0
A86: Emprunt supplémentaire | N86: =IF(G1='Emprunt supplémentaire'!E18,'Emprunt supplémentaire'!E21,IF(G1=1+'Emprunt supplémentaire'!E18,'Emprunt supplémentaire'!E22,IF(G1=2+'Emprunt supplémentaire'!E18,'Emprunt supplémentaire'!E23,IF(G1=3+'Emprunt supplémentaire'!E18,'Emprunt supplémentaire'!E24,IF(G1=4+'Emprunt supplémentaire'!E18,'Emprunt supplémentaire'!E25,0))))) -> 0
N87: =SUM(B79:M79)*Don_écon.!J38 -> 0
N88: =SUM(B80:M80)*Don_écon.!J39 -> 0
A89: TOTAL DES REMBOURSEMENTS | B89: =SUMPRODUCT(B83:B88,$N$83:$N$88) -> 1581.587253 | C89: 1581.587253 | D89: 1581.587253 | E89: 1581.587253 | F89: 1581.587253 | G89: 1581.587253 | H89: 1581.587253 | I89: 1581.587253 | J89: 1581.587253 | K89: 1581.587253 | L89: 1581.587253 | M89: 1581.587253 | N89: =SUM(N83:N88) -> 18979.04704
A91: TOTAL DES SORTIES | B91: =B70+B81+B89 -> 3167.359753 | C91: 6074.832253 | D91: 47520.12345 | E91: 3259.269753 | F91: 5163.737253 | G91: 5957.224753 | H91: 16250.56545 | I91: 8561.484753 | J91: 16442.25198 | K91: 28952.31538 | L91: 3319.377878 | M91: 8171.897878 | N91: 152840.4405
A93: TRÉSORERIE DE DÉBUT DE MOIS | B93: ='Trésorerie année 4'!N98 -> -592853.9424 | C93: =B98 -> -596021.3021 | D93: =C98 -> -602096.1344 | E93: -649616.2578 | F93: -652875.5276 | G93: -658039.2648 | H93: -663996.4896 | I93: -663116.904 | J93: -671678.3887 | K93: -678120.6407 | L93: -707072.9561 | M93: -710392.334
A94: ENTRÉES - SORTIES D'ARGENT | B94: =B21+B29-B70-B81-B89 -> -3167.359753 | C94: -6074.832253 | D94: -47520.12345 | E94: -3259.269753 | F94: -5163.737253 | G94: -5957.224753 | H94: 879.5856005 | I94: -8561.484753 | J94: -6442.251978 | K94: -28952.31538 | L94: -3319.377878 | M94: 100640.4656
A95: COÛTS DE VIE | B95: =-Coût_vie!$J$54 -> 0 | C95: =-Coût_vie!$L$54 -> 0 | D95: =-Coût_vie!$L$54 -> 0 | E95: =-Coût_vie!$L$54 -> 0 | F95: =-Coût_vie!$L$54 -> 0 | G95: =-Coût_vie!$L$54 -> 0 | H95: =-Coût_vie!$L$54 -> 0 | I95: =-Coût_vie!$L$54 -> 0 | J95: =-Coût_vie!$L$54 -> 0 | K95: =-Coût_vie!$L$54 -> 0 | L95: =-Coût_vie!$L$54 -> 0 | M95: =-Coût_vie!$L$54 -> 0 | N95: =SUM(B95:M95) -> 0
A96: REVENUS EXTÉRIEURS | B96: =Coût_vie!$F$20 -> 0 | C96: =Coût_vie!$F$20 -> 0 | D96: =Coût_vie!$F$20 -> 0 | E96: =Coût_vie!$F$20 -> 0 | F96: =Coût_vie!$F$20 -> 0 | G96: =Coût_vie!$F$20 -> 0 | H96: =Coût_vie!$F$20 -> 0 | I96: =Coût_vie!$F$20 -> 0 | J96: =Coût_vie!$F$20 -> 0 | K96: =Coût_vie!$F$20 -> 0 | L96: =Coût_vie!$F$20 -> 0 | M96: =Coût_vie!$F$20 -> 0 | N96: =SUM(B96:M96) -> 0
A98: SOLDE DE TRÉSORERIE FIN DE MOIS | B98: =B93+B94+B95+B96 -> -596021.3021 | C98: =C93+C94+C95+C96 -> -602096.1344 | D98: -649616.2578 | E98: -652875.5276 | F98: -658039.2648 | G98: -663996.4896 | H98: -663116.904 | I98: -671678.3887 | J98: -678120.6407 | K98: -707072.9561 | L98: -710392.334 | M98: -609751.8684 | N98: =(M98) -> -609751.8684

Sheet Emprunt 1
B5: Nom | C5: =PAGE_PRÉSEN.!C11 -> M. Jaimie LeBoeuf
B6: Adresse | C6: =PAGE_PRÉSEN.!C12 -> 555, rue des Vachers, St-Meuhmeuh (Québec) G0X 0X0
B7: Téléphone | C7: =PAGE_PRÉSEN.!C13 -> (450)555-5555
B9: CALCUL D'EMPRUNT
B11: Description: | D11: Achat Ferme
B13: Taux intérêt | E13: 0.05
B14: Date du 1° paiement | E14: 2019-09-01
B15: Durée du prêt (an) | E15: 15
B16: Versement /année | E16: 12
B17: Montant emprunté | E17: 200000
B18: Année du prêt | E18: =YEAR(E14) -> 2019 | J18: Taux intérêt | K18: Date de départ | L18: Durée du prêt | M18: Période | N18: Mois | O18: Montant emprunté
E19: =E14-(DAY(E14))+2 -> 2019-09-02 | I19: =L19*M19 -> 180 | J19: ='Emprunt 1'!$E$13 -> 0.05 | K19: ='Emprunt 1'!$E$19 -> 2019-09-02 | L19: ='Emprunt 1'!$E$15 -> 15 | M19: ='Emprunt 1'!$E$16 -> 12 | N19: ='Emprunt 1'!$E$18 -> 2019 | O19: ='Emprunt 1'!$E$17 -> 200000
B20: Année | D20: Versement | E20: Annuité | F20: Intérêt | G20: Capital | H20: Solde | I20: nombre versement | J20: Paiement numéro | K20: Date du versement | L20: Versement période | M20: Intérets payés | N20: Capital remis | O20: Solde du capital
B21: =YEAR(Date_de_départ) -> 2019 | C21: =IF(B21<YEAR(Date_de_départ),0,B21-YEAR(Date_de_départ)+1) -> 1 | D21: =IF((C21-durée)>1,0,L21) -> 1581.587253 | E21: =SUMIF(K$21:$K295,B21,L$21:L258) -> 6326.349014 | F21: =SUMIF($K$21:K295,B21,M$21:M258) -> 3314.574969 | G21: =SUMIF(K$21:K295,B21,N$21:N258) -> 3011.774045 | H21: =$O$19-G21 -> 196988.226 | I21: =IF((C21-durée)>1,0,IF(C21<=durée,péri.-(mois-1),mois)) -> -2006 | J21: 1 | K21: =YEAR(Date_de_départ) -> 2019 | L21: =PMT((taux/péri.),(durée*péri.),-empr) -> 1581.587253 | M21: =IPMT((taux/péri.),J21,(durée*péri.),-empr) -> 833.3333333 | N21: =PPMT((taux/péri.),J21,(durée*péri.),-empr) -> 748.2539201 | O21: =O19-N21 -> 199251.7461
B22: =B21+1 -> 2020 | C22: =IF(B22<YEAR(Date_de_départ),0,B22-YEAR(Date_de_départ)+1) -> 2 | D22: 1581.587253 | E22: =SUMIF(K$21:$K296,B22,L$21:L259) -> 18979.04704 | F22: =SUMIF($K$21:K296,B22,M$21:M259) -> 9637.257209 | G22: =SUMIF(K$21:K296,B22,N$21:N259) -> 9341.789833 | H22: =H21-G22 -> 187646.4361 | I22: =IF((C22-durée)>1,0,IF(C22<=durée,péri.,mois-1)) -> 12 | J22: =IF(J21=0,0,IF((J21+1)<=SUM(I$21:I$48),J21+1,0)) -> 2 | K22: =IF(J22=0,0,YEAR(Date_de_départ+((J22-1)*(366/péri.)))) -> 2019 | L22: =PMT((taux/péri.),(durée*péri.),-empr) -> 1581.587253 | M22: =IPMT((taux/péri.),J22,(durée*péri.),-empr) -> 830.2156087 | N22: =PPMT((taux/péri.),J22,(durée*péri.),-empr) -> 751.3716448 | O22: =O21-N22 -> 198500.3744
B23: =B22+1 -> 2021 | C23: 3 | D23: 1581.587253 | E23: =SUMIF(K$21:$K297,B23,L$21:L260) -> 18979.04704 | F23: =SUMIF($K$21:K297,B23,M$21:M260) -> 9159.313512 | G23: =SUMIF(K$21:K297,B23,N$21:N260) -> 9819.73353 | H23: =H22-G23 -> 177826.7026 | I23: =IF((C23-durée)>1,0,IF(C23<=durée,péri.,mois-1)) -> 12 | J23: 3 | K23: =IF(J23=0,0,YEAR(Date_de_départ+((J23-1)*(366/péri.)))) -> 2019 | L23: 1581.587253 | M23: 827.0848935 | N23: 754.50236 | O23: 197745.8721
B24: 2022 | C24: 4 | D24: 1581.587253 | E24: =SUMIF(K$21:$K298,B24,L$21:L261) -> 18979.04704 | F24: =SUMIF($K$21:K298,B24,M$21:M261) -> 8656.917308 | G24: =SUMIF(K$21:K298,B24,N$21:N261) -> 10322.12973 | H24: 167504.5729 | I24: 12 | J24: 4 | K24: 2019 | L24: 1581.587253 | M24: 823.9411336 | N24: 757.6461198 | O24: 196988.226
B25: 2023 | C25: 5 | D25: 1581.587253 | E25: =SUMIF(K$21:$K299,B25,L$21:L262) -> 18979.04704 | F25: =SUMIF($K$21:K299,B25,M$21:M262) -> 8128.81756 | G25: =SUMIF(K$21:K299,B25,N$21:N262) -> 10850.22948 | H25: 156654.3434 | I25: 12 | J25: 5 | K25: 2020 | L25: 1581.587253 | M25: 820.7842748 | N25: 760.8029787 | O25: 196227.423
B26: 2024 | C26: 6 | D26: 1581.587253 | E26: =SUMIF(K$21:$K300,B26,L$21:L263) -> 18979.04704 | F26: =SUMIF($K$21:K300,B26,M$21:M263) -> 7573.699227 | G26: =SUMIF(K$21:K300,B26,N$21:N263) -> 11405.34781 | H26: 145248.9956 | I26: 12 | J26: 6 | K26: 2020 | L26: 1581.587253 | M26: 817.6142624 | N26: 763.9729911 | O26: 195463.45
B27: 2025 | C27: 7 | D27: 1581.587253 | E27: =SUMIF(K$21:$K301,B27,L$21:L264) -> 18979.04704 | F27: =SUMIF($K$21:K301,B27,M$21:M264) -> 6990.179987 | G27: =SUMIF(K$21:K301,B27,N$21:N264) -> 11988.86705 | H27: 133260.1285 | I27: 12 | J27: 7 | K27: 2020 | L27: 1581.587253 | M27: 814.4310416 | N27: 767.1562119 | O27: 194696.2938
B28: 2026 | C28: 8 | D28: 1581.587253 | E28: =SUMIF(K$21:$K302,B28,L$21:L265) -> 18979.04704 | F28: =SUMIF($K$21:K302,B28,M$21:M265) -> 6376.806795 | G28: =SUMIF(K$21:K302,B28,N$21:N265) -> 12602.24025 | H28: 120657.8883 | I28: 12 | J28: 8 | K28: 2020 | L28: 1581.587253 | M28: 811.2345574 | N28: 770.3526961 | O28: 193925.9411
B29: 2027 | C29: 9 | D29: 1581.587253 | E29: =SUMIF(K$21:$K303,B29,L$21:L266) -> 18979.04704 | F29: =SUMIF($K$21:K303,B29,M$21:M266) -> 5732.052267 | G29: =SUMIF(K$21:K303,B29,N$21:N266) -> 13246.99478 | H29: 107410.8935 | I29: 12 | J29: 9 | K29: 2020 | L29: 1581.587253 | M29: 808.0247545 | N29: 773.562499 | O29: 193152.3786
B30: 2028 | C30: 10 | D30: 1581.587253 | E30: =SUMIF(K$21:$K304,B30,L$21:L267) -> 18979.04704 | F30: =SUMIF($K$21:K304,B30,M$21:M267) -> 5054.310873 | G30: =SUMIF(K$21:K304,B30,N$21:N267) -> 13924.73617 | H30: 93486.15732 | I30: 12 | J30: 10 | K30: 2020 | L30: 1581.587253 | M30: 804.8015774 | N30: 776.7856761 | O30: 192375.5929
B31: 2029 | C31: 11 | D31: 1581.587253 | E31: =SUMIF(K$21:$K305,B31,L$21:L268) -> 18979.04704 | F31: =SUMIF($K$21:K305,B31,M$21:M268) -> 4341.894943 | G31: =SUMIF(K$21:K305,B31,N$21:N268) -> 14637.1521 | H31: 78849.00522 | I31: 12 | J31: 11 | K31: 2020 | L31: 1581.587253 | M31: 801.5649704 | N31: 780.0222831 | O31: 191595.5706
B32: 2030 | C32: 12 | D32: 1581.587253 | E32: =SUMIF(K$21:$K306,B32,L$21:L269) -> 18979.04704 | F32: =SUMIF($K$21:K306,B32,M$21:M269) -> 3593.030462 | G32: =SUMIF(K$21:K306,B32,N$21:N269) -> 15386.01658 | H32: 63462.98864 | I32: 12 | J32: 12 | K32: 2020 | L32: 1581.587253 | M32: 798.3148776 | N32: 783.2723759 | O32: 190812.2982
B33: 2031 | C33: 13 | D33: 1581.587253 | E33: =SUMIF(K$21:$K307,B33,L$21:L270) -> 18979.04704 | F33: =SUMIF($K$21:K307,B33,M$21:M270) -> 2805.852653 | G33: =SUMIF(K$21:K307,B33,N$21:N270) -> 16173.19439 | H33: 47289.79425 | I33: 12 | J33: 13 | K33: 2020 | L33: 1581.587253 | M33: 795.0512427 | N33: 786.5360108 | O33: 190025.7622
B34: 2032 | C34: 14 | D34: 1581.587253 | E34: =SUMIF(K$21:$K308,B34,L$21:L271) -> 18979.04704 | F34: =SUMIF($K$21:K308,B34,M$21:M271) -> 1978.401333 | G34: =SUMIF(K$21:K308,B34,N$21:N271) -> 17000.64571 | H34: 30289.14854 | I34: 12 | J34: 14 | K34: 2020 | L34: 1581.587253 | M34: 791.7740093 | N34: 789.8132442 | O34: 189235.949
B35: 2033 | C35: 15 | D35: 1581.587253 | E35: =SUMIF(K$21:$K309,B35,L$21:L272) -> 18979.04704 | F35: =SUMIF($K$21:K309,B35,M$21:M272) -> 1108.616033 | G35: =SUMIF(K$21:K309,B35,N$21:N272) -> 17870.43101 | H35: 12418.71753 | I35: 12 | J35: 15 | K35: 2020 | L35: 1581.587253 | M35: 788.4831208 | N35: 793.1041327 | O35: 188442.8449
B36: 2034 | C36: 16 | D36: 1581.587253 | E36: =SUMIF(K$21:$K310,B36,L$21:L273) -> 12652.69803 | F36: =SUMIF($K$21:K310,B36,M$21:M273) -> 233.9804953 | G36: =SUMIF(K$21:K310,B36,N$21:N273) -> 12418.71753 | H36: -3.456079867e-11 | I36: 2018 | J36: 16 | K36: 2020 | L36: 1581.587253 | M36: 785.1785202 | N36: 796.4087333 | O36: 187646.4361
B37: 2035 | C37: 17 | D37: =IF((C37-durée)>1,0,L37) -> 0 | E37: =SUMIF(K$21:$K311,B37,L$21:L274) -> 0 | F37: =SUMIF($K$21:K311,B37,M$21:M274) -> 0 | G37: =SUMIF(K$21:K311,B37,N$21:N274) -> 0 | H37: -3.456079867e-11 | I37: 0 | J37: 17 | K37: 2021 | L37: 1581.587253 | M37: 781.8601505 | N37: 799.727103 | O37: 186846.709
B38: 2036 | C38: =IF(B38<YEAR(Date_de_départ),0,B38-YEAR(Date_de_départ)+1) -> 18 | D38: 0 | E38: =SUMIF(K$21:$K312,B38,L$21:L275) -> 0 | F38: =SUMIF($K$21:K312,B38,M$21:M275) -> 0 | G38: =SUMIF(K$21:K312,B38,N$21:N275) -> 0 | H38: -3.456079867e-11 | I38: 0 | J38: =IF(J37=0,0,IF((J37+1)<=SUM(I$21:I$48),J37+1,0)) -> 18 | K38: 2021 | L38: =PMT((taux/péri.),(durée*péri.),-empr) -> 1581.587253 | M38: =IPMT((taux/péri.),J38,(durée*péri.),-empr) -> 778.5279542 | N38: =PPMT((taux/péri.),J38,(durée*péri.),-empr) -> 803.0592992 | O38: =O37-N38 -> 186043.6497
B39: =B38+1 -> 2037 | C39: 19 | D39: 0 | E39: =SUMIF(K$21:$K313,B39,L$21:L276) -> 0 | F39: =SUMIF($K$21:K313,B39,M$21:M276) -> 0 | G39: =SUMIF(K$21:K313,B39,N$21:N276) -> 0 | H39: =H38-G39 -> -3.456079867e-11 | I39: =IF((C39-durée)>1,0,IF(C39<=durée,péri.,mois-1)) -> 0 | J39: 19 | K39: =IF(J39=0,0,YEAR(Date_de_départ+((J39-1)*(366/péri.)))) -> 2021 | L39: 1581.587253 | M39: 775.1818738 | N39: 806.4053796 | O39: 185237.2443
B40: 2038 | C40: 20 | D40: 0 | E40: =SUMIF(K$21:$K314,B40,L$21:L277) -> 0 | F40: =SUMIF($K$21:K314,B40,M$21:M277) -> 0 | G40: =SUMIF(K$21:K314,B40,N$21:N277) -> 0 | H40: -3.456079867e-11 | I40: 0 | J40: 20 | K40: 2021 | L40: 1581.587253 | M40: 771.8218514 | N40: 809.7654021 | O40: 184427.4789
B41: 2039 | C41: 21 | D41: 0 | E41: =SUMIF(K$21:$K315,B41,L$21:L278) -> 0 | F41: =SUMIF($K$21:K315,B41,M$21:M278) -> 0 | G41: =SUMIF(K$21:K315,B41,N$21:N278) -> 0 | H41: -3.456079867e-11 | I41: 0 | J41: 21 | K41: 2021 | L41: 1581.587253 | M41: 768.4478289 | N41: 813.1394246 | O41: 183614.3395
B42: 2040 | C42: 22 | D42: 0 | E42: =SUMIF(K$21:$K316,B42,L$21:L279) -> 0 | F42: =SUMIF($K$21:K316,B42,M$21:M279) -> 0 | G42: =SUMIF(K$21:K316,B42,N$21:N279) -> 0 | H42: -3.456079867e-11 | I42: 0 | J42: 22 | K42: 2021 | L42: 1581.587253 | M42: 765.059748 | N42: 816.5275055 | O42: 182797.812
B43: 2041 | C43: 23 | D43: 0 | E43: =SUMIF(K$21:$K317,B43,L$21:L280) -> 0 | F43: =SUMIF($K$21:K317,B43,M$21:M280) -> 0 | G43: =SUMIF(K$21:K317,B43,N$21:N280) -> 0 | H43: -3.456079867e-11 | I43: 0 | J43: 23 | K43: 2021 | L43: 1581.587253 | M43: 761.65755 | N43: 819.9297034 | O43: 181977.8823
B44: 2042 | C44: 24 | D44: 0 | E44: =SUMIF(K$21:$K318,B44,L$21:L281) -> 0 | F44: =SUMIF($K$21:K318,B44,M$21:M281) -> 0 | G44: =SUMIF(K$21:K318,B44,N$21:N281) -> 0 | H44: -3.456079867e-11 | I44: 0 | J44: 24 | K44: 2021 | L44: 1581.587253 | M44: 758.2411763 | N44: 823.3460772 | O44: 181154.5362
B45: 2043 | C45: 25 | D45: 0 | E45: =SUMIF(K$21:$K319,B45,L$21:L282) -> 0 | F45: =SUMIF($K$21:K319,B45,M$21:M282) -> 0 | G45: =SUMIF(K$21:K319,B45,N$21:N282) -> 0 | H45: -3.456079867e-11 | I45: 0 | J45: 25 | K45: 2021 | L45: 1581.587253 | M45: 754.8105676 | N45: 826.7766859 | O45: 180327.7595
B46: 2044 | C46: 26 | D46: 0 | E46: =SUMIF(K$21:$K320,B46,L$21:L283) -> 0 | F46: =SUMIF($K$21:K320,B46,M$21:M283) -> 0 | G46: =SUMIF(K$21:K320,B46,N$21:N283) -> 0 | H46: -3.456079867e-11 | I46: 0 | J46: 26 | K46: 2021 | L46: 1581.587253 | M46: 751.3656648 | N46: 830.2215887 | O46: 179497.538
D47: TOTAL | E47: =SUM(E21:E46) -> 284685.7056 | F47: =SUM(F21:F46) -> 84685.70563 | G47: =SUM(G21:G46) -> 200000 | J47: 27 | K47: 2021 | L47: 1581.587253 | M47: 747.9064081 | N47: 833.6808453 | O47: 178663.8571
J48: 28 | K48: 2021 | L48: 1581.587253 | M48: =IPMT((taux/péri.),J48,(durée*péri.),-empr) -> 744.4327379 | N48: =PPMT((taux/péri.),J48,(durée*péri.),-empr) -> 837.1545155 | O48: 177826.7026
J49: =IF(J48=0,0,IF((J48+1)<=SUM(I$21:I$48),J48+1,0)) -> 29 | K49: 2022 | L49: 1581.587253 | M49: 740.9445941 | N49: 840.6426593 | O49: =O48-N49 -> 176986.0599
J50: 30 | K50: 2022 | L50: 1581.587253 | M50: 737.4419164 | N50: 844.1453371 | O50: 176141.9146
J51: 31 | K51: 2022 | L51: 1581.587253 | M51: 733.9246441 | N51: 847.6626093 | O51: 175294.252
J52: 32 | K52: 2022 | L52: 1581.587253 | M52: 730.3927166 | N52: 851.1945369 | O52: 174443.0574
J53: 33 | K53: 2022 | L53: 1581.587253 | M53: 726.8460727 | N53: 854.7411808 | O53: 173588.3163
J54: 34 | K54: 2022 | L54: 1581.587253 | M54: 723.2846511 | N54: 858.3026024 | O54: 172730.0137
J55: 35 | K55: 2022 | L55: 1581.587253 | M55: 719.7083903 | N55: 861.8788632 | O55: 171868.1348
J56: =IF(J55=0,0,IF((J55+1)<=SUM(I$21:I$48),J55+1,0)) -> 36 | K56: 2022 | L56: 1581.587253 | M56: =IPMT((taux/péri.),J56,(durée*péri.),-empr) -> 716.1172283 | N56: =PPMT((taux/péri.),J56,(durée*péri.),-empr) -> 865.4700251 | O56: =O55-N56 -> 171002.6648
J57: 37 | K57: 2022 | L57: 1581.587253 | M57: 712.5111032 | N57: 869.0761502 | O57: 170133.5886
J58: 38 | K58: 2022 | L58: 1581.587253 | M58: 708.8899526 | N58: 872.6973009 | O58: 169260.8913
J59: 39 | K59: 2022 | L59: 1581.587253 | M59: 705.2537139 | N59: 876.3335396 | O59: 168384.5578
J60: 40 | K60: 2022 | L60: 1581.587253 | M60: 701.6023241 | N60: 879.9849294 | O60: 167504.5729
J61: 41 | K61: 2023 | L61: 1581.587253 | M61: 697.9357202 | N61: 883.6515332 | O61: 166620.9213
J62: 42 | K62: 2023 | L62: 1581.587253 | M62: 694.2538389 | N62: 887.3334146 | O62: 165733.5879
J63: 43 | K63: 2023 | L63: 1581.587253 | M63: 690.5566163 | N63: 891.0306372 | O63: 164842.5573
J64: 44 | K64: 2023 | L64: 1581.587253 | M64: 686.8439886 | N64: 894.7432648 | O64: 163947.814
J65: 45 | K65: 2023 | L65: 1581.587253 | M65: 683.1158917 | N65: 898.4713618 | O65: 163049.3426
J66: 46 | K66: 2023 | L66: 1581.587253 | M66: 679.372261 | N66: 902.2149925 | O66: 162147.1277
J67: 47 | K67: 2023 | L67: 1581.587253 | M67: 675.6130319 | N67: 905.9742216 | O67: 161241.1534
J68: 48 | K68: 2023 | L68: 1581.587253 | M68: 671.8381393 | N68: 909.7491142 | O68: 160331.4043
J69: 49 | K69: 2023 | L69: 1581.587253 | M69: 668.047518 | N69: 913.5397355 | O69: 159417.8646
J70: 50 | K70: 2023 | L70: 1581.587253 | M70: 664.2411024 | N70: 917.3461511 | O70: 158500.5184
J71: 51 | K71: 2023 | L71: 1581.587253 | M71: 660.4188268 | N71: 921.1684267 | O71: 157579.35
J72: 52 | K72: 2023 | L72: 1581.587253 | M72: 656.580625 | N72: 925.0066285 | O72: 156654.3434
J73: 53 | K73: 2024 | L73: 1581.587253 | M73: 652.7264307 | N73: 928.8608227 | O73: 155725.4826
J74: 54 | K74: 2024 | L74: 1581.587253 | M74: 648.8561773 | N74: 932.7310762 | O74: 154792.7515
J75: 55 | K75: 2024 | L75: 1581.587253 | M75: 644.9697978 | N75: 936.6174557 | O75: 153856.134
J76: 56 | K76: 2024 | L76: 1581.587253 | M76: 641.0672251 | N76: 940.5200284 | O76: 152915.614
J77: 57 | K77: 2024 | L77: 1581.587253 | M77: 637.1483916 | N77: 944.4388618 | O77: 151971.1751
J78: 58 | K78: 2024 | L78: 1581.587253 | M78: 633.2132297 | N78: 948.3740238 | O78: 151022.8011
J79: 59 | K79: 2024 | L79: 1581.587253 | M79: 629.2616713 | N79: 952.3255822 | O79: 150070.4755
J80: 60 | K80: 2024 | L80: 1581.587253 | M80: 625.293648 | N80: 956.2936055 | O80: 149114.1819
J81: 61 | K81: 2024 | L81: 1581.587253 | M81: 621.3090913 | N81: 960.2781621 | O81: 148153.9038
J82: 62 | K82: 2024 | L82: 1581.587253 | M82: 617.3079323 | N82: 964.2793212 | O82: 147189.6244
J83: 63 | K83: 2024 | L83: 1581.587253 | M83: 613.2901018 | N83: 968.2971517 | O83: 146221.3273
J84: 64 | K84: 2024 | L84: 1581.587253 | M84: 609.2555304 | N84: 972.3317231 | O84: 145248.9956
J85: 65 | K85: 2025 | L85: 1581.587253 | M85: 605.2041482 | N85: 976.3831053 | O85: 144272.6125
J86: 66 | K86: 2025 | L86: 1581.587253 | M86: 601.1358852 | N86: 980.4513682 | O86: 143292.1611
J87: 67 | K87: 2025 | L87: 1581.587253 | M87: 597.0506712 | N87: 984.5365823 | O87: 142307.6245
J88: 68 | K88: 2025 | L88: 1581.587253 | M88: 592.9484354 | N88: 988.638818 | O88: 141318.9857
J89: 69 | K89: 2025 | L89: 1581.587253 | M89: 588.829107 | N89: 992.7581464 | O89: 140326.2275
J90: 70 | K90: 2025 | L90: 1581.587253 | M90: 584.6926148 | N90: 996.8946387 | O90: 139329.3329
J91: 71 | K91: 2025 | L91: 1581.587253 | M91: 580.5388871 | N91: 1001.048366 | O91: 138328.2845
J92: 72 | K92: 2025 | L92: 1581.587253 | M92: 576.3678522 | N92: 1005.219401 | O92: 137323.0651
J93: 73 | K93: 2025 | L93: 1581.587253 | M93: 572.1794381 | N93: 1009.407815 | O93: 136313.6573
J94: 74 | K94: 2025 | L94: 1581.587253 | M94: 567.9735722 | N94: 1013.613681 | O94: 135300.0436
J95: 75 | K95: 2025 | L95: 1581.587253 | M95: 563.7501818 | N95: 1017.837072 | O95: 134282.2066
J96: 76 | K96: 2025 | L96: 1581.587253 | M96: 559.509194 | N96: 1022.078059 | O96: 133260.1285
J97: 77 | K97: 2026 | L97: 1581.587253 | M97: 555.2505354 | N97: 1026.336718 | O97: 132233.7918
J98: 78 | K98: 2026 | L98: 1581.587253 | M98: 550.9741325 | N98: 1030.613121 | O98: 131203.1787
J99: 79 | K99: 2026 | L99: 1581.587253 | M99: 546.6799111 | N99: 1034.907342 | O99: 130168.2713
J100: 80 | K100: 2026 | L100: 1581.587253 | M100: 542.3677972 | N100: 1039.219456 | O100: 129129.0519
J101: 81 | K101: 2026 | L101: 1581.587253 | M101: 538.0377161 | N101: 1043.549537 | O101: 128085.5023
J102: 82 | K102: 2026 | L102: =PMT((taux/péri.),(durée*péri.),-empr) -> 1581.587253 | M102: 533.6895931 | N102: 1047.89766 | O102: 127037.6047
J103: 83 | K103: =IF(J103=0,0,YEAR(Date_de_départ+((J103-1)*(366/péri.)))) -> 2026 | L103: 1581.587253 | M103: 529.3233528 | N103: 1052.263901 | O103: 125985.3408
J104: 84 | K104: 2026 | L104: 1581.587253 | M104: 524.9389199 | N104: 1056.648334 | O104: 124928.6924
J105: 85 | K105: 2026 | L105: 1581.587253 | M105: 520.5362185 | N105: 1061.051035 | O105: 123867.6414
J106: 86 | K106: 2026 | L106: 1581.587253 | M106: 516.1151725 | N106: 1065.472081 | O106: 122802.1693
J107: 87 | K107: 2026 | L107: 1581.587253 | M107: 511.6757055 | N107: 1069.911548 | O107: 121732.2578
J108: 88 | K108: 2026 | L108: 1581.587253 | M108: 507.2177407 | N108: 1074.369513 | O108: 120657.8883
J109: 89 | K109: 2027 | L109: 1581.587253 | M109: 502.7412011 | N109: 1078.846052 | O109: 119579.0422
J110: 90 | K110: 2027 | L110: 1581.587253 | M110: 498.2460092 | N110: 1083.341244 | O110: 118495.701
J111: 91 | K111: 2027 | L111: 1581.587253 | M111: 493.7320874 | N111: 1087.855166 | O111: 117407.8458
J112: 92 | K112: 2027 | L112: 1581.587253 | M112: 489.1993575 | N112: 1092.387896 | O112: 116315.4579
J113: 93 | K113: 2027 | L113: 1581.587253 | M113: 484.6477413 | N113: 1096.939512 | O113: 115218.5184
J114: 94 | K114: 2027 | L114: 1581.587253 | M114: 480.07716 | N114: 1101.510094 | O114: 114117.0083
J115: 95 | K115: 2027 | L115: 1581.587253 | M115: 475.4875346 | N115: 1106.099719 | O115: 113010.9086
J116: 96 | K116: 2027 | L116: 1581.587253 | M116: 470.8787857 | N116: 1110.708468 | O116: 111900.2001
J117: 97 | K117: 2027 | L117: 1581.587253 | M117: 466.2508338 | N117: 1115.33642 | O117: 110784.8637
J118: 98 | K118: 2027 | L118: 1581.587253 | M118: 461.6035987 | N118: 1119.983655 | O118: 109664.88
J119: 99 | K119: 2027 | L119: 1581.587253 | M119: 456.9370001 | N119: 1124.650253 | O119: 108540.2298
J120: =IF(J119=0,0,IF((J119+1)<=SUM(I$21:I$48),J119+1,0)) -> 100 | K120: 2027 | L120: 1581.587253 | M120: =IPMT((taux/péri.),J120,(durée*péri.),-empr) -> 452.2509574 | N120: =PPMT((taux/péri.),J120,(durée*péri.),-empr) -> 1129.336296 | O120: =O119-N120 -> 107410.8935
J121: 101 | K121: 2028 | L121: 1581.587253 | M121: 447.5453895 | N121: 1134.041864 | O121: 106276.8516
J122: 102 | K122: 2028 | L122: 1581.587253 | M122: 442.8202151 | N122: 1138.767038 | O122: 105138.0846
J123: 103 | K123: 2028 | L123: 1581.587253 | M123: 438.0753524 | N123: 1143.511901 | O123: 103994.5727
J124: 104 | K124: 2028 | L124: 1581.587253 | M124: 433.3107195 | N124: 1148.276534 | O124: 102846.2961
J125: 105 | K125: 2028 | L125: 1581.587253 | M125: 428.526234 | N125: 1153.06102 | O125: 101693.2351
J126: 106 | K126: 2028 | L126: 1581.587253 | M126: 423.721813 | N126: 1157.86544 | O126: 100535.3697
J127: 107 | K127: 2028 | L127: 1581.587253 | M127: 418.8973737 | N127: 1162.68988 | O127: 99372.67981
J128: 108 | K128: 2028 | L128: 1581.587253 | M128: 414.0528325 | N128: 1167.534421 | O128: 98205.14539
J129: 109 | K129: 2028 | L129: 1581.587253 | M129: 409.1881058 | N129: 1172.399148 | O129: 97032.74624
J130: 110 | K130: 2028 | L130: 1581.587253 | M130: 404.3031093 | N130: 1177.284144 | O130: 95855.4621
J131: 111 | K131: 2028 | L131: 1581.587253 | M131: 399.3977587 | N131: 1182.189495 | O131: 94673.2726
J132: 112 | K132: 2028 | L132: 1581.587253 | M132: 394.4719692 | N132: 1187.115284 | O132: 93486.15732
J133: 113 | K133: 2029 | L133: 1581.587253 | M133: 389.5256555 | N133: 1192.061598 | O133: 92294.09572
J134: 114 | K134: 2029 | L134: 1581.587253 | M134: 384.5587322 | N134: 1197.028521 | O134: 91097.0672
J135: 115 | K135: 2029 | L135: 1581.587253 | M135: 379.5711133 | N135: 1202.01614 | O135: 89895.05106
J136: 116 | K136: 2029 | L136: 1581.587253 | M136: 374.5627127 | N136: 1207.024541 | O136: 88688.02652
J137: 117 | K137: 2029 | L137: 1581.587253 | M137: 369.5334438 | N137: 1212.05381 | O137: 87475.97271
J138: 118 | K138: 2029 | L138: 1581.587253 | M138: 364.4832196 | N138: 1217.104034 | O138: 86258.86867
J139: 119 | K139: 2029 | L139: 1581.587253 | M139: 359.4119528 | N139: 1222.175301 | O139: 85036.69337
J140: 120 | K140: 2029 | L140: 1581.587253 | M140: 354.3195557 | N140: 1227.267698 | O140: 83809.42567
J141: 121 | K141: 2029 | L141: 1581.587253 | M141: 349.2059403 | N141: 1232.381313 | O141: 82577.04436
J142: 122 | K142: 2029 | L142: 1581.587253 | M142: 344.0710182 | N142: 1237.516235 | O142: 81339.52813
J143: 123 | K143: 2029 | L143: 1581.587253 | M143: 338.9147005 | N143: 1242.672553 | O143: 80096.85557
J144: 124 | K144: 2029 | L144: 1581.587253 | M144: 333.7368982 | N144: 1247.850355 | O144: 78849.00522
J145: 125 | K145: 2030 | L145: 1581.587253 | M145: 328.5375217 | N145: 1253.049732 | O145: 77595.95549
J146: 126 | K146: 2030 | L146: 1581.587253 | M146: 323.3164812 | N146: 1258.270772 | O146: 76337.68471
J147: 127 | K147: 2030 | L147: 1581.587253 | M147: 318.0736863 | N147: 1263.513567 | O147: 75074.17115
J148: 128 | K148: 2030 | L148: 1581.587253 | M148: 312.8090464 | N148: 1268.778207 | O148: 73805.39294
J149: 129 | K149: 2030 | L149: 1581.587253 | M149: 307.5224706 | N149: 1274.064783 | O149: 72531.32816
J150: 130 | K150: 2030 | L150: 1581.587253 | M150: 302.2138673 | N150: 1279.373386 | O150: 71251.95477
J151: 131 | K151: 2030 | L151: 1581.587253 | M151: 296.8831449 | N151: 1284.704109 | O151: 69967.25066
J152: 132 | K152: 2030 | L152: 1581.587253 | M152: 291.5302111 | N152: 1290.057042 | O152: 68677.19362
J153: 133 | K153: 2030 | L153: 1581.587253 | M153: 286.1549734 | N153: 1295.43228 | O153: 67381.76134
J154: 134 | K154: 2030 | L154: 1581.587253 | M154: 280.7573389 | N154: 1300.829915 | O154: 66080.93143
J155: 135 | K155: 2030 | L155: 1581.587253 | M155: 275.3372143 | N155: 1306.250039 | O155: 64774.68139
J156: 136 | K156: 2030 | L156: 1581.587253 | M156: 269.8945058 | N156: 1311.692748 | O156: 63462.98864
J157: 137 | K157: 2031 | L157: 1581.587253 | M157: 264.4291193 | N157: 1317.158134 | O157: 62145.8305
J158: 138 | K158: 2031 | L158: 1581.587253 | M158: 258.9409604 | N158: 1322.646293 | O158: 60823.18421
J159: 139 | K159: 2031 | L159: 1581.587253 | M159: 253.4299342 | N159: 1328.157319 | O159: 59495.02689
J160: 140 | K160: 2031 | L160: 1581.587253 | M160: 247.8959454 | N160: 1333.691308 | O160: 58161.33558
J161: 141 | K161: 2031 | L161: 1581.587253 | M161: 242.3388983 | N161: 1339.248355 | O161: 56822.08723
J162: 142 | K162: 2031 | L162: 1581.587253 | M162: 236.7586968 | N162: 1344.828557 | O162: 55477.25867
J163: 143 | K163: 2031 | L163: 1581.587253 | M163: 231.1552445 | N163: 1350.432009 | O163: 54126.82666
J164: 144 | K164: 2031 | L164: 1581.587253 | M164: 225.5284444 | N164: 1356.058809 | O164: 52770.76785
J165: 145 | K165: 2031 | L165: 1581.587253 | M165: 219.8781994 | N165: 1361.709054 | O165: 51409.0588
J166: 146 | K166: 2031 | L166: =PMT((taux/péri.),(durée*péri.),-empr) -> 1581.587253 | M166: 214.2044117 | N166: 1367.382842 | O166: 50041.67596
J167: 147 | K167: =IF(J167=0,0,YEAR(Date_de_départ+((J167-1)*(366/péri.)))) -> 2031 | L167: 1581.587253 | M167: 208.5069832 | N167: 1373.08027 | O167: 48668.59569
J168: 148 | K168: 2031 | L168: 1581.587253 | M168: 202.7858154 | N168: 1378.801438 | O168: 47289.79425
J169: 149 | K169: 2032 | L169: 1581.587253 | M169: 197.0408094 | N169: 1384.546444 | O169: 45905.24781
J170: 150 | K170: 2032 | L170: 1581.587253 | M170: 191.2718659 | N170: 1390.315388 | O170: 44514.93242
J171: 151 | K171: 2032 | L171: 1581.587253 | M171: 185.4788851 | N171: 1396.108368 | O171: 43118.82405
J172: 152 | K172: 2032 | L172: 1581.587253 | M172: 179.6617669 | N172: 1401.925487 | O172: 41716.89856
J173: 153 | K173: 2032 | L173: 1581.587253 | M173: 173.8204107 | N173: 1407.766843 | O173: 40309.13172
J174: 154 | K174: 2032 | L174: 1581.587253 | M174: 167.9547155 | N174: 1413.632538 | O174: 38895.49918
J175: 155 | K175: 2032 | L175: 1581.587253 | M175: 162.0645799 | N175: 1419.522674 | O175: 37475.97651
J176: 156 | K176: 2032 | L176: 1581.587253 | M176: 156.1499021 | N176: 1425.437351 | O176: 36050.53916
J177: 157 | K177: 2032 | L177: 1581.587253 | M177: 150.2105798 | N177: 1431.376674 | O177: 34619.16248
J178: 158 | K178: 2032 | L178: 1581.587253 | M178: 144.2465103 | N178: 1437.340743 | O178: 33181.82174
J179: 159 | K179: 2032 | L179: 1581.587253 | M179: 138.2575906 | N179: 1443.329663 | O179: 31738.49208
J180: 160 | K180: 2032 | L180: 1581.587253 | M180: 132.243717 | N180: 1449.343536 | O180: 30289.14854
J181: 161 | K181: 2033 | L181: 1581.587253 | M181: 126.2047856 | N181: 1455.382468 | O181: 28833.76607
J182: 162 | K182: 2033 | L182: 1581.587253 | M182: 120.140692 | N182: 1461.446562 | O182: 27372.31951
J183: 163 | K183: 2033 | L183: 1581.587253 | M183: 114.0513313 | N183: 1467.535922 | O183: 25904.78359
J184: =IF(J183=0,0,IF((J183+1)<=SUM(I$21:I$48),J183+1,0)) -> 164 | K184: 2033 | L184: 1581.587253 | M184: =IPMT((taux/péri.),J184,(durée*péri.),-empr) -> 107.9365983 | N184: =PPMT((taux/péri.),J184,(durée*péri.),-empr) -> 1473.650655 | O184: =O183-N184 -> 24431.13293
J185: 165 | K185: 2033 | L185: 1581.587253 | M185: 101.7963872 | N185: 1479.790866 | O185: 22951.34207
J186: 166 | K186: 2033 | L186: 1581.587253 | M186: 95.63059195 | N186: 1485.956662 | O186: 21465.38541
J187: 167 | K187: 2033 | L187: 1581.587253 | M187: 89.43910586 | N187: 1492.148148 | O187: 19973.23726
J188: 168 | K188: 2033 | L188: 1581.587253 | M188: 83.22182191 | N188: 1498.365432 | O188: 18474.87183
J189: 169 | K189: 2033 | L189: 1581.587253 | M189: 76.97863261 | N189: 1504.608621 | O189: 16970.26321
J190: 170 | K190: 2033 | L190: 1581.587253 | M190: 70.70943003 | N190: 1510.877823 | O190: 15459.38538
J191: 171 | K191: 2033 | L191: 1581.587253 | M191: 64.41410576 | N191: 1517.173148 | O191: 13942.21224
J192: 172 | K192: 2033 | L192: 1581.587253 | M192: 58.09255098 | N192: 1523.494703 | O192: 12418.71753
J193: 173 | K193: 2034 | L193: 1581.587253 | M193: 51.74465639 | N193: 1529.842597 | O193: 10888.87494
J194: 174 | K194: 2034 | L194: 1581.587253 | M194: 45.37031223 | N194: 1536.216941 | O194: 9352.657994
J195: 175 | K195: 2034 | L195: 1581.587253 | M195: 38.96940831 | N195: 1542.617845 | O195: 7810.040149
J196: 176 | K196: 2034 | L196: 1581.587253 | M196: 32.54183395 | N196: 1549.04542 | O196: 6260.994729
J197: 177 | K197: 2034 | L197: 1581.587253 | M197: 26.08747804 | N197: 1555.499775 | O197: 4705.494954
J198: 178 | K198: 2034 | L198: 1581.587253 | M198: 19.60622898 | N198: 1561.981025 | O198: 3143.51393
J199: 179 | K199: 2034 | L199: 1581.587253 | M199: 13.09797471 | N199: 1568.489279 | O199: 1575.024651
J200: 180 | K200: 2034 | L200: 1581.587253 | M200: 6.562602712 | N200: 1575.024651 | O200: 5.843503459e-11
J201: 0 | K201: 0 | L201: 1581.587253
J202: 0 | K202: 0 | L202: 1581.587253
J203: 0 | K203: 0 | L203: 1581.587253
J204: 0 | K204: 0 | L204: 1581.587253
J205: 0 | K205: 0 | L205: 1581.587253
J206: 0 | K206: 0 | L206: 1581.587253
J207: 0 | K207: 0 | L207: 1581.587253
... 113 more rows

Sheet Emprunt 2 (hidden)
B5: Nom | C5: =PAGE_PRÉSEN.!C11 -> M. Jaimie LeBoeuf
B6: Adresse | C6: =PAGE_PRÉSEN.!C12 -> 555, rue des Vachers, St-Meuhmeuh (Québec) G0X 0X0
B7: Téléphone | C7: =PAGE_PRÉSEN.!C13 -> (450)555-5555
B9: CALCUL D'EMPRUNT 2
B11: Description: | D11: Achat tracteur
B13: Taux intérêt | E13: 0.05
B14: Date du 1° paiement | E14: 2016-01-01
B15: Durée du prêt (an) | E15: 5
B16: Versement /année | E16: 12
B17: Montant emprunté | E17: 62500
B18: Année du prêt | E18: =YEAR(E14) -> 2016 | J18: Taux intérêt | K18: Date de départ | L18: Durée du prêt | M18: Période | N18: Mois | O18: Montant emprunté
E19: =E14-(DAY(E14))+2 -> 2016-01-02 | I19: =L19*M19 -> 60 | J19: ='Emprunt 2'!$E$13 -> 0.05 | K19: ='Emprunt 2'!$E$19 -> 2016-01-02 | L19: ='Emprunt 2'!$E$15 -> 5 | M19: ='Emprunt 2'!$E$16 -> 12 | N19: ='Emprunt 2'!$E$18 -> 2016 | O19: ='Emprunt 2'!$E$17 -> 62500
B20: Année | D20: Versement | E20: Annuité | F20: Intérêt | G20: Capital | H20: Solde | I20: nombre versement | J20: Paiement numéro | K20: Date du versement | L20: Versement période | M20: Intérets payés | N20: Capital remis | O20: Solde du capital
B21: =YEAR(Date_de_départ) -> 2016 | C21: =IF(B21<YEAR(Date_de_départ),0,B21-YEAR(Date_de_départ)+1) -> 1 | D21: =IF((C21-durée)>1,0,L21) -> 1179.452103 | E21: =SUMIF(K$21:$K295,B21,L$21:L258) -> 14153.42523 | F21: =SUMIF($K$21:K295,B21,M$21:M258) -> 2868.721922 | G21: =SUMIF(K$21:K295,B21,N$21:N258) -> 11284.70331 | H21: =$O$19-G21 -> 51215.29669 | I21: =IF((C21-durée)>1,0,IF(C21<=durée,péri.-(mois-1),mois)) -> -2003 | J21: 1 | K21: =YEAR(Date_de_départ) -> 2016 | L21: =PMT((taux/péri.),(durée*péri.),-empr) -> 1179.452103 | M21: =IPMT((taux/péri.),J21,(durée*péri.),-empr) -> 260.4166667 | N21: =PPMT((taux/péri.),J21,(durée*péri.),-empr) -> 919.0354361 | O21: =O19-N21 -> 61580.96456
B22: =B21+1 -> 2017 | C22: =IF(B22<YEAR(Date_de_départ),0,B22-YEAR(Date_de_départ)+1) -> 2 | D22: 1179.452103 | E22: =SUMIF(K$21:$K296,B22,L$21:L259) -> 14153.42523 | F22: =SUMIF($K$21:K296,B22,M$21:M259) -> 2291.375083 | G22: =SUMIF(K$21:K296,B22,N$21:N259) -> 11862.05015 | H22: =H21-G22 -> 39353.24654 | I22: =IF((C22-durée)>1,0,IF(C22<=durée,péri.,mois-1)) -> 12 | J22: =IF(J21=0,0,IF((J21+1)<=SUM(I$21:I$48),J21+1,0)) -> 2 | K22: =IF(J22=0,0,YEAR(Date_de_départ+((J22-1)*(366/péri.)))) -> 2016 | L22: =PMT((taux/péri.),(durée*péri.),-empr) -> 1179.452103 | M22: =IPMT((taux/péri.),J22,(durée*péri.),-empr) -> 256.5873523 | N22: =PPMT((taux/péri.),J22,(durée*péri.),-empr) -> 922.8647504 | O22: =O21-N22 -> 60658.09981
B23: =B22+1 -> 2018 | C23: 3 | D23: 1179.452103 | E23: =SUMIF(K$21:$K297,B23,L$21:L260) -> 14153.42523 | F23: =SUMIF($K$21:K297,B23,M$21:M260) -> 1684.490085 | G23: =SUMIF(K$21:K297,B23,N$21:N260) -> 12468.93515 | H23: =H22-G23 -> 26884.31139 | I23: =IF((C23-durée)>1,0,IF(C23<=durée,péri.,mois-1)) -> 12 | J23: 3 | K23: =IF(J23=0,0,YEAR(Date_de_départ+((J23-1)*(366/péri.)))) -> 2016 | L23: 1179.452103 | M23: 252.7420826 | N23: 926.7100202 | O23: 59731.38979
B24: 2019 | C24: 4 | D24: 1179.452103 | E24: =SUMIF(K$21:$K298,B24,L$21:L261) -> 14153.42523 | F24: =SUMIF($K$21:K298,B24,M$21:M261) -> 1046.555698 | G24: =SUMIF(K$21:K298,B24,N$21:N261) -> 13106.86953 | H24: 13777.44186 | I24: 12 | J24: 4 | K24: 2016 | L24: 1179.452103 | M24: 248.8807908 | N24: 930.5713119 | O24: 58800.81848
B25: 2020 | C25: 5 | D25: 1179.452103 | E25: =SUMIF(K$21:$K299,B25,L$21:L262) -> 14153.42523 | F25: =SUMIF($K$21:K299,B25,M$21:M262) -> 375.9833773 | G25: =SUMIF(K$21:K299,B25,N$21:N262) -> 13777.44186 | H25: 0 | I25: 12 | J25: 5 | K25: 2016 | L25: 1179.452103 | M25: 245.0034103 | N25: 934.4486924 | O25: 57866.36979
B26: 2021 | C26: 6 | D26: 1179.452103 | E26: =SUMIF(K$21:$K300,B26,L$21:L263) -> 0 | F26: =SUMIF($K$21:K300,B26,M$21:M263) -> 0 | G26: =SUMIF(K$21:K300,B26,N$21:N263) -> 0 | H26: 0 | I26: 2015 | J26: 6 | K26: 2016 | L26: 1179.452103 | M26: 241.1098741 | N26: 938.3422286 | O26: 56928.02756
B27: 2022 | C27: 7 | D27: 0 | E27: =SUMIF(K$21:$K301,B27,L$21:L264) -> 0 | F27: =SUMIF($K$21:K301,B27,M$21:M264) -> 0 | G27: =SUMIF(K$21:K301,B27,N$21:N264) -> 0 | H27: 0 | I27: 0 | J27: 7 | K27: 2016 | L27: 1179.452103 | M27: 237.2001148 | N27: 942.2519879 | O27: 55985.77557
B28: 2023 | C28: 8 | D28: 0 | E28: =SUMIF(K$21:$K302,B28,L$21:L265) -> 0 | F28: =SUMIF($K$21:K302,B28,M$21:M265) -> 0 | G28: =SUMIF(K$21:K302,B28,N$21:N265) -> 0 | H28: 0 | I28: 0 | J28: 8 | K28: 2016 | L28: 1179.452103 | M28: 233.2740649 | N28: 946.1780379 | O28: 55039.59753
B29: 2024 | C29: 9 | D29: 0 | E29: =SUMIF(K$21:$K303,B29,L$21:L266) -> 0 | F29: =SUMIF($K$21:K303,B29,M$21:M266) -> 0 | G29: =SUMIF(K$21:K303,B29,N$21:N266) -> 0 | H29: 0 | I29: 0 | J29: 9 | K29: 2016 | L29: 1179.452103 | M29: 229.3316564 | N29: 950.1204464 | O29: 54089.47709
B30: 2025 | C30: 10 | D30: 0 | E30: =SUMIF(K$21:$K304,B30,L$21:L267) -> 0 | F30: =SUMIF($K$21:K304,B30,M$21:M267) -> 0 | G30: =SUMIF(K$21:K304,B30,N$21:N267) -> 0 | H30: 0 | I30: 0 | J30: 10 | K30: 2016 | L30: 1179.452103 | M30: 225.3728212 | N30: 954.0792815 | O30: 53135.39781
B31: 2026 | C31: 11 | D31: 0 | E31: =SUMIF(K$21:$K305,B31,L$21:L268) -> 0 | F31: =SUMIF($K$21:K305,B31,M$21:M268) -> 0 | G31: =SUMIF(K$21:K305,B31,N$21:N268) -> 0 | H31: 0 | I31: 0 | J31: 11 | K31: 2016 | L31: 1179.452103 | M31: 221.3974909 | N31: 958.0546119 | O31: 52177.34319
B32: 2027 | C32: 12 | D32: 0 | E32: =SUMIF(K$21:$K306,B32,L$21:L269) -> 0 | F32: =SUMIF($K$21:K306,B32,M$21:M269) -> 0 | G32: =SUMIF(K$21:K306,B32,N$21:N269) -> 0 | H32: 0 | I32: 0 | J32: 12 | K32: 2016 | L32: 1179.452103 | M32: 217.4055966 | N32: 962.0465061 | O32: 51215.29669
B33: 2028 | C33: 13 | D33: 0 | E33: =SUMIF(K$21:$K307,B33,L$21:L270) -> 0 | F33: =SUMIF($K$21:K307,B33,M$21:M270) -> 0 | G33: =SUMIF(K$21:K307,B33,N$21:N270) -> 0 | H33: 0 | I33: 0 | J33: 13 | K33: 2017 | L33: 1179.452103 | M33: 213.3970695 | N33: 966.0550332 | O33: 50249.24166
B34: 2029 | C34: 14 | D34: 0 | E34: =SUMIF(K$21:$K308,B34,L$21:L271) -> 0 | F34: =SUMIF($K$21:K308,B34,M$21:M271) -> 0 | G34: =SUMIF(K$21:K308,B34,N$21:N271) -> 0 | H34: 0 | I34: 0 | J34: 14 | K34: 2017 | L34: 1179.452103 | M34: 209.3718402 | N34: 970.0802625 | O34: 49279.16139
B35: 2030 | C35: 15 | D35: 0 | E35: =SUMIF(K$21:$K309,B35,L$21:L272) -> 0 | F35: =SUMIF($K$21:K309,B35,M$21:M272) -> 0 | G35: =SUMIF(K$21:K309,B35,N$21:N272) -> 0 | H35: 0 | I35: 0 | J35: 15 | K35: 2017 | L35: 1179.452103 | M35: 205.3298391 | N35: 974.1222636 | O35: 48305.03913
B36: 2031 | C36: 16 | D36: 0 | E36: =SUMIF(K$21:$K310,B36,L$21:L273) -> 0 | F36: =SUMIF($K$21:K310,B36,M$21:M273) -> 0 | G36: =SUMIF(K$21:K310,B36,N$21:N273) -> 0 | H36: 0 | I36: 0 | J36: 16 | K36: 2017 | L36: 1179.452103 | M36: 201.2709964 | N36: 978.1811064 | O36: 47326.85802
B37: 2032 | C37: 17 | D37: =IF((C37-durée)>1,0,L37) -> 0 | E37: =SUMIF(K$21:$K311,B37,L$21:L274) -> 0 | F37: =SUMIF($K$21:K311,B37,M$21:M274) -> 0 | G37: =SUMIF(K$21:K311,B37,N$21:N274) -> 0 | H37: 0 | I37: 0 | J37: 17 | K37: 2017 | L37: 1179.452103 | M37: 197.1952418 | N37: 982.256861 | O37: 46344.60116
B38: 2033 | C38: =IF(B38<YEAR(Date_de_départ),0,B38-YEAR(Date_de_départ)+1) -> 18 | D38: 0 | E38: =SUMIF(K$21:$K312,B38,L$21:L275) -> 0 | F38: =SUMIF($K$21:K312,B38,M$21:M275) -> 0 | G38: =SUMIF(K$21:K312,B38,N$21:N275) -> 0 | H38: 0 | I38: 0 | J38: =IF(J37=0,0,IF((J37+1)<=SUM(I$21:I$48),J37+1,0)) -> 18 | K38: 2017 | L38: =PMT((taux/péri.),(durée*péri.),-empr) -> 1179.452103 | M38: =IPMT((taux/péri.),J38,(durée*péri.),-empr) -> 193.1025048 | N38: =PPMT((taux/péri.),J38,(durée*péri.),-empr) -> 986.3495979 | O38: 45358.25156
B39: 2034 | C39: 19 | D39: 0 | E39: =SUMIF(K$21:$K313,B39,L$21:L276) -> 0 | F39: =SUMIF($K$21:K313,B39,M$21:M276) -> 0 | G39: =SUMIF(K$21:K313,B39,N$21:N276) -> 0 | H39: 0 | I39: =IF((C39-durée)>1,0,IF(C39<=durée,péri.,mois-1)) -> 0 | J39: 19 | K39: =IF(J39=0,0,YEAR(Date_de_départ+((J39-1)*(366/péri.)))) -> 2017 | L39: 1179.452103 | M39: 188.9927149 | N39: 990.4593879 | O39: 44367.79218
B40: 2035 | C40: 20 | D40: 0 | E40: =SUMIF(K$21:$K314,B40,L$21:L277) -> 0 | F40: =SUMIF($K$21:K314,B40,M$21:M277) -> 0 | G40: =SUMIF(K$21:K314,B40,N$21:N277) -> 0 | H40: 0 | I40: 0 | J40: 20 | K40: 2017 | L40: 1179.452103 | M40: 184.8658007 | N40: 994.586302 | O40: 43373.20587
B41: 2036 | C41: 21 | D41: 0 | E41: =SUMIF(K$21:$K315,B41,L$21:L278) -> 0 | F41: =SUMIF($K$21:K315,B41,M$21:M278) -> 0 | G41: =SUMIF(K$21:K315,B41,N$21:N278) -> 0 | H41: 0 | I41: 0 | J41: 21 | K41: 2017 | L41: 1179.452103 | M41: 180.7216911 | N41: 998.7304116 | O41: 42374.47546
B42: 2037 | C42: 22 | D42: 0 | E42: =SUMIF(K$21:$K316,B42,L$21:L279) -> 0 | F42: =SUMIF($K$21:K316,B42,M$21:M279) -> 0 | G42: =SUMIF(K$21:K316,B42,N$21:N279) -> 0 | H42: 0 | I42: 0 | J42: 22 | K42: 2017 | L42: 1179.452103 | M42: 176.5603144 | N42: 1002.891788 | O42: 41371.58367
B43: 2038 | C43: 23 | D43: 0 | E43: =SUMIF(K$21:$K317,B43,L$21:L280) -> 0 | F43: =SUMIF($K$21:K317,B43,M$21:M280) -> 0 | G43: =SUMIF(K$21:K317,B43,N$21:N280) -> 0 | H43: 0 | I43: 0 | J43: 23 | K43: 2017 | L43: 1179.452103 | M43: 172.3815986 | N43: 1007.070504 | O43: 40364.51317
B44: 2039 | C44: 24 | D44: 0 | E44: =SUMIF(K$21:$K318,B44,L$21:L281) -> 0 | F44: =SUMIF($K$21:K318,B44,M$21:M281) -> 0 | G44: =SUMIF(K$21:K318,B44,N$21:N281) -> 0 | H44: 0 | I44: 0 | J44: 24 | K44: 2017 | L44: 1179.452103 | M44: 168.1854715 | N44: 1011.266631 | O44: 39353.24654
B45: 2040 | C45: 25 | D45: 0 | E45: =SUMIF(K$21:$K319,B45,L$21:L282) -> 0 | F45: =SUMIF($K$21:K319,B45,M$21:M282) -> 0 | G45: =SUMIF(K$21:K319,B45,N$21:N282) -> 0 | H45: 0 | I45: 0 | J45: 25 | K45: 2018 | L45: 1179.452103 | M45: 163.9718606 | N45: 1015.480242 | O45: 38337.7663
B46: 2041 | C46: 26 | D46: 0 | E46: =SUMIF(K$21:$K320,B46,L$21:L283) -> 0 | F46: =SUMIF($K$21:K320,B46,M$21:M283) -> 0 | G46: =SUMIF(K$21:K320,B46,N$21:N283) -> 0 | H46: 0 | I46: 0 | J46: 26 | K46: 2018 | L46: 1179.452103 | M46: 159.7406929 | N46: 1019.71141 | O46: 37318.05489
D47: TOTAL | E47: =SUM(E21:E46) -> 70767.12617 | F47: =SUM(F21:F46) -> 8267.126165 | G47: =SUM(G21:G46) -> 62500 | J47: 27 | K47: 2018 | L47: 1179.452103 | M47: 155.4918954 | N47: 1023.960207 | O47: 36294.09468
J48: 28 | K48: 2018 | L48: 1179.452103 | M48: =IPMT((taux/péri.),J48,(durée*péri.),-empr) -> 151.2253945 | N48: =PPMT((taux/péri.),J48,(durée*péri.),-empr) -> 1028.226708 | O48: 35265.86797
J49: =IF(J48=0,0,IF((J48+1)<=SUM(I$21:I$48),J48+1,0)) -> 29 | K49: 2018 | L49: 1179.452103 | M49: 146.9411165 | N49: 1032.510986 | O49: 34233.35698
J50: 30 | K50: 2018 | L50: 1179.452103 | M50: 142.6389874 | N50: 1036.813115 | O50: 33196.54387
J51: 31 | K51: 2018 | L51: 1179.452103 | M51: 138.3189328 | N51: 1041.13317 | O51: 32155.4107
J52: 32 | K52: 2018 | L52: 1179.452103 | M52: 133.9808779 | N52: 1045.471225 | O52: 31109.93947
J53: 33 | K53: 2018 | L53: 1179.452103 | M53: 129.6247478 | N53: 1049.827355 | O53: 30060.11212
J54: 34 | K54: 2018 | L54: 1179.452103 | M54: 125.2504672 | N54: 1054.201636 | O54: 29005.91048
J55: 35 | K55: 2018 | L55: 1179.452103 | M55: 120.8579604 | N55: 1058.594142 | O55: 27947.31634
J56: =IF(J55=0,0,IF((J55+1)<=SUM(I$21:I$48),J55+1,0)) -> 36 | K56: 2018 | L56: 1179.452103 | M56: =IPMT((taux/péri.),J56,(durée*péri.),-empr) -> 116.4471514 | N56: =PPMT((taux/péri.),J56,(durée*péri.),-empr) -> 1063.004951 | O56: 26884.31139
J57: 37 | K57: 2019 | L57: 1179.452103 | M57: 112.0179641 | N57: 1067.434139 | O57: 25816.87725
J58: 38 | K58: 2019 | L58: 1179.452103 | M58: 107.5703219 | N58: 1071.881781 | O58: 24744.99547
J59: 39 | K59: 2019 | L59: 1179.452103 | M59: 103.1041478 | N59: 1076.347955 | O59: 23668.64752
J60: 40 | K60: 2019 | L60: 1179.452103 | M60: 98.61936465 | N60: 1080.832738 | O60: 22587.81478
J61: 41 | K61: 2019 | L61: 1179.452103 | M61: 94.11589491 | N61: 1085.336208 | O61: 21502.47857
J62: 42 | K62: 2019 | L62: 1179.452103 | M62: 89.59366071 | N62: 1089.858442 | O62: 20412.62013
J63: 43 | K63: 2019 | L63: 1179.452103 | M63: 85.05258387 | N63: 1094.399519 | O63: 19318.22061
J64: 44 | K64: 2019 | L64: 1179.452103 | M64: 80.49258587 | N64: 1098.959517 | O64: 18219.26109
J65: 45 | K65: 2019 | L65: 1179.452103 | M65: 75.91358789 | N65: 1103.538515 | O65: 17115.72258
J66: 46 | K66: 2019 | L66: 1179.452103 | M66: 71.31551074 | N66: 1108.136592 | O66: 16007.58599
J67: 47 | K67: 2019 | L67: 1179.452103 | M67: 66.69827494 | N67: 1112.753828 | O67: 14894.83216
J68: 48 | K68: 2019 | L68: 1179.452103 | M68: 62.06180066 | N68: 1117.390302 | O68: 13777.44186
J69: 49 | K69: 2020 | L69: 1179.452103 | M69: 57.40600773 | N69: 1122.046095 | O69: 12655.39576
J70: 50 | K70: 2020 | L70: 1179.452103 | M70: 52.73081567 | N70: 1126.721287 | O70: 11528.67447
J71: 51 | K71: 2020 | L71: 1179.452103 | M71: 48.03614364 | N71: 1131.415959 | O71: 10397.25851
J72: 52 | K72: 2020 | L72: 1179.452103 | M72: 43.32191048 | N72: 1136.130192 | O72: 9261.128322
J73: 53 | K73: 2020 | L73: 1179.452103 | M73: 38.58803468 | N73: 1140.864068 | O73: 8120.264254
J74: 54 | K74: 2020 | L74: 1179.452103 | M74: 33.83443439 | N74: 1145.617668 | O74: 6974.646586
J75: 55 | K75: 2020 | L75: 1179.452103 | M75: 29.06102744 | N75: 1150.391075 | O75: 5824.25551
J76: 56 | K76: 2020 | L76: 1179.452103 | M76: 24.26773129 | N76: 1155.184371 | O76: 4669.071139
J77: 57 | K77: 2020 | L77: 1179.452103 | M77: 19.45446308 | N77: 1159.99764 | O77: 3509.073499
J78: 58 | K78: 2020 | L78: 1179.452103 | M78: 14.62113958 | N78: 1164.830963 | O78: 2344.242536
J79: 59 | K79: 2020 | L79: 1179.452103 | M79: 9.767677234 | N79: 1169.684426 | O79: 1174.558111
J80: 60 | K80: 2020 | L80: 1179.452103 | M80: 4.893992128 | N80: 1174.558111 | O80: 4.774847184e-12
J81: 0 | K81: 0 | L81: 1179.452103
J82: 0 | K82: 0 | L82: 1179.452103
J83: 0 | K83: 0 | L83: 1179.452103
J84: 0 | K84: 0 | L84: 1179.452103
J85: 0 | K85: 0 | L85: 1179.452103
J86: 0 | K86: 0 | L86: 1179.452103 | O86: =O85-N86 -> 
J87: 0 | K87: 0 | L87: 1179.452103
J88: 0 | K88: 0 | L88: 1179.452103
J89: 0 | K89: 0 | L89: 1179.452103
J90: 0 | K90: 0 | L90: 1179.452103
J91: 0 | K91: 0 | L91: 1179.452103
J92: 0 | K92: 0 | L92: 1179.452103
J93: 0 | K93: 0 | L93: 1179.452103
J94: 0 | K94: 0 | L94: 1179.452103
J95: 0 | K95: 0 | L95: 1179.452103
J96: 0 | K96: 0 | L96: 1179.452103
J97: 0 | K97: 0 | L97: 1179.452103
J98: 0 | K98: 0 | L98: 1179.452103
J99: 0 | K99: 0 | L99: 1179.452103
J100: 0 | K100: 0 | L100: 1179.452103
J101: 0 | K101: 0 | L101: 1179.452103
J102: 0 | K102: 0 | L102: =PMT((taux/péri.),(durée*péri.),-empr) -> 1179.452103
J103: 0 | K103: =IF(J103=0,0,YEAR(Date_de_départ+((J103-1)*(366/péri.)))) -> 0 | L103: 1179.452103
J104: 0 | K104: 0 | L104: 1179.452103
J105: 0 | K105: 0 | L105: 1179.452103
J106: 0 | K106: 0 | L106: 1179.452103
J107: 0 | K107: 0 | L107: 1179.452103
J108: 0 | K108: 0 | L108: 1179.452103
J109: 0 | K109: 0 | L109: 1179.452103
J110: 0 | K110: 0 | L110: 1179.452103
J111: 0 | K111: 0 | L111: 1179.452103
J112: 0 | K112: 0 | L112: 1179.452103
J113: 0 | K113: 0 | L113: 1179.452103
J114: 0 | K114: 0 | L114: 1179.452103
J115: 0 | K115: 0 | L115: 1179.452103
J116: 0 | K116: 0 | L116: 1179.452103
J117: 0 | K117: 0 | L117: 1179.452103
J118: 0 | K118: 0 | L118: 1179.452103
J119: 0 | K119: 0 | L119: 1179.452103
J120: =IF(J119=0,0,IF((J119+1)<=SUM(I$21:I$48),J119+1,0)) -> 0 | K120: 0 | L120: 1179.452103 | M120: =IPMT((taux/péri.),J120,(durée*péri.),-empr) ->  | N120: =PPMT((taux/péri.),J120,(durée*péri.),-empr) -> 
J121: 0 | K121: 0 | L121: 1179.452103
J122: 0 | K122: 0 | L122: 1179.452103
J123: 0 | K123: 0 | L123: 1179.452103
J124: 0 | K124: 0 | L124: 1179.452103
J125: 0 | K125: 0 | L125: 1179.452103
J126: 0 | K126: 0 | L126: 1179.452103
J127: 0 | K127: 0 | L127: 1179.452103
J128: 0 | K128: 0 | L128: 1179.452103
J129: 0 | K129: 0 | L129: 1179.452103
J130: 0 | K130: 0 | L130: 1179.452103
J131: 0 | K131: 0 | L131: 1179.452103
J132: 0 | K132: 0 | L132: 1179.452103
J133: 0 | K133: 0 | L133: 1179.452103
J134: 0 | K134: 0 | L134: 1179.452103
J135: 0 | K135: 0 | L135: 1179.452103
J136: 0 | K136: 0 | L136: 1179.452103
J137: 0 | K137: 0 | L137: 1179.452103
J138: 0 | K138: 0 | L138: 1179.452103
J139: 0 | K139: 0 | L139: 1179.452103
J140: 0 | K140: 0 | L140: 1179.452103
J141: 0 | K141: 0 | L141: 1179.452103
J142: 0 | K142: 0 | L142: 1179.452103
J143: 0 | K143: 0 | L143: 1179.452103
J144: 0 | K144: 0 | L144: 1179.452103
J145: 0 | K145: 0 | L145: 1179.452103
J146: 0 | K146: 0 | L146: 1179.452103
J147: 0 | K147: 0 | L147: 1179.452103
J148: 0 | K148: 0 | L148: 1179.452103
J149: 0 | K149: 0 | L149: 1179.452103
J150: 0 | K150: 0 | L150: 1179.452103 | O150: =O149-N150 -> 
J151: 0 | K151: 0 | L151: 1179.452103
J152: 0 | K152: 0 | L152: 1179.452103
J153: 0 | K153: 0 | L153: 1179.452103
J154: 0 | K154: 0 | L154: 1179.452103
J155: 0 | K155: 0 | L155: 1179.452103
J156: 0 | K156: 0 | L156: 1179.452103
J157: 0 | K157: 0 | L157: 1179.452103
J158: 0 | K158: 0 | L158: 1179.452103
J159: 0 | K159: 0 | L159: 1179.452103
J160: 0 | K160: 0 | L160: 1179.452103
J161: 0 | K161: 0 | L161: 1179.452103
J162: 0 | K162: 0 | L162: 1179.452103
J163: 0 | K163: 0 | L163: 1179.452103
J164: 0 | K164: 0 | L164: 1179.452103
J165: 0 | K165: 0 | L165: 1179.452103
J166: 0 | K166: 0 | L166: =PMT((taux/péri.),(durée*péri.),-empr) -> 1179.452103
J167: 0 | K167: =IF(J167=0,0,YEAR(Date_de_départ+((J167-1)*(366/péri.)))) -> 0 | L167: 1179.452103
J168: 0 | K168: 0 | L168: 1179.452103
J169: 0 | K169: 0 | L169: 1179.452103
J170: 0 | K170: 0 | L170: 1179.452103
J171: 0 | K171: 0 | L171: 1179.452103
J172: 0 | K172: 0 | L172: 1179.452103
J173: 0 | K173: 0 | L173: 1179.452103
J174: 0 | K174: 0 | L174: 1179.452103
J175: 0 | K175: 0 | L175: 1179.452103
J176: 0 | K176: 0 | L176: 1179.452103
J177: 0 | K177: 0 | L177: 1179.452103
J178: 0 | K178: 0 | L178: 1179.452103
J179: 0 | K179: 0 | L179: 1179.452103
J180: 0 | K180: 0 | L180: 1179.452103
J181: 0 | K181: 0 | L181: 1179.452103
J182: 0 | K182: 0 | L182: 1179.452103
J183: 0 | K183: 0 | L183: 1179.452103
J184: =IF(J183=0,0,IF((J183+1)<=SUM(I$21:I$48),J183+1,0)) -> 0 | K184: 0 | L184: 1179.452103 | M184: =IPMT((taux/péri.),J184,(durée*péri.),-empr) ->  | N184: =PPMT((taux/péri.),J184,(durée*péri.),-empr) -> 
J185: 0 | K185: 0 | L185: 1179.452103
J186: 0 | K186: 0 | L186: 1179.452103
J187: 0 | K187: 0 | L187: 1179.452103
J188: 0 | K188: 0 | L188: 1179.452103
J189: 0 | K189: 0 | L189: 1179.452103
J190: 0 | K190: 0 | L190: 1179.452103
J191: 0 | K191: 0 | L191: 1179.452103
J192: 0 | K192: 0 | L192: 1179.452103
J193: 0 | K193: 0 | L193: 1179.452103
J194: 0 | K194: 0 | L194: 1179.452103
J195: 0 | K195: 0 | L195: 1179.452103
J196: 0 | K196: 0 | L196: 1179.452103
J197: 0 | K197: 0 | L197: 1179.452103
J198: 0 | K198: 0 | L198: 1179.452103
J199: 0 | K199: 0 | L199: 1179.452103
J200: 0 | K200: 0 | L200: 1179.452103
J201: 0 | K201: 0 | L201: 1179.452103
J202: 0 | K202: 0 | L202: 1179.452103
J203: 0 | K203: 0 | L203: 1179.452103
J204: 0 | K204: 0 | L204: 1179.452103
J205: 0 | K205: 0 | L205: 1179.452103
J206: 0 | K206: 0 | L206: 1179.452103
J207: 0 | K207: 0 | L207: 1179.452103
... 113 more rows

Sheet Emprunt 3 (hidden)
B5: Nom | C5: =PAGE_PRÉSEN.!C11 -> M. Jaimie LeBoeuf
B6: Adresse | C6: =PAGE_PRÉSEN.!C12 -> 555, rue des Vachers, St-Meuhmeuh (Québec) G0X 0X0
B7: Téléphone | C7: =PAGE_PRÉSEN.!C13 -> (450)555-5555
B9: CALCUL D'EMPRUNT 3
B11: Description:
B13: Taux intérêt
B14: Date du 1° paiement
B15: Durée du prêt (an)
B16: Versement /année
B17: Montant emprunté
B18: Année du prêt | E18: =YEAR(E14) -> 1904 | J18: Taux intérêt | K18: Date de départ | L18: Durée du prêt | M18: Période | N18: Mois | O18: Montant emprunté
E19: =E14-(DAY(E14))+2 -> 1904-01-02 | I19: =L19*M19 -> 0 | J19: ='Emprunt 3'!$E$13 -> 0 | K19: ='Emprunt 3'!$E$19 -> 1904-01-02 | L19: ='Emprunt 3'!$E$15 -> 0 | M19: ='Emprunt 3'!$E$16 -> 0 | N19: ='Emprunt 3'!$E$18 -> 1904 | O19: ='Emprunt 3'!$E$17 -> 0
B20: Année | D20: Versement | E20: Annuité | F20: Intérêt | G20: Capital | H20: Solde | I20: nombre versement | J20: Paiement numéro | K20: Date du versement | L20: Versement période | M20: Intérets payés | N20: Capital remis | O20: Solde du capital
B21: =YEAR(Date_de_départ) -> 1904 | C21: =IF(B21<YEAR(Date_de_départ),0,B21-YEAR(Date_de_départ)+1) -> 1 | D21: =IF((C21-durée)>1,0,L21) ->  | E21: =SUMIF(K$21:$K295,B21,L$21:L258) ->  | F21: =SUMIF($K$21:K295,B21,M$21:M258) ->  | G21: =SUMIF(K$21:K295,B21,N$21:N258) ->  | H21: =$O$19-G21 ->  | I21: =IF((C21-durée)>1,0,IF(C21<=durée,péri.-(mois-1),mois)) -> 1904 | J21: 1 | K21: =YEAR(Date_de_départ) -> 1904 | L21: =PMT((taux/péri.),(durée*péri.),-empr) ->  | M21: =IPMT((taux/péri.),J21,(durée*péri.),-empr) ->  | N21: =PPMT((taux/péri.),J21,(durée*péri.),-empr) ->  | O21: =O19-N21 -> 
B22: =B21+1 -> 1905 | C22: =IF(B22<YEAR(Date_de_départ),0,B22-YEAR(Date_de_départ)+1) -> 2 | D22: 0 | E22: =SUMIF(K$21:$K296,B22,L$21:L259) -> 0 | F22: =SUMIF($K$21:K296,B22,M$21:M259) -> 0 | G22: =SUMIF(K$21:K296,B22,N$21:N259) -> 0 | H22: =H21-G22 ->  | I22: =IF((C22-durée)>1,0,IF(C22<=durée,péri.,mois-1)) -> 0 | J22: =IF(J21=0,0,IF((J21+1)<=SUM(I$21:I$48),J21+1,0)) -> 2 | K22: =IF(J22=0,0,YEAR(Date_de_départ+((J22-1)*(366/péri.)))) ->  | L22: =PMT((taux/péri.),(durée*péri.),-empr) ->  | M22: =IPMT((taux/péri.),J22,(durée*péri.),-empr) ->  | N22: =PPMT((taux/péri.),J22,(durée*péri.),-empr) ->  | O22: =O21-N22 -> 
B23: =B22+1 -> 1906 | C23: 3 | D23: 0 | E23: =SUMIF(K$21:$K297,B23,L$21:L260) -> 0 | F23: =SUMIF($K$21:K297,B23,M$21:M260) -> 0 | G23: =SUMIF(K$21:K297,B23,N$21:N260) -> 0 | H23: =H22-G23 ->  | I23: =IF((C23-durée)>1,0,IF(C23<=durée,péri.,mois-1)) -> 0 | J23: 3 | K23: =IF(J23=0,0,YEAR(Date_de_départ+((J23-1)*(366/péri.)))) -> 
B24: 1907 | C24: 4 | D24: 0 | E24: =SUMIF(K$21:$K298,B24,L$21:L261) -> 0 | F24: =SUMIF($K$21:K298,B24,M$21:M261) -> 0 | G24: =SUMIF(K$21:K298,B24,N$21:N261) -> 0 | I24: 0 | J24: 4
B25: 1908 | C25: 5 | D25: 0 | E25: =SUMIF(K$21:$K299,B25,L$21:L262) -> 0 | F25: =SUMIF($K$21:K299,B25,M$21:M262) -> 0 | G25: =SUMIF(K$21:K299,B25,N$21:N262) -> 0 | I25: 0 | J25: 5
B26: 1909 | C26: 6 | D26: 0 | E26: =SUMIF(K$21:$K300,B26,L$21:L263) -> 0 | F26: =SUMIF($K$21:K300,B26,M$21:M263) -> 0 | G26: =SUMIF(K$21:K300,B26,N$21:N263) -> 0 | I26: 0 | J26: 6
B27: 1910 | C27: 7 | D27: 0 | E27: =SUMIF(K$21:$K301,B27,L$21:L264) -> 0 | F27: =SUMIF($K$21:K301,B27,M$21:M264) -> 0 | G27: =SUMIF(K$21:K301,B27,N$21:N264) -> 0 | I27: 0 | J27: 7
B28: 1911 | C28: 8 | D28: 0 | E28: =SUMIF(K$21:$K302,B28,L$21:L265) -> 0 | F28: =SUMIF($K$21:K302,B28,M$21:M265) -> 0 | G28: =SUMIF(K$21:K302,B28,N$21:N265) -> 0 | I28: 0 | J28: 8
B29: 1912 | C29: 9 | D29: 0 | E29: =SUMIF(K$21:$K303,B29,L$21:L266) -> 0 | F29: =SUMIF($K$21:K303,B29,M$21:M266) -> 0 | G29: =SUMIF(K$21:K303,B29,N$21:N266) -> 0 | I29: 0 | J29: 9
B30: 1913 | C30: 10 | D30: 0 | E30: =SUMIF(K$21:$K304,B30,L$21:L267) -> 0 | F30: =SUMIF($K$21:K304,B30,M$21:M267) -> 0 | G30: =SUMIF(K$21:K304,B30,N$21:N267) -> 0 | I30: 0 | J30: 10
B31: 1914 | C31: 11 | D31: 0 | E31: =SUMIF(K$21:$K305,B31,L$21:L268) -> 0 | F31: =SUMIF($K$21:K305,B31,M$21:M268) -> 0 | G31: =SUMIF(K$21:K305,B31,N$21:N268) -> 0 | I31: 0 | J31: 11
B32: 1915 | C32: 12 | D32: 0 | E32: =SUMIF(K$21:$K306,B32,L$21:L269) -> 0 | F32: =SUMIF($K$21:K306,B32,M$21:M269) -> 0 | G32: =SUMIF(K$21:K306,B32,N$21:N269) -> 0 | I32: 0 | J32: 12
B33: 1916 | C33: 13 | D33: 0 | E33: =SUMIF(K$21:$K307,B33,L$21:L270) -> 0 | F33: =SUMIF($K$21:K307,B33,M$21:M270) -> 0 | G33: =SUMIF(K$21:K307,B33,N$21:N270) -> 0 | I33: 0 | J33: 13
B34: 1917 | C34: 14 | D34: 0 | E34: =SUMIF(K$21:$K308,B34,L$21:L271) -> 0 | F34: =SUMIF($K$21:K308,B34,M$21:M271) -> 0 | G34: =SUMIF(K$21:K308,B34,N$21:N271) -> 0 | I34: 0 | J34: 14
B35: 1918 | C35: 15 | D35: 0 | E35: =SUMIF(K$21:$K309,B35,L$21:L272) -> 0 | F35: =SUMIF($K$21:K309,B35,M$21:M272) -> 0 | G35: =SUMIF(K$21:K309,B35,N$21:N272) -> 0 | I35: 0 | J35: 15
B36: 1919 | C36: 16 | D36: 0 | E36: =SUMIF(K$21:$K310,B36,L$21:L273) -> 0 | F36: =SUMIF($K$21:K310,B36,M$21:M273) -> 0 | G36: =SUMIF(K$21:K310,B36,N$21:N273) -> 0 | I36: 0 | J36: 16
B37: 1920 | C37: 17 | D37: =IF((C37-durée)>1,0,L37) -> 0 | E37: =SUMIF(K$21:$K311,B37,L$21:L274) -> 0 | F37: =SUMIF($K$21:K311,B37,M$21:M274) -> 0 | G37: =SUMIF(K$21:K311,B37,N$21:N274) -> 0 | I37: 0 | J37: 17
B38: 1921 | C38: =IF(B38<YEAR(Date_de_départ),0,B38-YEAR(Date_de_départ)+1) -> 18 | D38: 0 | E38: =SUMIF(K$21:$K312,B38,L$21:L275) -> 0 | F38: =SUMIF($K$21:K312,B38,M$21:M275) -> 0 | G38: =SUMIF(K$21:K312,B38,N$21:N275) -> 0 | I38: 0 | J38: =IF(J37=0,0,IF((J37+1)<=SUM(I$21:I$48),J37+1,0)) -> 18 | L38: =PMT((taux/péri.),(durée*péri.),-empr) ->  | M38: =IPMT((taux/péri.),J38,(durée*péri.),-empr) ->  | N38: =PPMT((taux/péri.),J38,(durée*péri.),-empr) -> 
B39: 1922 | C39: 19 | D39: 0 | E39: =SUMIF(K$21:$K313,B39,L$21:L276) -> 0 | F39: =SUMIF($K$21:K313,B39,M$21:M276) -> 0 | G39: =SUMIF(K$21:K313,B39,N$21:N276) -> 0 | I39: =IF((C39-durée)>1,0,IF(C39<=durée,péri.,mois-1)) -> 0 | J39: 19 | K39: =IF(J39=0,0,YEAR(Date_de_départ+((J39-1)*(366/péri.)))) -> 
B40: 1923 | C40: 20 | D40: 0 | E40: =SUMIF(K$21:$K314,B40,L$21:L277) -> 0 | F40: =SUMIF($K$21:K314,B40,M$21:M277) -> 0 | G40: =SUMIF(K$21:K314,B40,N$21:N277) -> 0 | I40: 0 | J40: 20
B41: 1924 | C41: 21 | D41: 0 | E41: =SUMIF(K$21:$K315,B41,L$21:L278) -> 0 | F41: =SUMIF($K$21:K315,B41,M$21:M278) -> 0 | G41: =SUMIF(K$21:K315,B41,N$21:N278) -> 0 | I41: 0 | J41: 21
B42: 1925 | C42: 22 | D42: 0 | E42: =SUMIF(K$21:$K316,B42,L$21:L279) -> 0 | F42: =SUMIF($K$21:K316,B42,M$21:M279) -> 0 | G42: =SUMIF(K$21:K316,B42,N$21:N279) -> 0 | I42: 0 | J42: 22
B43: 1926 | C43: 23 | D43: 0 | E43: =SUMIF(K$21:$K317,B43,L$21:L280) -> 0 | F43: =SUMIF($K$21:K317,B43,M$21:M280) -> 0 | G43: =SUMIF(K$21:K317,B43,N$21:N280) -> 0 | I43: 0 | J43: 23
B44: 1927 | C44: 24 | D44: 0 | E44: =SUMIF(K$21:$K318,B44,L$21:L281) -> 0 | F44: =SUMIF($K$21:K318,B44,M$21:M281) -> 0 | G44: =SUMIF(K$21:K318,B44,N$21:N281) -> 0 | I44: 0 | J44: 24
B45: 1928 | C45: 25 | D45: 0 | E45: =SUMIF(K$21:$K319,B45,L$21:L282) -> 0 | F45: =SUMIF($K$21:K319,B45,M$21:M282) -> 0 | G45: =SUMIF(K$21:K319,B45,N$21:N282) -> 0 | I45: 0 | J45: 25
B46: 1929 | C46: 26 | D46: 0 | E46: =SUMIF(K$21:$K320,B46,L$21:L283) -> 0 | F46: =SUMIF($K$21:K320,B46,M$21:M283) -> 0 | G46: =SUMIF(K$21:K320,B46,N$21:N283) -> 0 | I46: 0 | J46: 26
D47: TOTAL | E47: =SUM(E21:E46) ->  | F47: =SUM(F21:F46) ->  | G47: =SUM(G21:G46) ->  | J47: 27
J48: 28 | M48: =IPMT((taux/péri.),J48,(durée*péri.),-empr) ->  | N48: =PPMT((taux/péri.),J48,(durée*péri.),-empr) -> 
J49: =IF(J48=0,0,IF((J48+1)<=SUM(I$21:I$48),J48+1,0)) -> 29
J50: 30
J51: 31
J52: 32
J53: 33
J54: 34
J55: 35
J56: =IF(J55=0,0,IF((J55+1)<=SUM(I$21:I$48),J55+1,0)) -> 36 | M56: =IPMT((taux/péri.),J56,(durée*péri.),-empr) ->  | N56: =PPMT((taux/péri.),J56,(durée*péri.),-empr) -> 
J57: 37
J58: 38
J59: 39
J60: 40
J61: 41
J62: 42
J63: 43
J64: 44
J65: 45
J66: 46
J67: 47
J68: 48
J69: 49
J70: 50
J71: 51
J72: 52
J73: 53
J74: 54
J75: 55
J76: 56
J77: 57
J78: 58
J79: 59
J80: 60
J81: 61
J82: 62
J83: 63
J84: 64
J85: 65
J86: 66 | O86: =O85-N86 -> 
J87: 67
J88: 68
J89: 69
J90: 70
J91: 71
J92: 72
J93: 73
J94: 74
J95: 75
J96: 76
J97: 77
J98: 78
J99: 79
J100: 80
J101: 81
J102: 82 | L102: =PMT((taux/péri.),(durée*péri.),-empr) -> 
J103: 83 | K103: =IF(J103=0,0,YEAR(Date_de_départ+((J103-1)*(366/péri.)))) -> 
J104: 84
J105: 85
J106: 86
J107: 87
J108: 88
J109: 89
J110: 90
J111: 91
J112: 92
J113: 93
J114: 94
J115: 95
J116: 96
J117: 97
J118: 98
J119: 99
J120: =IF(J119=0,0,IF((J119+1)<=SUM(I$21:I$48),J119+1,0)) -> 100 | M120: =IPMT((taux/péri.),J120,(durée*péri.),-empr) ->  | N120: =PPMT((taux/péri.),J120,(durée*péri.),-empr) -> 
J121: 101
J122: 102
J123: 103
J124: 104
J125: 105
J126: 106
J127: 107
J128: 108
J129: 109
J130: 110
J131: 111
J132: 112
J133: 113
J134: 114
J135: 115
J136: 116
J137: 117
J138: 118
J139: 119
J140: 120
J141: 121
J142: 122
J143: 123
J144: 124
J145: 125
J146: 126
J147: 127
J148: 128
J149: 129
J150: 130 | O150: =O149-N150 -> 
J151: 131
J152: 132
J153: 133
J154: 134
J155: 135
J156: 136
J157: 137
J158: 138
J159: 139
J160: 140
J161: 141
J162: 142
J163: 143
J164: 144
J165: 145
J166: 146 | L166: =PMT((taux/péri.),(durée*péri.),-empr) -> 
J167: 147 | K167: =IF(J167=0,0,YEAR(Date_de_départ+((J167-1)*(366/péri.)))) -> 
J168: 148
J169: 149
J170: 150
J171: 151
J172: 152
J173: 153
J174: 154
J175: 155
J176: 156
J177: 157
J178: 158
J179: 159
J180: 160
J181: 161
J182: 162
J183: 163
J184: =IF(J183=0,0,IF((J183+1)<=SUM(I$21:I$48),J183+1,0)) -> 164 | M184: =IPMT((taux/péri.),J184,(durée*péri.),-empr) ->  | N184: =PPMT((taux/péri.),J184,(durée*péri.),-empr) -> 
J185: 165
J186: 166
J187: 167
J188: 168
J189: 169
J190: 170
J191: 171
J192: 172
J193: 173
J194: 174
J195: 175
J196: 176
J197: 177
J198: 178
J199: 179
J200: 180
J201: 181
J202: 182
J203: 183
J204: 184
J205: 185
J206: 186
J207: 187
... 113 more rows

Sheet Emprunt supplémentaire (hidden)
B5: Nom | C5: =PAGE_PRÉSEN.!C11 -> M. Jaimie LeBoeuf
B6: Adresse | C6: =PAGE_PRÉSEN.!C12 -> 555, rue des Vachers, St-Meuhmeuh (Québec) G0X 0X0
B7: Téléphone | C7: =PAGE_PRÉSEN.!C13 -> (450)555-5555
B9: CALCUL D'EMPRUNT SUPPLÉMENTAIRE
B11: Description:
B13: Taux intérêt
B14: Date du 1° paiement
B15: Durée du prêt (an)
B16: Versement /année
B17: Montant emprunté
B18: Année du prêt | E18: =YEAR(E14) -> 1904 | J18: Taux intérêt | K18: Date de départ | L18: Durée du prêt | M18: Période | N18: Mois | O18: Montant emprunté
E19: =E14-(DAY(E14))+2 -> 1904-01-02 | I19: =L19*M19 -> 0 | J19: ='Emprunt supplémentaire'!$E$13 -> 0 | K19: ='Emprunt supplémentaire'!$E$19 -> 1904-01-02 | L19: ='Emprunt supplémentaire'!$E$15 -> 0 | M19: ='Emprunt supplémentaire'!$E$16 -> 0 | N19: ='Emprunt supplémentaire'!$E$18 -> 1904 | O19: ='Emprunt supplémentaire'!$E$17 -> 0
B20: Année | D20: Versement | E20: Annuité | F20: Intérêt | G20: Capital | H20: Solde | I20: nombre versement | J20: Paiement numéro | K20: Date du versement | L20: Versement période | M20: Intérets payés | N20: Capital remis | O20: Solde du capital
B21: =YEAR(Date_de_départ) -> 1904 | C21: =IF(B21<YEAR(Date_de_départ),0,B21-YEAR(Date_de_départ)+1) -> 1 | D21: =IF((C21-durée)>1,0,L21) ->  | E21: =SUMIF(K$21:$K295,B21,L$21:L258) ->  | F21: =SUMIF($K$21:K295,B21,M$21:M258) ->  | G21: =SUMIF(K$21:K295,B21,N$21:N258) ->  | H21: =$O$19-G21 ->  | I21: =IF((C21-durée)>1,0,IF(C21<=durée,péri.-(mois-1),mois)) -> 1904 | J21: 1 | K21: =YEAR(Date_de_départ) -> 1904 | L21: =PMT((taux/péri.),(durée*péri.),-empr) ->  | M21: =IPMT((taux/péri.),J21,(durée*péri.),-empr) ->  | N21: =PPMT((taux/péri.),J21,(durée*péri.),-empr) ->  | O21: =O19-N21 -> 
B22: =B21+1 -> 1905 | C22: =IF(B22<YEAR(Date_de_départ),0,B22-YEAR(Date_de_départ)+1) -> 2 | D22: 0 | E22: =SUMIF(K$21:$K296,B22,L$21:L259) -> 0 | F22: =SUMIF($K$21:K296,B22,M$21:M259) -> 0 | G22: =SUMIF(K$21:K296,B22,N$21:N259) -> 0 | H22: =H21-G22 ->  | I22: =IF((C22-durée)>1,0,IF(C22<=durée,péri.,mois-1)) -> 0 | J22: =IF(J21=0,0,IF((J21+1)<=SUM(I$21:I$48),J21+1,0)) -> 2 | K22: =IF(J22=0,0,YEAR(Date_de_départ+((J22-1)*(366/péri.)))) ->  | L22: =PMT((taux/péri.),(durée*péri.),-empr) ->  | M22: =IPMT((taux/péri.),J22,(durée*péri.),-empr) ->  | N22: =PPMT((taux/péri.),J22,(durée*péri.),-empr) ->  | O22: =O21-N22 -> 
B23: =B22+1 -> 1906 | C23: 3 | D23: 0 | E23: =SUMIF(K$21:$K297,B23,L$21:L260) -> 0 | F23: =SUMIF($K$21:K297,B23,M$21:M260) -> 0 | G23: =SUMIF(K$21:K297,B23,N$21:N260) -> 0 | H23: =H22-G23 ->  | I23: =IF((C23-durée)>1,0,IF(C23<=durée,péri.,mois-1)) -> 0 | J23: 3 | K23: =IF(J23=0,0,YEAR(Date_de_départ+((J23-1)*(366/péri.)))) -> 
B24: 1907 | C24: 4 | D24: 0 | E24: =SUMIF(K$21:$K298,B24,L$21:L261) -> 0 | F24: =SUMIF($K$21:K298,B24,M$21:M261) -> 0 | G24: =SUMIF(K$21:K298,B24,N$21:N261) -> 0 | I24: 0 | J24: 4
B25: 1908 | C25: 5 | D25: 0 | E25: =SUMIF(K$21:$K299,B25,L$21:L262) -> 0 | F25: =SUMIF($K$21:K299,B25,M$21:M262) -> 0 | G25: =SUMIF(K$21:K299,B25,N$21:N262) -> 0 | I25: 0 | J25: 5
B26: 1909 | C26: 6 | D26: 0 | E26: =SUMIF(K$21:$K300,B26,L$21:L263) -> 0 | F26: =SUMIF($K$21:K300,B26,M$21:M263) -> 0 | G26: =SUMIF(K$21:K300,B26,N$21:N263) -> 0 | I26: 0 | J26: 6
B27: 1910 | C27: 7 | D27: 0 | E27: =SUMIF(K$21:$K301,B27,L$21:L264) -> 0 | F27: =SUMIF($K$21:K301,B27,M$21:M264) -> 0 | G27: =SUMIF(K$21:K301,B27,N$21:N264) -> 0 | I27: 0 | J27: 7
B28: 1911 | C28: 8 | D28: 0 | E28: =SUMIF(K$21:$K302,B28,L$21:L265) -> 0 | F28: =SUMIF($K$21:K302,B28,M$21:M265) -> 0 | G28: =SUMIF(K$21:K302,B28,N$21:N265) -> 0 | I28: 0 | J28: 8
B29: 1912 | C29: 9 | D29: 0 | E29: =SUMIF(K$21:$K303,B29,L$21:L266) -> 0 | F29: =SUMIF($K$21:K303,B29,M$21:M266) -> 0 | G29: =SUMIF(K$21:K303,B29,N$21:N266) -> 0 | I29: 0 | J29: 9
B30: 1913 | C30: 10 | D30: 0 | E30: =SUMIF(K$21:$K304,B30,L$21:L267) -> 0 | F30: =SUMIF($K$21:K304,B30,M$21:M267) -> 0 | G30: =SUMIF(K$21:K304,B30,N$21:N267) -> 0 | I30: 0 | J30: 10
B31: 1914 | C31: 11 | D31: 0 | E31: =SUMIF(K$21:$K305,B31,L$21:L268) -> 0 | F31: =SUMIF($K$21:K305,B31,M$21:M268) -> 0 | G31: =SUMIF(K$21:K305,B31,N$21:N268) -> 0 | I31: 0 | J31: 11
B32: 1915 | C32: 12 | D32: 0 | E32: =SUMIF(K$21:$K306,B32,L$21:L269) -> 0 | F32: =SUMIF($K$21:K306,B32,M$21:M269) -> 0 | G32: =SUMIF(K$21:K306,B32,N$21:N269) -> 0 | I32: 0 | J32: 12
B33: 1916 | C33: 13 | D33: 0 | E33: =SUMIF(K$21:$K307,B33,L$21:L270) -> 0 | F33: =SUMIF($K$21:K307,B33,M$21:M270) -> 0 | G33: =SUMIF(K$21:K307,B33,N$21:N270) -> 0 | I33: 0 | J33: 13
B34: 1917 | C34: 14 | D34: 0 | E34: =SUMIF(K$21:$K308,B34,L$21:L271) -> 0 | F34: =SUMIF($K$21:K308,B34,M$21:M271) -> 0 | G34: =SUMIF(K$21:K308,B34,N$21:N271) -> 0 | I34: 0 | J34: 14
B35: 1918 | C35: 15 | D35: 0 | E35: =SUMIF(K$21:$K309,B35,L$21:L272) -> 0 | F35: =SUMIF($K$21:K309,B35,M$21:M272) -> 0 | G35: =SUMIF(K$21:K309,B35,N$21:N272) -> 0 | I35: 0 | J35: 15
B36: 1919 | C36: 16 | D36: 0 | E36: =SUMIF(K$21:$K310,B36,L$21:L273) -> 0 | F36: =SUMIF($K$21:K310,B36,M$21:M273) -> 0 | G36: =SUMIF(K$21:K310,B36,N$21:N273) -> 0 | I36: 0 | J36: 16
B37: 1920 | C37: 17 | D37: =IF((C37-durée)>1,0,L37) -> 0 | E37: =SUMIF(K$21:$K311,B37,L$21:L274) -> 0 | F37: =SUMIF($K$21:K311,B37,M$21:M274) -> 0 | G37: =SUMIF(K$21:K311,B37,N$21:N274) -> 0 | I37: 0 | J37: 17
B38: 1921 | C38: =IF(B38<YEAR(Date_de_départ),0,B38-YEAR(Date_de_départ)+1) -> 18 | D38: 0 | E38: =SUMIF(K$21:$K312,B38,L$21:L275) -> 0 | F38: =SUMIF($K$21:K312,B38,M$21:M275) -> 0 | G38: =SUMIF(K$21:K312,B38,N$21:N275) -> 0 | I38: 0 | J38: =IF(J37=0,0,IF((J37+1)<=SUM(I$21:I$48),J37+1,0)) -> 18 | L38: =PMT((taux/péri.),(durée*péri.),-empr) ->  | M38: =IPMT((taux/péri.),J38,(durée*péri.),-empr) ->  | N38: =PPMT((taux/péri.),J38,(durée*péri.),-empr) -> 
B39: 1922 | C39: 19 | D39: 0 | E39: =SUMIF(K$21:$K313,B39,L$21:L276) -> 0 | F39: =SUMIF($K$21:K313,B39,M$21:M276) -> 0 | G39: =SUMIF(K$21:K313,B39,N$21:N276) -> 0 | I39: =IF((C39-durée)>1,0,IF(C39<=durée,péri.,mois-1)) -> 0 | J39: 19 | K39: =IF(J39=0,0,YEAR(Date_de_départ+((J39-1)*(366/péri.)))) -> 
B40: 1923 | C40: 20 | D40: 0 | E40: =SUMIF(K$21:$K314,B40,L$21:L277) -> 0 | F40: =SUMIF($K$21:K314,B40,M$21:M277) -> 0 | G40: =SUMIF(K$21:K314,B40,N$21:N277) -> 0 | I40: 0 | J40: 20
B41: 1924 | C41: 21 | D41: 0 | E41: =SUMIF(K$21:$K315,B41,L$21:L278) -> 0 | F41: =SUMIF($K$21:K315,B41,M$21:M278) -> 0 | G41: =SUMIF(K$21:K315,B41,N$21:N278) -> 0 | I41: 0 | J41: 21
B42: 1925 | C42: 22 | D42: 0 | E42: =SUMIF(K$21:$K316,B42,L$21:L279) -> 0 | F42: =SUMIF($K$21:K316,B42,M$21:M279) -> 0 | G42: =SUMIF(K$21:K316,B42,N$21:N279) -> 0 | I42: 0 | J42: 22
B43: 1926 | C43: 23 | D43: 0 | E43: =SUMIF(K$21:$K317,B43,L$21:L280) -> 0 | F43: =SUMIF($K$21:K317,B43,M$21:M280) -> 0 | G43: =SUMIF(K$21:K317,B43,N$21:N280) -> 0 | I43: 0 | J43: 23
B44: 1927 | C44: 24 | D44: 0 | E44: =SUMIF(K$21:$K318,B44,L$21:L281) -> 0 | F44: =SUMIF($K$21:K318,B44,M$21:M281) -> 0 | G44: =SUMIF(K$21:K318,B44,N$21:N281) -> 0 | I44: 0 | J44: 24
B45: 1928 | C45: 25 | D45: 0 | E45: =SUMIF(K$21:$K319,B45,L$21:L282) -> 0 | F45: =SUMIF($K$21:K319,B45,M$21:M282) -> 0 | G45: =SUMIF(K$21:K319,B45,N$21:N282) -> 0 | I45: 0 | J45: 25
B46: 1929 | C46: 26 | D46: 0 | E46: =SUMIF(K$21:$K320,B46,L$21:L283) -> 0 | F46: =SUMIF($K$21:K320,B46,M$21:M283) -> 0 | G46: =SUMIF(K$21:K320,B46,N$21:N283) -> 0 | I46: 0 | J46: 26
D47: TOTAL | E47: =SUM(E21:E46) ->  | F47: =SUM(F21:F46) ->  | G47: =SUM(G21:G46) ->  | J47: 27
J48: 28 | M48: =IPMT((taux/péri.),J48,(durée*péri.),-empr) ->  | N48: =PPMT((taux/péri.),J48,(durée*péri.),-empr) -> 
J49: =IF(J48=0,0,IF((J48+1)<=SUM(I$21:I$48),J48+1,0)) -> 29
J50: 30
J51: 31
J52: 32
J53: 33
J54: 34
J55: 35
J56: =IF(J55=0,0,IF((J55+1)<=SUM(I$21:I$48),J55+1,0)) -> 36 | M56: =IPMT((taux/péri.),J56,(durée*péri.),-empr) ->  | N56: =PPMT((taux/péri.),J56,(durée*péri.),-empr) -> 
J57: 37
J58: 38
J59: 39
J60: 40
J61: 41
J62: 42
J63: 43
J64: 44
J65: 45
J66: 46
J67: 47
J68: 48
J69: 49
J70: 50
J71: 51
J72: 52
J73: 53
J74: 54
J75: 55
J76: 56
J77: 57
J78: 58
J79: 59
J80: 60
J81: 61
J82: 62
J83: 63
J84: 64
J85: 65
J86: 66 | O86: =O85-N86 -> 
J87: 67
J88: 68
J89: 69
J90: 70
J91: 71
J92: 72
J93: 73
J94: 74
J95: 75
J96: 76
J97: 77
J98: 78
J99: 79
J100: 80
J101: 81
J102: 82 | L102: =PMT((taux/péri.),(durée*péri.),-empr) -> 
J103: 83 | K103: =IF(J103=0,0,YEAR(Date_de_départ+((J103-1)*(366/péri.)))) -> 
J104: 84
J105: 85
J106: 86
J107: 87
J108: 88
J109: 89
J110: 90
J111: 91
J112: 92
J113: 93
J114: 94
J115: 95
J116: 96
J117: 97
J118: 98
J119: 99
J120: =IF(J119=0,0,IF((J119+1)<=SUM(I$21:I$48),J119+1,0)) -> 100 | M120: =IPMT((taux/péri.),J120,(durée*péri.),-empr) ->  | N120: =PPMT((taux/péri.),J120,(durée*péri.),-empr) -> 
J121: 101
J122: 102
J123: 103
J124: 104
J125: 105
J126: 106
J127: 107
J128: 108
J129: 109
J130: 110
J131: 111
J132: 112
J133: 113
J134: 114
J135: 115
J136: 116
J137: 117
J138: 118
J139: 119
J140: 120
J141: 121
J142: 122
J143: 123
J144: 124
J145: 125
J146: 126
J147: 127
J148: 128
J149: 129
J150: 130 | O150: =O149-N150 -> 
J151: 131
J152: 132
J153: 133
J154: 134
J155: 135
J156: 136
J157: 137
J158: 138
J159: 139
J160: 140
J161: 141
J162: 142
J163: 143
J164: 144
J165: 145
J166: 146 | L166: =PMT((taux/péri.),(durée*péri.),-empr) -> 
J167: 147 | K167: =IF(J167=0,0,YEAR(Date_de_départ+((J167-1)*(366/péri.)))) -> 
J168: 148
J169: 149
J170: 150
J171: 151
J172: 152
J173: 153
J174: 154
J175: 155
J176: 156
J177: 157
J178: 158
J179: 159
J180: 160
J181: 161
J182: 162
J183: 163
J184: =IF(J183=0,0,IF((J183+1)<=SUM(I$21:I$48),J183+1,0)) -> 164 | M184: =IPMT((taux/péri.),J184,(durée*péri.),-empr) ->  | N184: =PPMT((taux/péri.),J184,(durée*péri.),-empr) -> 
J185: 165
J186: 166
J187: 167
J188: 168
J189: 169
J190: 170
J191: 171
J192: 172
J193: 173
J194: 174
J195: 175
J196: 176
J197: 177
J198: 178
J199: 179
J200: 180
J201: 181
J202: 182
J203: 183
J204: 184
J205: 185
J206: 186
J207: 187
... 113 more rows

Sheet Calcul_CDR
B5: Nom | C5: =PAGE_PRÉSEN.!C11 -> M. Jaimie LeBoeuf
B6: Adresse | C6: =PAGE_PRÉSEN.!C12 -> 555, rue des Vachers, St-Meuhmeuh (Québec) G0X 0X0
B7: Téléphone | C7: =PAGE_PRÉSEN.!C13 -> (450)555-5555
B9: ANALYSE DE LA CAPACITÉ DE REMBOURSEMENT MAXIMALE
D11: Année | E11: Année | F11: Année | G11: Année | H11: Année
D12: =Don_tech.!F9 -> 2019 | E12: =Don_tech.!G9 -> 2020 | F12: =Don_tech.!H9 -> 2021 | G12: =Don_tech.!I9 -> 2022 | H12: =Don_tech.!J9 -> 2023
B13: Nombre de vaches | D13: =Don_tech.!F10 -> 25 | E13: =Don_tech.!G10 -> 35 | F13: =Don_tech.!H10 -> 45 | G13: =Don_tech.!I10 -> 55 | H13: =Don_tech.!J10 -> 65
B15: Revenus | D15: =Budget!F37 -> 72147.1135 | E15: =Budget!G37 -> 94395.43558 | F15: =Budget!H37 -> 114985.7218 | G15: =Budget!I37 -> 139928.1654 | H15: =Budget!J37 -> 135094.5145
B17: Dépenses avant salaire | D17: =Budget!F79-Budget!F69 -> 64523.216 | E17: =Budget!G79-Budget!G69 -> 85835.2665 | F17: =Budget!H79-Budget!H69 -> 109006.3415 | G17: =Budget!I79-Budget!I69 -> 126842.8645 | H17: =Budget!J79-Budget!J69 -> 114379.8435
B19: % de dépenses avant salaire | D19: =D17/D15 -> 0.8943284474 | E19: =E17/E15 -> 0.9093158581 | F19: =F17/F15 -> 0.9479989327 | G19: =G17/G15 -> 0.9064855821 | H19: =H17/H15 -> 0.8466653434
B21: Marge brute avant salaire | D21: =D15-D17 -> 7623.8975 | E21: =E15-E17 -> 8560.169079 | F21: =F15-F17 -> 5979.380255 | G21: =G15-G17 -> 13085.30094 | H21: =H15-H17 -> 20714.67099
B23: Salaires | D23: =Budget!F69 -> 3646.75 | E23: =Budget!G69 -> 5105.45 | F23: =Budget!H69 -> 6564.15 | G23: =Budget!I69 -> 8022.85 | H23: =Budget!J69 -> 9481.55
B25: Coût de vie à combler (revenu-dépense) | D25: =IF(Coût_vie!E55>0,0,-Coût_vie!E55) -> 0 | E25: =IF(Coût_vie!G55>0,0,-Coût_vie!G55) -> 0 | F25: =IF(Coût_vie!I55>0,0,-Coût_vie!I55) -> 0 | G25: =IF(Coût_vie!K55>0,0,-Coût_vie!K55) -> 0 | H25: =IF(Coût_vie!M55>0,0,-Coût_vie!M55) -> 0
B27: Coût du travail (salaire+coût vie) | D27: =D23+D25 -> 3646.75 | E27: =E23+E25 -> 5105.45 | F27: =F23+F25 -> 6564.15 | G27: =G23+G25 -> 8022.85 | H27: =H23+H25 -> 9481.55
B29: % coût du travail | D29: =D27/D15 -> 0.05054602774 | E29: =E27/E15 -> 0.05408577193 | F29: =F27/F15 -> 0.05708665302 | G29: =G27/G15 -> 0.0573354905 | H29: =H27/H15 -> 0.07018456697
B31: CDR maximale | D31: =D21-D27 -> 3977.1475 | E31: =E21-E27 -> 3454.719079 | F31: =F21-F27 -> -584.7697447 | G31: =G21-G27 -> 5062.450942 | H31: =H21-H27 -> 11233.12099
B33: Annuités totales | D33: ='Budget Trés'!E37 -> 6326.349014 | E33: ='Budget Trés'!G37 -> 18979.04704 | F33: ='Budget Trés'!I37 -> 18979.04704 | G33: ='Budget Trés'!K37 -> 18979.04704 | H33: ='Budget Trés'!M37 -> 18979.04704
B35: % des annuitées | D35: =D33/$D$15 -> 0.0876867931 | E35: =E33/$E$15 -> 0.2010589487 | F35: =F33/$F$15 -> 0.1650556848 | G35: =G33/$G$15 -> 0.1356342162 | H35: =H33/$H$15 -> 0.1404871775
B37: Solde résiduel | D37: =D31-D33 -> -2349.201514 | E37: =E31-E33 -> -15524.32796 | F37: =F31-F33 -> -19563.81679 | G37: =G31-G33 -> -13916.5961 | H37: =H31-H33 -> -7745.926053
B38: Solde résiduel en % | D38: =D37/D15 -> -0.03256126822 | E38: =E37/E15 -> -0.1644605787 | F38: =F37/F15 -> -0.1701412705 | G38: =G37/G15 -> -0.09945528876 | H38: =H37/H15 -> -0.0573370879
